Workbook

Sheet Sheet1 (hidden)
A1: Tab name | B1: +0 | C1: FERC Code
A2: Sheet1 | B2: =IF(LEN(A2)=3,A2&"0",TEXT(A2,0)) -> Sheet1 | C2: 3010 | D2: =VLOOKUP(C2,B:B,1,0) -> 3010 | E2: New
A3: Summary | B3: =IF(LEN(A3)=3,A3&"0",TEXT(A3,0)) -> Summary | C3: 3030 | D3: =VLOOKUP(C3,B:B,1,0) -> 3030 | E3: New
A4: ARAM Calc Explanation | B4: ARAM Calc Explanation | C4: 3031 | D4: 3031 | E4: New
A5: 3010 | B5: 3010 | C5: 3740 | D5: 3740 | E5: New
A6: 3030 | B6: 3030 | C6: 3750 | D6: 3750
A7: 3031 | B7: 3031 | C7: 3761 | D7: 3761
A8: 3740 | B8: 3740 | C8: 3762 | D8: 3762
A9: 311 | B9: 3110 | C9: 3780 | D9: 3780
A10: 375 | B10: 3750 | C10: 3790 | D10: 3790
A11: 3761 | B11: 3761 | C11: 3801 | D11: 3801
A12: 3762 | B12: 3762 | C12: 3802 | D12: 3802
A13: 376G | B13: 376G | C13: 3810 | D13: 3810
A14: 378 | B14: 3780 | C14: 3811 | D14: 3811 | E14: New
A15: 379 | B15: 3790 | C15: 3820 | D15: 3820
A16: 3801 | B16: 3801 | C16: 3830 | D16: 3830
A17: 3802 | B17: 3802 | C17: 3840 | D17: 3840
A18: 380G | B18: 380G | C18: 3850 | D18: 3850
A19: 381 | B19: 3810 | C19: 3870 | D19: 3870
A20: 3811 | B20: 3811 | C20: 3890 | D20: 3890
A21: 382 | B21: 3820 | C21: 3900 | D21: 3900
A22: 383 | B22: 3830 | C22: 3910 | D22: 3910
A23: 384 | B23: 3840 | C23: 3912 | D23: 3912
A24: 385 | B24: 3850 | C24: 3913 | D24: 3913
A25: 387 | B25: 3870 | C25: 3914 | D25: 3914
A26: 389 | B26: 3890 | C26: 3920 | D26: 3920 | E26: New
A27: 390 | B27: 3900 | C27: 3922 | D27: 3922
A28: 3910 | B28: 3910 | C28: 3924
A29: 3912 | B29: 3912 | C29: 3930
A30: 3913 | B30: 3913 | C30: 3940
A31: 3914 | B31: 3914 | C31: 3950
A32: 391S | B32: 391S | C32: 3960
A33: 3920 | B33: 3920 | C33: 3970
A34: 3921 | B34: 3921 | C34: 3980
A35: 3922 | B35: 3922 | C35: 376G | D35: 376G
A36: 3923 | C36: 380G | D36: 380G
A37: 3924
A38: 393
A39: 394
A40: 395
A41: 396
A42: 397
A43: 398
A44: 399
A45: CY_Report
A46: Forecast
A47: FERC Code upd

Sheet Book_to_tax_Recon
A2: FN43 (12/31/2017)
A3: Plant Balance | B3: 58472911.51
A4: - Land and other non depreciable items | B4: -463146.35
A5: - repairs basis adjustment | B5: -808327.22
A6: Net Book Basis | C6: =+B3+B4+B5 -> 57201437.94
A9: Total Accumulated Plant Depr | B9: -17639997.51
A10: - Land and other non depreciable items
A11: - repairs accum depr adjustment | B11: 77395.65377
A12: Net Accum Depr | C12: =+B9+B10+B11 -> -17562601.86
A14: Net Book Value | D14: =+C6+C12 -> 39638836.08
A18: Tax Basis | B18: 64547297.55
A19: - Land and other non depreciable items | B19: -8435.71
A20: - Tax Repairs | B20: -297468.76
C21: =SUM(B18:B20) -> 64241393.08
A24: Accumulated Tax Reserve | B24: -30251946.97
A25: - Bonus Depreciation | B25: -18073885.36
C26: =+B24+B25 -> -48325832.33
A28: Net Tax Value | D28: =+C21+C26 -> 15915560.75
A30: Net Book - Net Tax | D30: =+D14-D28 -> 23723275.33
A31: Rate Diff | D31: 0.1323
D32: =+D30*D31 -> 3138589.327
A35: Summary of Book Basis Items Not Included
A36: - Land and other non depreciable items | D36: =-B4-B10 -> 463146.35
A37: - Tax Repairs | D37: =-B5-B11 -> 730931.5662
A38: - Cost of Removal | D38: -286134.27
A39: Total | D39: =SUM(D36:D38) -> 907943.6462

Sheet Summary
A1: Book Rollforward : | H1: FED Rate | I1: FBOS | J1: State Rate
A2: FAS Data 2017 : | F2: Historical Tax Rate | G2: =+H2+I2+J2 -> 0.38575 | H2: 0.35 | I2: =-+H2*+J2 -> -0.01925 | J2: 0.055
A3: FAS Data 2018+ : | F3: Current Tax Rate | G3: =+H3+I3+J3 -> 0.25345 | H3: 0.21 | I3: =-+H3*+J3 -> -0.01155 | J3: 0.055
A7: FERC Account | B7: Description | C7: Note | D7: Amortization/Reduction to Tax
D8: Total | E8: 2018 | F8: 2019 | G8: 2020 | H8: 2021 | I8: 2022 | J8: 2023 | K8: 2024 | L8: 2025 | M8: 2026 | N8: 2027 | O8: 2028 | P8: 2029 | Q8: 2030 | R8: 2031 | S8: 2032 | T8: 2033 | U8: 2034 | V8: 2035 | W8: 2036 | X8: 2037 | Y8: 2038 | Z8: 2039 | AA8: 2040 | AB8: 2041 | AC8: 2042 | AD8: 2043 | AE8: 2044 | AF8: 2045 | AG8: 2046 | AH8: 2047 | AI8: 2048 | AJ8: 2049 | AK8: 2050 | AL8: 2051 | AM8: 2052 | AN8: 2053 | AO8: 2054 | AP8: 2055 | AQ8: 2056 | AR8: 2057 | AS8: 2058 | AT8: 2059 | AU8: 2060 | AV8: 2061 | AW8: 2062 | AX8: 2063 | AY8: 2064 | AZ8: 2065 | BA8: 2066 | BB8: 2067 | BC8: 2068 | BD8: 2069 | BE8: 2070 | BF8: 2071 | BG8: 2072 | BH8: 2073 | BI8: 2074 | BJ8: 2075 | BK8: 2076 | BL8: 2077 | BM8: 2078 | BN8: 2079 | BO8: 2080 | BP8: 2081 | BQ8: 2082 | BR8: 2083 | BS8: 2084 | BT8: 2085 | BU8: 2086 | BV8: 2087 | BW8: 2088 | BX8: 2089 | BY8: 2090 | BZ8: 2091 | CA8: 2092 | CB8: 2093 | CC8: 2094 | CD8: 2095 | CE8: 2096 | CF8: 2097 | CG8: 2098 | CH8: 2099 | CI8: 2100
A9: 1210 | D9: =SUM(E9:CI9) -> 0 | E9: =INDIRECT($A9&"!E493") -> 0 | F9: =INDIRECT($A9&"!F493") -> 0 | G9: =INDIRECT($A9&"!G493") -> 0 | H9: =INDIRECT($A9&"!H493") -> 0 | I9: =INDIRECT($A9&"!I493") -> 0 | J9: =INDIRECT($A9&"!J493") -> 0 | K9: =INDIRECT($A9&"!K493") -> 0 | L9: =INDIRECT($A9&"!L493") -> 0 | M9: =INDIRECT($A9&"!M493") -> 0 | N9: =INDIRECT($A9&"!N493") -> 0 | O9: =INDIRECT($A9&"!O493") -> 0 | P9: =INDIRECT($A9&"!P493") -> 0 | Q9: =INDIRECT($A9&"!Q493") -> 0 | R9: =INDIRECT($A9&"!R493") -> 0 | S9: =INDIRECT($A9&"!S493") -> 0 | T9: =INDIRECT($A9&"!T493") -> 0 | U9: =INDIRECT($A9&"!U493") -> 0 | V9: =INDIRECT($A9&"!V493") -> 0 | W9: =INDIRECT($A9&"!W493") -> 0 | X9: =INDIRECT($A9&"!X493") -> 0 | Y9: =INDIRECT($A9&"!Y493") -> 0 | Z9: =INDIRECT($A9&"!Z493") -> 0 | AA9: =INDIRECT($A9&"!aa493") -> 0 | AB9: =INDIRECT($A9&"!ab493") -> 0 | AC9: =INDIRECT($A9&"!ac493") -> 0 | AD9: =INDIRECT($A9&"!ad493") -> 0 | AE9: =INDIRECT($A9&"!ae493") -> 0 | AF9: =INDIRECT($A9&"!af493") -> 0 | AG9: =INDIRECT($A9&"!ag493") -> 0 | AH9: =INDIRECT($A9&"!AH493") -> 0 | AI9: =INDIRECT($A9&"!aI493") -> 0 | AJ9: =INDIRECT($A9&"!AJ493") -> 0 | AK9: =INDIRECT($A9&"!AK493") -> 0 | AL9: =INDIRECT($A9&"!AL493") -> 0 | AM9: =INDIRECT($A9&"!AM493") -> 0 | AN9: =INDIRECT($A9&"!AN493") -> 0 | AO9: =INDIRECT($A9&"!AO493") -> 0 | AP9: =INDIRECT($A9&"!AP493") -> 0 | AQ9: =INDIRECT($A9&"!AQ493") -> 0 | AR9: =INDIRECT($A9&"!AR493") -> 0 | AS9: =INDIRECT($A9&"!AS493") -> 0 | AT9: =INDIRECT($A9&"!AT493") -> 0 | AU9: =INDIRECT($A9&"!AU493") -> 0 | AV9: =INDIRECT($A9&"!AV493") -> 0 | AW9: =INDIRECT($A9&"!AW493") -> 0 | AX9: =INDIRECT($A9&"!AX493") -> 0 | AY9: =INDIRECT($A9&"!AY493") -> 0 | AZ9: =INDIRECT($A9&"!AZ493") -> 0 | BA9: =INDIRECT($A9&"!BA493") -> 0 | BB9: =INDIRECT($A9&"!BB493") -> 0 | BC9: =INDIRECT($A9&"!BC493") -> 0 | BD9: =INDIRECT($A9&"!BD493") -> 0 | BE9: =INDIRECT($A9&"!BE493") -> 0 | BF9: =INDIRECT($A9&"!BF493") -> 0 | BG9: =INDIRECT($A9&"!BG493") -> 0 | BH9: =INDIRECT($A9&"!BH493") -> 0 | BI9: =INDIRECT($A9&"!BI493") -> 0 | BJ9: =INDIRECT($A9&"!BJ493") -> 0 | BK9: =INDIRECT($A9&"!BK493") -> 0 | BL9: =INDIRECT($A9&"!BL493") -> 0 | BM9: =INDIRECT($A9&"!BM493") -> 0 | BN9: =INDIRECT($A9&"!BN493") -> 0 | BO9: =INDIRECT($A9&"!BO493") -> 0 | BP9: =INDIRECT($A9&"!BP493") -> 0 | BQ9: =INDIRECT($A9&"!BQ493") -> 0 | BR9: =INDIRECT($A9&"!BR493") -> 0 | BS9: =INDIRECT($A9&"!BS493") -> 0 | BT9: =INDIRECT($A9&"!BT493") -> 0 | BU9: =INDIRECT($A9&"!BU493") -> 0 | BV9: =INDIRECT($A9&"!BV493") -> 0 | BW9: =INDIRECT($A9&"!BW493") -> 0 | BX9: =INDIRECT($A9&"!BX493") -> 0 | BY9: =INDIRECT($A9&"!BY493") -> 0 | BZ9: =INDIRECT($A9&"!BZ493") -> 0 | CA9: =INDIRECT($A9&"!CA493") -> 0 | CB9: =INDIRECT($A9&"!CB493") -> 0 | CC9: =INDIRECT($A9&"!CC493") -> 0 | CD9: =INDIRECT($A9&"!CD493") -> 0 | CE9: =INDIRECT($A9&"!CE493") -> 0 | CF9: =INDIRECT($A9&"!CF493") -> 0 | CG9: =INDIRECT($A9&"!CG493") -> 0 | CH9: =INDIRECT($A9&"!CH493") -> 0 | CI9: =INDIRECT($A9&"!CI493") -> 0
A10: 3030 | B10: Franchises & Consents | D10: =SUM(E10:CI10) -> 0 | E10: 0 | F10: 0 | G10: 0 | H10: 0 | I10: 0 | J10: 0 | K10: 0 | L10: 0 | M10: 0 | N10: 0 | O10: 0 | P10: 0 | Q10: 0 | R10: 0 | S10: 0 | T10: 0 | U10: 0 | V10: 0 | W10: 0 | X10: 0 | Y10: 0 | Z10: 0 | AA10: 0 | AB10: 0 | AC10: 0 | AD10: 0 | AE10: 0 | AF10: 0 | AG10: 0 | AH10: 0 | AI10: 0 | AJ10: 0 | AK10: 0 | AL10: 0 | AM10: 0 | AN10: 0 | AO10: 0 | AP10: 0 | AQ10: 0 | AR10: 0 | AS10: 0 | AT10: 0 | AU10: 0 | AV10: 0 | AW10: 0 | AX10: 0 | AY10: 0 | AZ10: 0 | BA10: 0 | BB10: 0 | BC10: 0 | BD10: 0 | BE10: 0 | BF10: 0 | BG10: 0 | BH10: 0 | BI10: 0 | BJ10: 0 | BK10: 0 | BL10: 0 | BM10: 0 | BN10: 0 | BO10: 0 | BP10: 0 | BQ10: 0 | BR10: 0 | BS10: 0 | BT10: 0 | BU10: 0 | BV10: 0 | BW10: 0 | BX10: 0 | BY10: 0 | BZ10: 0 | CA10: 0 | CB10: 0 | CC10: 0 | CD10: 0 | CE10: 0 | CF10: 0 | CG10: 0 | CH10: 0 | CI10: 0
A11: 311 | B11: Liquefied Petroleum Gas Equip | D11: 0 | E11: 0 | F11: 0 | G11: 0 | H11: 0 | I11: 0 | J11: 0 | K11: 0 | L11: 0 | M11: 0 | N11: 0 | O11: 0 | P11: 0 | Q11: 0 | R11: 0 | S11: 0 | T11: 0 | U11: 0 | V11: 0 | W11: 0 | X11: 0 | Y11: 0 | Z11: 0 | AA11: 0 | AB11: 0 | AC11: 0 | AD11: 0 | AE11: 0 | AF11: 0 | AG11: 0 | AH11: 0 | AI11: 0 | AJ11: 0 | AK11: 0 | AL11: 0 | AM11: 0 | AN11: 0 | AO11: 0 | AP11: 0 | AQ11: 0 | AR11: 0 | AS11: 0 | AT11: 0 | AU11: 0 | AV11: 0 | AW11: 0 | AX11: 0 | AY11: 0 | AZ11: 0 | BA11: 0 | BB11: 0 | BC11: 0 | BD11: 0 | BE11: 0 | BF11: 0 | BG11: 0 | BH11: 0 | BI11: 0 | BJ11: 0 | BK11: 0 | BL11: 0 | BM11: 0 | BN11: 0 | BO11: 0 | BP11: 0 | BQ11: 0 | BR11: 0 | BS11: 0 | BT11: 0 | BU11: 0 | BV11: 0 | BW11: 0 | BX11: 0 | BY11: 0 | BZ11: 0 | CA11: 0 | CB11: 0 | CC11: 0 | CD11: 0 | CE11: 0 | CF11: 0 | CG11: 0 | CH11: 0 | CI11: 0
A12: 3031 | D12: 0 | E12: 0 | F12: 0 | G12: 0 | H12: 0 | I12: 0 | J12: 0 | K12: 0 | L12: 0 | M12: 0 | N12: 0 | O12: 0 | P12: 0 | Q12: 0 | R12: 0 | S12: 0 | T12: 0 | U12: 0 | V12: 0 | W12: 0 | X12: 0 | Y12: 0 | Z12: 0 | AA12: 0 | AB12: 0 | AC12: 0 | AD12: 0 | AE12: 0 | AF12: 0 | AG12: 0 | AH12: 0 | AI12: 0 | AJ12: 0 | AK12: 0 | AL12: 0 | AM12: 0 | AN12: 0 | AO12: 0 | AP12: 0 | AQ12: 0 | AR12: 0 | AS12: 0 | AT12: 0 | AU12: 0 | AV12: 0 | AW12: 0 | AX12: 0 | AY12: 0 | AZ12: 0 | BA12: 0 | BB12: 0 | BC12: 0 | BD12: 0 | BE12: 0 | BF12: 0 | BG12: 0 | BH12: 0 | BI12: 0 | BJ12: 0 | BK12: 0 | BL12: 0 | BM12: 0 | BN12: 0 | BO12: 0 | BP12: 0 | BQ12: 0 | BR12: 0 | BS12: 0 | BT12: 0 | BU12: 0 | BV12: 0 | BW12: 0 | BX12: 0 | BY12: 0 | BZ12: 0 | CA12: 0 | CB12: 0 | CC12: 0 | CD12: 0 | CE12: 0 | CF12: 0 | CG12: 0 | CH12: 0 | CI12: 0
A13: 3740 | B13: Land/Land Rights | D13: 0 | E13: 0 | F13: 0 | G13: 0 | H13: 0 | I13: 0 | J13: 0 | K13: 0 | L13: 0 | M13: 0 | N13: 0 | O13: 0 | P13: 0 | Q13: 0 | R13: 0 | S13: 0 | T13: 0 | U13: 0 | V13: 0 | W13: 0 | X13: 0 | Y13: 0 | Z13: 0 | AA13: 0 | AB13: 0 | AC13: 0 | AD13: 0 | AE13: 0 | AF13: 0 | AG13: 0 | AH13: 0 | AI13: 0 | AJ13: 0 | AK13: 0 | AL13: 0 | AM13: 0 | AN13: 0 | AO13: 0 | AP13: 0 | AQ13: 0 | AR13: 0 | AS13: 0 | AT13: 0 | AU13: 0 | AV13: 0 | AW13: 0 | AX13: 0 | AY13: 0 | AZ13: 0 | BA13: 0 | BB13: 0 | BC13: 0 | BD13: 0 | BE13: 0 | BF13: 0 | BG13: 0 | BH13: 0 | BI13: 0 | BJ13: 0 | BK13: 0 | BL13: 0 | BM13: 0 | BN13: 0 | BO13: 0 | BP13: 0 | BQ13: 0 | BR13: 0 | BS13: 0 | BT13: 0 | BU13: 0 | BV13: 0 | BW13: 0 | BX13: 0 | BY13: 0 | BZ13: 0 | CA13: 0 | CB13: 0 | CC13: 0 | CD13: 0 | CE13: 0 | CF13: 0 | CG13: 0 | CH13: 0 | CI13: 0
A14: 375 | B14: Structures & Improvements | D14: 28505.358 | E14: 12.1574783 | F14: 56.9542583 | G14: 272.2451627 | H14: 274.1449315 | I14: 278.5185126 | J14: 301.8595295 | K14: 322.5386577 | L14: 325.9067859 | M14: 325.9080748 | N14: 325.906798 | O14: 325.9081089 | P14: 325.906798 | Q14: 325.9081089 | R14: 325.906798 | S14: 330.3562218 | T14: 679.8304392 | U14: 870.8331993 | V14: 870.8331797 | W14: 878.1367919 | X14: 1010.055193 | Y14: 1134.667448 | Z14: 1134.667448 | AA14: 1134.667448 | AB14: 1134.667448 | AC14: 1134.667448 | AD14: 1134.667448 | AE14: 1134.667448 | AF14: 1134.667448 | AG14: 1134.667448 | AH14: 1134.667448 | AI14: 1134.667448 | AJ14: 1134.667448 | AK14: 1134.667448 | AL14: 1134.667448 | AM14: 1134.667448 | AN14: 1066.919709 | AO14: 758.1406355 | AP14: 315.7772685 | AQ14: 315.7772685 | AR14: 313.5699065 | AS14: 275.3464604 | AT14: 0 | AU14: 0 | AV14: 0 | AW14: 0 | AX14: 0 | AY14: 0 | AZ14: 0 | BA14: 0 | BB14: 0 | BC14: 0 | BD14: 0 | BE14: 0 | BF14: 0 | BG14: 0 | BH14: 0 | BI14: 0 | BJ14: 0 | BK14: 0 | BL14: 0 | BM14: 0 | BN14: 0 | BO14: 0 | BP14: 0 | BQ14: 0 | BR14: 0 | BS14: 0 | BT14: 0 | BU14: 0 | BV14: 0 | BW14: 0 | BX14: 0 | BY14: 0 | BZ14: 0 | CA14: 0 | CB14: 0 | CC14: 0 | CD14: 0 | CE14: 0 | CF14: 0 | CG14: 0 | CH14: 0 | CI14: 0
A15: 3761 | B15: Mains Plastic | D15: 842633.1795 | E15: 5916.163723 | F15: 6398.628317 | G15: 9062.575829 | H15: 11012.08483 | I15: 15351.7393 | J15: 18961.89576 | K15: 21760.55204 | L15: 22810.77375 | M15: 23987.54202 | N15: 24590.15047 | O15: 24676.97429 | P15: 24699.59694 | Q15: 24699.59694 | R15: 24699.59694 | S15: 24699.59694 | T15: 25770.77198 | U15: 26423.58121 | V15: 26875.78831 | W15: 29570.25271 | X15: 32282.95948 | Y15: 32769.58731 | Z15: 32769.58731 | AA15: 32769.58731 | AB15: 31867.9343 | AC15: 28490.61564 | AD15: 27713.91965 | AE15: 25909.77696 | AF15: 24162.55741 | AG15: 21569.77147 | AH15: 20370.49899 | AI15: 19481.67868 | AJ15: 17720.88131 | AK15: 16094.10499 | AL15: 13712.23232 | AM15: 11609.21582 | AN15: 9932.993762 | AO15: 9917.40291 | AP15: 9600.862837 | AQ15: 7964.195763 | AR15: 7058.249781 | AS15: 6329.74751 | AT15: 5777.786823 | AU15: 4293.560341 | AV15: 495.6085241 | AW15: 0 | AX15: 0 | AY15: 0 | AZ15: 0 | BA15: 0 | BB15: 0 | BC15: 0 | BD15: 0 | BE15: 0 | BF15: 0 | BG15: 0 | BH15: 0 | BI15: 0 | BJ15: 0 | BK15: 0 | BL15: 0 | BM15: 0 | BN15: 0 | BO15: 0 | BP15: 0 | BQ15: 0 | BR15: 0 | BS15: 0 | BT15: 0 | BU15: 0 | BV15: 0 | BW15: 0 | BX15: 0 | BY15: 0 | BZ15: 0 | CA15: 0 | CB15: 0 | CC15: 0 | CD15: 0 | CE15: 0 | CF15: 0 | CG15: 0 | CH15: 0 | CI15: 0
A16: 3762 | B16: Mains Steel | D16: 362637.7447 | E16: 13120.08038 | F16: 13128.85299 | G16: 13509.42164 | H16: 13600.64364 | I16: 16420.5835 | J16: 16790.79416 | K16: 18223.90441 | L16: 19849.39034 | M16: 19851.91584 | N16: 19851.91063 | O16: 19851.91461 | P16: 19851.91194 | Q16: 19851.9133 | R16: 19851.91715 | S16: 19901.70429 | T16: 19997.65968 | U16: 19997.71651 | V16: 13041.86943 | W16: 7906.999921 | X16: 7616.805052 | Y16: 6640.938576 | Z16: 4616.484018 | AA16: 4048.079022 | AB16: 3906.003791 | AC16: 3872.810746 | AD16: 3805.96932 | AE16: 2313.145168 | AF16: 1068.847739 | AG16: 109.7013666 | AH16: 16.94259226 | AI16: 15.33704735 | AJ16: 5.575934431 | AK16: 0 | AL16: 0 | AM16: 0 | AN16: 0 | AO16: 0 | AP16: 0 | AQ16: 0 | AR16: 0 | AS16: 0 | AT16: 0 | AU16: 0 | AV16: 0 | AW16: 0 | AX16: 0 | AY16: 0 | AZ16: 0 | BA16: 0 | BB16: 0 | BC16: 0 | BD16: 0 | BE16: 0 | BF16: 0 | BG16: 0 | BH16: 0 | BI16: 0 | BJ16: 0 | BK16: 0 | BL16: 0 | BM16: 0 | BN16: 0 | BO16: 0 | BP16: 0 | BQ16: 0 | BR16: 0 | BS16: 0 | BT16: 0 | BU16: 0 | BV16: 0 | BW16: 0 | BX16: 0 | BY16: 0 | BZ16: 0 | CA16: 0 | CB16: 0 | CC16: 0 | CD16: 0 | CE16: 0 | CF16: 0 | CG16: 0 | CH16: 0 | CI16: 0
A17: 376G | B17: Mains Plastic - GRIP | D17: 255511.4372 | E17: 0 | F17: 0 | G17: 43.10937664 | H17: 187.0407468 | I17: 275.9266897 | J17: 323.6927152 | K17: 330.7709769 | L17: 330.7723002 | M17: 330.7644491 | N17: 330.7762001 | O17: 330.7682991 | P17: 330.7812813 | Q17: 330.7827742 | R17: 330.7734781 | S17: 435.1440148 | T17: 2101.519015 | U17: 6033.916396 | V17: 8542.051107 | W17: 9687.542379 | X17: 10027.71893 | Y17: 10155.22095 | Z17: 10155.22095 | AA17: 10155.22095 | AB17: 10155.22095 | AC17: 10155.22095 | AD17: 10155.22095 | AE17: 10155.22095 | AF17: 10155.22095 | AG17: 10155.22095 | AH17: 10155.22095 | AI17: 10155.22095 | AJ17: 10155.22095 | AK17: 10155.22095 | AL17: 10155.22095 | AM17: 10155.22095 | AN17: 10155.22095 | AO17: 10155.22095 | AP17: 10155.22095 | AQ17: 10155.22095 | AR17: 9581.547783 | AS17: 7220.445233 | AT17: 3633.725302 | AU17: 1306.652244 | AV17: 427.7540034 | AW17: 88.26352252 | AX17: 0 | AY17: 0 | AZ17: 0 | BA17: 0 | BB17: 0 | BC17: 0 | BD17: 0 | BE17: 0 | BF17: 0 | BG17: 0 | BH17: 0 | BI17: 0 | BJ17: 0 | BK17: 0 | BL17: 0 | BM17: 0 | BN17: 0 | BO17: 0 | BP17: 0 | BQ17: 0 | BR17: 0 | BS17: 0 | BT17: 0 | BU17: 0 | BV17: 0 | BW17: 0 | BX17: 0 | BY17: 0 | BZ17: 0 | CA17: 0 | CB17: 0 | CC17: 0 | CD17: 0 | CE17: 0 | CF17: 0 | CG17: 0 | CH17: 0 | CI17: 0
A18: 378 | B18: M&R Station Equip-General | D18: 45380.16082 | E18: 17.72790915 | F18: 39.0738002 | G18: 142.5646985 | H18: 280.6229779 | I18: 497.9306697 | J18: 725.3861622 | K18: 847.8916098 | L18: 862.9269671 | M18: 862.9243315 | N18: 862.9256493 | O18: 862.9255913 | P18: 860.8080257 | Q18: 860.5092717 | R18: 860.5080698 | S18: 860.5080118 | T18: 771.1610968 | U18: 743.5712995 | V18: 714.8962173 | W18: 1198.682337 | X18: 2220.029091 | Y18: 2748.641723 | Z18: 2748.513839 | AA18: 2729.220882 | AB18: 2713.741277 | AC18: 2713.094811 | AD18: 2706.819655 | AE18: 2700.051426 | AF18: 2700.051426 | AG18: 2700.051426 | AH18: 2700.051426 | AI18: 2226.710777 | AJ18: 899.6383638 | AK18: 0 | AL18: 0 | AM18: 0 | AN18: 0 | AO18: 0 | AP18: 0 | AQ18: 0 | AR18: 0 | AS18: 0 | AT18: 0 | AU18: 0 | AV18: 0 | AW18: 0 | AX18: 0 | AY18: 0 | AZ18: 0 | BA18: 0 | BB18: 0 | BC18: 0 | BD18: 0 | BE18: 0 | BF18: 0 | BG18: 0 | BH18: 0 | BI18: 0 | BJ18: 0 | BK18: 0 | BL18: 0 | BM18: 0 | BN18: 0 | BO18: 0 | BP18: 0 | BQ18: 0 | BR18: 0 | BS18: 0 | BT18: 0 | BU18: 0 | BV18: 0 | BW18: 0 | BX18: 0 | BY18: 0 | BZ18: 0 | CA18: 0 | CB18: 0 | CC18: 0 | CD18: 0 | CE18: 0 | CF18: 0 | CG18: 0 | CH18: 0 | CI18: 0
A19: 379 | B19: M&R Station Equip-City Gate | D19: 143734.9867 | E19: 3579.490875 | F19: 3883.330111 | G19: 4193.779702 | H19: 4504.765543 | I19: 4786.037883 | J19: 4949.060724 | K19: 5036.74429 | L19: 5089.726677 | M19: 5152.798059 | N19: 5077.616002 | O19: 4262.587693 | P19: 4255.047128 | Q19: 4255.040516 | R19: 4253.200132 | S19: 4206.822929 | T19: 4209.598684 | U19: 4460.807259 | V19: 5542.739288 | W19: 6997.026341 | X19: 7354.508624 | Y19: 7344.948221 | Z19: 7268.083692 | AA19: 7181.06807 | AB19: 7046.639742 | AC19: 4673.922974 | AD19: 4629.769494 | AE19: 4594.112842 | AF19: 3685.870102 | AG19: 1196.880244 | AH19: 62.33349033 | AI19: 0.6293429065 | AJ19: 0 | AK19: 0 | AL19: 0 | AM19: 0 | AN19: 0 | AO19: 0 | AP19: 0 | AQ19: 0 | AR19: 0 | AS19: 0 | AT19: 0 | AU19: 0 | AV19: 0 | AW19: 0 | AX19: 0 | AY19: 0 | AZ19: 0 | BA19: 0 | BB19: 0 | BC19: 0 | BD19: 0 | BE19: 0 | BF19: 0 | BG19: 0 | BH19: 0 | BI19: 0 | BJ19: 0 | BK19: 0 | BL19: 0 | BM19: 0 | BN19: 0 | BO19: 0 | BP19: 0 | BQ19: 0 | BR19: 0 | BS19: 0 | BT19: 0 | BU19: 0 | BV19: 0 | BW19: 0 | BX19: 0 | BY19: 0 | BZ19: 0 | CA19: 0 | CB19: 0 | CC19: 0 | CD19: 0 | CE19: 0 | CF19: 0 | CG19: 0 | CH19: 0 | CI19: 0
A20: 3801 | B20: Services Plastic | D20: 623284.1078 | E20: 4427.298869 | F20: 4804.207539 | G20: 5353.797616 | H20: 7232.42134 | I20: 10283.73179 | J20: 12775.69703 | K20: 15035.44342 | L20: 16479.21275 | M20: 16529.85587 | N20: 16529.85587 | O20: 16529.85587 | P20: 16529.85587 | Q20: 16529.85587 | R20: 16529.85587 | S20: 17092.44387 | T20: 18372.69338 | U20: 19907.82398 | V20: 22030.01358 | W20: 24208.4282 | X20: 25552.54322 | Y20: 26538.85157 | Z20: 26538.85157 | AA20: 24922.07263 | AB20: 22718.36985 | AC20: 22216.13227 | AD20: 21498.03287 | AE20: 19983.01884 | AF20: 18475.37695 | AG20: 17312.57222 | AH20: 16128.34677 | AI20: 14872.88467 | AJ20: 13746.97465 | AK20: 12877.08577 | AL20: 11743.34053 | AM20: 10900.26069 | AN20: 10297.65383 | AO20: 9357.915779 | AP20: 7986.037849 | AQ20: 6306.573631 | AR20: 3968.251473 | AS20: 1873.332848 | AT20: 287.2787108 | AU20: 0 | AV20: 0 | AW20: 0 | AX20: 0 | AY20: 0 | AZ20: 0 | BA20: 0 | BB20: 0 | BC20: 0 | BD20: 0 | BE20: 0 | BF20: 0 | BG20: 0 | BH20: 0 | BI20: 0 | BJ20: 0 | BK20: 0 | BL20: 0 | BM20: 0 | BN20: 0 | BO20: 0 | BP20: 0 | BQ20: 0 | BR20: 0 | BS20: 0 | BT20: 0 | BU20: 0 | BV20: 0 | BW20: 0 | BX20: 0 | BY20: 0 | BZ20: 0 | CA20: 0 | CB20: 0 | CC20: 0 | CD20: 0 | CE20: 0 | CF20: 0 | CG20: 0 | CH20: 0 | CI20: 0
A21: 3802 | B21: Services Steel | D21: 20541.56621 | E21: 1682.796416 | F21: 1682.530395 | G21: 1683.248719 | H21: 1862.055936 | I21: 2532.107949 | J21: 2542.997541 | K21: 2563.060006 | L21: 2583.706371 | M21: 1046.313798 | N21: 1001.663608 | O21: 698.7102749 | P21: 164.7609887 | Q21: 142.4691786 | R21: 121.7662384 | S21: 116.6316003 | T21: 109.1032697 | U21: 7.643925268 | V21: 0 | W21: 0 | X21: 0 | Y21: 0 | Z21: 0 | AA21: 0 | AB21: 0 | AC21: 0 | AD21: 0 | AE21: 0 | AF21: 0 | AG21: 0 | AH21: 0 | AI21: 0 | AJ21: 0 | AK21: 0 | AL21: 0 | AM21: 0 | AN21: 0 | AO21: 0 | AP21: 0 | AQ21: 0 | AR21: 0 | AS21: 0 | AT21: 0 | AU21: 0 | AV21: 0 | AW21: 0 | AX21: 0 | AY21: 0 | AZ21: 0 | BA21: 0 | BB21: 0 | BC21: 0 | BD21: 0 | BE21: 0 | BF21: 0 | BG21: 0 | BH21: 0 | BI21: 0 | BJ21: 0 | BK21: 0 | BL21: 0 | BM21: 0 | BN21: 0 | BO21: 0 | BP21: 0 | BQ21: 0 | BR21: 0 | BS21: 0 | BT21: 0 | BU21: 0 | BV21: 0 | BW21: 0 | BX21: 0 | BY21: 0 | BZ21: 0 | CA21: 0 | CB21: 0 | CC21: 0 | CD21: 0 | CE21: 0 | CF21: 0 | CG21: 0 | CH21: 0 | CI21: 0
A22: 380G | B22: Services Plastic - GRIP | D22: 382902.4748 | E22: 0 | F22: 0 | G22: 0 | H22: 0 | I22: 0 | J22: 0 | K22: 0 | L22: 0 | M22: 0 | N22: 0 | O22: 0 | P22: 0 | Q22: 0 | R22: 0 | S22: 52.79531306 | T22: 1665.028421 | U22: 5330.991335 | V22: 9478.853686 | W22: 12868.37948 | X22: 14476.04291 | Y22: 15195.79387 | Z22: 15195.79387 | AA22: 15195.79387 | AB22: 15195.79387 | AC22: 15195.79387 | AD22: 15195.79387 | AE22: 15195.79387 | AF22: 15195.79387 | AG22: 15195.79387 | AH22: 15195.79387 | AI22: 15195.79387 | AJ22: 15195.79387 | AK22: 15195.79387 | AL22: 15195.79387 | AM22: 15195.79387 | AN22: 15195.79387 | AO22: 15195.79387 | AP22: 15195.79387 | AQ22: 15195.79387 | AR22: 15072.60225 | AS22: 13942.60843 | AT22: 10692.86871 | AU22: 6718.376257 | AV22: 2952.638051 | AW22: 931.2063527 | AX22: 0 | AY22: 0 | AZ22: 0 | BA22: 0 | BB22: 0 | BC22: 0 | BD22: 0 | BE22: 0 | BF22: 0 | BG22: 0 | BH22: 0 | BI22: 0 | BJ22: 0 | BK22: 0 | BL22: 0 | BM22: 0 | BN22: 0 | BO22: 0 | BP22: 0 | BQ22: 0 | BR22: 0 | BS22: 0 | BT22: 0 | BU22: 0 | BV22: 0 | BW22: 0 | BX22: 0 | BY22: 0 | BZ22: 0 | CA22: 0 | CB22: 0 | CC22: 0 | CD22: 0 | CE22: 0 | CF22: 0 | CG22: 0 | CH22: 0 | CI22: 0
A23: 381 | B23: Meters | D23: 75594.9605 | E23: 5058.01606 | F23: 5642.588661 | G23: 6140.952588 | H23: 7195.964319 | I23: 7382.36716 | J23: 5355.979634 | K23: 5150.718603 | L23: 5164.782497 | M23: 4294.157327 | N23: 3827.049087 | O23: 3565.053464 | P23: 3112.341238 | Q23: 2475.233583 | R23: 2222.896141 | S23: 2065.459916 | T23: 2037.005039 | U23: 1647.981183 | V23: 1393.597103 | W23: 1039.71157 | X23: 546.2313625 | Y23: 276.873969 | Z23: 0 | AA23: 0 | AB23: 0 | AC23: 0 | AD23: 0 | AE23: 0 | AF23: 0 | AG23: 0 | AH23: 0 | AI23: 0 | AJ23: 0 | AK23: 0 | AL23: 0 | AM23: 0 | AN23: 0 | AO23: 0 | AP23: 0 | AQ23: 0 | AR23: 0 | AS23: 0 | AT23: 0 | AU23: 0 | AV23: 0 | AW23: 0 | AX23: 0 | AY23: 0 | AZ23: 0 | BA23: 0 | BB23: 0 | BC23: 0 | BD23: 0 | BE23: 0 | BF23: 0 | BG23: 0 | BH23: 0 | BI23: 0 | BJ23: 0 | BK23: 0 | BL23: 0 | BM23: 0 | BN23: 0 | BO23: 0 | BP23: 0 | BQ23: 0 | BR23: 0 | BS23: 0 | BT23: 0 | BU23: 0 | BV23: 0 | BW23: 0 | BX23: 0 | BY23: 0 | BZ23: 0 | CA23: 0 | CB23: 0 | CC23: 0 | CD23: 0 | CE23: 0 | CF23: 0 | CG23: 0 | CH23: 0 | CI23: 0
A24: 3811 | D24: 0 | E24: 0 | F24: 0 | G24: 0 | H24: 0 | I24: 0 | J24: 0 | K24: 0 | L24: 0 | M24: 0 | N24: 0 | O24: 0 | P24: 0 | Q24: 0 | R24: 0 | S24: 0 | T24: 0 | U24: 0 | V24: 0 | W24: 0 | X24: 0 | Y24: 0 | Z24: 0 | AA24: 0 | AB24: 0 | AC24: 0 | AD24: 0 | AE24: 0 | AF24: 0 | AG24: 0 | AH24: 0 | AI24: 0 | AJ24: 0 | AK24: 0 | AL24: 0 | AM24: 0 | AN24: 0 | AO24: 0 | AP24: 0 | AQ24: 0 | AR24: 0 | AS24: 0 | AT24: 0 | AU24: 0 | AV24: 0 | AW24: 0 | AX24: 0 | AY24: 0 | AZ24: 0 | BA24: 0 | BB24: 0 | BC24: 0 | BD24: 0 | BE24: 0 | BF24: 0 | BG24: 0 | BH24: 0 | BI24: 0 | BJ24: 0 | BK24: 0 | BL24: 0 | BM24: 0 | BN24: 0 | BO24: 0 | BP24: 0 | BQ24: 0 | BR24: 0 | BS24: 0 | BT24: 0 | BU24: 0 | BV24: 0 | BW24: 0 | BX24: 0 | BY24: 0 | BZ24: 0 | CA24: 0 | CB24: 0 | CC24: 0 | CD24: 0 | CE24: 0 | CF24: 0 | CG24: 0 | CH24: 0 | CI24: 0
A25: 382 | B25: Meter Installations | D25: 170922.0546 | E25: 1531.420266 | F25: 1892.156215 | G25: 2445.421495 | H25: 3296.001866 | I25: 4167.567043 | J25: 4858.394259 | K25: 5343.459007 | L25: 5682.749417 | M25: 5705.362105 | N25: 5705.362128 | O25: 5705.359452 | P25: 5705.367553 | Q25: 5705.364738 | R25: 5705.360731 | S25: 5082.484007 | T25: 5379.090261 | U25: 5737.490748 | V25: 6063.990883 | W25: 6428.626504 | X25: 7004.077171 | Y25: 7244.500466 | Z25: 6971.947989 | AA25: 6685.193088 | AB25: 6460.608553 | AC25: 6271.726211 | AD25: 6066.199664 | AE25: 5790.102358 | AF25: 5479.271296 | AG25: 5185.874724 | AH25: 4773.879766 | AI25: 4044.562692 | AJ25: 3188.120001 | AK25: 2384.045765 | AL25: 1165.098684 | AM25: 65.81744821 | AN25: 0 | AO25: 0 | AP25: 0 | AQ25: 0 | AR25: 0 | AS25: 0 | AT25: 0 | AU25: 0 | AV25: 0 | AW25: 0 | AX25: 0 | AY25: 0 | AZ25: 0 | BA25: 0 | BB25: 0 | BC25: 0 | BD25: 0 | BE25: 0 | BF25: 0 | BG25: 0 | BH25: 0 | BI25: 0 | BJ25: 0 | BK25: 0 | BL25: 0 | BM25: 0 | BN25: 0 | BO25: 0 | BP25: 0 | BQ25: 0 | BR25: 0 | BS25: 0 | BT25: 0 | BU25: 0 | BV25: 0 | BW25: 0 | BX25: 0 | BY25: 0 | BZ25: 0 | CA25: 0 | CB25: 0 | CC25: 0 | CD25: 0 | CE25: 0 | CF25: 0 | CG25: 0 | CH25: 0 | CI25: 0
A26: 383 | B26: House Regulators | D26: 30097.23129 | E26: 796.9424867 | F26: 952.4803016 | G26: 1113.989015 | H26: 1419.202816 | I26: 1882.108785 | J26: 2310.030791 | K26: 2402.779313 | L26: 1935.371776 | M26: 1771.424782 | N26: 1686.536066 | O26: 1476.839445 | P26: 1316.811498 | Q26: 1253.423645 | R26: 1150.999839 | S26: 913.2613866 | T26: 663.4496616 | U26: 774.7291961 | V26: 963.972036 | W26: 1062.115434 | X26: 1190.336049 | Y26: 1006.496528 | Z26: 632.035267 | AA26: 150.3432297 | AB26: 0 | AC26: 0 | AD26: 0 | AE26: 0 | AF26: 0 | AG26: 0 | AH26: 0 | AI26: 0 | AJ26: 0 | AK26: 0 | AL26: 0 | AM26: 0 | AN26: 0 | AO26: 0 | AP26: 0 | AQ26: 0 | AR26: 0 | AS26: 0 | AT26: 0 | AU26: 0 | AV26: 0 | AW26: 0 | AX26: 0 | AY26: 0 | AZ26: 77.40867513 | BA26: 77.40867513 | BB26: 77.40867513 | BC26: 77.40867513 | BD26: 77.40867513 | BE26: 77.40867513 | BF26: 77.40867513 | BG26: 77.40867513 | BH26: 77.40867513 | BI26: 77.40867513 | BJ26: 77.40867513 | BK26: 77.40867513 | BL26: 77.40867513 | BM26: 77.40867513 | BN26: 77.40867513 | BO26: 77.40867513 | BP26: 30.09569126 | BQ26: 2.917452242 | BR26: 0 | BS26: 0 | BT26: 0 | BU26: 0 | BV26: 0 | BW26: 0 | BX26: 0 | BY26: 0 | BZ26: 0 | CA26: 0 | CB26: 0 | CC26: 0 | CD26: 0 | CE26: 0 | CF26: 0 | CG26: 0 | CH26: 0 | CI26: 0
A27: 384 | B27: House Reg Installs | D27: 21818.43178 | E27: 500.1636945 | F27: 527.3328447 | G27: 609.2452424 | H27: 774.4887653 | I27: 984.092021 | J27: 1113.211319 | K27: 1213.752267 | L27: 1280.137044 | M27: 1291.578348 | N27: 1291.579671 | O27: 1291.579671 | P27: 1291.578348 | Q27: 1291.578348 | R27: 1291.571733 | S27: 1293.509928 | T27: 907.573264 | U27: 861.3680888 | V27: 784.7436367 | W27: 687.1034396 | X27: 511.2237567 | Y27: 445.5647805 | Z27: 385.3386823 | AA27: 325.4910259 | AB27: 270.3655258 | AC27: 224.7350182 | AD27: 170.7799169 | AE27: 119.0757135 | AF27: 62.06878047 | AG27: 15.55940455 | AH27: 2.041501612 | AI27: 0 | AJ27: 0 | AK27: 0 | AL27: 0 | AM27: 0 | AN27: 0 | AO27: 0 | AP27: 0 | AQ27: 0 | AR27: 0 | AS27: 0 | AT27: 0 | AU27: 0 | AV27: 0 | AW27: 0 | AX27: 0 | AY27: 0 | AZ27: 0 | BA27: 0 | BB27: 0 | BC27: 0 | BD27: 0 | BE27: 0 | BF27: 0 | BG27: 0 | BH27: 0 | BI27: 0 | BJ27: 0 | BK27: 0 | BL27: 0 | BM27: 0 | BN27: 0 | BO27: 0 | BP27: 0 | BQ27: 0 | BR27: 0 | BS27: 0 | BT27: 0 | BU27: 0 | BV27: 0 | BW27: 0 | BX27: 0 | BY27: 0 | BZ27: 0 | CA27: 0 | CB27: 0 | CC27: 0 | CD27: 0 | CE27: 0 | CF27: 0 | CG27: 0 | CH27: 0 | CI27: 0
A28: 385 | B28: M&R Station Equip-Industrial | D28: 482.0152005 | E28: 46.17438882 | F28: 46.17520698 | G28: 46.17520698 | H28: 46.17438882 | I28: 46.17520409 | J28: 46.17438882 | K28: 46.19399437 | L28: 46.48477694 | M28: 46.34913038 | N28: 46.34913038 | O28: 17.10652874 | P28: 0.1747415572 | Q28: 0.1747415572 | R28: 0.1747415572 | S28: 0.1747415572 | T28: 0.1747415572 | U28: 0.1747415572 | V28: 0.1747415572 | W28: 0.1747415572 | X28: 0.1747415572 | Y28: 0.1747415572 | Z28: 0.1747415572 | AA28: 0.1747415572 | AB28: 0.1747415572 | AC28: 0.1747415572 | AD28: 0.03647341164 | AE28: 0 | AF28: 0 | AG28: 0 | AH28: 0 | AI28: 0 | AJ28: 0 | AK28: 0 | AL28: 0 | AM28: 0 | AN28: 0 | AO28: 0 | AP28: 0 | AQ28: 0 | AR28: 0 | AS28: 0 | AT28: 0 | AU28: 0 | AV28: 0 | AW28: 0 | AX28: 0 | AY28: 0 | AZ28: 0 | BA28: 0 | BB28: 0 | BC28: 0 | BD28: 0 | BE28: 0 | BF28: 0 | BG28: 0 | BH28: 0 | BI28: 0 | BJ28: 0 | BK28: 0 | BL28: 0 | BM28: 0 | BN28: 0 | BO28: 0 | BP28: 0 | BQ28: 0 | BR28: 0 | BS28: 0 | BT28: 0 | BU28: 0 | BV28: 0 | BW28: 0 | BX28: 0 | BY28: 0 | BZ28: 0 | CA28: 0 | CB28: 0 | CC28: 0 | CD28: 0 | CE28: 0 | CF28: 0 | CG28: 0 | CH28: 0 | CI28: 0
A29: 387 | B29: Other Equipment | D29: 34408.1236 | E29: 651.2348931 | F29: 697.7769097 | G29: 769.4564625 | H29: 941.7908496 | I29: 1045.714788 | J29: 1615.773744 | K29: 2256.034344 | L29: 2674.99173 | M29: 2599.674901 | N29: 2557.076759 | O29: 2462.297249 | P29: 2405.41822 | Q29: 2324.402904 | R29: 2242.814079 | S29: 2028.466712 | T29: 1720.135849 | U29: 1200.427863 | V29: 740.4907818 | W29: 725.0565012 | X29: 697.9968488 | Y29: 675.7509296 | Z29: 586.1623572 | AA29: 425.4552909 | AB29: 275.504945 | AC29: 88.21768325 | AD29: 0 | AE29: 0 | AF29: 0 | AG29: 0 | AH29: 0 | AI29: 0 | AJ29: 0 | AK29: 0 | AL29: 0 | AM29: 0 | AN29: 0 | AO29: 0 | AP29: 0 | AQ29: 0 | AR29: 0 | AS29: 0 | AT29: 0 | AU29: 0 | AV29: 0 | AW29: 0 | AX29: 0 | AY29: 0 | AZ29: 0 | BA29: 0 | BB29: 0 | BC29: 0 | BD29: 0 | BE29: 0 | BF29: 0 | BG29: 0 | BH29: 0 | BI29: 0 | BJ29: 0 | BK29: 0 | BL29: 0 | BM29: 0 | BN29: 0 | BO29: 0 | BP29: 0 | BQ29: 0 | BR29: 0 | BS29: 0 | BT29: 0 | BU29: 0 | BV29: 0 | BW29: 0 | BX29: 0 | BY29: 0 | BZ29: 0 | CA29: 0 | CB29: 0 | CC29: 0 | CD29: 0 | CE29: 0 | CF29: 0 | CG29: 0 | CH29: 0 | CI29: 0
A30: 389 | B30: Land and Land Rights | D30: 0 | E30: 0 | F30: 0 | G30: 0 | H30: 0 | I30: 0 | J30: 0 | K30: 0 | L30: 0 | M30: 0 | N30: 0 | O30: 0 | P30: 0 | Q30: 0 | R30: 0 | S30: 0 | T30: 0 | U30: 0 | V30: 0 | W30: 0 | X30: 0 | Y30: 0 | Z30: 0 | AA30: 0 | AB30: 0 | AC30: 0 | AD30: 0 | AE30: 0 | AF30: 0 | AG30: 0 | AH30: 0 | AI30: 0 | AJ30: 0 | AK30: 0 | AL30: 0 | AM30: 0 | AN30: 0 | AO30: 0 | AP30: 0 | AQ30: 0 | AR30: 0 | AS30: 0 | AT30: 0 | AU30: 0 | AV30: 0 | AW30: 0 | AX30: 0 | AY30: 0 | AZ30: 0 | BA30: 0 | BB30: 0 | BC30: 0 | BD30: 0 | BE30: 0 | BF30: 0 | BG30: 0 | BH30: 0 | BI30: 0 | BJ30: 0 | BK30: 0 | BL30: 0 | BM30: 0 | BN30: 0 | BO30: 0 | BP30: 0 | BQ30: 0 | BR30: 0 | BS30: 0 | BT30: 0 | BU30: 0 | BV30: 0 | BW30: 0 | BX30: 0 | BY30: 0 | BZ30: 0 | CA30: 0 | CB30: 0 | CC30: 0 | CD30: 0 | CE30: 0 | CF30: 0 | CG30: 0 | CH30: 0 | CI30: 0
A31: 3900 | B31: Structures and improvements | D31: 1412.196721 | E31: 8.025572161 | F31: 8.025572161 | G31: 8.025572161 | H31: 8.025572161 | I31: 18.65184145 | J31: 72.39809727 | K31: 75.61769672 | L31: 75.61769672 | M31: 75.61753625 | N31: 75.61769672 | O31: 75.61753625 | P31: 75.61769672 | Q31: 75.61769672 | R31: 75.61753625 | S31: 77.99206655 | T31: 99.59008218 | U31: 99.79922156 | V31: 109.6366891 | W31: 116.9237586 | X31: 99.48684857 | Y31: 41.56716074 | Z31: 8.025572161 | AA31: 8.025572161 | AB31: 8.025572161 | AC31: 15.03085716 | AD31: 0 | AE31: 0 | AF31: 0 | AG31: 0 | AH31: 0 | AI31: 0 | AJ31: 0 | AK31: 0 | AL31: 0 | AM31: 0 | AN31: 0 | AO31: 0 | AP31: 0 | AQ31: 0 | AR31: 0 | AS31: 0 | AT31: 0 | AU31: 0 | AV31: 0 | AW31: 0 | AX31: 0 | AY31: 0 | AZ31: 0 | BA31: 0 | BB31: 0 | BC31: 0 | BD31: 0 | BE31: 0 | BF31: 0 | BG31: 0 | BH31: 0 | BI31: 0 | BJ31: 0 | BK31: 0 | BL31: 0 | BM31: 0 | BN31: 0 | BO31: 0 | BP31: 0 | BQ31: 0 | BR31: 0 | BS31: 0 | BT31: 0 | BU31: 0 | BV31: 0 | BW31: 0 | BX31: 0 | BY31: 0 | BZ31: 0 | CA31: 0 | CB31: 0 | CC31: 0 | CD31: 0 | CE31: 0 | CF31: 0 | CG31: 0 | CH31: 0 | CI31: 0
A32: 3910 | B32: Office Furn & Equip | D32: 17634.68507 | E32: 1506.477741 | F32: 1576.228634 | G32: 1693.213049 | H32: 1813.611375 | I32: 1792.05558 | J32: 1786.440791 | K32: 1792.169538 | L32: 1860.88198 | M32: 1840.120951 | N32: 1178.584485 | O32: 205.8514296 | P32: 182.9975786 | Q32: 182.9975786 | R32: 112.9121104 | S32: 107.2931238 | T32: 2.849123021 | U32: 0 | V32: 0 | W32: 0 | X32: 0 | Y32: 0 | Z32: 0 | AA32: 0 | AB32: 0 | AC32: 0 | AD32: 0 | AE32: 0 | AF32: 0 | AG32: 0 | AH32: 0 | AI32: 0 | AJ32: 0 | AK32: 0 | AL32: 0 | AM32: 0 | AN32: 0 | AO32: 0 | AP32: 0 | AQ32: 0 | AR32: 0 | AS32: 0 | AT32: 0 | AU32: 0 | AV32: 0 | AW32: 0 | AX32: 0 | AY32: 0 | AZ32: 0 | BA32: 0 | BB32: 0 | BC32: 0 | BD32: 0 | BE32: 0 | BF32: 0 | BG32: 0 | BH32: 0 | BI32: 0 | BJ32: 0 | BK32: 0 | BL32: 0 | BM32: 0 | BN32: 0 | BO32: 0 | BP32: 0 | BQ32: 0 | BR32: 0 | BS32: 0 | BT32: 0 | BU32: 0 | BV32: 0 | BW32: 0 | BX32: 0 | BY32: 0 | BZ32: 0 | CA32: 0 | CB32: 0 | CC32: 0 | CD32: 0 | CE32: 0 | CF32: 0 | CG32: 0 | CH32: 0 | CI32: 0
A33: 3912 | B33: Computer Hardware | D33: 20772.19412 | E33: 2038.778459 | F33: 2041.331849 | G33: 2043.073722 | H33: 2040.656499 | I33: 2030.380485 | J33: 1997.661019 | K33: 1973.348629 | L33: 1934.494969 | M33: 1571.302544 | N33: 980.4952033 | O33: 737.8751981 | P33: 575.4892008 | Q33: 354.8005378 | R33: 160.3939937 | S33: 110.5800825 | T33: 77.13702695 | U33: 46.62243169 | V33: 46.62243169 | W33: 9.275601987 | X33: 1.874237479 | Y33: 0 | Z33: 0 | AA33: 0 | AB33: 0 | AC33: 0 | AD33: 0 | AE33: 0 | AF33: 0 | AG33: 0 | AH33: 0 | AI33: 0 | AJ33: 0 | AK33: 0 | AL33: 0 | AM33: 0 | AN33: 0 | AO33: 0 | AP33: 0 | AQ33: 0 | AR33: 0 | AS33: 0 | AT33: 0 | AU33: 0 | AV33: 0 | AW33: 0 | AX33: 0 | AY33: 0 | AZ33: 0 | BA33: 0 | BB33: 0 | BC33: 0 | BD33: 0 | BE33: 0 | BF33: 0 | BG33: 0 | BH33: 0 | BI33: 0 | BJ33: 0 | BK33: 0 | BL33: 0 | BM33: 0 | BN33: 0 | BO33: 0 | BP33: 0 | BQ33: 0 | BR33: 0 | BS33: 0 | BT33: 0 | BU33: 0 | BV33: 0 | BW33: 0 | BX33: 0 | BY33: 0 | BZ33: 0 | CA33: 0 | CB33: 0 | CC33: 0 | CD33: 0 | CE33: 0 | CF33: 0 | CG33: 0 | CH33: 0 | CI33: 0
A34: 3913 | B34: Furniture & Fixtures | D34: 2598.582357 | E34: 279.4510909 | F34: 279.4510909 | G34: 279.4510909 | H34: 292.6707534 | I34: 282.0935863 | J34: 269.0169809 | K34: 269.0169809 | L34: 284.137304 | M34: 132.5448452 | N34: 81.33303857 | O34: 54.71667929 | P34: 30.61019933 | Q34: 25.11819079 | R34: 11.29715481 | S34: 11.29715481 | T34: 11.29715481 | U34: 5.079061282 | V34: 0 | W34: 0 | X34: 0 | Y34: 0 | Z34: 0 | AA34: 0 | AB34: 0 | AC34: 0 | AD34: 0 | AE34: 0 | AF34: 0 | AG34: 0 | AH34: 0 | AI34: 0 | AJ34: 0 | AK34: 0 | AL34: 0 | AM34: 0 | AN34: 0 | AO34: 0 | AP34: 0 | AQ34: 0 | AR34: 0 | AS34: 0 | AT34: 0 | AU34: 0 | AV34: 0 | AW34: 0 | AX34: 0 | AY34: 0 | AZ34: 0 | BA34: 0 | BB34: 0 | BC34: 0 | BD34: 0 | BE34: 0 | BF34: 0 | BG34: 0 | BH34: 0 | BI34: 0 | BJ34: 0 | BK34: 0 | BL34: 0 | BM34: 0 | BN34: 0 | BO34: 0 | BP34: 0 | BQ34: 0 | BR34: 0 | BS34: 0 | BT34: 0 | BU34: 0 | BV34: 0 | BW34: 0 | BX34: 0 | BY34: 0 | BZ34: 0 | CA34: 0 | CB34: 0 | CC34: 0 | CD34: 0 | CE34: 0 | CF34: 0 | CG34: 0 | CH34: 0 | CI34: 0
A35: 3914 | B35: System Software | D35: 0 | E35: 0 | F35: 0 | G35: 0 | H35: 0 | I35: 0 | J35: 0 | K35: 0 | L35: 0 | M35: 0 | N35: 0 | O35: 0 | P35: 0 | Q35: 0 | R35: 0 | S35: 0 | T35: 0 | U35: 0 | V35: 0 | W35: 0 | X35: 0 | Y35: 0 | Z35: 0 | AA35: 0 | AB35: 0 | AC35: 0 | AD35: 0 | AE35: 0 | AF35: 0 | AG35: 0 | AH35: 0 | AI35: 0 | AJ35: 0 | AK35: 0 | AL35: 0 | AM35: 0 | AN35: 0 | AO35: 0 | AP35: 0 | AQ35: 0 | AR35: 0 | AS35: 0 | AT35: 0 | AU35: 0 | AV35: 0 | AW35: 0 | AX35: 0 | AY35: 0 | AZ35: 0 | BA35: 0 | BB35: 0 | BC35: 0 | BD35: 0 | BE35: 0 | BF35: 0 | BG35: 0 | BH35: 0 | BI35: 0 | BJ35: 0 | BK35: 0 | BL35: 0 | BM35: 0 | BN35: 0 | BO35: 0 | BP35: 0 | BQ35: 0 | BR35: 0 | BS35: 0 | BT35: 0 | BU35: 0 | BV35: 0 | BW35: 0 | BX35: 0 | BY35: 0 | BZ35: 0 | CA35: 0 | CB35: 0 | CC35: 0 | CD35: 0 | CE35: 0 | CF35: 0 | CG35: 0 | CH35: 0 | CI35: 0
A36: 391S | B36: ECIS Improvements | D36: 0 | E36: 0 | F36: 0 | G36: 0 | H36: 0 | I36: 0 | J36: 0 | K36: 0 | L36: 0 | M36: 0 | N36: 0 | O36: 0 | P36: 0 | Q36: 0 | R36: 0 | S36: 0 | T36: 0 | U36: 0 | V36: 0 | W36: 0 | X36: 0 | Y36: 0 | Z36: 0 | AA36: 0 | AB36: 0 | AC36: 0 | AD36: 0 | AE36: 0 | AF36: 0 | AG36: 0 | AH36: 0 | AI36: 0 | AJ36: 0 | AK36: 0 | AL36: 0 | AM36: 0 | AN36: 0 | AO36: 0 | AP36: 0 | AQ36: 0 | AR36: 0 | AS36: 0 | AT36: 0 | AU36: 0 | AV36: 0 | AW36: 0 | AX36: 0 | AY36: 0 | AZ36: 0 | BA36: 0 | BB36: 0 | BC36: 0 | BD36: 0 | BE36: 0 | BF36: 0 | BG36: 0 | BH36: 0 | BI36: 0 | BJ36: 0 | BK36: 0 | BL36: 0 | BM36: 0 | BN36: 0 | BO36: 0 | BP36: 0 | BQ36: 0 | BR36: 0 | BS36: 0 | BT36: 0 | BU36: 0 | BV36: 0 | BW36: 0 | BX36: 0 | BY36: 0 | BZ36: 0 | CA36: 0 | CB36: 0 | CC36: 0 | CD36: 0 | CE36: 0 | CF36: 0 | CG36: 0 | CH36: 0 | CI36: 0
A37: 3920 | D37: 0 | E37: 0 | F37: 0 | G37: 0 | H37: 0 | I37: 0 | J37: 0 | K37: 0 | L37: 0 | M37: 0 | N37: 0 | O37: 0 | P37: 0 | Q37: 0 | R37: 0 | S37: 0 | T37: 0 | U37: 0 | V37: 0 | W37: 0 | X37: 0 | Y37: 0 | Z37: 0 | AA37: 0 | AB37: 0 | AC37: 0 | AD37: 0 | AE37: 0 | AF37: 0 | AG37: 0 | AH37: 0 | AI37: 0 | AJ37: 0 | AK37: 0 | AL37: 0 | AM37: 0 | AN37: 0 | AO37: 0 | AP37: 0 | AQ37: 0 | AR37: 0 | AS37: 0 | AT37: 0 | AU37: 0 | AV37: 0 | AW37: 0 | AX37: 0 | AY37: 0 | AZ37: 0 | BA37: 0 | BB37: 0 | BC37: 0 | BD37: 0 | BE37: 0 | BF37: 0 | BG37: 0 | BH37: 0 | BI37: 0 | BJ37: 0 | BK37: 0 | BL37: 0 | BM37: 0 | BN37: 0 | BO37: 0 | BP37: 0 | BQ37: 0 | BR37: 0 | BS37: 0 | BT37: 0 | BU37: 0 | BV37: 0 | BW37: 0 | BX37: 0 | BY37: 0 | BZ37: 0 | CA37: 0 | CB37: 0 | CC37: 0 | CD37: 0 | CE37: 0 | CF37: 0 | CG37: 0 | CH37: 0 | CI37: 0
A38: 3921 | B38: Transportation Equip - Autos | D38: 0 | E38: 0 | F38: 0 | G38: 0 | H38: 0 | I38: 0 | J38: 0 | K38: 0 | L38: 0 | M38: 0 | N38: 0 | O38: 0 | P38: 0 | Q38: 0 | R38: 0 | S38: 0 | T38: 0 | U38: 0 | V38: 0 | W38: 0 | X38: 0 | Y38: 0 | Z38: 0 | AA38: 0 | AB38: 0 | AC38: 0 | AD38: 0 | AE38: 0 | AF38: 0 | AG38: 0 | AH38: 0 | AI38: 0 | AJ38: 0 | AK38: 0 | AL38: 0 | AM38: 0 | AN38: 0 | AO38: 0 | AP38: 0 | AQ38: 0 | AR38: 0 | AS38: 0 | AT38: 0 | AU38: 0 | AV38: 0 | AW38: 0 | AX38: 0 | AY38: 0 | AZ38: 0 | BA38: 0 | BB38: 0 | BC38: 0 | BD38: 0 | BE38: 0 | BF38: 0 | BG38: 0 | BH38: 0 | BI38: 0 | BJ38: 0 | BK38: 0 | BL38: 0 | BM38: 0 | BN38: 0 | BO38: 0 | BP38: 0 | BQ38: 0 | BR38: 0 | BS38: 0 | BT38: 0 | BU38: 0 | BV38: 0 | BW38: 0 | BX38: 0 | BY38: 0 | BZ38: 0 | CA38: 0 | CB38: 0 | CC38: 0 | CD38: 0 | CE38: 0 | CF38: 0 | CG38: 0 | CH38: 0 | CI38: 0
A39: 3922 | B39: Transportation Equip-Lt Trck/Vans | D39: 38692.30829 | E39: 8822.40457 | F39: 6495.937854 | G39: 4271.939255 | H39: 4233.764271 | I39: 4418.627037 | J39: 3278.292031 | K39: 1607.106223 | L39: 1246.019962 | M39: 1293.236509 | N39: 1631.657263 | O39: 716.5434811 | P39: 622.354191 | Q39: 54.42564066 | R39: 0 | S39: 0 | T39: 0 | U39: 0 | V39: 0 | W39: 0 | X39: 0 | Y39: 0 | Z39: 0 | AA39: 0 | AB39: 0 | AC39: 0 | AD39: 0 | AE39: 0 | AF39: 0 | AG39: 0 | AH39: 0 | AI39: 0 | AJ39: 0 | AK39: 0 | AL39: 0 | AM39: 0 | AN39: 0 | AO39: 0 | AP39: 0 | AQ39: 0 | AR39: 0 | AS39: 0 | AT39: 0 | AU39: 0 | AV39: 0 | AW39: 0 | AX39: 0 | AY39: 0 | AZ39: 0 | BA39: 0 | BB39: 0 | BC39: 0 | BD39: 0 | BE39: 0 | BF39: 0 | BG39: 0 | BH39: 0 | BI39: 0 | BJ39: 0 | BK39: 0 | BL39: 0 | BM39: 0 | BN39: 0 | BO39: 0 | BP39: 0 | BQ39: 0 | BR39: 0 | BS39: 0 | BT39: 0 | BU39: 0 | BV39: 0 | BW39: 0 | BX39: 0 | BY39: 0 | BZ39: 0 | CA39: 0 | CB39: 0 | CC39: 0 | CD39: 0 | CE39: 0 | CF39: 0 | CG39: 0 | CH39: 0 | CI39: 0
A40: 3923 | B40: Trans Equip-HD Truck/Bobtail | D40: 0 | E40: 0 | F40: 0 | G40: 0 | H40: 0 | I40: 0 | J40: 0 | K40: 0 | L40: 0 | M40: 0 | N40: 0 | O40: 0 | P40: 0 | Q40: 0 | R40: 0 | S40: 0 | T40: 0 | U40: 0 | V40: 0 | W40: 0 | X40: 0 | Y40: 0 | Z40: 0 | AA40: 0 | AB40: 0 | AC40: 0 | AD40: 0 | AE40: 0 | AF40: 0 | AG40: 0 | AH40: 0 | AI40: 0 | AJ40: 0 | AK40: 0 | AL40: 0 | AM40: 0 | AN40: 0 | AO40: 0 | AP40: 0 | AQ40: 0 | AR40: 0 | AS40: 0 | AT40: 0 | AU40: 0 | AV40: 0 | AW40: 0 | AX40: 0 | AY40: 0 | AZ40: 0 | BA40: 0 | BB40: 0 | BC40: 0 | BD40: 0 | BE40: 0 | BF40: 0 | BG40: 0 | BH40: 0 | BI40: 0 | BJ40: 0 | BK40: 0 | BL40: 0 | BM40: 0 | BN40: 0 | BO40: 0 | BP40: 0 | BQ40: 0 | BR40: 0 | BS40: 0 | BT40: 0 | BU40: 0 | BV40: 0 | BW40: 0 | BX40: 0 | BY40: 0 | BZ40: 0 | CA40: 0 | CB40: 0 | CC40: 0 | CD40: 0 | CE40: 0 | CF40: 0 | CG40: 0 | CH40: 0 | CI40: 0
A41: 3924 | B41: Trans Equip-Trailers | D41: 2056.139127 | E41: 134.8878859 | F41: 134.8878859 | G41: 134.8878859 | H41: 134.8878859 | I41: 134.8878859 | J41: 134.8878859 | K41: 134.8878859 | L41: 134.8878859 | M41: 134.8878859 | N41: 134.8878859 | O41: 134.8878859 | P41: 118.7568684 | Q41: 56.35086053 | R41: 56.35086053 | S41: 40.63770293 | T41: 32.37858584 | U41: 31.61835578 | V41: 31.61835578 | W41: 31.61835578 | X41: 31.61835578 | Y41: 31.61835578 | Z41: 31.61835578 | AA41: 31.61835578 | AB41: 31.61835578 | AC41: 14.95065759 | AD41: 0 | AE41: 0 | AF41: 0 | AG41: 0 | AH41: 0 | AI41: 0 | AJ41: 0 | AK41: 0 | AL41: 0 | AM41: 0 | AN41: 0 | AO41: 0 | AP41: 0 | AQ41: 0 | AR41: 0 | AS41: 0 | AT41: 0 | AU41: 0 | AV41: 0 | AW41: 0 | AX41: 0 | AY41: 0 | AZ41: 0 | BA41: 0 | BB41: 0 | BC41: 0 | BD41: 0 | BE41: 0 | BF41: 0 | BG41: 0 | BH41: 0 | BI41: 0 | BJ41: 0 | BK41: 0 | BL41: 0 | BM41: 0 | BN41: 0 | BO41: 0 | BP41: 0 | BQ41: 0 | BR41: 0 | BS41: 0 | BT41: 0 | BU41: 0 | BV41: 0 | BW41: 0 | BX41: 0 | BY41: 0 | BZ41: 0 | CA41: 0 | CB41: 0 | CC41: 0 | CD41: 0 | CE41: 0 | CF41: 0 | CG41: 0 | CH41: 0 | CI41: 0
A42: 393 | B42: Stores equipment | D42: 0 | E42: 0 | F42: 0 | G42: 0 | H42: 0 | I42: 0 | J42: 0 | K42: 0 | L42: 0 | M42: 0 | N42: 0 | O42: 0 | P42: 0 | Q42: 0 | R42: 0 | S42: 0 | T42: 0 | U42: 0 | V42: 0 | W42: 0 | X42: 0 | Y42: 0 | Z42: 0 | AA42: 0 | AB42: 0 | AC42: 0 | AD42: 0 | AE42: 0 | AF42: 0 | AG42: 0 | AH42: 0 | AI42: 0 | AJ42: 0 | AK42: 0 | AL42: 0 | AM42: 0 | AN42: 0 | AO42: 0 | AP42: 0 | AQ42: 0 | AR42: 0 | AS42: 0 | AT42: 0 | AU42: 0 | AV42: 0 | AW42: 0 | AX42: 0 | AY42: 0 | AZ42: 0 | BA42: 0 | BB42: 0 | BC42: 0 | BD42: 0 | BE42: 0 | BF42: 0 | BG42: 0 | BH42: 0 | BI42: 0 | BJ42: 0 | BK42: 0 | BL42: 0 | BM42: 0 | BN42: 0 | BO42: 0 | BP42: 0 | BQ42: 0 | BR42: 0 | BS42: 0 | BT42: 0 | BU42: 0 | BV42: 0 | BW42: 0 | BX42: 0 | BY42: 0 | BZ42: 0 | CA42: 0 | CB42: 0 | CC42: 0 | CD42: 0 | CE42: 0 | CF42: 0 | CG42: 0 | CH42: 0 | CI42: 0
A43: 394 | B43: Tools, shop and garage equipment | D43: 337.4079658 | E43: 129.6416447 | F43: 142.3575221 | G43: 65.40879906 | H43: 0 | I43: 0 | J43: 0 | K43: 0 | L43: 0 | M43: 0 | N43: 0 | O43: 0 | P43: 0 | Q43: 0 | R43: 0 | S43: 0 | T43: 0 | U43: 0 | V43: 0 | W43: 0 | X43: 0 | Y43: 0 | Z43: 0 | AA43: 0 | AB43: 0 | AC43: 0 | AD43: 0 | AE43: 0 | AF43: 0 | AG43: 0 | AH43: 0 | AI43: 0 | AJ43: 0 | AK43: 0 | AL43: 0 | AM43: 0 | AN43: 0 | AO43: 0 | AP43: 0 | AQ43: 0 | AR43: 0 | AS43: 0 | AT43: 0 | AU43: 0 | AV43: 0 | AW43: 0 | AX43: 0 | AY43: 0 | AZ43: 0 | BA43: 0 | BB43: 0 | BC43: 0 | BD43: 0 | BE43: 0 | BF43: 0 | BG43: 0 | BH43: 0 | BI43: 0 | BJ43: 0 | BK43: 0 | BL43: 0 | BM43: 0 | BN43: 0 | BO43: 0 | BP43: 0 | BQ43: 0 | BR43: 0 | BS43: 0 | BT43: 0 | BU43: 0 | BV43: 0 | BW43: 0 | BX43: 0 | BY43: 0 | BZ43: 0 | CA43: 0 | CB43: 0 | CC43: 0 | CD43: 0 | CE43: 0 | CF43: 0 | CG43: 0 | CH43: 0 | CI43: 0
A44: 395 | B44: Laboratory equipment | D44: 0 | E44: 0 | F44: 0 | G44: 0 | H44: 0 | I44: 0 | J44: 0 | K44: 0 | L44: 0 | M44: 0 | N44: 0 | O44: 0 | P44: 0 | Q44: 0 | R44: 0 | S44: 0 | T44: 0 | U44: 0 | V44: 0 | W44: 0 | X44: 0 | Y44: 0 | Z44: 0 | AA44: 0 | AB44: 0 | AC44: 0 | AD44: 0 | AE44: 0 | AF44: 0 | AG44: 0 | AH44: 0 | AI44: 0 | AJ44: 0 | AK44: 0 | AL44: 0 | AM44: 0 | AN44: 0 | AO44: 0 | AP44: 0 | AQ44: 0 | AR44: 0 | AS44: 0 | AT44: 0 | AU44: 0 | AV44: 0 | AW44: 0 | AX44: 0 | AY44: 0 | AZ44: 0 | BA44: 0 | BB44: 0 | BC44: 0 | BD44: 0 | BE44: 0 | BF44: 0 | BG44: 0 | BH44: 0 | BI44: 0 | BJ44: 0 | BK44: 0 | BL44: 0 | BM44: 0 | BN44: 0 | BO44: 0 | BP44: 0 | BQ44: 0 | BR44: 0 | BS44: 0 | BT44: 0 | BU44: 0 | BV44: 0 | BW44: 0 | BX44: 0 | BY44: 0 | BZ44: 0 | CA44: 0 | CB44: 0 | CC44: 0 | CD44: 0 | CE44: 0 | CF44: 0 | CG44: 0 | CH44: 0 | CI44: 0
A45: 396 | B45: Power operated equipment | D45: 16734.93652 | E45: 5.37165783 | F45: 5.37165783 | G45: 69.52071792 | H45: 76.25820559 | I45: 115.6863594 | J45: 186.3920471 | K45: 200.7301111 | L45: 264.2302774 | M45: 266.4200632 | N45: 266.4190459 | O45: 266.4200632 | P45: 266.4210806 | Q45: 266.4190459 | R45: 266.4210806 | S45: 266.4200632 | T45: 266.4200632 | U45: 313.9037256 | V45: 403.9888013 | W45: 403.9888013 | X45: 403.9888013 | Y45: 403.9888013 | Z45: 403.9888013 | AA45: 403.9888013 | AB45: 403.9888013 | AC45: 403.9888013 | AD45: 403.9888013 | AE45: 403.9888013 | AF45: 403.9888013 | AG45: 403.9888013 | AH45: 403.9888013 | AI45: 403.9888013 | AJ45: 403.9888013 | AK45: 403.9888013 | AL45: 403.9888013 | AM45: 403.9888013 | AN45: 403.9888013 | AO45: 403.9888013 | AP45: 403.9888013 | AQ45: 403.9888013 | AR45: 403.9888013 | AS45: 403.9888013 | AT45: 403.9888013 | AU45: 403.9888013 | AV45: 399.6045097 | AW45: 368.4542613 | AX45: 343.8550499 | AY45: 299.8492779 | AZ45: 250.3186201 | BA45: 223.1882306 | BB45: 222.6568345 | BC45: 218.3383126 | BD45: 204.4184208 | BE45: 194.6460645 | BF45: 133.3926496 | BG45: 3.680184891 | BH45: 0 | BI45: 0 | BJ45: 0 | BK45: 0 | BL45: 0 | BM45: 0 | BN45: 0 | BO45: 0 | BP45: 0 | BQ45: 0 | BR45: 0 | BS45: 0 | BT45: 0 | BU45: 0 | BV45: 0 | BW45: 0 | BX45: 0 | BY45: 0 | BZ45: 0 | CA45: 0 | CB45: 0 | CC45: 0 | CD45: 0 | CE45: 0 | CF45: 0 | CG45: 0 | CH45: 0 | CI45: 0
A46: 397 | B46: Communication equipment | C46: combine all 397x | D46: 0 | E46: 0 | F46: 0 | G46: 0 | H46: 0 | I46: 0 | J46: 0 | K46: 0 | L46: 0 | M46: 0 | N46: 0 | O46: 0 | P46: 0 | Q46: 0 | R46: 0 | S46: 0 | T46: 0 | U46: 0 | V46: 0 | W46: 0 | X46: 0 | Y46: 0 | Z46: 0 | AA46: 0 | AB46: 0 | AC46: 0 | AD46: 0 | AE46: 0 | AF46: 0 | AG46: 0 | AH46: 0 | AI46: 0 | AJ46: 0 | AK46: 0 | AL46: 0 | AM46: 0 | AN46: 0 | AO46: 0 | AP46: 0 | AQ46: 0 | AR46: 0 | AS46: 0 | AT46: 0 | AU46: 0 | AV46: 0 | AW46: 0 | AX46: 0 | AY46: 0 | AZ46: 0 | BA46: 0 | BB46: 0 | BC46: 0 | BD46: 0 | BE46: 0 | BF46: 0 | BG46: 0 | BH46: 0 | BI46: 0 | BJ46: 0 | BK46: 0 | BL46: 0 | BM46: 0 | BN46: 0 | BO46: 0 | BP46: 0 | BQ46: 0 | BR46: 0 | BS46: 0 | BT46: 0 | BU46: 0 | BV46: 0 | BW46: 0 | BX46: 0 | BY46: 0 | BZ46: 0 | CA46: 0 | CB46: 0 | CC46: 0 | CD46: 0 | CE46: 0 | CF46: 0 | CG46: 0 | CH46: 0 | CI46: 0
A47: 398 | B47: Miscellaneous equipment | D47: 1841.873985 | E47: 44.35607129 | F47: 39.43314749 | G47: 52.85722036 | H47: 140.4977715 | I47: 272.7771767 | J47: 283.8710381 | K47: 272.1150216 | L47: 275.1724746 | M47: 250.9716972 | N47: 98.3076447 | O47: 34.59130233 | P47: 31.37169042 | Q47: 23.04758861 | R47: 21.84224049 | S47: 0.6618997566 | T47: 0 | U47: 0 | V47: 0 | W47: 0 | X47: 0 | Y47: 0 | Z47: 0 | AA47: 0 | AB47: 0 | AC47: 0 | AD47: 0 | AE47: 0 | AF47: 0 | AG47: 0 | AH47: 0 | AI47: 0 | AJ47: 0 | AK47: 0 | AL47: 0 | AM47: 0 | AN47: 0 | AO47: 0 | AP47: 0 | AQ47: 0 | AR47: 0 | AS47: 0 | AT47: 0 | AU47: 0 | AV47: 0 | AW47: 0 | AX47: 0 | AY47: 0 | AZ47: 0 | BA47: 0 | BB47: 0 | BC47: 0 | BD47: 0 | BE47: 0 | BF47: 0 | BG47: 0 | BH47: 0 | BI47: 0 | BJ47: 0 | BK47: 0 | BL47: 0 | BM47: 0 | BN47: 0 | BO47: 0 | BP47: 0 | BQ47: 0 | BR47: 0 | BS47: 0 | BT47: 0 | BU47: 0 | BV47: 0 | BW47: 0 | BX47: 0 | BY47: 0 | BZ47: 0 | CA47: 0 | CB47: 0 | CC47: 0 | CD47: 0 | CE47: 0 | CF47: 0 | CG47: 0 | CH47: 0 | CI47: 0
A48: 399 | B48: Other tangible property | D48: 0 | E48: 0 | F48: 0 | G48: 0 | H48: 0 | I48: 0 | J48: 0 | K48: 0 | L48: 0 | M48: 0 | N48: 0 | O48: 0 | P48: 0 | Q48: 0 | R48: 0 | S48: 0 | T48: 0 | U48: 0 | V48: 0 | W48: 0 | X48: 0 | Y48: 0 | Z48: 0 | AA48: 0 | AB48: 0 | AC48: 0 | AD48: 0 | AE48: 0 | AF48: 0 | AG48: 0 | AH48: 0 | AI48: 0 | AJ48: 0 | AK48: 0 | AL48: 0 | AM48: 0 | AN48: 0 | AO48: 0 | AP48: 0 | AQ48: 0 | AR48: 0 | AS48: 0 | AT48: 0 | AU48: 0 | AV48: 0 | AW48: 0 | AX48: 0 | AY48: 0 | AZ48: 0 | BA48: 0 | BB48: 0 | BC48: 0 | BD48: 0 | BE48: 0 | BF48: 0 | BG48: 0 | BH48: 0 | BI48: 0 | BJ48: 0 | BK48: 0 | BL48: 0 | BM48: 0 | BN48: 0 | BO48: 0 | BP48: 0 | BQ48: 0 | BR48: 0 | BS48: 0 | BT48: 0 | BU48: 0 | BV48: 0 | BW48: 0 | BX48: 0 | BY48: 0 | BZ48: 0 | CA48: 0 | CB48: 0 | CC48: 0 | CD48: 0 | CE48: 0 | CF48: 0 | CG48: 0 | CH48: 0 | CI48: 0
B50: Amortization/Reduction to Tax | D50: =SUM(D9:D49) -> 3140534.157 | E50: =SUM(E9:E49) -> 50309.06213 | F50: =SUM(F9:F49) -> 50475.11277 | G50: 54004.36007 | H50: 61367.77529 | I50: 74999.76125 | J50: 80679.90764 | K50: 86858.83502 | L50: 91192.37573 | M50: 89361.67106 | N50: 88132.06032 | O50: 84284.38412 | P50: 82753.97908 | Q50: 81085.03105 | R50: 80292.17692 | S50: 79694.24198 | T50: 84874.46682 | U50: 94496.07973 | V50: 97635.88026 | W50: 103820.0429 | X50: 111027.6707 | Y50: 112655.1854 | Z50: 109446.4945 | AA50: 106166.0003 | AB50: 102188.6577 | AC50: 95471.08267 | AD50: 93481.19812 | AE50: 88298.95437 | AF50: 82523.71477 | AG50: 74980.08192 | AH50: 70943.76561 | AI50: 67531.47428 | AJ50: 62450.86132 | AK50: 58244.90759 | AL50: 53510.3426 | AM50: 49464.96503 | AN50: 47052.57092 | AO50: 45788.46294 | AP50: 43657.68157 | AQ50: 40341.55028 | AR50: 36398.20999 | AS50: 30045.46929 | AT50: 20795.64835 | AU50: 12722.57764 | AV50: 4275.605088 | AW50: 1387.924137 | AX50: 343.8550499 | AY50: 299.8492779 | AZ50: 327.7272952 | BA50: 300.5969057 | BB50: 300.0655096 | BC50: 295.7469878 | BD50: 281.8270959 | BE50: 272.0547397 | BF50: 210.8013247 | BG50: 81.08886002 | BH50: 77.40867513 | BI50: 77.40867513 | BJ50: 77.40867513 | BK50: 77.40867513 | BL50: 77.40867513 | BM50: 77.40867513 | BN50: 77.40867513 | BO50: 77.40867513 | BP50: 30.09569126 | BQ50: 2.917452242 | BR50: =SUM(BR9:BR49) -> 0 | BS50: 0 | BT50: 0 | BU50: 0 | BV50: 0 | BW50: 0 | BX50: 0 | BY50: 0 | BZ50: 0 | CA50: 0 | CB50: 0 | CC50: 0 | CD50: 0 | CE50: 0 | CF50: 0 | CG50: 0 | CH50: 0 | CI50: =SUM(CI9:CI49) -> 0

Sheet Summary (check)
B1: Not Depreciable, should not have a difference | G1: FED Rate | H1: FBOS | I1: State Rate
E2: Historical Tax Rate | F2: =+G2+H2+I2 -> 0.38575 | G2: 0.35 | H2: =-+G2*+I2 -> -0.01925 | I2: 0.055
E3: Current Tax Rate | F3: =+G3+H3+I3 -> 0.25345 | G3: 0.21 | H3: =-+G3*+I3 -> -0.01155 | I3: 0.055
A7: FERC Account | B7: Description | C7: Note
D8: Net Book | E8: Net Tax | F8: rate diff | G8: Gross Calc | H8: Detail Calc | I8: Difference | K8: Negative Tax Depr Diff
A9: 3010 | D9: =INDIRECT(A9&"!C60") -> 0 | E9: =INDIRECT(A9&"!C89") -> 0 | F9: =+$F$2-$F$3 -> 0.1323 | G9: =+(D9-E9)*F9 -> 0 | H9: 0 | I9: 0 | K9: =INDIRECT(A9&"!b3") -> 0
A10: 3030 | B10: Franchises & Consents | D10: 85999.6 | E10: =INDIRECT(A10&"!C89") -> 0 | F10: 0.1323 | G10: 11377.74708 | H10: =INDEX(Summary!D:D,MATCH($A10,Summary!A:A,0)) -> 0 | I10: =+G10-H10 -> 11377.74708 | K10: -11377.74708
A11: 311 | B11: Liquefied Petroleum Gas Equip | D11: 0 | E11: 0 | F11: 0.1323 | G11: 0 | H11: =INDEX(Summary!D:D,MATCH($A11,Summary!A:A,0)) -> 0 | I11: =+G11-H11 -> 0 | K11: 0
A12: 3031 | D12: 0 | E12: 0 | F12: 0.1323 | G12: 0 | H12: =INDEX(Summary!D:D,MATCH($A12,Summary!A:A,0)) -> 0 | I12: 0 | K12: 0
A13: 375 | B13: Structures & Improvements | D13: 328137.98 | E13: 112677.98 | F13: 0.1323 | G13: 28505.358 | H13: =INDEX(Summary!D:D,MATCH($A13,Summary!A:A,0)) -> 28505.358 | I13: 0 | K13: 0
A14: 3761 | B14: Mains Plastic | D14: 11070058.67 | E14: 4721781.4 | F14: 0.1323 | G14: 839877.0834 | H14: =INDEX(Summary!D:D,MATCH($A14,Summary!A:A,0)) -> 842633.1795 | I14: -2756.096091 | K14: 0
A15: 3762 | B15: Mains Steel | D15: 3205607.89 | E15: 463263.21 | F15: 0.1323 | G15: 362812.2012 | H15: =INDEX(Summary!D:D,MATCH($A15,Summary!A:A,0)) -> 362637.7447 | I15: 174.4564207 | K15: -174.4564207
A16: 376G | B16: Mains Plastic - GRIP | D16: 3246944.72 | E16: 1315641.34 | F16: 0.1323 | G16: 255511.4372 | H16: =INDEX(Summary!D:D,MATCH($A16,Summary!A:A,0)) -> 255511.4372 | I16: 2.328306437e-10 | K16: 0
A17: 378 | B17: M&R Station Equip-General | D17: 683603.57 | E17: 340594.04 | F17: 0.1323 | G17: 45380.16082 | H17: =INDEX(Summary!D:D,MATCH($A17,Summary!A:A,0)) -> 45380.16082 | I17: 0 | K17: 0
A18: 379 | B18: M&R Station Equip-City Gate | D18: 1553774.72 | E18: 467342.47 | F18: 0.1323 | G18: 143734.9867 | H18: =INDEX(Summary!D:D,MATCH($A18,Summary!A:A,0)) -> 143734.9867 | I18: 0 | K18: 0
A19: 3801 | B19: Services Plastic | D19: 7479056.64 | E19: 2767914.48 | F19: 0.1323 | G19: 623284.1078 | H19: =INDEX(Summary!D:D,MATCH($A19,Summary!A:A,0)) -> 623284.1078 | I19: 0 | K19: 0
A20: 3802 | B20: Services Steel | D20: 209491.74 | E20: 54220.7 | F20: 0.1323 | G20: 20542.35859 | H20: =INDEX(Summary!D:D,MATCH($A20,Summary!A:A,0)) -> 20541.56621 | I20: 0.7923786692 | K20: -0.7963476692
A21: 380G | B21: Services Plastic - GRIP | D21: 5176793.46 | E21: 2282594.86 | F21: 0.1323 | G21: 382902.4748 | H21: =INDEX(Summary!D:D,MATCH($A21,Summary!A:A,0)) -> 382902.4748 | I21: 0 | K21: =INDIRECT(A21&"!b3") -> 0
A22: 381 | B22: Meters | D22: 991061.96 | E22: 419671.48 | F22: 0.1323 | G22: 75594.9605 | H22: =INDEX(Summary!D:D,MATCH($A22,Summary!A:A,0)) -> 75594.9605 | I22: 0 | K22: 0
A23: 3811 | D23: 0 | E23: 0 | F23: 0.1323 | G23: 0 | H23: =INDEX(Summary!D:D,MATCH($A23,Summary!A:A,0)) -> 0 | I23: 0 | K23: 0
A24: 382 | B24: Meter Installations | D24: 2064060.77 | E24: 772132.92 | F24: 0.1323 | G24: 170922.0546 | H24: =INDEX(Summary!D:D,MATCH($A24,Summary!A:A,0)) -> 170922.0546 | I24: 0 | K24: 0
A25: 383 | B25: House Regulators | D25: 466739.44 | E25: 239247.14 | F25: 0.1323 | G25: 30097.23129 | H25: =INDEX(Summary!D:D,MATCH($A25,Summary!A:A,0)) -> 30097.23129 | I25: 0 | K25: 0
A26: 384 | B26: House Reg Installs | D26: 201826.44 | E26: 36910.1 | F26: 0.1323 | G26: 21818.43178 | H26: =INDEX(Summary!D:D,MATCH($A26,Summary!A:A,0)) -> 21818.43178 | I26: 0 | K26: 0
A27: 385 | B27: M&R Station Equip-Industrial | D27: 3670.67 | E27: 27.3 | F27: 0.1323 | G27: 482.017851 | H27: =INDEX(Summary!D:D,MATCH($A27,Summary!A:A,0)) -> 482.0152005 | I27: 0.002650463722 | K27: -0.003973463722
A28: 387 | B28: Other Equipment | D28: 402995.57 | E28: 142919.05 | F28: 0.1323 | G28: 34408.1236 | H28: =INDEX(Summary!D:D,MATCH($A28,Summary!A:A,0)) -> 34408.1236 | I28: 0 | K28: 0
A29: 3900 | B29: Structures and improvements | D29: 972085.73 | E29: 956455.31 | F29: 0.1323 | G29: 2067.904566 | H29: =INDEX(Summary!D:D,MATCH($A29,Summary!A:A,0)) -> 1412.196721 | I29: 655.7078454 | K29: -698.438421
A30: 3910 | B30: Office Furn & Equip | D30: 269313.89 | E30: 136020.73 | F30: 0.1323 | G30: 17634.68507 | H30: =INDEX(Summary!D:D,MATCH($A30,Summary!A:A,0)) -> 17634.68507 | I30: 0 | K30: 0
A31: 3912 | B31: Computer Hardware | D31: 160646.62 | E31: 3638.35 | F31: 0.1323 | G31: 20772.19412 | H31: =INDEX(Summary!D:D,MATCH($A31,Summary!A:A,0)) -> 20772.19412 | I31: 0 | K31: 0
A32: 3913 | B32: Furniture & Fixtures | D32: 22046.65 | E32: 2405.06 | F32: 0.1323 | G32: 2598.582357 | H32: =INDEX(Summary!D:D,MATCH($A32,Summary!A:A,0)) -> 2598.582357 | I32: 0 | K32: 0
A33: 3914 | B33: System Software | D33: -16139.48 | E33: 116.34 | F33: 0.1323 | G33: -2150.644986 | H33: =INDEX(Summary!D:D,MATCH($A33,Summary!A:A,0)) -> 0 | I33: -2150.644986 | K33: 0
A34: 391S | B34: ECIS Improvements | D34: 0 | E34: 0 | F34: 0.1323 | G34: 0 | H34: =INDEX(Summary!D:D,MATCH($A34,Summary!A:A,0)) -> 0 | I34: 0 | K34: 0
A35: 3920 | D35: 0 | E35: 0 | F35: 0.1323 | G35: 0 | H35: =INDEX(Summary!D:D,MATCH($A35,Summary!A:A,0)) -> 0 | I35: 0 | K35: 0
A36: 3921 | B36: Transportation Equip - Autos | D36: 7402.82 | E36: 0 | F36: 0.1323 | G36: 979.393086 | H36: =INDEX(Summary!D:D,MATCH($A36,Summary!A:A,0)) -> 0 | I36: 979.393086 | K36: -979.393086
A37: 3922 | B37: Transportation Equip-Lt Trck/Vans | D37: 811029.29 | E37: 552052.81 | F37: 0.1323 | G37: 34262.5883 | H37: =INDEX(Summary!D:D,MATCH($A37,Summary!A:A,0)) -> 38692.30829 | I37: -4429.719985 | K37: 0
A38: 3923 | B38: Trans Equip-HD Truck/Bobtail | D38: 0 | E38: 0 | F38: 0.1323 | G38: 0 | H38: =INDEX(Summary!D:D,MATCH($A38,Summary!A:A,0)) -> 0 | I38: 0 | K38: 0
A39: 3924 | B39: Trans Equip-Trailers | D39: 15541.49 | E39: 0 | F39: 0.1323 | G39: 2056.139127 | H39: =INDEX(Summary!D:D,MATCH($A39,Summary!A:A,0)) -> 2056.139127 | I39: 0 | K39: 0
A40: 393 | B40: Stores equipment | D40: 1038.41 | E40: 2223.78 | F40: 0.1323 | G40: -156.824451 | H40: =INDEX(Summary!D:D,MATCH($A40,Summary!A:A,0)) -> 0 | I40: -156.824451 | K40: 0
A41: 394 | B41: Tools, shop and garage equipment | D41: 17437.55 | E41: 29269.75 | F41: 0.1323 | G41: -1565.40006 | H41: =INDEX(Summary!D:D,MATCH($A41,Summary!A:A,0)) -> 337.4079658 | I41: -1902.808026 | K41: 0
A42: 395 | B42: Laboratory equipment | D42: 0 | E42: 0 | F42: 0.1323 | G42: 0 | H42: =INDEX(Summary!D:D,MATCH($A42,Summary!A:A,0)) -> 0 | I42: 0 | K42: 0
A43: 396 | B43: Power operated equipment | D43: 190213.9695 | E43: 63721.63 | F43: 0.1323 | G43: 16734.93652 | H43: =INDEX(Summary!D:D,MATCH($A43,Summary!A:A,0)) -> 16734.93652 | I43: 0 | K43: 0
A44: 397 | B44: Communication equipment | D44: -6211.4 | E44: =INDIRECT(A44&"!C89") -> 22033.77 | F44: 0.1323 | G44: =+(D44-E44)*F44 -> -3736.835991 | H44: =INDEX(Summary!D:D,MATCH($A44,Summary!A:A,0)) -> 0 | I44: =+G44-H44 -> -3736.835991 | K44: 0
A45: 398 | B45: Miscellaneous equipment | D45: 24606.7 | E45: =INDIRECT(A45&"!C89") -> 10684.75 | F45: 0.1323 | G45: 1841.873985 | H45: =INDEX(Summary!D:D,MATCH($A45,Summary!A:A,0)) -> 1841.873985 | I45: 0 | K45: 0
A46: 399 | B46: Other tangible property | D46: 0 | E46: 0 | F46: 0.1323 | G46: 0 | H46: =INDEX(Summary!D:D,MATCH($A46,Summary!A:A,0)) -> 0 | I46: 0 | K46: 0
C47: Depreciable Totals | D47: =SUM(D9:D46) -> 39638836.08 | E47: =SUM(E9:E46) -> 15915560.75 | G47: =SUM(G9:G46) -> 3138589.327 | H47: =SUM(H9:H46) -> 3140534.157 | I47: =SUM(I9:I46) -> -1944.830069 | K47: =SUM(K9:K46) -> -13230.83533
A49: 1210 | D49: =INDIRECT(A49&"!C60") -> 8435.71 | E49: =INDIRECT(A49&"!C89") -> 0 | F49: 0.1323 | G49: =+(D49-E49)*F49 -> 1116.044433 | H49: =INDEX(Summary!D:D,MATCH($A49,Summary!A:A,0)) -> 0 | I49: =+G49-H49 -> 1116.044433 | K49: =INDIRECT(A49&"!b3") -> -1116.044433
A50: 3740 | B50: Land/Land Rights | D50: =INDIRECT(A50&"!C60") -> 44421.79 | E50: =INDIRECT(A50&"!C89") -> 0 | F50: 0.1323 | G50: =+(D50-E50)*F50 -> 5877.002817 | H50: =INDEX(Summary!D:D,MATCH($A50,Summary!A:A,0)) -> 0 | I50: =+G50-H50 -> 5877.002817 | K50: =INDIRECT(A50&"!b3") -> -5877.002817
A51: 389 | B51: Land and Land Rights | D51: =INDIRECT(A51&"!C60") -> 418724.56 | E51: =INDIRECT(A51&"!C89") -> 0 | F51: 0.1323 | G51: 55397.25929 | H51: =INDEX(Summary!D:D,MATCH($A51,Summary!A:A,0)) -> 0 | I51: 55397.25929 | K51: -55397.25929
C52: Non-Depreciable Totals | D52: =SUM(D49:D51) -> 471582.06 | E52: =SUM(E49:E51) -> 0 | G52: =SUM(G49:G51) -> 62390.30654 | H52: =SUM(H49:H51) -> 0 | I52: =SUM(I49:I51) -> 62390.30654 | K52: =SUM(K50:K51) -> -61274.2621
C55: Totals | D55: =+D47+D52 -> 40110418.14 | E55: =+E47+E52 -> 15915560.75 | G55: =+G47+G52 -> 3200979.633 | H55: =+H47+H52 -> 3140534.157 | I55: =+I47+I52 -> 60445.47647 | K55: =+K47+K52 -> -74505.09743

Sheet ARAM Calc Explanation
A2: Ending 2017 | E2: 2018 | F2: =E2+1 -> 2019 | G2: Description
A3: Initial Difference | B3: Book NBV - Tax NBV | D3: Begin Cumulative Difference | E3: Initial Difference | F3: PRIOR YEAR End Cumulative Difference | G3: The begin of year cumulative difference between book and tax depreciation.
D4: Current Diff (Tax - Book) | E4: Current Difference (tax nbv - book nbv) | F4: Current Difference (tax nbv - book nbv) | G4: The current year difference between book and tax depreciation.
D5: End Cumulative Difference | E5: Begin Cumulative Difference + Current Diff (Tax - Book) | F5: Begin Cumulative Difference + Current Diff (Tax - Book) | G5: The end of year cumulative difference between book and tax depreciation.
D6: Current Diff Utilized | E6: IF Begin Cumulative Difference + Current Diff (Tax - Book) > 0 THEN Current Diff (Tax - Book) ELSE Begin Cumulative Difference + Current Diff (Tax - Book) | F6: IF Begin Cumulative Difference + Current Diff (Tax - Book) > 0 THEN Current Diff (Tax - Book) ELSE Begin Cumulative Difference + Current Diff (Tax - Book) | G6: This is the amount of the current year difference that is able to be used for the reversal of deferred tax liability. If the beginning amount is less than the current amount, then only a partial amount of the current will be able to be used for reversal.
A7: Historical Tax rate | B7: FED Rate + FBOS + State Rate | D7: Tax rate (or ARAM rate) | E7: Current Statutor Rate or ARAM Rate. The ARAM rate is used when book depreciation is greater than tax depreciation | F7: Current Statutor Rate or ARAM Rate. The ARAM rate is used when book depreciation is greater than tax depreciation. | G7: As the cumulative difference builds, the statutory rate will be used. When the cumulative difference starts to reverse, the ARAM rate will be used.
A8: Current Statutory Rate | B8: FED Rate + FBOS + State Rate | D8: Begin Current DFIT @ Current Statutory | E8: Current Diff Utilized * Current Statutory Rate | F8: Current Diff Utilized * Current Statutory Rate | G8: The begin of year deferred income tax at the current statutory rate.
D9: Begin Current DFIT at Statutory or ARAM Rate | E9: Current Diff Utilized * Tax Rate (or ARAM Rate) | F9: Current Diff Utilized * Tax Rate (or ARAM Rate) | G9: The begin of year deferred income tax at the current statutory rate or ARAM rate. The ARAM rate is used when book depreciation is greater than tax depreciation and the difference is being reversed..
A10: Initial Cumulative DFIT | B10: Initial Difference * Historical Tax Rate | D10: Begin Cumulative DFIT | E10: Initial Cumulative DFIT | F10: PRIOR YEAR End Cumulative DFIT | G10: The begin of year cumulative deferred income tax. This value is build up using statutory rates and reduced using ARAM.
D11: End Cumulative DFIT | E11: Begin Cumulative DFIT + Begin Current DFIT at Statutory or ARAM Rate | F11: Begin Cumulative DFIT + Begin Current DFIT at Statutory or ARAM Rate | G11: The end of year cumulative deferred income tax. This value is build up using statutory rates and reduced using ARAM.
A12: Initial ARAM Rate (cum dfit/cum diff) | B12: Initial Difference / Initial Cumulative DFIT | D12: Begin ARAM Rate (cum dfit/cum diff) | E12: Begin Cumulative DFIT / Begin Cumulative Difference | F12: Begin Cumulative DFIT / Begin Cumulative Difference | G12: Begin Cumulative DFIT divided by the Begin Cumulative Difference. This is the average rate at which the deferred income taxes were built.
D13: End ARAM Rate (cum dfit/cum diff) | E13: End Cumulative DFIT / Begin Cumulative Difference | F13: End Cumulative DFIT / Begin Cumulative Difference | G13: End Cumulative DFIT divided by the End Cumulative Difference. This is the average rate at which the deferred income taxes were built
A14: Initial Cumulative DFIT at Historic Rate | B14: Initial Difference * Initial ARAM Rate | D14: Cumulative DFIT at Historic Rate | E14: Initial Cumulative DFIT at Historic Rate * Tax rate (or ARAM rate) | F14: Initial Cumulative DFIT at Historic Rate * Tax rate (or ARAM rate) | G14: The beginning accumulated deferred income tax balance build using historic statutory rates.
A15: Initial Cumulative DFIT at Statutory Rate | B15: Initial Difference * Current Tax Rate | D15: Cumulative DFIT at Statutory Rate | E15: Initial Cumulative DFIT at Statutory Rate + Begin Current DFIT @ Current Statutory | F15: PRIOR YEAR Cumulative DFIT at Statutory Rate + Begin Current DFIT @ Current Statutory | G15: The ending accumulated deferred income tax balance build using historic statutory rates.
D16: Begin Excess Deferred | E16: Initial Excess Deferred | F16: PRIOR YEAR End Excess Deferred | G16: The beginning excess deferred amount. The cumulative DFIT at Historic Rate minus the cumulative DFIT at Statutory Rate.
D17: Amortization of Excess Deferred | E17: Begin Current DFIT @ Current Statutory - Begin Current DFIT at Statutory or ARAM Rate | F17: Begin Current DFIT @ Current Statutory - Begin Current DFIT at Statutory or ARAM Rate | G17: The current reduction of any excess deferred amount. The Begin Current DFIT @ Current Statutory minus the Begin Current DFIT at Statutory or ARAM Rate. An alternate calculation is the current utilized tax/book depreciation difference multiplied by the difference in the current statutory rate and the ARAM rate.
A18: Initial Excess Deferred | B18: Initial Cumulative DFIT at Historic Rate - Initial Cumulative DFIT at Statutory Rate | D18: End Excess Deferred | E18: Begin Excess Deferred - Amortization of Excess Deferred | F18: Begin Excess Deferred - Amortization of Excess Deferred | G18: The Begin Excess Deferred minus the Amortization of Excess Deferred (current).

Sheet 1210
A1: Excess Reserve Amortized | B1: =+D493 -> 0
A2: Initial Excess Reserve Calc | B2: =+C493 -> 1116.044433 | D2: Historical Tax Rate | E2: =+Summary!G2 -> 0.38575
A3: Diff due to negative tax depr | B3: =+B1-B2 -> -1116.044433 | D3: Current Tax Rate | E3: =+Summary!G3 -> 0.25345
A5: Excess Reserve Gross Calc | B5: =+(C60-C89)*(E2-E3) -> 1116.044433
D6: Plant Balance | E6: Book NBV | F6: Depr %
D7: From: Plant Balance #1 | E7: From: Depreciation Expense #4 | F7: From: Depreciation Expense #4
D8: 8435.71 | E8: 8435.71 | F8: =SUMIFS('Depreciation Expense'!D:D,'Depreciation Expense'!B:B,MID(CELL("filename",$A$1),FIND("]",CELL("filename",$A$1))+1,255)) -> 0
A9: Book Data from FAS and Rollforwards
A10: Vintage | B10: Acquired Value from FAS | C10: Vintage Allocation Percentage | D10: Plant Balance allocated to Vintages | E10: Depreciation Years | F10: Depr % by Vintage | G10: Accumulated Reserve | H10: Initial NBV by Vintage | I10: Book NBV with 1997 and prior adjusted
A11: 1997 & Prior | B11: =SUMIFS(CY_Report!$L:$L,CY_Report!$J:$J,$A11,CY_Report!$E:$E,MID(CELL("filename",$A$1),FIND("]",CELL("filename",$A$1))+1,255),CY_Report!$U:$U,"<>*d*",CY_Report!$U:$U,"<>*t*",CY_Report!$N:$N,"<>"&" 00 00") -> 0 | C11: =IFERROR(+B11/$B$32,0) -> 0 | D11: =+C11*$D$8 -> 0 | E11: =2018-1997 -> 21 | F11: =+D11*$F$8 -> 0 | G11: =+F11*E11 -> 0 | H11: =+IF(D11-G11<0,0,D11-G11) -> 0 | I11: =+$E$8*J11 -> 0 | J11: =IF($H$32=0,IF($B$32=0,0,C11),H11/$H$32) -> 0
A12: 1998 | B12: =SUMIFS(CY_Report!$L:$L,CY_Report!$J:$J,$A12,CY_Report!$E:$E,MID(CELL("filename",$A$1),FIND("]",CELL("filename",$A$1))+1,255),CY_Report!$U:$U,"<>*d*",CY_Report!$U:$U,"<>*t*",CY_Report!$N:$N,"<>"&" 00 00") -> 0 | C12: =IFERROR(+B12/$B$32,0) -> 0 | D12: =+C12*$D$8 -> 0 | E12: =2018-A12 -> 20 | F12: =+D12*$F$8 -> 0 | G12: =+F12*E12 -> 0 | H12: =+IF(D12-G12<0,0,D12-G12) -> 0 | I12: =+$E$8*J12 -> 0 | J12: =IF($H$32=0,IF($B$32=0,0,C12),H12/$H$32) -> 0
A13: 1999 | B13: =SUMIFS(CY_Report!$L:$L,CY_Report!$J:$J,$A13,CY_Report!$E:$E,MID(CELL("filename",$A$1),FIND("]",CELL("filename",$A$1))+1,255),CY_Report!$U:$U,"<>*d*",CY_Report!$U:$U,"<>*t*",CY_Report!$N:$N,"<>"&" 00 00") -> 0 | C13: 0 | D13: 0 | E13: =2018-A13 -> 19 | F13: 0 | G13: 0 | H13: 0 | I13: 0 | J13: 0
A14: 2000 | B14: =SUMIFS(CY_Report!$L:$L,CY_Report!$J:$J,$A14,CY_Report!$E:$E,MID(CELL("filename",$A$1),FIND("]",CELL("filename",$A$1))+1,255),CY_Report!$U:$U,"<>*d*",CY_Report!$U:$U,"<>*t*",CY_Report!$N:$N,"<>"&" 00 00") -> 0 | C14: 0 | D14: 0 | E14: 18 | F14: 0 | G14: 0 | H14: 0 | I14: 0 | J14: 0
A15: 2001 | B15: =SUMIFS(CY_Report!$L:$L,CY_Report!$J:$J,$A15,CY_Report!$E:$E,MID(CELL("filename",$A$1),FIND("]",CELL("filename",$A$1))+1,255),CY_Report!$U:$U,"<>*d*",CY_Report!$U:$U,"<>*t*",CY_Report!$N:$N,"<>"&" 00 00") -> 0 | C15: 0 | D15: 0 | E15: 17 | F15: 0 | G15: 0 | H15: 0 | I15: 0 | J15: 0
A16: 2002 | B16: =SUMIFS(CY_Report!$L:$L,CY_Report!$J:$J,$A16,CY_Report!$E:$E,MID(CELL("filename",$A$1),FIND("]",CELL("filename",$A$1))+1,255),CY_Report!$U:$U,"<>*d*",CY_Report!$U:$U,"<>*t*",CY_Report!$N:$N,"<>"&" 00 00") -> 0 | C16: 0 | D16: 0 | E16: 16 | F16: 0 | G16: 0 | H16: 0 | I16: 0 | J16: 0
A17: 2003 | B17: =SUMIFS(CY_Report!$L:$L,CY_Report!$J:$J,$A17,CY_Report!$E:$E,MID(CELL("filename",$A$1),FIND("]",CELL("filename",$A$1))+1,255),CY_Report!$U:$U,"<>*d*",CY_Report!$U:$U,"<>*t*",CY_Report!$N:$N,"<>"&" 00 00") -> 0 | C17: 0 | D17: 0 | E17: 15 | F17: 0 | G17: 0 | H17: 0 | I17: 0 | J17: 0
A18: 2004 | B18: =SUMIFS(CY_Report!$L:$L,CY_Report!$J:$J,$A18,CY_Report!$E:$E,MID(CELL("filename",$A$1),FIND("]",CELL("filename",$A$1))+1,255),CY_Report!$U:$U,"<>*d*",CY_Report!$U:$U,"<>*t*",CY_Report!$N:$N,"<>"&" 00 00") -> 0 | C18: 0 | D18: 0 | E18: 14 | F18: 0 | G18: 0 | H18: 0 | I18: 0 | J18: 0
A19: 2005 | B19: =SUMIFS(CY_Report!$L:$L,CY_Report!$J:$J,$A19,CY_Report!$E:$E,MID(CELL("filename",$A$1),FIND("]",CELL("filename",$A$1))+1,255),CY_Report!$U:$U,"<>*d*",CY_Report!$U:$U,"<>*t*",CY_Report!$N:$N,"<>"&" 00 00") -> 0 | C19: 0 | D19: 0 | E19: 13 | F19: 0 | G19: 0 | H19: 0 | I19: 0 | J19: 0
A20: 2006 | B20: =SUMIFS(CY_Report!$L:$L,CY_Report!$J:$J,$A20,CY_Report!$E:$E,MID(CELL("filename",$A$1),FIND("]",CELL("filename",$A$1))+1,255),CY_Report!$U:$U,"<>*d*",CY_Report!$U:$U,"<>*t*",CY_Report!$N:$N,"<>"&" 00 00") -> 0 | C20: 0 | D20: 0 | E20: 12 | F20: 0 | G20: 0 | H20: 0 | I20: 0 | J20: 0
A21: 2007 | B21: =SUMIFS(CY_Report!$L:$L,CY_Report!$J:$J,$A21,CY_Report!$E:$E,MID(CELL("filename",$A$1),FIND("]",CELL("filename",$A$1))+1,255),CY_Report!$U:$U,"<>*d*",CY_Report!$U:$U,"<>*t*",CY_Report!$N:$N,"<>"&" 00 00") -> 0 | C21: 0 | D21: 0 | E21: 11 | F21: 0 | G21: 0 | H21: 0 | I21: 0 | J21: 0
A22: 2008 | B22: =SUMIFS(CY_Report!$L:$L,CY_Report!$J:$J,$A22,CY_Report!$E:$E,MID(CELL("filename",$A$1),FIND("]",CELL("filename",$A$1))+1,255),CY_Report!$U:$U,"<>*d*",CY_Report!$U:$U,"<>*t*",CY_Report!$N:$N,"<>"&" 00 00") -> 0 | C22: 0 | D22: 0 | E22: 10 | F22: 0 | G22: 0 | H22: 0 | I22: 0 | J22: 0
A23: 2009 | B23: =SUMIFS(CY_Report!$L:$L,CY_Report!$J:$J,$A23,CY_Report!$E:$E,MID(CELL("filename",$A$1),FIND("]",CELL("filename",$A$1))+1,255),CY_Report!$U:$U,"<>*d*",CY_Report!$U:$U,"<>*t*",CY_Report!$N:$N,"<>"&" 00 00") -> 0 | C23: 0 | D23: 0 | E23: 9 | F23: 0 | G23: 0 | H23: 0 | I23: 0 | J23: 0
A24: 2010 | B24: =SUMIFS(CY_Report!$L:$L,CY_Report!$J:$J,$A24,CY_Report!$E:$E,MID(CELL("filename",$A$1),FIND("]",CELL("filename",$A$1))+1,255),CY_Report!$U:$U,"<>*d*",CY_Report!$U:$U,"<>*t*",CY_Report!$N:$N,"<>"&" 00 00") -> 0 | C24: 0 | D24: 0 | E24: 8 | F24: 0 | G24: 0 | H24: 0 | I24: 0 | J24: 0
A25: 2011 | B25: =SUMIFS(CY_Report!$L:$L,CY_Report!$J:$J,$A25,CY_Report!$E:$E,MID(CELL("filename",$A$1),FIND("]",CELL("filename",$A$1))+1,255),CY_Report!$U:$U,"<>*d*",CY_Report!$U:$U,"<>*t*",CY_Report!$N:$N,"<>"&" 00 00") -> 0 | C25: 0 | D25: 0 | E25: 7 | F25: 0 | G25: 0 | H25: 0 | I25: 0 | J25: 0
A26: 2012 | B26: =SUMIFS(CY_Report!$L:$L,CY_Report!$J:$J,$A26,CY_Report!$E:$E,MID(CELL("filename",$A$1),FIND("]",CELL("filename",$A$1))+1,255),CY_Report!$U:$U,"<>*d*",CY_Report!$U:$U,"<>*t*",CY_Report!$N:$N,"<>"&" 00 00") -> 0 | C26: 0 | D26: 0 | E26: 6 | F26: 0 | G26: 0 | H26: 0 | I26: 0 | J26: 0
A27: 2013 | B27: =SUMIFS(CY_Report!$L:$L,CY_Report!$J:$J,$A27,CY_Report!$E:$E,MID(CELL("filename",$A$1),FIND("]",CELL("filename",$A$1))+1,255),CY_Report!$U:$U,"<>*d*",CY_Report!$U:$U,"<>*t*",CY_Report!$N:$N,"<>"&" 00 00") -> 0 | C27: 0 | D27: 0 | E27: 5 | F27: 0 | G27: 0 | H27: 0 | I27: 0 | J27: 0
A28: 2014 | B28: =SUMIFS(CY_Report!$L:$L,CY_Report!$J:$J,$A28,CY_Report!$E:$E,MID(CELL("filename",$A$1),FIND("]",CELL("filename",$A$1))+1,255),CY_Report!$U:$U,"<>*d*",CY_Report!$U:$U,"<>*t*",CY_Report!$N:$N,"<>"&" 00 00") -> 0 | C28: 0 | D28: 0 | E28: 4 | F28: 0 | G28: 0 | H28: 0 | I28: 0 | J28: 0
A29: 2015 | B29: =SUMIFS(CY_Report!$L:$L,CY_Report!$J:$J,$A29,CY_Report!$E:$E,MID(CELL("filename",$A$1),FIND("]",CELL("filename",$A$1))+1,255),CY_Report!$U:$U,"<>*d*",CY_Report!$U:$U,"<>*t*",CY_Report!$N:$N,"<>"&" 00 00") -> 0 | C29: 0 | D29: 0 | E29: 3 | F29: 0 | G29: 0 | H29: 0 | I29: 0 | J29: 0
A30: 2016 | B30: =SUMIFS(CY_Report!$L:$L,CY_Report!$J:$J,$A30,CY_Report!$E:$E,MID(CELL("filename",$A$1),FIND("]",CELL("filename",$A$1))+1,255),CY_Report!$U:$U,"<>*d*",CY_Report!$U:$U,"<>*t*",CY_Report!$N:$N,"<>"&" 00 00") -> 0 | C30: 0 | D30: 0 | E30: 2 | F30: 0 | G30: 0 | H30: 0 | I30: 0 | J30: 0
A31: 2017 | B31: 1 | C31: 1 | D31: 8435.71 | E31: 1 | F31: 0 | G31: 0 | H31: 8435.71 | I31: 8435.71 | J31: 1
A32: Total | B32: =SUM(B11:B31) -> 1 | D32: =SUM(D11:D31) -> 8435.71 | F32: =SUM(F11:F31) -> 0 | G32: =SUM(G11:G31) -> 0 | H32: =SUM(H11:H31) -> 8435.71 | I32: =SUM(I11:I31) -> 8435.71
A36: Vintage | C36: Book NBV | E36: Book Deprecation
E37: 2018 | F37: =E37+1 -> 2019 | G37: =F37+1 -> 2020 | H37: 2021 | I37: 2022 | J37: 2023 | K37: 2024 | L37: 2025 | M37: 2026 | N37: 2027 | O37: 2028 | P37: 2029 | Q37: 2030 | R37: 2031 | S37: 2032 | T37: 2033 | U37: 2034 | V37: 2035 | W37: 2036 | X37: 2037 | Y37: 2038 | Z37: 2039 | AA37: 2040 | AB37: 2041 | AC37: 2042 | AD37: 2043 | AE37: 2044 | AF37: 2045 | AG37: 2046 | AH37: 2047 | AI37: 2048 | AJ37: 2049 | AK37: 2050 | AL37: 2051 | AM37: 2052 | AN37: 2053 | AO37: 2054 | AP37: 2055 | AQ37: 2056 | AR37: 2057 | AS37: 2058 | AT37: 2059 | AU37: 2060 | AV37: 2061 | AW37: 2062 | AX37: 2063 | AY37: 2064
A38: 1997 & Prior | C38: =+I11 -> 0 | E38: =+$F11 -> 0 | F38: =+$F11 -> 0 | G38: 0 | H38: 0 | I38: 0 | J38: 0 | K38: 0 | L38: 0 | M38: 0 | N38: 0 | O38: 0 | P38: 0 | Q38: 0 | R38: 0 | S38: 0 | T38: 0 | U38: 0 | V38: 0 | W38: 0 | X38: 0 | Y38: 0 | Z38: 0 | AA38: 0 | AB38: 0 | AC38: 0 | AD38: 0 | AE38: 0 | AF38: 0 | AG38: 0 | AH38: 0 | AI38: 0 | AJ38: 0 | AK38: 0 | AL38: 0 | AM38: 0 | AN38: 0 | AO38: 0 | AP38: 0 | AQ38: 0 | AR38: 0 | AS38: 0 | AT38: 0 | AU38: 0 | AV38: 0 | AW38: 0 | AX38: 0 | AY38: 0
A39: 1998 | C39: =+I12 -> 0 | E39: =+$F12 -> 0 | F39: 0 | G39: 0 | H39: 0 | I39: 0 | J39: 0 | K39: 0 | L39: 0 | M39: 0 | N39: 0 | O39: 0 | P39: 0 | Q39: 0 | R39: 0 | S39: 0 | T39: 0 | U39: 0 | V39: 0 | W39: 0 | X39: 0 | Y39: 0 | Z39: 0 | AA39: 0 | AB39: 0 | AC39: 0 | AD39: 0 | AE39: 0 | AF39: 0 | AG39: 0 | AH39: 0 | AI39: 0 | AJ39: 0 | AK39: 0 | AL39: 0 | AM39: 0 | AN39: 0 | AO39: 0 | AP39: 0 | AQ39: 0 | AR39: 0 | AS39: 0 | AT39: 0 | AU39: 0 | AV39: 0 | AW39: 0 | AX39: 0 | AY39: 0
A40: 1999 | C40: 0 | E40: 0 | F40: 0 | G40: 0 | H40: 0 | I40: 0 | J40: 0 | K40: 0 | L40: 0 | M40: 0 | N40: 0 | O40: 0 | P40: 0 | Q40: 0 | R40: 0 | S40: 0 | T40: 0 | U40: 0 | V40: 0 | W40: 0 | X40: 0 | Y40: 0 | Z40: 0 | AA40: 0 | AB40: 0 | AC40: 0 | AD40: 0 | AE40: 0 | AF40: 0 | AG40: 0 | AH40: 0 | AI40: 0 | AJ40: 0 | AK40: 0 | AL40: 0 | AM40: 0 | AN40: 0 | AO40: 0 | AP40: 0 | AQ40: 0 | AR40: 0 | AS40: 0 | AT40: 0 | AU40: 0 | AV40: 0 | AW40: 0 | AX40: 0 | AY40: 0
A41: =A40+1 -> 2000 | C41: 0 | E41: 0 | F41: 0 | G41: 0 | H41: 0 | I41: 0 | J41: 0 | K41: 0 | L41: 0 | M41: 0 | N41: 0 | O41: 0 | P41: 0 | Q41: 0 | R41: 0 | S41: 0 | T41: 0 | U41: 0 | V41: 0 | W41: 0 | X41: 0 | Y41: 0 | Z41: 0 | AA41: 0 | AB41: 0 | AC41: 0 | AD41: 0 | AE41: 0 | AF41: 0 | AG41: 0 | AH41: 0 | AI41: 0 | AJ41: 0 | AK41: 0 | AL41: 0 | AM41: 0 | AN41: 0 | AO41: 0 | AP41: 0 | AQ41: 0 | AR41: 0 | AS41: 0 | AT41: 0 | AU41: 0 | AV41: 0 | AW41: 0 | AX41: 0 | AY41: 0
A42: =A41+1 -> 2001 | C42: 0 | E42: 0 | F42: 0 | G42: 0 | H42: 0 | I42: 0 | J42: 0 | K42: 0 | L42: 0 | M42: 0 | N42: 0 | O42: 0 | P42: 0 | Q42: 0 | R42: 0 | S42: 0 | T42: 0 | U42: 0 | V42: 0 | W42: 0 | X42: 0 | Y42: 0 | Z42: 0 | AA42: 0 | AB42: 0 | AC42: 0 | AD42: 0 | AE42: 0 | AF42: 0 | AG42: 0 | AH42: 0 | AI42: 0 | AJ42: 0 | AK42: 0 | AL42: 0 | AM42: 0 | AN42: 0 | AO42: 0 | AP42: 0 | AQ42: 0 | AR42: 0 | AS42: 0 | AT42: 0 | AU42: 0 | AV42: 0 | AW42: 0 | AX42: 0 | AY42: 0
A43: 2002 | C43: 0 | E43: 0 | F43: 0 | G43: 0 | H43: 0 | I43: 0 | J43: 0 | K43: 0 | L43: 0 | M43: 0 | N43: 0 | O43: 0 | P43: 0 | Q43: 0 | R43: 0 | S43: 0 | T43: 0 | U43: 0 | V43: 0 | W43: 0 | X43: 0 | Y43: 0 | Z43: 0 | AA43: 0 | AB43: 0 | AC43: 0 | AD43: 0 | AE43: 0 | AF43: 0 | AG43: 0 | AH43: 0 | AI43: 0 | AJ43: 0 | AK43: 0 | AL43: 0 | AM43: 0 | AN43: 0 | AO43: 0 | AP43: 0 | AQ43: 0 | AR43: 0 | AS43: 0 | AT43: 0 | AU43: 0 | AV43: 0 | AW43: 0 | AX43: 0 | AY43: 0
A44: 2003 | C44: 0 | E44: 0 | F44: 0 | G44: 0 | H44: 0 | I44: 0 | J44: 0 | K44: 0 | L44: 0 | M44: 0 | N44: 0 | O44: 0 | P44: 0 | Q44: 0 | R44: 0 | S44: 0 | T44: 0 | U44: 0 | V44: 0 | W44: 0 | X44: 0 | Y44: =+$F17 -> 0 | Z44: 0 | AA44: 0 | AB44: 0 | AC44: 0 | AD44: 0 | AE44: 0 | AF44: 0 | AG44: 0 | AH44: 0 | AI44: 0 | AJ44: 0 | AK44: 0 | AL44: 0 | AM44: 0 | AN44: 0 | AO44: 0 | AP44: 0 | AQ44: 0 | AR44: 0 | AS44: 0 | AT44: 0 | AU44: 0 | AV44: 0 | AW44: 0 | AX44: 0 | AY44: 0
A45: 2004 | C45: 0 | E45: =+$F18 -> 0 | F45: 0 | G45: 0 | H45: 0 | I45: 0 | J45: 0 | K45: 0 | L45: 0 | M45: 0 | N45: 0 | O45: 0 | P45: 0 | Q45: 0 | R45: 0 | S45: 0 | T45: 0 | U45: 0 | V45: 0 | W45: 0 | X45: 0 | Y45: 0 | Z45: 0 | AA45: 0 | AB45: 0 | AC45: 0 | AD45: 0 | AE45: 0 | AF45: 0 | AG45: 0 | AH45: 0 | AI45: 0 | AJ45: 0 | AK45: 0 | AL45: 0 | AM45: 0 | AN45: 0 | AO45: 0 | AP45: 0 | AQ45: 0 | AR45: 0 | AS45: 0 | AT45: 0 | AU45: 0 | AV45: 0 | AW45: 0 | AX45: 0 | AY45: 0
A46: 2005 | C46: 0 | E46: 0 | F46: 0 | G46: 0 | H46: 0 | I46: 0 | J46: 0 | K46: 0 | L46: 0 | M46: 0 | N46: 0 | O46: 0 | P46: 0 | Q46: 0 | R46: 0 | S46: 0 | T46: 0 | U46: 0 | V46: 0 | W46: 0 | X46: 0 | Y46: 0 | Z46: 0 | AA46: 0 | AB46: 0 | AC46: 0 | AD46: 0 | AE46: 0 | AF46: 0 | AG46: 0 | AH46: 0 | AI46: 0 | AJ46: 0 | AK46: 0 | AL46: 0 | AM46: 0 | AN46: 0 | AO46: 0 | AP46: 0 | AQ46: 0 | AR46: 0 | AS46: 0 | AT46: 0 | AU46: 0 | AV46: 0 | AW46: 0 | AX46: 0 | AY46: 0
A47: 2006 | C47: 0 | E47: 0 | F47: 0 | G47: 0 | H47: 0 | I47: 0 | J47: 0 | K47: 0 | L47: 0 | M47: 0 | N47: 0 | O47: 0 | P47: 0 | Q47: 0 | R47: 0 | S47: 0 | T47: 0 | U47: 0 | V47: 0 | W47: 0 | X47: 0 | Y47: 0 | Z47: 0 | AA47: 0 | AB47: 0 | AC47: 0 | AD47: 0 | AE47: 0 | AF47: 0 | AG47: 0 | AH47: 0 | AI47: 0 | AJ47: 0 | AK47: 0 | AL47: 0 | AM47: 0 | AN47: 0 | AO47: 0 | AP47: 0 | AQ47: 0 | AR47: 0 | AS47: 0 | AT47: 0 | AU47: 0 | AV47: 0 | AW47: 0 | AX47: 0 | AY47: 0
A48: 2007 | C48: 0 | E48: 0 | F48: 0 | G48: 0 | H48: 0 | I48: 0 | J48: 0 | K48: 0 | L48: 0 | M48: 0 | N48: 0 | O48: 0 | P48: 0 | Q48: 0 | R48: 0 | S48: 0 | T48: 0 | U48: 0 | V48: 0 | W48: 0 | X48: 0 | Y48: 0 | Z48: 0 | AA48: 0 | AB48: 0 | AC48: 0 | AD48: 0 | AE48: 0 | AF48: 0 | AG48: 0 | AH48: 0 | AI48: 0 | AJ48: 0 | AK48: 0 | AL48: 0 | AM48: 0 | AN48: 0 | AO48: 0 | AP48: 0 | AQ48: 0 | AR48: 0 | AS48: 0 | AT48: 0 | AU48: 0 | AV48: 0 | AW48: 0 | AX48: 0 | AY48: 0
A49: 2008 | C49: 0 | E49: 0 | F49: 0 | G49: 0 | H49: 0 | I49: 0 | J49: 0 | K49: 0 | L49: 0 | M49: 0 | N49: 0 | O49: 0 | P49: 0 | Q49: 0 | R49: 0 | S49: 0 | T49: 0 | U49: 0 | V49: 0 | W49: 0 | X49: 0 | Y49: 0 | Z49: 0 | AA49: 0 | AB49: 0 | AC49: 0 | AD49: 0 | AE49: 0 | AF49: 0 | AG49: 0 | AH49: 0 | AI49: 0 | AJ49: 0 | AK49: 0 | AL49: 0 | AM49: 0 | AN49: 0 | AO49: 0 | AP49: 0 | AQ49: 0 | AR49: 0 | AS49: 0 | AT49: 0 | AU49: 0 | AV49: 0 | AW49: 0 | AX49: 0 | AY49: 0
A50: 2009 | C50: 0 | E50: 0 | F50: 0 | G50: 0 | H50: 0 | I50: 0 | J50: 0 | K50: 0 | L50: 0 | M50: 0 | N50: 0 | O50: 0 | P50: 0 | Q50: 0 | R50: 0 | S50: 0 | T50: 0 | U50: 0 | V50: 0 | W50: 0 | X50: 0 | Y50: =+$F23 -> 0 | Z50: 0 | AA50: 0 | AB50: 0 | AC50: 0 | AD50: 0 | AE50: 0 | AF50: 0 | AG50: 0 | AH50: 0 | AI50: 0 | AJ50: 0 | AK50: 0 | AL50: 0 | AM50: 0 | AN50: 0 | AO50: 0 | AP50: 0 | AQ50: 0 | AR50: 0 | AS50: 0 | AT50: 0 | AU50: 0 | AV50: 0 | AW50: 0 | AX50: 0 | AY50: 0
A51: 2010 | C51: 0 | E51: =+$F24 -> 0 | F51: 0 | G51: 0 | H51: 0 | I51: 0 | J51: 0 | K51: 0 | L51: 0 | M51: 0 | N51: 0 | O51: 0 | P51: 0 | Q51: 0 | R51: 0 | S51: 0 | T51: 0 | U51: 0 | V51: 0 | W51: 0 | X51: 0 | Y51: 0 | Z51: 0 | AA51: 0 | AB51: 0 | AC51: 0 | AD51: 0 | AE51: 0 | AF51: 0 | AG51: 0 | AH51: 0 | AI51: 0 | AJ51: 0 | AK51: 0 | AL51: 0 | AM51: 0 | AN51: 0 | AO51: 0 | AP51: 0 | AQ51: 0 | AR51: 0 | AS51: 0 | AT51: 0 | AU51: 0 | AV51: 0 | AW51: 0 | AX51: 0 | AY51: 0
A52: =A51+1 -> 2011 | C52: 0 | E52: 0 | F52: 0 | G52: 0 | H52: 0 | I52: 0 | J52: 0 | K52: 0 | L52: 0 | M52: 0 | N52: 0 | O52: 0 | P52: 0 | Q52: 0 | R52: 0 | S52: 0 | T52: 0 | U52: 0 | V52: 0 | W52: 0 | X52: 0 | Y52: 0 | Z52: 0 | AA52: 0 | AB52: 0 | AC52: 0 | AD52: 0 | AE52: 0 | AF52: 0 | AG52: 0 | AH52: 0 | AI52: 0 | AJ52: 0 | AK52: 0 | AL52: 0 | AM52: 0 | AN52: 0 | AO52: 0 | AP52: 0 | AQ52: 0 | AR52: 0 | AS52: 0 | AT52: 0 | AU52: 0 | AV52: 0 | AW52: 0 | AX52: 0 | AY52: 0
A53: 2012 | C53: 0 | E53: 0 | F53: 0 | G53: 0 | H53: 0 | I53: 0 | J53: 0 | K53: 0 | L53: 0 | M53: 0 | N53: 0 | O53: 0 | P53: 0 | Q53: 0 | R53: 0 | S53: 0 | T53: 0 | U53: 0 | V53: 0 | W53: 0 | X53: 0 | Y53: 0 | Z53: 0 | AA53: 0 | AB53: 0 | AC53: 0 | AD53: 0 | AE53: 0 | AF53: 0 | AG53: 0 | AH53: 0 | AI53: 0 | AJ53: 0 | AK53: 0 | AL53: 0 | AM53: 0 | AN53: 0 | AO53: 0 | AP53: 0 | AQ53: 0 | AR53: 0 | AS53: 0 | AT53: 0 | AU53: 0 | AV53: 0 | AW53: 0 | AX53: 0 | AY53: 0
A54: 2013 | C54: 0 | E54: 0 | F54: 0 | G54: 0 | H54: 0 | I54: 0 | J54: 0 | K54: 0 | L54: 0 | M54: 0 | N54: 0 | O54: 0 | P54: 0 | Q54: 0 | R54: 0 | S54: 0 | T54: 0 | U54: 0 | V54: 0 | W54: 0 | X54: 0 | Y54: 0 | Z54: 0 | AA54: 0 | AB54: 0 | AC54: 0 | AD54: 0 | AE54: 0 | AF54: 0 | AG54: 0 | AH54: 0 | AI54: 0 | AJ54: 0 | AK54: 0 | AL54: 0 | AM54: 0 | AN54: 0 | AO54: 0 | AP54: 0 | AQ54: 0 | AR54: 0 | AS54: 0 | AT54: 0 | AU54: 0 | AV54: 0 | AW54: 0 | AX54: 0 | AY54: 0
A55: 2014 | C55: 0 | E55: 0 | F55: 0 | G55: 0 | H55: 0 | I55: 0 | J55: 0 | K55: 0 | L55: 0 | M55: 0 | N55: 0 | O55: 0 | P55: 0 | Q55: 0 | R55: 0 | S55: 0 | T55: 0 | U55: 0 | V55: 0 | W55: 0 | X55: 0 | Y55: 0 | Z55: 0 | AA55: 0 | AB55: 0 | AC55: 0 | AD55: 0 | AE55: 0 | AF55: 0 | AG55: 0 | AH55: 0 | AI55: 0 | AJ55: 0 | AK55: 0 | AL55: 0 | AM55: 0 | AN55: 0 | AO55: 0 | AP55: 0 | AQ55: 0 | AR55: 0 | AS55: 0 | AT55: 0 | AU55: 0 | AV55: 0 | AW55: 0 | AX55: 0 | AY55: 0
A56: 2015 | C56: 0 | E56: 0 | F56: 0 | G56: 0 | H56: 0 | I56: 0 | J56: 0 | K56: 0 | L56: 0 | M56: 0 | N56: 0 | O56: 0 | P56: 0 | Q56: 0 | R56: 0 | S56: 0 | T56: 0 | U56: 0 | V56: 0 | W56: 0 | X56: 0 | Y56: =+$F29 -> 0 | Z56: 0 | AA56: 0 | AB56: 0 | AC56: 0 | AD56: 0 | AE56: 0 | AF56: 0 | AG56: 0 | AH56: 0 | AI56: 0 | AJ56: 0 | AK56: 0 | AL56: 0 | AM56: 0 | AN56: 0 | AO56: 0 | AP56: 0 | AQ56: 0 | AR56: 0 | AS56: 0 | AT56: 0 | AU56: 0 | AV56: 0 | AW56: 0 | AX56: 0 | AY56: 0
A57: 2016 | C57: 0 | E57: =+$F30 -> 0 | F57: 0 | G57: 0 | H57: 0 | I57: 0 | J57: 0 | K57: 0 | L57: 0 | M57: 0 | N57: 0 | O57: 0 | P57: 0 | Q57: 0 | R57: 0 | S57: 0 | T57: 0 | U57: 0 | V57: 0 | W57: 0 | X57: 0 | Y57: 0 | Z57: 0 | AA57: 0 | AB57: 0 | AC57: 0 | AD57: 0 | AE57: 0 | AF57: 0 | AG57: 0 | AH57: 0 | AI57: 0 | AJ57: 0 | AK57: 0 | AL57: 0 | AM57: 0 | AN57: 0 | AO57: 0 | AP57: 0 | AQ57: 0 | AR57: 0 | AS57: 0 | AT57: 0 | AU57: 0 | AV57: 0 | AW57: 0 | AX57: 0 | AY57: 0
A58: 2017 | C58: 8435.71 | E58: 0 | F58: 0 | G58: 0 | H58: 0 | I58: 0 | J58: 0 | K58: 0 | L58: 0 | M58: 0 | N58: 0 | O58: 0 | P58: 0 | Q58: 0 | R58: 0 | S58: 0 | T58: 0 | U58: 0 | V58: 0 | W58: 0 | X58: 0 | Y58: 0 | Z58: 0 | AA58: 0 | AB58: 0 | AC58: 0 | AD58: 0 | AE58: 0 | AF58: 0 | AG58: 0 | AH58: 0 | AI58: 0 | AJ58: 0 | AK58: 0 | AL58: 0 | AM58: 0 | AN58: 0 | AO58: 0 | AP58: 0 | AQ58: 0 | AR58: 0 | AS58: 0 | AT58: 0 | AU58: 0 | AV58: 0 | AW58: 0 | AX58: 0 | AY58: 0
B60: Total: | C60: =SUM(C38:C59) -> 8435.71 | D60: Book Depr. Expense | E60: =SUM(E38:E58) -> 0 | F60: 0 | G60: 0 | H60: 0 | I60: 0 | J60: 0 | K60: 0 | L60: 0 | M60: 0 | N60: 0 | O60: 0 | P60: 0 | Q60: 0 | R60: 0 | S60: 0 | T60: 0 | U60: 0 | V60: 0 | W60: 0 | X60: 0 | Y60: 0 | Z60: 0 | AA60: 0 | AB60: 0 | AC60: 0 | AD60: 0 | AE60: 0 | AF60: 0 | AG60: 0 | AH60: 0 | AI60: 0 | AJ60: 0 | AK60: 0 | AL60: 0 | AM60: 0 | AN60: 0 | AO60: 0 | AP60: 0 | AQ60: 0 | AR60: 0 | AS60: 0 | AT60: 0 | AU60: 0 | AV60: 0 | AW60: 0 | AX60: 0 | AY60: 0
C65: (Aquired Value - Accum Depr - Bonus)
A66: Vintage | C66: Tax NBV | E66: Tax Deprecation
A67: 1997 & Prior | C67: =SUMIFS(CY_Report!$W:$W,CY_Report!$J:$J,$A67,CY_Report!$E:$E,MID(CELL("filename",$A$1),FIND("]",CELL("filename",$A$1))+1,255),CY_Report!$U:$U,"<>*d*",CY_Report!$U:$U,"<>*t*",CY_Report!$N:$N,"<>"&" 00 00") -> 0 | D67: =C67-SUM(E67:AY67) -> 0 | E67: =SUMIFS(Forecast!D:D,Forecast!$C:$C,$A67,Forecast!$B:$B,MID(CELL("filename",$A$1),FIND("]",CELL("filename",$A$1))+1,255)) -> 0 | F67: =SUMIFS(Forecast!E:E,Forecast!$C:$C,$A67,Forecast!$B:$B,MID(CELL("filename",$A$1),FIND("]",CELL("filename",$A$1))+1,255)) -> 0 | G67: =SUMIFS(Forecast!F:F,Forecast!$C:$C,$A67,Forecast!$B:$B,MID(CELL("filename",$A$1),FIND("]",CELL("filename",$A$1))+1,255)) -> 0 | H67: =SUMIFS(Forecast!G:G,Forecast!$C:$C,$A67,Forecast!$B:$B,MID(CELL("filename",$A$1),FIND("]",CELL("filename",$A$1))+1,255)) -> 0 | I67: =SUMIFS(Forecast!H:H,Forecast!$C:$C,$A67,Forecast!$B:$B,MID(CELL("filename",$A$1),FIND("]",CELL("filename",$A$1))+1,255)) -> 0 | J67: =SUMIFS(Forecast!I:I,Forecast!$C:$C,$A67,Forecast!$B:$B,MID(CELL("filename",$A$1),FIND("]",CELL("filename",$A$1))+1,255)) -> 0 | K67: =SUMIFS(Forecast!J:J,Forecast!$C:$C,$A67,Forecast!$B:$B,MID(CELL("filename",$A$1),FIND("]",CELL("filename",$A$1))+1,255)) -> 0 | L67: =SUMIFS(Forecast!K:K,Forecast!$C:$C,$A67,Forecast!$B:$B,MID(CELL("filename",$A$1),FIND("]",CELL("filename",$A$1))+1,255)) -> 0 | M67: =SUMIFS(Forecast!L:L,Forecast!$C:$C,$A67,Forecast!$B:$B,MID(CELL("filename",$A$1),FIND("]",CELL("filename",$A$1))+1,255)) -> 0 | N67: =SUMIFS(Forecast!M:M,Forecast!$C:$C,$A67,Forecast!$B:$B,MID(CELL("filename",$A$1),FIND("]",CELL("filename",$A$1))+1,255)) -> 0 | O67: =SUMIFS(Forecast!N:N,Forecast!$C:$C,$A67,Forecast!$B:$B,MID(CELL("filename",$A$1),FIND("]",CELL("filename",$A$1))+1,255)) -> 0 | P67: =SUMIFS(Forecast!O:O,Forecast!$C:$C,$A67,Forecast!$B:$B,MID(CELL("filename",$A$1),FIND("]",CELL("filename",$A$1))+1,255)) -> 0 | Q67: =SUMIFS(Forecast!P:P,Forecast!$C:$C,$A67,Forecast!$B:$B,MID(CELL("filename",$A$1),FIND("]",CELL("filename",$A$1))+1,255)) -> 0 | R67: =SUMIFS(Forecast!Q:Q,Forecast!$C:$C,$A67,Forecast!$B:$B,MID(CELL("filename",$A$1),FIND("]",CELL("filename",$A$1))+1,255)) -> 0 | S67: =SUMIFS(Forecast!R:R,Forecast!$C:$C,$A67,Forecast!$B:$B,MID(CELL("filename",$A$1),FIND("]",CELL("filename",$A$1))+1,255)) -> 0 | T67: =SUMIFS(Forecast!S:S,Forecast!$C:$C,$A67,Forecast!$B:$B,MID(CELL("filename",$A$1),FIND("]",CELL("filename",$A$1))+1,255)) -> 0 | U67: =SUMIFS(Forecast!T:T,Forecast!$C:$C,$A67,Forecast!$B:$B,MID(CELL("filename",$A$1),FIND("]",CELL("filename",$A$1))+1,255)) -> 0 | V67: =SUMIFS(Forecast!U:U,Forecast!$C:$C,$A67,Forecast!$B:$B,MID(CELL("filename",$A$1),FIND("]",CELL("filename",$A$1))+1,255)) -> 0 | W67: =SUMIFS(Forecast!V:V,Forecast!$C:$C,$A67,Forecast!$B:$B,MID(CELL("filename",$A$1),FIND("]",CELL("filename",$A$1))+1,255)) -> 0 | X67: =SUMIFS(Forecast!W:W,Forecast!$C:$C,$A67,Forecast!$B:$B,MID(CELL("filename",$A$1),FIND("]",CELL("filename",$A$1))+1,255)) -> 0 | Y67: =SUMIFS(Forecast!X:X,Forecast!$C:$C,$A67,Forecast!$B:$B,MID(CELL("filename",$A$1),FIND("]",CELL("filename",$A$1))+1,255)) -> 0 | Z67: =SUMIFS(Forecast!Y:Y,Forecast!$C:$C,$A67,Forecast!$B:$B,MID(CELL("filename",$A$1),FIND("]",CELL("filename",$A$1))+1,255)) -> 0 | AA67: =SUMIFS(Forecast!Z:Z,Forecast!$C:$C,$A67,Forecast!$B:$B,MID(CELL("filename",$A$1),FIND("]",CELL("filename",$A$1))+1,255)) -> 0 | AB67: =SUMIFS(Forecast!AA:AA,Forecast!$C:$C,$A67,Forecast!$B:$B,MID(CELL("filename",$A$1),FIND("]",CELL("filename",$A$1))+1,255)) -> 0 | AC67: =SUMIFS(Forecast!AB:AB,Forecast!$C:$C,$A67,Forecast!$B:$B,MID(CELL("filename",$A$1),FIND("]",CELL("filename",$A$1))+1,255)) -> 0 | AD67: =SUMIFS(Forecast!AC:AC,Forecast!$C:$C,$A67,Forecast!$B:$B,MID(CELL("filename",$A$1),FIND("]",CELL("filename",$A$1))+1,255)) -> 0 | AE67: =SUMIFS(Forecast!AD:AD,Forecast!$C:$C,$A67,Forecast!$B:$B,MID(CELL("filename",$A$1),FIND("]",CELL("filename",$A$1))+1,255)) -> 0 | AF67: =SUMIFS(Forecast!AE:AE,Forecast!$C:$C,$A67,Forecast!$B:$B,MID(CELL("filename",$A$1),FIND("]",CELL("filename",$A$1))+1,255)) -> 0 | AG67: =SUMIFS(Forecast!AF:AF,Forecast!$C:$C,$A67,Forecast!$B:$B,MID(CELL("filename",$A$1),FIND("]",CELL("filename",$A$1))+1,255)) -> 0 | AH67: =SUMIFS(Forecast!AG:AG,Forecast!$C:$C,$A67,Forecast!$B:$B,MID(CELL("filename",$A$1),FIND("]",CELL("filename",$A$1))+1,255)) -> 0 | AI67: =SUMIFS(Forecast!AH:AH,Forecast!$C:$C,$A67,Forecast!$B:$B,MID(CELL("filename",$A$1),FIND("]",CELL("filename",$A$1))+1,255)) -> 0 | AJ67: =SUMIFS(Forecast!AI:AI,Forecast!$C:$C,$A67,Forecast!$B:$B,MID(CELL("filename",$A$1),FIND("]",CELL("filename",$A$1))+1,255)) -> 0 | AK67: =SUMIFS(Forecast!AJ:AJ,Forecast!$C:$C,$A67,Forecast!$B:$B,MID(CELL("filename",$A$1),FIND("]",CELL("filename",$A$1))+1,255)) -> 0 | AL67: =SUMIFS(Forecast!AK:AK,Forecast!$C:$C,$A67,Forecast!$B:$B,MID(CELL("filename",$A$1),FIND("]",CELL("filename",$A$1))+1,255)) -> 0 | AM67: =SUMIFS(Forecast!AL:AL,Forecast!$C:$C,$A67,Forecast!$B:$B,MID(CELL("filename",$A$1),FIND("]",CELL("filename",$A$1))+1,255)) -> 0 | AN67: =SUMIFS(Forecast!AM:AM,Forecast!$C:$C,$A67,Forecast!$B:$B,MID(CELL("filename",$A$1),FIND("]",CELL("filename",$A$1))+1,255)) -> 0 | AO67: =SUMIFS(Forecast!AN:AN,Forecast!$C:$C,$A67,Forecast!$B:$B,MID(CELL("filename",$A$1),FIND("]",CELL("filename",$A$1))+1,255)) -> 0 | AP67: =SUMIFS(Forecast!AO:AO,Forecast!$C:$C,$A67,Forecast!$B:$B,MID(CELL("filename",$A$1),FIND("]",CELL("filename",$A$1))+1,255)) -> 0 | AQ67: =SUMIFS(Forecast!AP:AP,Forecast!$C:$C,$A67,Forecast!$B:$B,MID(CELL("filename",$A$1),FIND("]",CELL("filename",$A$1))+1,255)) -> 0 | AR67: =SUMIFS(Forecast!AQ:AQ,Forecast!$C:$C,$A67,Forecast!$B:$B,MID(CELL("filename",$A$1),FIND("]",CELL("filename",$A$1))+1,255)) -> 0 | AS67: =SUMIFS(Forecast!AR:AR,Forecast!$C:$C,$A67,Forecast!$B:$B,MID(CELL("filename",$A$1),FIND("]",CELL("filename",$A$1))+1,255)) -> 0 | AT67: =SUMIFS(Forecast!AS:AS,Forecast!$C:$C,$A67,Forecast!$B:$B,MID(CELL("filename",$A$1),FIND("]",CELL("filename",$A$1))+1,255)) -> 0 | AU67: =SUMIFS(Forecast!AT:AT,Forecast!$C:$C,$A67,Forecast!$B:$B,MID(CELL("filename",$A$1),FIND("]",CELL("filename",$A$1))+1,255)) -> 0 | AV67: =SUMIFS(Forecast!AU:AU,Forecast!$C:$C,$A67,Forecast!$B:$B,MID(CELL("filename",$A$1),FIND("]",CELL("filename",$A$1))+1,255)) -> 0 | AW67: =SUMIFS(Forecast!AV:AV,Forecast!$C:$C,$A67,Forecast!$B:$B,MID(CELL("filename",$A$1),FIND("]",CELL("filename",$A$1))+1,255)) -> 0 | AX67: =SUMIFS(Forecast!AW:AW,Forecast!$C:$C,$A67,Forecast!$B:$B,MID(CELL("filename",$A$1),FIND("]",CELL("filename",$A$1))+1,255)) -> 0 | AY67: =SUMIFS(Forecast!AX:AX,Forecast!$C:$C,$A67,Forecast!$B:$B,MID(CELL("filename",$A$1),FIND("]",CELL("filename",$A$1))+1,255)) -> 0
A68: 1998 | C68: =SUMIFS(CY_Report!$W:$W,CY_Report!$J:$J,$A68,CY_Report!$E:$E,MID(CELL("filename",$A$1),FIND("]",CELL("filename",$A$1))+1,255),CY_Report!$U:$U,"<>*d*",CY_Report!$U:$U,"<>*t*",CY_Report!$N:$N,"<>"&" 00 00") -> 0 | D68: =C68-SUM(E68:AY68) -> 0 | E68: =SUMIFS(Forecast!D:D,Forecast!$C:$C,$A68,Forecast!$B:$B,MID(CELL("filename",$A$1),FIND("]",CELL("filename",$A$1))+1,255)) -> 0 | F68: =SUMIFS(Forecast!E:E,Forecast!$C:$C,$A68,Forecast!$B:$B,MID(CELL("filename",$A$1),FIND("]",CELL("filename",$A$1))+1,255)) -> 0 | G68: =SUMIFS(Forecast!F:F,Forecast!$C:$C,$A68,Forecast!$B:$B,MID(CELL("filename",$A$1),FIND("]",CELL("filename",$A$1))+1,255)) -> 0 | H68: =SUMIFS(Forecast!G:G,Forecast!$C:$C,$A68,Forecast!$B:$B,MID(CELL("filename",$A$1),FIND("]",CELL("filename",$A$1))+1,255)) -> 0 | I68: =SUMIFS(Forecast!H:H,Forecast!$C:$C,$A68,Forecast!$B:$B,MID(CELL("filename",$A$1),FIND("]",CELL("filename",$A$1))+1,255)) -> 0 | J68: =SUMIFS(Forecast!I:I,Forecast!$C:$C,$A68,Forecast!$B:$B,MID(CELL("filename",$A$1),FIND("]",CELL("filename",$A$1))+1,255)) -> 0 | K68: =SUMIFS(Forecast!J:J,Forecast!$C:$C,$A68,Forecast!$B:$B,MID(CELL("filename",$A$1),FIND("]",CELL("filename",$A$1))+1,255)) -> 0 | L68: =SUMIFS(Forecast!K:K,Forecast!$C:$C,$A68,Forecast!$B:$B,MID(CELL("filename",$A$1),FIND("]",CELL("filename",$A$1))+1,255)) -> 0 | M68: =SUMIFS(Forecast!L:L,Forecast!$C:$C,$A68,Forecast!$B:$B,MID(CELL("filename",$A$1),FIND("]",CELL("filename",$A$1))+1,255)) -> 0 | N68: =SUMIFS(Forecast!M:M,Forecast!$C:$C,$A68,Forecast!$B:$B,MID(CELL("filename",$A$1),FIND("]",CELL("filename",$A$1))+1,255)) -> 0 | O68: =SUMIFS(Forecast!N:N,Forecast!$C:$C,$A68,Forecast!$B:$B,MID(CELL("filename",$A$1),FIND("]",CELL("filename",$A$1))+1,255)) -> 0 | P68: =SUMIFS(Forecast!O:O,Forecast!$C:$C,$A68,Forecast!$B:$B,MID(CELL("filename",$A$1),FIND("]",CELL("filename",$A$1))+1,255)) -> 0 | Q68: =SUMIFS(Forecast!P:P,Forecast!$C:$C,$A68,Forecast!$B:$B,MID(CELL("filename",$A$1),FIND("]",CELL("filename",$A$1))+1,255)) -> 0 | R68: =SUMIFS(Forecast!Q:Q,Forecast!$C:$C,$A68,Forecast!$B:$B,MID(CELL("filename",$A$1),FIND("]",CELL("filename",$A$1))+1,255)) -> 0 | S68: =SUMIFS(Forecast!R:R,Forecast!$C:$C,$A68,Forecast!$B:$B,MID(CELL("filename",$A$1),FIND("]",CELL("filename",$A$1))+1,255)) -> 0 | T68: =SUMIFS(Forecast!S:S,Forecast!$C:$C,$A68,Forecast!$B:$B,MID(CELL("filename",$A$1),FIND("]",CELL("filename",$A$1))+1,255)) -> 0 | U68: =SUMIFS(Forecast!T:T,Forecast!$C:$C,$A68,Forecast!$B:$B,MID(CELL("filename",$A$1),FIND("]",CELL("filename",$A$1))+1,255)) -> 0 | V68: =SUMIFS(Forecast!U:U,Forecast!$C:$C,$A68,Forecast!$B:$B,MID(CELL("filename",$A$1),FIND("]",CELL("filename",$A$1))+1,255)) -> 0 | W68: =SUMIFS(Forecast!V:V,Forecast!$C:$C,$A68,Forecast!$B:$B,MID(CELL("filename",$A$1),FIND("]",CELL("filename",$A$1))+1,255)) -> 0 | X68: =SUMIFS(Forecast!W:W,Forecast!$C:$C,$A68,Forecast!$B:$B,MID(CELL("filename",$A$1),FIND("]",CELL("filename",$A$1))+1,255)) -> 0 | Y68: =SUMIFS(Forecast!X:X,Forecast!$C:$C,$A68,Forecast!$B:$B,MID(CELL("filename",$A$1),FIND("]",CELL("filename",$A$1))+1,255)) -> 0 | Z68: =SUMIFS(Forecast!Y:Y,Forecast!$C:$C,$A68,Forecast!$B:$B,MID(CELL("filename",$A$1),FIND("]",CELL("filename",$A$1))+1,255)) -> 0 | AA68: =SUMIFS(Forecast!Z:Z,Forecast!$C:$C,$A68,Forecast!$B:$B,MID(CELL("filename",$A$1),FIND("]",CELL("filename",$A$1))+1,255)) -> 0 | AB68: =SUMIFS(Forecast!AA:AA,Forecast!$C:$C,$A68,Forecast!$B:$B,MID(CELL("filename",$A$1),FIND("]",CELL("filename",$A$1))+1,255)) -> 0 | AC68: =SUMIFS(Forecast!AB:AB,Forecast!$C:$C,$A68,Forecast!$B:$B,MID(CELL("filename",$A$1),FIND("]",CELL("filename",$A$1))+1,255)) -> 0 | AD68: =SUMIFS(Forecast!AC:AC,Forecast!$C:$C,$A68,Forecast!$B:$B,MID(CELL("filename",$A$1),FIND("]",CELL("filename",$A$1))+1,255)) -> 0 | AE68: =SUMIFS(Forecast!AD:AD,Forecast!$C:$C,$A68,Forecast!$B:$B,MID(CELL("filename",$A$1),FIND("]",CELL("filename",$A$1))+1,255)) -> 0 | AF68: =SUMIFS(Forecast!AE:AE,Forecast!$C:$C,$A68,Forecast!$B:$B,MID(CELL("filename",$A$1),FIND("]",CELL("filename",$A$1))+1,255)) -> 0 | AG68: =SUMIFS(Forecast!AF:AF,Forecast!$C:$C,$A68,Forecast!$B:$B,MID(CELL("filename",$A$1),FIND("]",CELL("filename",$A$1))+1,255)) -> 0 | AH68: =SUMIFS(Forecast!AG:AG,Forecast!$C:$C,$A68,Forecast!$B:$B,MID(CELL("filename",$A$1),FIND("]",CELL("filename",$A$1))+1,255)) -> 0 | AI68: =SUMIFS(Forecast!AH:AH,Forecast!$C:$C,$A68,Forecast!$B:$B,MID(CELL("filename",$A$1),FIND("]",CELL("filename",$A$1))+1,255)) -> 0 | AJ68: =SUMIFS(Forecast!AI:AI,Forecast!$C:$C,$A68,Forecast!$B:$B,MID(CELL("filename",$A$1),FIND("]",CELL("filename",$A$1))+1,255)) -> 0 | AK68: =SUMIFS(Forecast!AJ:AJ,Forecast!$C:$C,$A68,Forecast!$B:$B,MID(CELL("filename",$A$1),FIND("]",CELL("filename",$A$1))+1,255)) -> 0 | AL68: =SUMIFS(Forecast!AK:AK,Forecast!$C:$C,$A68,Forecast!$B:$B,MID(CELL("filename",$A$1),FIND("]",CELL("filename",$A$1))+1,255)) -> 0 | AM68: =SUMIFS(Forecast!AL:AL,Forecast!$C:$C,$A68,Forecast!$B:$B,MID(CELL("filename",$A$1),FIND("]",CELL("filename",$A$1))+1,255)) -> 0 | AN68: =SUMIFS(Forecast!AM:AM,Forecast!$C:$C,$A68,Forecast!$B:$B,MID(CELL("filename",$A$1),FIND("]",CELL("filename",$A$1))+1,255)) -> 0 | AO68: =SUMIFS(Forecast!AN:AN,Forecast!$C:$C,$A68,Forecast!$B:$B,MID(CELL("filename",$A$1),FIND("]",CELL("filename",$A$1))+1,255)) -> 0 | AP68: =SUMIFS(Forecast!AO:AO,Forecast!$C:$C,$A68,Forecast!$B:$B,MID(CELL("filename",$A$1),FIND("]",CELL("filename",$A$1))+1,255)) -> 0 | AQ68: =SUMIFS(Forecast!AP:AP,Forecast!$C:$C,$A68,Forecast!$B:$B,MID(CELL("filename",$A$1),FIND("]",CELL("filename",$A$1))+1,255)) -> 0 | AR68: =SUMIFS(Forecast!AQ:AQ,Forecast!$C:$C,$A68,Forecast!$B:$B,MID(CELL("filename",$A$1),FIND("]",CELL("filename",$A$1))+1,255)) -> 0 | AS68: =SUMIFS(Forecast!AR:AR,Forecast!$C:$C,$A68,Forecast!$B:$B,MID(CELL("filename",$A$1),FIND("]",CELL("filename",$A$1))+1,255)) -> 0 | AT68: =SUMIFS(Forecast!AS:AS,Forecast!$C:$C,$A68,Forecast!$B:$B,MID(CELL("filename",$A$1),FIND("]",CELL("filename",$A$1))+1,255)) -> 0 | AU68: =SUMIFS(Forecast!AT:AT,Forecast!$C:$C,$A68,Forecast!$B:$B,MID(CELL("filename",$A$1),FIND("]",CELL("filename",$A$1))+1,255)) -> 0 | AV68: =SUMIFS(Forecast!AU:AU,Forecast!$C:$C,$A68,Forecast!$B:$B,MID(CELL("filename",$A$1),FIND("]",CELL("filename",$A$1))+1,255)) -> 0 | AW68: =SUMIFS(Forecast!AV:AV,Forecast!$C:$C,$A68,Forecast!$B:$B,MID(CELL("filename",$A$1),FIND("]",CELL("filename",$A$1))+1,255)) -> 0 | AX68: =SUMIFS(Forecast!AW:AW,Forecast!$C:$C,$A68,Forecast!$B:$B,MID(CELL("filename",$A$1),FIND("]",CELL("filename",$A$1))+1,255)) -> 0 | AY68: =SUMIFS(Forecast!AX:AX,Forecast!$C:$C,$A68,Forecast!$B:$B,MID(CELL("filename",$A$1),FIND("]",CELL("filename",$A$1))+1,255)) -> 0
A69: 1999 | C69: =SUMIFS(CY_Report!$W:$W,CY_Report!$J:$J,$A69,CY_Report!$E:$E,MID(CELL("filename",$A$1),FIND("]",CELL("filename",$A$1))+1,255),CY_Report!$U:$U,"<>*d*",CY_Report!$U:$U,"<>*t*",CY_Report!$N:$N,"<>"&" 00 00") -> 0 | D69: 0 | E69: =SUMIFS(Forecast!D:D,Forecast!$C:$C,$A69,Forecast!$B:$B,MID(CELL("filename",$A$1),FIND("]",CELL("filename",$A$1))+1,255)) -> 0 | F69: =SUMIFS(Forecast!E:E,Forecast!$C:$C,$A69,Forecast!$B:$B,MID(CELL("filename",$A$1),FIND("]",CELL("filename",$A$1))+1,255)) -> 0 | G69: =SUMIFS(Forecast!F:F,Forecast!$C:$C,$A69,Forecast!$B:$B,MID(CELL("filename",$A$1),FIND("]",CELL("filename",$A$1))+1,255)) -> 0 | H69: =SUMIFS(Forecast!G:G,Forecast!$C:$C,$A69,Forecast!$B:$B,MID(CELL("filename",$A$1),FIND("]",CELL("filename",$A$1))+1,255)) -> 0 | I69: =SUMIFS(Forecast!H:H,Forecast!$C:$C,$A69,Forecast!$B:$B,MID(CELL("filename",$A$1),FIND("]",CELL("filename",$A$1))+1,255)) -> 0 | J69: =SUMIFS(Forecast!I:I,Forecast!$C:$C,$A69,Forecast!$B:$B,MID(CELL("filename",$A$1),FIND("]",CELL("filename",$A$1))+1,255)) -> 0 | K69: =SUMIFS(Forecast!J:J,Forecast!$C:$C,$A69,Forecast!$B:$B,MID(CELL("filename",$A$1),FIND("]",CELL("filename",$A$1))+1,255)) -> 0 | L69: =SUMIFS(Forecast!K:K,Forecast!$C:$C,$A69,Forecast!$B:$B,MID(CELL("filename",$A$1),FIND("]",CELL("filename",$A$1))+1,255)) -> 0 | M69: =SUMIFS(Forecast!L:L,Forecast!$C:$C,$A69,Forecast!$B:$B,MID(CELL("filename",$A$1),FIND("]",CELL("filename",$A$1))+1,255)) -> 0 | N69: =SUMIFS(Forecast!M:M,Forecast!$C:$C,$A69,Forecast!$B:$B,MID(CELL("filename",$A$1),FIND("]",CELL("filename",$A$1))+1,255)) -> 0 | O69: =SUMIFS(Forecast!N:N,Forecast!$C:$C,$A69,Forecast!$B:$B,MID(CELL("filename",$A$1),FIND("]",CELL("filename",$A$1))+1,255)) -> 0 | P69: =SUMIFS(Forecast!O:O,Forecast!$C:$C,$A69,Forecast!$B:$B,MID(CELL("filename",$A$1),FIND("]",CELL("filename",$A$1))+1,255)) -> 0 | Q69: =SUMIFS(Forecast!P:P,Forecast!$C:$C,$A69,Forecast!$B:$B,MID(CELL("filename",$A$1),FIND("]",CELL("filename",$A$1))+1,255)) -> 0 | R69: =SUMIFS(Forecast!Q:Q,Forecast!$C:$C,$A69,Forecast!$B:$B,MID(CELL("filename",$A$1),FIND("]",CELL("filename",$A$1))+1,255)) -> 0 | S69: =SUMIFS(Forecast!R:R,Forecast!$C:$C,$A69,Forecast!$B:$B,MID(CELL("filename",$A$1),FIND("]",CELL("filename",$A$1))+1,255)) -> 0 | T69: =SUMIFS(Forecast!S:S,Forecast!$C:$C,$A69,Forecast!$B:$B,MID(CELL("filename",$A$1),FIND("]",CELL("filename",$A$1))+1,255)) -> 0 | U69: =SUMIFS(Forecast!T:T,Forecast!$C:$C,$A69,Forecast!$B:$B,MID(CELL("filename",$A$1),FIND("]",CELL("filename",$A$1))+1,255)) -> 0 | V69: =SUMIFS(Forecast!U:U,Forecast!$C:$C,$A69,Forecast!$B:$B,MID(CELL("filename",$A$1),FIND("]",CELL("filename",$A$1))+1,255)) -> 0 | W69: =SUMIFS(Forecast!V:V,Forecast!$C:$C,$A69,Forecast!$B:$B,MID(CELL("filename",$A$1),FIND("]",CELL("filename",$A$1))+1,255)) -> 0 | X69: =SUMIFS(Forecast!W:W,Forecast!$C:$C,$A69,Forecast!$B:$B,MID(CELL("filename",$A$1),FIND("]",CELL("filename",$A$1))+1,255)) -> 0 | Y69: =SUMIFS(Forecast!X:X,Forecast!$C:$C,$A69,Forecast!$B:$B,MID(CELL("filename",$A$1),FIND("]",CELL("filename",$A$1))+1,255)) -> 0 | Z69: =SUMIFS(Forecast!Y:Y,Forecast!$C:$C,$A69,Forecast!$B:$B,MID(CELL("filename",$A$1),FIND("]",CELL("filename",$A$1))+1,255)) -> 0 | AA69: =SUMIFS(Forecast!Z:Z,Forecast!$C:$C,$A69,Forecast!$B:$B,MID(CELL("filename",$A$1),FIND("]",CELL("filename",$A$1))+1,255)) -> 0 | AB69: =SUMIFS(Forecast!AA:AA,Forecast!$C:$C,$A69,Forecast!$B:$B,MID(CELL("filename",$A$1),FIND("]",CELL("filename",$A$1))+1,255)) -> 0 | AC69: =SUMIFS(Forecast!AB:AB,Forecast!$C:$C,$A69,Forecast!$B:$B,MID(CELL("filename",$A$1),FIND("]",CELL("filename",$A$1))+1,255)) -> 0 | AD69: =SUMIFS(Forecast!AC:AC,Forecast!$C:$C,$A69,Forecast!$B:$B,MID(CELL("filename",$A$1),FIND("]",CELL("filename",$A$1))+1,255)) -> 0 | AE69: =SUMIFS(Forecast!AD:AD,Forecast!$C:$C,$A69,Forecast!$B:$B,MID(CELL("filename",$A$1),FIND("]",CELL("filename",$A$1))+1,255)) -> 0 | AF69: =SUMIFS(Forecast!AE:AE,Forecast!$C:$C,$A69,Forecast!$B:$B,MID(CELL("filename",$A$1),FIND("]",CELL("filename",$A$1))+1,255)) -> 0 | AG69: =SUMIFS(Forecast!AF:AF,Forecast!$C:$C,$A69,Forecast!$B:$B,MID(CELL("filename",$A$1),FIND("]",CELL("filename",$A$1))+1,255)) -> 0 | AH69: =SUMIFS(Forecast!AG:AG,Forecast!$C:$C,$A69,Forecast!$B:$B,MID(CELL("filename",$A$1),FIND("]",CELL("filename",$A$1))+1,255)) -> 0 | AI69: =SUMIFS(Forecast!AH:AH,Forecast!$C:$C,$A69,Forecast!$B:$B,MID(CELL("filename",$A$1),FIND("]",CELL("filename",$A$1))+1,255)) -> 0 | AJ69: =SUMIFS(Forecast!AI:AI,Forecast!$C:$C,$A69,Forecast!$B:$B,MID(CELL("filename",$A$1),FIND("]",CELL("filename",$A$1))+1,255)) -> 0 | AK69: =SUMIFS(Forecast!AJ:AJ,Forecast!$C:$C,$A69,Forecast!$B:$B,MID(CELL("filename",$A$1),FIND("]",CELL("filename",$A$1))+1,255)) -> 0 | AL69: =SUMIFS(Forecast!AK:AK,Forecast!$C:$C,$A69,Forecast!$B:$B,MID(CELL("filename",$A$1),FIND("]",CELL("filename",$A$1))+1,255)) -> 0 | AM69: =SUMIFS(Forecast!AL:AL,Forecast!$C:$C,$A69,Forecast!$B:$B,MID(CELL("filename",$A$1),FIND("]",CELL("filename",$A$1))+1,255)) -> 0 | AN69: =SUMIFS(Forecast!AM:AM,Forecast!$C:$C,$A69,Forecast!$B:$B,MID(CELL("filename",$A$1),FIND("]",CELL("filename",$A$1))+1,255)) -> 0 | AO69: =SUMIFS(Forecast!AN:AN,Forecast!$C:$C,$A69,Forecast!$B:$B,MID(CELL("filename",$A$1),FIND("]",CELL("filename",$A$1))+1,255)) -> 0 | AP69: =SUMIFS(Forecast!AO:AO,Forecast!$C:$C,$A69,Forecast!$B:$B,MID(CELL("filename",$A$1),FIND("]",CELL("filename",$A$1))+1,255)) -> 0 | AQ69: =SUMIFS(Forecast!AP:AP,Forecast!$C:$C,$A69,Forecast!$B:$B,MID(CELL("filename",$A$1),FIND("]",CELL("filename",$A$1))+1,255)) -> 0 | AR69: =SUMIFS(Forecast!AQ:AQ,Forecast!$C:$C,$A69,Forecast!$B:$B,MID(CELL("filename",$A$1),FIND("]",CELL("filename",$A$1))+1,255)) -> 0 | AS69: =SUMIFS(Forecast!AR:AR,Forecast!$C:$C,$A69,Forecast!$B:$B,MID(CELL("filename",$A$1),FIND("]",CELL("filename",$A$1))+1,255)) -> 0 | AT69: =SUMIFS(Forecast!AS:AS,Forecast!$C:$C,$A69,Forecast!$B:$B,MID(CELL("filename",$A$1),FIND("]",CELL("filename",$A$1))+1,255)) -> 0 | AU69: =SUMIFS(Forecast!AT:AT,Forecast!$C:$C,$A69,Forecast!$B:$B,MID(CELL("filename",$A$1),FIND("]",CELL("filename",$A$1))+1,255)) -> 0 | AV69: =SUMIFS(Forecast!AU:AU,Forecast!$C:$C,$A69,Forecast!$B:$B,MID(CELL("filename",$A$1),FIND("]",CELL("filename",$A$1))+1,255)) -> 0 | AW69: =SUMIFS(Forecast!AV:AV,Forecast!$C:$C,$A69,Forecast!$B:$B,MID(CELL("filename",$A$1),FIND("]",CELL("filename",$A$1))+1,255)) -> 0 | AX69: =SUMIFS(Forecast!AW:AW,Forecast!$C:$C,$A69,Forecast!$B:$B,MID(CELL("filename",$A$1),FIND("]",CELL("filename",$A$1))+1,255)) -> 0 | AY69: =SUMIFS(Forecast!AX:AX,Forecast!$C:$C,$A69,Forecast!$B:$B,MID(CELL("filename",$A$1),FIND("]",CELL("filename",$A$1))+1,255)) -> 0
A70: =A69+1 -> 2000 | C70: =SUMIFS(CY_Report!$W:$W,CY_Report!$J:$J,$A70,CY_Report!$E:$E,MID(CELL("filename",$A$1),FIND("]",CELL("filename",$A$1))+1,255),CY_Report!$U:$U,"<>*d*",CY_Report!$U:$U,"<>*t*",CY_Report!$N:$N,"<>"&" 00 00") -> 0 | D70: 0 | E70: =SUMIFS(Forecast!D:D,Forecast!$C:$C,$A70,Forecast!$B:$B,MID(CELL("filename",$A$1),FIND("]",CELL("filename",$A$1))+1,255)) -> 0 | F70: =SUMIFS(Forecast!E:E,Forecast!$C:$C,$A70,Forecast!$B:$B,MID(CELL("filename",$A$1),FIND("]",CELL("filename",$A$1))+1,255)) -> 0 | G70: =SUMIFS(Forecast!F:F,Forecast!$C:$C,$A70,Forecast!$B:$B,MID(CELL("filename",$A$1),FIND("]",CELL("filename",$A$1))+1,255)) -> 0 | H70: =SUMIFS(Forecast!G:G,Forecast!$C:$C,$A70,Forecast!$B:$B,MID(CELL("filename",$A$1),FIND("]",CELL("filename",$A$1))+1,255)) -> 0 | I70: =SUMIFS(Forecast!H:H,Forecast!$C:$C,$A70,Forecast!$B:$B,MID(CELL("filename",$A$1),FIND("]",CELL("filename",$A$1))+1,255)) -> 0 | J70: =SUMIFS(Forecast!I:I,Forecast!$C:$C,$A70,Forecast!$B:$B,MID(CELL("filename",$A$1),FIND("]",CELL("filename",$A$1))+1,255)) -> 0 | K70: =SUMIFS(Forecast!J:J,Forecast!$C:$C,$A70,Forecast!$B:$B,MID(CELL("filename",$A$1),FIND("]",CELL("filename",$A$1))+1,255)) -> 0 | L70: =SUMIFS(Forecast!K:K,Forecast!$C:$C,$A70,Forecast!$B:$B,MID(CELL("filename",$A$1),FIND("]",CELL("filename",$A$1))+1,255)) -> 0 | M70: =SUMIFS(Forecast!L:L,Forecast!$C:$C,$A70,Forecast!$B:$B,MID(CELL("filename",$A$1),FIND("]",CELL("filename",$A$1))+1,255)) -> 0 | N70: =SUMIFS(Forecast!M:M,Forecast!$C:$C,$A70,Forecast!$B:$B,MID(CELL("filename",$A$1),FIND("]",CELL("filename",$A$1))+1,255)) -> 0 | O70: =SUMIFS(Forecast!N:N,Forecast!$C:$C,$A70,Forecast!$B:$B,MID(CELL("filename",$A$1),FIND("]",CELL("filename",$A$1))+1,255)) -> 0 | P70: =SUMIFS(Forecast!O:O,Forecast!$C:$C,$A70,Forecast!$B:$B,MID(CELL("filename",$A$1),FIND("]",CELL("filename",$A$1))+1,255)) -> 0 | Q70: =SUMIFS(Forecast!P:P,Forecast!$C:$C,$A70,Forecast!$B:$B,MID(CELL("filename",$A$1),FIND("]",CELL("filename",$A$1))+1,255)) -> 0 | R70: =SUMIFS(Forecast!Q:Q,Forecast!$C:$C,$A70,Forecast!$B:$B,MID(CELL("filename",$A$1),FIND("]",CELL("filename",$A$1))+1,255)) -> 0 | S70: =SUMIFS(Forecast!R:R,Forecast!$C:$C,$A70,Forecast!$B:$B,MID(CELL("filename",$A$1),FIND("]",CELL("filename",$A$1))+1,255)) -> 0 | T70: =SUMIFS(Forecast!S:S,Forecast!$C:$C,$A70,Forecast!$B:$B,MID(CELL("filename",$A$1),FIND("]",CELL("filename",$A$1))+1,255)) -> 0 | U70: =SUMIFS(Forecast!T:T,Forecast!$C:$C,$A70,Forecast!$B:$B,MID(CELL("filename",$A$1),FIND("]",CELL("filename",$A$1))+1,255)) -> 0 | V70: =SUMIFS(Forecast!U:U,Forecast!$C:$C,$A70,Forecast!$B:$B,MID(CELL("filename",$A$1),FIND("]",CELL("filename",$A$1))+1,255)) -> 0 | W70: =SUMIFS(Forecast!V:V,Forecast!$C:$C,$A70,Forecast!$B:$B,MID(CELL("filename",$A$1),FIND("]",CELL("filename",$A$1))+1,255)) -> 0 | X70: =SUMIFS(Forecast!W:W,Forecast!$C:$C,$A70,Forecast!$B:$B,MID(CELL("filename",$A$1),FIND("]",CELL("filename",$A$1))+1,255)) -> 0 | Y70: =SUMIFS(Forecast!X:X,Forecast!$C:$C,$A70,Forecast!$B:$B,MID(CELL("filename",$A$1),FIND("]",CELL("filename",$A$1))+1,255)) -> 0 | Z70: =SUMIFS(Forecast!Y:Y,Forecast!$C:$C,$A70,Forecast!$B:$B,MID(CELL("filename",$A$1),FIND("]",CELL("filename",$A$1))+1,255)) -> 0 | AA70: =SUMIFS(Forecast!Z:Z,Forecast!$C:$C,$A70,Forecast!$B:$B,MID(CELL("filename",$A$1),FIND("]",CELL("filename",$A$1))+1,255)) -> 0 | AB70: =SUMIFS(Forecast!AA:AA,Forecast!$C:$C,$A70,Forecast!$B:$B,MID(CELL("filename",$A$1),FIND("]",CELL("filename",$A$1))+1,255)) -> 0 | AC70: =SUMIFS(Forecast!AB:AB,Forecast!$C:$C,$A70,Forecast!$B:$B,MID(CELL("filename",$A$1),FIND("]",CELL("filename",$A$1))+1,255)) -> 0 | AD70: =SUMIFS(Forecast!AC:AC,Forecast!$C:$C,$A70,Forecast!$B:$B,MID(CELL("filename",$A$1),FIND("]",CELL("filename",$A$1))+1,255)) -> 0 | AE70: =SUMIFS(Forecast!AD:AD,Forecast!$C:$C,$A70,Forecast!$B:$B,MID(CELL("filename",$A$1),FIND("]",CELL("filename",$A$1))+1,255)) -> 0 | AF70: =SUMIFS(Forecast!AE:AE,Forecast!$C:$C,$A70,Forecast!$B:$B,MID(CELL("filename",$A$1),FIND("]",CELL("filename",$A$1))+1,255)) -> 0 | AG70: =SUMIFS(Forecast!AF:AF,Forecast!$C:$C,$A70,Forecast!$B:$B,MID(CELL("filename",$A$1),FIND("]",CELL("filename",$A$1))+1,255)) -> 0 | AH70: =SUMIFS(Forecast!AG:AG,Forecast!$C:$C,$A70,Forecast!$B:$B,MID(CELL("filename",$A$1),FIND("]",CELL("filename",$A$1))+1,255)) -> 0 | AI70: =SUMIFS(Forecast!AH:AH,Forecast!$C:$C,$A70,Forecast!$B:$B,MID(CELL("filename",$A$1),FIND("]",CELL("filename",$A$1))+1,255)) -> 0 | AJ70: =SUMIFS(Forecast!AI:AI,Forecast!$C:$C,$A70,Forecast!$B:$B,MID(CELL("filename",$A$1),FIND("]",CELL("filename",$A$1))+1,255)) -> 0 | AK70: =SUMIFS(Forecast!AJ:AJ,Forecast!$C:$C,$A70,Forecast!$B:$B,MID(CELL("filename",$A$1),FIND("]",CELL("filename",$A$1))+1,255)) -> 0 | AL70: =SUMIFS(Forecast!AK:AK,Forecast!$C:$C,$A70,Forecast!$B:$B,MID(CELL("filename",$A$1),FIND("]",CELL("filename",$A$1))+1,255)) -> 0 | AM70: =SUMIFS(Forecast!AL:AL,Forecast!$C:$C,$A70,Forecast!$B:$B,MID(CELL("filename",$A$1),FIND("]",CELL("filename",$A$1))+1,255)) -> 0 | AN70: =SUMIFS(Forecast!AM:AM,Forecast!$C:$C,$A70,Forecast!$B:$B,MID(CELL("filename",$A$1),FIND("]",CELL("filename",$A$1))+1,255)) -> 0 | AO70: =SUMIFS(Forecast!AN:AN,Forecast!$C:$C,$A70,Forecast!$B:$B,MID(CELL("filename",$A$1),FIND("]",CELL("filename",$A$1))+1,255)) -> 0 | AP70: =SUMIFS(Forecast!AO:AO,Forecast!$C:$C,$A70,Forecast!$B:$B,MID(CELL("filename",$A$1),FIND("]",CELL("filename",$A$1))+1,255)) -> 0 | AQ70: =SUMIFS(Forecast!AP:AP,Forecast!$C:$C,$A70,Forecast!$B:$B,MID(CELL("filename",$A$1),FIND("]",CELL("filename",$A$1))+1,255)) -> 0 | AR70: =SUMIFS(Forecast!AQ:AQ,Forecast!$C:$C,$A70,Forecast!$B:$B,MID(CELL("filename",$A$1),FIND("]",CELL("filename",$A$1))+1,255)) -> 0 | AS70: =SUMIFS(Forecast!AR:AR,Forecast!$C:$C,$A70,Forecast!$B:$B,MID(CELL("filename",$A$1),FIND("]",CELL("filename",$A$1))+1,255)) -> 0 | AT70: =SUMIFS(Forecast!AS:AS,Forecast!$C:$C,$A70,Forecast!$B:$B,MID(CELL("filename",$A$1),FIND("]",CELL("filename",$A$1))+1,255)) -> 0 | AU70: =SUMIFS(Forecast!AT:AT,Forecast!$C:$C,$A70,Forecast!$B:$B,MID(CELL("filename",$A$1),FIND("]",CELL("filename",$A$1))+1,255)) -> 0 | AV70: =SUMIFS(Forecast!AU:AU,Forecast!$C:$C,$A70,Forecast!$B:$B,MID(CELL("filename",$A$1),FIND("]",CELL("filename",$A$1))+1,255)) -> 0 | AW70: =SUMIFS(Forecast!AV:AV,Forecast!$C:$C,$A70,Forecast!$B:$B,MID(CELL("filename",$A$1),FIND("]",CELL("filename",$A$1))+1,255)) -> 0 | AX70: =SUMIFS(Forecast!AW:AW,Forecast!$C:$C,$A70,Forecast!$B:$B,MID(CELL("filename",$A$1),FIND("]",CELL("filename",$A$1))+1,255)) -> 0 | AY70: =SUMIFS(Forecast!AX:AX,Forecast!$C:$C,$A70,Forecast!$B:$B,MID(CELL("filename",$A$1),FIND("]",CELL("filename",$A$1))+1,255)) -> 0
A71: =A70+1 -> 2001 | C71: =SUMIFS(CY_Report!$W:$W,CY_Report!$J:$J,$A71,CY_Report!$E:$E,MID(CELL("filename",$A$1),FIND("]",CELL("filename",$A$1))+1,255),CY_Report!$U:$U,"<>*d*",CY_Report!$U:$U,"<>*t*",CY_Report!$N:$N,"<>"&" 00 00") -> 0 | D71: 0 | E71: =SUMIFS(Forecast!D:D,Forecast!$C:$C,$A71,Forecast!$B:$B,MID(CELL("filename",$A$1),FIND("]",CELL("filename",$A$1))+1,255)) -> 0 | F71: =SUMIFS(Forecast!E:E,Forecast!$C:$C,$A71,Forecast!$B:$B,MID(CELL("filename",$A$1),FIND("]",CELL("filename",$A$1))+1,255)) -> 0 | G71: =SUMIFS(Forecast!F:F,Forecast!$C:$C,$A71,Forecast!$B:$B,MID(CELL("filename",$A$1),FIND("]",CELL("filename",$A$1))+1,255)) -> 0 | H71: =SUMIFS(Forecast!G:G,Forecast!$C:$C,$A71,Forecast!$B:$B,MID(CELL("filename",$A$1),FIND("]",CELL("filename",$A$1))+1,255)) -> 0 | I71: =SUMIFS(Forecast!H:H,Forecast!$C:$C,$A71,Forecast!$B:$B,MID(CELL("filename",$A$1),FIND("]",CELL("filename",$A$1))+1,255)) -> 0 | J71: =SUMIFS(Forecast!I:I,Forecast!$C:$C,$A71,Forecast!$B:$B,MID(CELL("filename",$A$1),FIND("]",CELL("filename",$A$1))+1,255)) -> 0 | K71: =SUMIFS(Forecast!J:J,Forecast!$C:$C,$A71,Forecast!$B:$B,MID(CELL("filename",$A$1),FIND("]",CELL("filename",$A$1))+1,255)) -> 0 | L71: =SUMIFS(Forecast!K:K,Forecast!$C:$C,$A71,Forecast!$B:$B,MID(CELL("filename",$A$1),FIND("]",CELL("filename",$A$1))+1,255)) -> 0 | M71: =SUMIFS(Forecast!L:L,Forecast!$C:$C,$A71,Forecast!$B:$B,MID(CELL("filename",$A$1),FIND("]",CELL("filename",$A$1))+1,255)) -> 0 | N71: =SUMIFS(Forecast!M:M,Forecast!$C:$C,$A71,Forecast!$B:$B,MID(CELL("filename",$A$1),FIND("]",CELL("filename",$A$1))+1,255)) -> 0 | O71: =SUMIFS(Forecast!N:N,Forecast!$C:$C,$A71,Forecast!$B:$B,MID(CELL("filename",$A$1),FIND("]",CELL("filename",$A$1))+1,255)) -> 0 | P71: =SUMIFS(Forecast!O:O,Forecast!$C:$C,$A71,Forecast!$B:$B,MID(CELL("filename",$A$1),FIND("]",CELL("filename",$A$1))+1,255)) -> 0 | Q71: =SUMIFS(Forecast!P:P,Forecast!$C:$C,$A71,Forecast!$B:$B,MID(CELL("filename",$A$1),FIND("]",CELL("filename",$A$1))+1,255)) -> 0 | R71: =SUMIFS(Forecast!Q:Q,Forecast!$C:$C,$A71,Forecast!$B:$B,MID(CELL("filename",$A$1),FIND("]",CELL("filename",$A$1))+1,255)) -> 0 | S71: =SUMIFS(Forecast!R:R,Forecast!$C:$C,$A71,Forecast!$B:$B,MID(CELL("filename",$A$1),FIND("]",CELL("filename",$A$1))+1,255)) -> 0 | T71: =SUMIFS(Forecast!S:S,Forecast!$C:$C,$A71,Forecast!$B:$B,MID(CELL("filename",$A$1),FIND("]",CELL("filename",$A$1))+1,255)) -> 0 | U71: =SUMIFS(Forecast!T:T,Forecast!$C:$C,$A71,Forecast!$B:$B,MID(CELL("filename",$A$1),FIND("]",CELL("filename",$A$1))+1,255)) -> 0 | V71: =SUMIFS(Forecast!U:U,Forecast!$C:$C,$A71,Forecast!$B:$B,MID(CELL("filename",$A$1),FIND("]",CELL("filename",$A$1))+1,255)) -> 0 | W71: =SUMIFS(Forecast!V:V,Forecast!$C:$C,$A71,Forecast!$B:$B,MID(CELL("filename",$A$1),FIND("]",CELL("filename",$A$1))+1,255)) -> 0 | X71: =SUMIFS(Forecast!W:W,Forecast!$C:$C,$A71,Forecast!$B:$B,MID(CELL("filename",$A$1),FIND("]",CELL("filename",$A$1))+1,255)) -> 0 | Y71: =SUMIFS(Forecast!X:X,Forecast!$C:$C,$A71,Forecast!$B:$B,MID(CELL("filename",$A$1),FIND("]",CELL("filename",$A$1))+1,255)) -> 0 | Z71: =SUMIFS(Forecast!Y:Y,Forecast!$C:$C,$A71,Forecast!$B:$B,MID(CELL("filename",$A$1),FIND("]",CELL("filename",$A$1))+1,255)) -> 0 | AA71: =SUMIFS(Forecast!Z:Z,Forecast!$C:$C,$A71,Forecast!$B:$B,MID(CELL("filename",$A$1),FIND("]",CELL("filename",$A$1))+1,255)) -> 0 | AB71: =SUMIFS(Forecast!AA:AA,Forecast!$C:$C,$A71,Forecast!$B:$B,MID(CELL("filename",$A$1),FIND("]",CELL("filename",$A$1))+1,255)) -> 0 | AC71: =SUMIFS(Forecast!AB:AB,Forecast!$C:$C,$A71,Forecast!$B:$B,MID(CELL("filename",$A$1),FIND("]",CELL("filename",$A$1))+1,255)) -> 0 | AD71: =SUMIFS(Forecast!AC:AC,Forecast!$C:$C,$A71,Forecast!$B:$B,MID(CELL("filename",$A$1),FIND("]",CELL("filename",$A$1))+1,255)) -> 0 | AE71: =SUMIFS(Forecast!AD:AD,Forecast!$C:$C,$A71,Forecast!$B:$B,MID(CELL("filename",$A$1),FIND("]",CELL("filename",$A$1))+1,255)) -> 0 | AF71: =SUMIFS(Forecast!AE:AE,Forecast!$C:$C,$A71,Forecast!$B:$B,MID(CELL("filename",$A$1),FIND("]",CELL("filename",$A$1))+1,255)) -> 0 | AG71: =SUMIFS(Forecast!AF:AF,Forecast!$C:$C,$A71,Forecast!$B:$B,MID(CELL("filename",$A$1),FIND("]",CELL("filename",$A$1))+1,255)) -> 0 | AH71: =SUMIFS(Forecast!AG:AG,Forecast!$C:$C,$A71,Forecast!$B:$B,MID(CELL("filename",$A$1),FIND("]",CELL("filename",$A$1))+1,255)) -> 0 | AI71: =SUMIFS(Forecast!AH:AH,Forecast!$C:$C,$A71,Forecast!$B:$B,MID(CELL("filename",$A$1),FIND("]",CELL("filename",$A$1))+1,255)) -> 0 | AJ71: =SUMIFS(Forecast!AI:AI,Forecast!$C:$C,$A71,Forecast!$B:$B,MID(CELL("filename",$A$1),FIND("]",CELL("filename",$A$1))+1,255)) -> 0 | AK71: =SUMIFS(Forecast!AJ:AJ,Forecast!$C:$C,$A71,Forecast!$B:$B,MID(CELL("filename",$A$1),FIND("]",CELL("filename",$A$1))+1,255)) -> 0 | AL71: =SUMIFS(Forecast!AK:AK,Forecast!$C:$C,$A71,Forecast!$B:$B,MID(CELL("filename",$A$1),FIND("]",CELL("filename",$A$1))+1,255)) -> 0 | AM71: =SUMIFS(Forecast!AL:AL,Forecast!$C:$C,$A71,Forecast!$B:$B,MID(CELL("filename",$A$1),FIND("]",CELL("filename",$A$1))+1,255)) -> 0 | AN71: =SUMIFS(Forecast!AM:AM,Forecast!$C:$C,$A71,Forecast!$B:$B,MID(CELL("filename",$A$1),FIND("]",CELL("filename",$A$1))+1,255)) -> 0 | AO71: =SUMIFS(Forecast!AN:AN,Forecast!$C:$C,$A71,Forecast!$B:$B,MID(CELL("filename",$A$1),FIND("]",CELL("filename",$A$1))+1,255)) -> 0 | AP71: =SUMIFS(Forecast!AO:AO,Forecast!$C:$C,$A71,Forecast!$B:$B,MID(CELL("filename",$A$1),FIND("]",CELL("filename",$A$1))+1,255)) -> 0 | AQ71: =SUMIFS(Forecast!AP:AP,Forecast!$C:$C,$A71,Forecast!$B:$B,MID(CELL("filename",$A$1),FIND("]",CELL("filename",$A$1))+1,255)) -> 0 | AR71: =SUMIFS(Forecast!AQ:AQ,Forecast!$C:$C,$A71,Forecast!$B:$B,MID(CELL("filename",$A$1),FIND("]",CELL("filename",$A$1))+1,255)) -> 0 | AS71: =SUMIFS(Forecast!AR:AR,Forecast!$C:$C,$A71,Forecast!$B:$B,MID(CELL("filename",$A$1),FIND("]",CELL("filename",$A$1))+1,255)) -> 0 | AT71: =SUMIFS(Forecast!AS:AS,Forecast!$C:$C,$A71,Forecast!$B:$B,MID(CELL("filename",$A$1),FIND("]",CELL("filename",$A$1))+1,255)) -> 0 | AU71: =SUMIFS(Forecast!AT:AT,Forecast!$C:$C,$A71,Forecast!$B:$B,MID(CELL("filename",$A$1),FIND("]",CELL("filename",$A$1))+1,255)) -> 0 | AV71: =SUMIFS(Forecast!AU:AU,Forecast!$C:$C,$A71,Forecast!$B:$B,MID(CELL("filename",$A$1),FIND("]",CELL("filename",$A$1))+1,255)) -> 0 | AW71: =SUMIFS(Forecast!AV:AV,Forecast!$C:$C,$A71,Forecast!$B:$B,MID(CELL("filename",$A$1),FIND("]",CELL("filename",$A$1))+1,255)) -> 0 | AX71: =SUMIFS(Forecast!AW:AW,Forecast!$C:$C,$A71,Forecast!$B:$B,MID(CELL("filename",$A$1),FIND("]",CELL("filename",$A$1))+1,255)) -> 0 | AY71: =SUMIFS(Forecast!AX:AX,Forecast!$C:$C,$A71,Forecast!$B:$B,MID(CELL("filename",$A$1),FIND("]",CELL("filename",$A$1))+1,255)) -> 0
A72: 2002 | C72: =SUMIFS(CY_Report!$W:$W,CY_Report!$J:$J,$A72,CY_Report!$E:$E,MID(CELL("filename",$A$1),FIND("]",CELL("filename",$A$1))+1,255),CY_Report!$U:$U,"<>*d*",CY_Report!$U:$U,"<>*t*",CY_Report!$N:$N,"<>"&" 00 00") -> 0 | D72: 0 | E72: =SUMIFS(Forecast!D:D,Forecast!$C:$C,$A72,Forecast!$B:$B,MID(CELL("filename",$A$1),FIND("]",CELL("filename",$A$1))+1,255)) -> 0 | F72: =SUMIFS(Forecast!E:E,Forecast!$C:$C,$A72,Forecast!$B:$B,MID(CELL("filename",$A$1),FIND("]",CELL("filename",$A$1))+1,255)) -> 0 | G72: =SUMIFS(Forecast!F:F,Forecast!$C:$C,$A72,Forecast!$B:$B,MID(CELL("filename",$A$1),FIND("]",CELL("filename",$A$1))+1,255)) -> 0 | H72: =SUMIFS(Forecast!G:G,Forecast!$C:$C,$A72,Forecast!$B:$B,MID(CELL("filename",$A$1),FIND("]",CELL("filename",$A$1))+1,255)) -> 0 | I72: =SUMIFS(Forecast!H:H,Forecast!$C:$C,$A72,Forecast!$B:$B,MID(CELL("filename",$A$1),FIND("]",CELL("filename",$A$1))+1,255)) -> 0 | J72: =SUMIFS(Forecast!I:I,Forecast!$C:$C,$A72,Forecast!$B:$B,MID(CELL("filename",$A$1),FIND("]",CELL("filename",$A$1))+1,255)) -> 0 | K72: =SUMIFS(Forecast!J:J,Forecast!$C:$C,$A72,Forecast!$B:$B,MID(CELL("filename",$A$1),FIND("]",CELL("filename",$A$1))+1,255)) -> 0 | L72: =SUMIFS(Forecast!K:K,Forecast!$C:$C,$A72,Forecast!$B:$B,MID(CELL("filename",$A$1),FIND("]",CELL("filename",$A$1))+1,255)) -> 0 | M72: =SUMIFS(Forecast!L:L,Forecast!$C:$C,$A72,Forecast!$B:$B,MID(CELL("filename",$A$1),FIND("]",CELL("filename",$A$1))+1,255)) -> 0 | N72: =SUMIFS(Forecast!M:M,Forecast!$C:$C,$A72,Forecast!$B:$B,MID(CELL("filename",$A$1),FIND("]",CELL("filename",$A$1))+1,255)) -> 0 | O72: =SUMIFS(Forecast!N:N,Forecast!$C:$C,$A72,Forecast!$B:$B,MID(CELL("filename",$A$1),FIND("]",CELL("filename",$A$1))+1,255)) -> 0 | P72: =SUMIFS(Forecast!O:O,Forecast!$C:$C,$A72,Forecast!$B:$B,MID(CELL("filename",$A$1),FIND("]",CELL("filename",$A$1))+1,255)) -> 0 | Q72: =SUMIFS(Forecast!P:P,Forecast!$C:$C,$A72,Forecast!$B:$B,MID(CELL("filename",$A$1),FIND("]",CELL("filename",$A$1))+1,255)) -> 0 | R72: =SUMIFS(Forecast!Q:Q,Forecast!$C:$C,$A72,Forecast!$B:$B,MID(CELL("filename",$A$1),FIND("]",CELL("filename",$A$1))+1,255)) -> 0 | S72: =SUMIFS(Forecast!R:R,Forecast!$C:$C,$A72,Forecast!$B:$B,MID(CELL("filename",$A$1),FIND("]",CELL("filename",$A$1))+1,255)) -> 0 | T72: =SUMIFS(Forecast!S:S,Forecast!$C:$C,$A72,Forecast!$B:$B,MID(CELL("filename",$A$1),FIND("]",CELL("filename",$A$1))+1,255)) -> 0 | U72: =SUMIFS(Forecast!T:T,Forecast!$C:$C,$A72,Forecast!$B:$B,MID(CELL("filename",$A$1),FIND("]",CELL("filename",$A$1))+1,255)) -> 0 | V72: =SUMIFS(Forecast!U:U,Forecast!$C:$C,$A72,Forecast!$B:$B,MID(CELL("filename",$A$1),FIND("]",CELL("filename",$A$1))+1,255)) -> 0 | W72: =SUMIFS(Forecast!V:V,Forecast!$C:$C,$A72,Forecast!$B:$B,MID(CELL("filename",$A$1),FIND("]",CELL("filename",$A$1))+1,255)) -> 0 | X72: =SUMIFS(Forecast!W:W,Forecast!$C:$C,$A72,Forecast!$B:$B,MID(CELL("filename",$A$1),FIND("]",CELL("filename",$A$1))+1,255)) -> 0 | Y72: =SUMIFS(Forecast!X:X,Forecast!$C:$C,$A72,Forecast!$B:$B,MID(CELL("filename",$A$1),FIND("]",CELL("filename",$A$1))+1,255)) -> 0 | Z72: =SUMIFS(Forecast!Y:Y,Forecast!$C:$C,$A72,Forecast!$B:$B,MID(CELL("filename",$A$1),FIND("]",CELL("filename",$A$1))+1,255)) -> 0 | AA72: =SUMIFS(Forecast!Z:Z,Forecast!$C:$C,$A72,Forecast!$B:$B,MID(CELL("filename",$A$1),FIND("]",CELL("filename",$A$1))+1,255)) -> 0 | AB72: =SUMIFS(Forecast!AA:AA,Forecast!$C:$C,$A72,Forecast!$B:$B,MID(CELL("filename",$A$1),FIND("]",CELL("filename",$A$1))+1,255)) -> 0 | AC72: =SUMIFS(Forecast!AB:AB,Forecast!$C:$C,$A72,Forecast!$B:$B,MID(CELL("filename",$A$1),FIND("]",CELL("filename",$A$1))+1,255)) -> 0 | AD72: =SUMIFS(Forecast!AC:AC,Forecast!$C:$C,$A72,Forecast!$B:$B,MID(CELL("filename",$A$1),FIND("]",CELL("filename",$A$1))+1,255)) -> 0 | AE72: =SUMIFS(Forecast!AD:AD,Forecast!$C:$C,$A72,Forecast!$B:$B,MID(CELL("filename",$A$1),FIND("]",CELL("filename",$A$1))+1,255)) -> 0 | AF72: =SUMIFS(Forecast!AE:AE,Forecast!$C:$C,$A72,Forecast!$B:$B,MID(CELL("filename",$A$1),FIND("]",CELL("filename",$A$1))+1,255)) -> 0 | AG72: =SUMIFS(Forecast!AF:AF,Forecast!$C:$C,$A72,Forecast!$B:$B,MID(CELL("filename",$A$1),FIND("]",CELL("filename",$A$1))+1,255)) -> 0 | AH72: =SUMIFS(Forecast!AG:AG,Forecast!$C:$C,$A72,Forecast!$B:$B,MID(CELL("filename",$A$1),FIND("]",CELL("filename",$A$1))+1,255)) -> 0 | AI72: =SUMIFS(Forecast!AH:AH,Forecast!$C:$C,$A72,Forecast!$B:$B,MID(CELL("filename",$A$1),FIND("]",CELL("filename",$A$1))+1,255)) -> 0 | AJ72: =SUMIFS(Forecast!AI:AI,Forecast!$C:$C,$A72,Forecast!$B:$B,MID(CELL("filename",$A$1),FIND("]",CELL("filename",$A$1))+1,255)) -> 0 | AK72: =SUMIFS(Forecast!AJ:AJ,Forecast!$C:$C,$A72,Forecast!$B:$B,MID(CELL("filename",$A$1),FIND("]",CELL("filename",$A$1))+1,255)) -> 0 | AL72: =SUMIFS(Forecast!AK:AK,Forecast!$C:$C,$A72,Forecast!$B:$B,MID(CELL("filename",$A$1),FIND("]",CELL("filename",$A$1))+1,255)) -> 0 | AM72: =SUMIFS(Forecast!AL:AL,Forecast!$C:$C,$A72,Forecast!$B:$B,MID(CELL("filename",$A$1),FIND("]",CELL("filename",$A$1))+1,255)) -> 0 | AN72: =SUMIFS(Forecast!AM:AM,Forecast!$C:$C,$A72,Forecast!$B:$B,MID(CELL("filename",$A$1),FIND("]",CELL("filename",$A$1))+1,255)) -> 0 | AO72: =SUMIFS(Forecast!AN:AN,Forecast!$C:$C,$A72,Forecast!$B:$B,MID(CELL("filename",$A$1),FIND("]",CELL("filename",$A$1))+1,255)) -> 0 | AP72: =SUMIFS(Forecast!AO:AO,Forecast!$C:$C,$A72,Forecast!$B:$B,MID(CELL("filename",$A$1),FIND("]",CELL("filename",$A$1))+1,255)) -> 0 | AQ72: =SUMIFS(Forecast!AP:AP,Forecast!$C:$C,$A72,Forecast!$B:$B,MID(CELL("filename",$A$1),FIND("]",CELL("filename",$A$1))+1,255)) -> 0 | AR72: =SUMIFS(Forecast!AQ:AQ,Forecast!$C:$C,$A72,Forecast!$B:$B,MID(CELL("filename",$A$1),FIND("]",CELL("filename",$A$1))+1,255)) -> 0 | AS72: =SUMIFS(Forecast!AR:AR,Forecast!$C:$C,$A72,Forecast!$B:$B,MID(CELL("filename",$A$1),FIND("]",CELL("filename",$A$1))+1,255)) -> 0 | AT72: =SUMIFS(Forecast!AS:AS,Forecast!$C:$C,$A72,Forecast!$B:$B,MID(CELL("filename",$A$1),FIND("]",CELL("filename",$A$1))+1,255)) -> 0 | AU72: =SUMIFS(Forecast!AT:AT,Forecast!$C:$C,$A72,Forecast!$B:$B,MID(CELL("filename",$A$1),FIND("]",CELL("filename",$A$1))+1,255)) -> 0 | AV72: =SUMIFS(Forecast!AU:AU,Forecast!$C:$C,$A72,Forecast!$B:$B,MID(CELL("filename",$A$1),FIND("]",CELL("filename",$A$1))+1,255)) -> 0 | AW72: =SUMIFS(Forecast!AV:AV,Forecast!$C:$C,$A72,Forecast!$B:$B,MID(CELL("filename",$A$1),FIND("]",CELL("filename",$A$1))+1,255)) -> 0 | AX72: =SUMIFS(Forecast!AW:AW,Forecast!$C:$C,$A72,Forecast!$B:$B,MID(CELL("filename",$A$1),FIND("]",CELL("filename",$A$1))+1,255)) -> 0 | AY72: =SUMIFS(Forecast!AX:AX,Forecast!$C:$C,$A72,Forecast!$B:$B,MID(CELL("filename",$A$1),FIND("]",CELL("filename",$A$1))+1,255)) -> 0
A73: 2003 | C73: =SUMIFS(CY_Report!$W:$W,CY_Report!$J:$J,$A73,CY_Report!$E:$E,MID(CELL("filename",$A$1),FIND("]",CELL("filename",$A$1))+1,255),CY_Report!$U:$U,"<>*d*",CY_Report!$U:$U,"<>*t*",CY_Report!$N:$N,"<>"&" 00 00") -> 0 | D73: 0 | E73: =SUMIFS(Forecast!D:D,Forecast!$C:$C,$A73,Forecast!$B:$B,MID(CELL("filename",$A$1),FIND("]",CELL("filename",$A$1))+1,255)) -> 0 | F73: =SUMIFS(Forecast!E:E,Forecast!$C:$C,$A73,Forecast!$B:$B,MID(CELL("filename",$A$1),FIND("]",CELL("filename",$A$1))+1,255)) -> 0 | G73: =SUMIFS(Forecast!F:F,Forecast!$C:$C,$A73,Forecast!$B:$B,MID(CELL("filename",$A$1),FIND("]",CELL("filename",$A$1))+1,255)) -> 0 | H73: =SUMIFS(Forecast!G:G,Forecast!$C:$C,$A73,Forecast!$B:$B,MID(CELL("filename",$A$1),FIND("]",CELL("filename",$A$1))+1,255)) -> 0 | I73: =SUMIFS(Forecast!H:H,Forecast!$C:$C,$A73,Forecast!$B:$B,MID(CELL("filename",$A$1),FIND("]",CELL("filename",$A$1))+1,255)) -> 0 | J73: =SUMIFS(Forecast!I:I,Forecast!$C:$C,$A73,Forecast!$B:$B,MID(CELL("filename",$A$1),FIND("]",CELL("filename",$A$1))+1,255)) -> 0 | K73: =SUMIFS(Forecast!J:J,Forecast!$C:$C,$A73,Forecast!$B:$B,MID(CELL("filename",$A$1),FIND("]",CELL("filename",$A$1))+1,255)) -> 0 | L73: =SUMIFS(Forecast!K:K,Forecast!$C:$C,$A73,Forecast!$B:$B,MID(CELL("filename",$A$1),FIND("]",CELL("filename",$A$1))+1,255)) -> 0 | M73: =SUMIFS(Forecast!L:L,Forecast!$C:$C,$A73,Forecast!$B:$B,MID(CELL("filename",$A$1),FIND("]",CELL("filename",$A$1))+1,255)) -> 0 | N73: =SUMIFS(Forecast!M:M,Forecast!$C:$C,$A73,Forecast!$B:$B,MID(CELL("filename",$A$1),FIND("]",CELL("filename",$A$1))+1,255)) -> 0 | O73: =SUMIFS(Forecast!N:N,Forecast!$C:$C,$A73,Forecast!$B:$B,MID(CELL("filename",$A$1),FIND("]",CELL("filename",$A$1))+1,255)) -> 0 | P73: =SUMIFS(Forecast!O:O,Forecast!$C:$C,$A73,Forecast!$B:$B,MID(CELL("filename",$A$1),FIND("]",CELL("filename",$A$1))+1,255)) -> 0 | Q73: =SUMIFS(Forecast!P:P,Forecast!$C:$C,$A73,Forecast!$B:$B,MID(CELL("filename",$A$1),FIND("]",CELL("filename",$A$1))+1,255)) -> 0 | R73: =SUMIFS(Forecast!Q:Q,Forecast!$C:$C,$A73,Forecast!$B:$B,MID(CELL("filename",$A$1),FIND("]",CELL("filename",$A$1))+1,255)) -> 0 | S73: =SUMIFS(Forecast!R:R,Forecast!$C:$C,$A73,Forecast!$B:$B,MID(CELL("filename",$A$1),FIND("]",CELL("filename",$A$1))+1,255)) -> 0 | T73: =SUMIFS(Forecast!S:S,Forecast!$C:$C,$A73,Forecast!$B:$B,MID(CELL("filename",$A$1),FIND("]",CELL("filename",$A$1))+1,255)) -> 0 | U73: =SUMIFS(Forecast!T:T,Forecast!$C:$C,$A73,Forecast!$B:$B,MID(CELL("filename",$A$1),FIND("]",CELL("filename",$A$1))+1,255)) -> 0 | V73: =SUMIFS(Forecast!U:U,Forecast!$C:$C,$A73,Forecast!$B:$B,MID(CELL("filename",$A$1),FIND("]",CELL("filename",$A$1))+1,255)) -> 0 | W73: =SUMIFS(Forecast!V:V,Forecast!$C:$C,$A73,Forecast!$B:$B,MID(CELL("filename",$A$1),FIND("]",CELL("filename",$A$1))+1,255)) -> 0 | X73: =SUMIFS(Forecast!W:W,Forecast!$C:$C,$A73,Forecast!$B:$B,MID(CELL("filename",$A$1),FIND("]",CELL("filename",$A$1))+1,255)) -> 0 | Y73: =SUMIFS(Forecast!X:X,Forecast!$C:$C,$A73,Forecast!$B:$B,MID(CELL("filename",$A$1),FIND("]",CELL("filename",$A$1))+1,255)) -> 0 | Z73: =SUMIFS(Forecast!Y:Y,Forecast!$C:$C,$A73,Forecast!$B:$B,MID(CELL("filename",$A$1),FIND("]",CELL("filename",$A$1))+1,255)) -> 0 | AA73: =SUMIFS(Forecast!Z:Z,Forecast!$C:$C,$A73,Forecast!$B:$B,MID(CELL("filename",$A$1),FIND("]",CELL("filename",$A$1))+1,255)) -> 0 | AB73: =SUMIFS(Forecast!AA:AA,Forecast!$C:$C,$A73,Forecast!$B:$B,MID(CELL("filename",$A$1),FIND("]",CELL("filename",$A$1))+1,255)) -> 0 | AC73: =SUMIFS(Forecast!AB:AB,Forecast!$C:$C,$A73,Forecast!$B:$B,MID(CELL("filename",$A$1),FIND("]",CELL("filename",$A$1))+1,255)) -> 0 | AD73: =SUMIFS(Forecast!AC:AC,Forecast!$C:$C,$A73,Forecast!$B:$B,MID(CELL("filename",$A$1),FIND("]",CELL("filename",$A$1))+1,255)) -> 0 | AE73: =SUMIFS(Forecast!AD:AD,Forecast!$C:$C,$A73,Forecast!$B:$B,MID(CELL("filename",$A$1),FIND("]",CELL("filename",$A$1))+1,255)) -> 0 | AF73: =SUMIFS(Forecast!AE:AE,Forecast!$C:$C,$A73,Forecast!$B:$B,MID(CELL("filename",$A$1),FIND("]",CELL("filename",$A$1))+1,255)) -> 0 | AG73: =SUMIFS(Forecast!AF:AF,Forecast!$C:$C,$A73,Forecast!$B:$B,MID(CELL("filename",$A$1),FIND("]",CELL("filename",$A$1))+1,255)) -> 0 | AH73: =SUMIFS(Forecast!AG:AG,Forecast!$C:$C,$A73,Forecast!$B:$B,MID(CELL("filename",$A$1),FIND("]",CELL("filename",$A$1))+1,255)) -> 0 | AI73: =SUMIFS(Forecast!AH:AH,Forecast!$C:$C,$A73,Forecast!$B:$B,MID(CELL("filename",$A$1),FIND("]",CELL("filename",$A$1))+1,255)) -> 0 | AJ73: =SUMIFS(Forecast!AI:AI,Forecast!$C:$C,$A73,Forecast!$B:$B,MID(CELL("filename",$A$1),FIND("]",CELL("filename",$A$1))+1,255)) -> 0 | AK73: =SUMIFS(Forecast!AJ:AJ,Forecast!$C:$C,$A73,Forecast!$B:$B,MID(CELL("filename",$A$1),FIND("]",CELL("filename",$A$1))+1,255)) -> 0 | AL73: =SUMIFS(Forecast!AK:AK,Forecast!$C:$C,$A73,Forecast!$B:$B,MID(CELL("filename",$A$1),FIND("]",CELL("filename",$A$1))+1,255)) -> 0 | AM73: =SUMIFS(Forecast!AL:AL,Forecast!$C:$C,$A73,Forecast!$B:$B,MID(CELL("filename",$A$1),FIND("]",CELL("filename",$A$1))+1,255)) -> 0 | AN73: =SUMIFS(Forecast!AM:AM,Forecast!$C:$C,$A73,Forecast!$B:$B,MID(CELL("filename",$A$1),FIND("]",CELL("filename",$A$1))+1,255)) -> 0 | AO73: =SUMIFS(Forecast!AN:AN,Forecast!$C:$C,$A73,Forecast!$B:$B,MID(CELL("filename",$A$1),FIND("]",CELL("filename",$A$1))+1,255)) -> 0 | AP73: =SUMIFS(Forecast!AO:AO,Forecast!$C:$C,$A73,Forecast!$B:$B,MID(CELL("filename",$A$1),FIND("]",CELL("filename",$A$1))+1,255)) -> 0 | AQ73: =SUMIFS(Forecast!AP:AP,Forecast!$C:$C,$A73,Forecast!$B:$B,MID(CELL("filename",$A$1),FIND("]",CELL("filename",$A$1))+1,255)) -> 0 | AR73: =SUMIFS(Forecast!AQ:AQ,Forecast!$C:$C,$A73,Forecast!$B:$B,MID(CELL("filename",$A$1),FIND("]",CELL("filename",$A$1))+1,255)) -> 0 | AS73: =SUMIFS(Forecast!AR:AR,Forecast!$C:$C,$A73,Forecast!$B:$B,MID(CELL("filename",$A$1),FIND("]",CELL("filename",$A$1))+1,255)) -> 0 | AT73: =SUMIFS(Forecast!AS:AS,Forecast!$C:$C,$A73,Forecast!$B:$B,MID(CELL("filename",$A$1),FIND("]",CELL("filename",$A$1))+1,255)) -> 0 | AU73: =SUMIFS(Forecast!AT:AT,Forecast!$C:$C,$A73,Forecast!$B:$B,MID(CELL("filename",$A$1),FIND("]",CELL("filename",$A$1))+1,255)) -> 0 | AV73: =SUMIFS(Forecast!AU:AU,Forecast!$C:$C,$A73,Forecast!$B:$B,MID(CELL("filename",$A$1),FIND("]",CELL("filename",$A$1))+1,255)) -> 0 | AW73: =SUMIFS(Forecast!AV:AV,Forecast!$C:$C,$A73,Forecast!$B:$B,MID(CELL("filename",$A$1),FIND("]",CELL("filename",$A$1))+1,255)) -> 0 | AX73: =SUMIFS(Forecast!AW:AW,Forecast!$C:$C,$A73,Forecast!$B:$B,MID(CELL("filename",$A$1),FIND("]",CELL("filename",$A$1))+1,255)) -> 0 | AY73: =SUMIFS(Forecast!AX:AX,Forecast!$C:$C,$A73,Forecast!$B:$B,MID(CELL("filename",$A$1),FIND("]",CELL("filename",$A$1))+1,255)) -> 0
A74: 2004 | C74: =SUMIFS(CY_Report!$W:$W,CY_Report!$J:$J,$A74,CY_Report!$E:$E,MID(CELL("filename",$A$1),FIND("]",CELL("filename",$A$1))+1,255),CY_Report!$U:$U,"<>*d*",CY_Report!$U:$U,"<>*t*",CY_Report!$N:$N,"<>"&" 00 00") -> 0 | D74: 0 | E74: =SUMIFS(Forecast!D:D,Forecast!$C:$C,$A74,Forecast!$B:$B,MID(CELL("filename",$A$1),FIND("]",CELL("filename",$A$1))+1,255)) -> 0 | F74: =SUMIFS(Forecast!E:E,Forecast!$C:$C,$A74,Forecast!$B:$B,MID(CELL("filename",$A$1),FIND("]",CELL("filename",$A$1))+1,255)) -> 0 | G74: =SUMIFS(Forecast!F:F,Forecast!$C:$C,$A74,Forecast!$B:$B,MID(CELL("filename",$A$1),FIND("]",CELL("filename",$A$1))+1,255)) -> 0 | H74: =SUMIFS(Forecast!G:G,Forecast!$C:$C,$A74,Forecast!$B:$B,MID(CELL("filename",$A$1),FIND("]",CELL("filename",$A$1))+1,255)) -> 0 | I74: =SUMIFS(Forecast!H:H,Forecast!$C:$C,$A74,Forecast!$B:$B,MID(CELL("filename",$A$1),FIND("]",CELL("filename",$A$1))+1,255)) -> 0 | J74: =SUMIFS(Forecast!I:I,Forecast!$C:$C,$A74,Forecast!$B:$B,MID(CELL("filename",$A$1),FIND("]",CELL("filename",$A$1))+1,255)) -> 0 | K74: =SUMIFS(Forecast!J:J,Forecast!$C:$C,$A74,Forecast!$B:$B,MID(CELL("filename",$A$1),FIND("]",CELL("filename",$A$1))+1,255)) -> 0 | L74: =SUMIFS(Forecast!K:K,Forecast!$C:$C,$A74,Forecast!$B:$B,MID(CELL("filename",$A$1),FIND("]",CELL("filename",$A$1))+1,255)) -> 0 | M74: =SUMIFS(Forecast!L:L,Forecast!$C:$C,$A74,Forecast!$B:$B,MID(CELL("filename",$A$1),FIND("]",CELL("filename",$A$1))+1,255)) -> 0 | N74: =SUMIFS(Forecast!M:M,Forecast!$C:$C,$A74,Forecast!$B:$B,MID(CELL("filename",$A$1),FIND("]",CELL("filename",$A$1))+1,255)) -> 0 | O74: =SUMIFS(Forecast!N:N,Forecast!$C:$C,$A74,Forecast!$B:$B,MID(CELL("filename",$A$1),FIND("]",CELL("filename",$A$1))+1,255)) -> 0 | P74: =SUMIFS(Forecast!O:O,Forecast!$C:$C,$A74,Forecast!$B:$B,MID(CELL("filename",$A$1),FIND("]",CELL("filename",$A$1))+1,255)) -> 0 | Q74: =SUMIFS(Forecast!P:P,Forecast!$C:$C,$A74,Forecast!$B:$B,MID(CELL("filename",$A$1),FIND("]",CELL("filename",$A$1))+1,255)) -> 0 | R74: =SUMIFS(Forecast!Q:Q,Forecast!$C:$C,$A74,Forecast!$B:$B,MID(CELL("filename",$A$1),FIND("]",CELL("filename",$A$1))+1,255)) -> 0 | S74: =SUMIFS(Forecast!R:R,Forecast!$C:$C,$A74,Forecast!$B:$B,MID(CELL("filename",$A$1),FIND("]",CELL("filename",$A$1))+1,255)) -> 0 | T74: =SUMIFS(Forecast!S:S,Forecast!$C:$C,$A74,Forecast!$B:$B,MID(CELL("filename",$A$1),FIND("]",CELL("filename",$A$1))+1,255)) -> 0 | U74: =SUMIFS(Forecast!T:T,Forecast!$C:$C,$A74,Forecast!$B:$B,MID(CELL("filename",$A$1),FIND("]",CELL("filename",$A$1))+1,255)) -> 0 | V74: =SUMIFS(Forecast!U:U,Forecast!$C:$C,$A74,Forecast!$B:$B,MID(CELL("filename",$A$1),FIND("]",CELL("filename",$A$1))+1,255)) -> 0 | W74: =SUMIFS(Forecast!V:V,Forecast!$C:$C,$A74,Forecast!$B:$B,MID(CELL("filename",$A$1),FIND("]",CELL("filename",$A$1))+1,255)) -> 0 | X74: =SUMIFS(Forecast!W:W,Forecast!$C:$C,$A74,Forecast!$B:$B,MID(CELL("filename",$A$1),FIND("]",CELL("filename",$A$1))+1,255)) -> 0 | Y74: =SUMIFS(Forecast!X:X,Forecast!$C:$C,$A74,Forecast!$B:$B,MID(CELL("filename",$A$1),FIND("]",CELL("filename",$A$1))+1,255)) -> 0 | Z74: =SUMIFS(Forecast!Y:Y,Forecast!$C:$C,$A74,Forecast!$B:$B,MID(CELL("filename",$A$1),FIND("]",CELL("filename",$A$1))+1,255)) -> 0 | AA74: =SUMIFS(Forecast!Z:Z,Forecast!$C:$C,$A74,Forecast!$B:$B,MID(CELL("filename",$A$1),FIND("]",CELL("filename",$A$1))+1,255)) -> 0 | AB74: =SUMIFS(Forecast!AA:AA,Forecast!$C:$C,$A74,Forecast!$B:$B,MID(CELL("filename",$A$1),FIND("]",CELL("filename",$A$1))+1,255)) -> 0 | AC74: =SUMIFS(Forecast!AB:AB,Forecast!$C:$C,$A74,Forecast!$B:$B,MID(CELL("filename",$A$1),FIND("]",CELL("filename",$A$1))+1,255)) -> 0 | AD74: =SUMIFS(Forecast!AC:AC,Forecast!$C:$C,$A74,Forecast!$B:$B,MID(CELL("filename",$A$1),FIND("]",CELL("filename",$A$1))+1,255)) -> 0 | AE74: =SUMIFS(Forecast!AD:AD,Forecast!$C:$C,$A74,Forecast!$B:$B,MID(CELL("filename",$A$1),FIND("]",CELL("filename",$A$1))+1,255)) -> 0 | AF74: =SUMIFS(Forecast!AE:AE,Forecast!$C:$C,$A74,Forecast!$B:$B,MID(CELL("filename",$A$1),FIND("]",CELL("filename",$A$1))+1,255)) -> 0 | AG74: =SUMIFS(Forecast!AF:AF,Forecast!$C:$C,$A74,Forecast!$B:$B,MID(CELL("filename",$A$1),FIND("]",CELL("filename",$A$1))+1,255)) -> 0 | AH74: =SUMIFS(Forecast!AG:AG,Forecast!$C:$C,$A74,Forecast!$B:$B,MID(CELL("filename",$A$1),FIND("]",CELL("filename",$A$1))+1,255)) -> 0 | AI74: =SUMIFS(Forecast!AH:AH,Forecast!$C:$C,$A74,Forecast!$B:$B,MID(CELL("filename",$A$1),FIND("]",CELL("filename",$A$1))+1,255)) -> 0 | AJ74: =SUMIFS(Forecast!AI:AI,Forecast!$C:$C,$A74,Forecast!$B:$B,MID(CELL("filename",$A$1),FIND("]",CELL("filename",$A$1))+1,255)) -> 0 | AK74: =SUMIFS(Forecast!AJ:AJ,Forecast!$C:$C,$A74,Forecast!$B:$B,MID(CELL("filename",$A$1),FIND("]",CELL("filename",$A$1))+1,255)) -> 0 | AL74: =SUMIFS(Forecast!AK:AK,Forecast!$C:$C,$A74,Forecast!$B:$B,MID(CELL("filename",$A$1),FIND("]",CELL("filename",$A$1))+1,255)) -> 0 | AM74: =SUMIFS(Forecast!AL:AL,Forecast!$C:$C,$A74,Forecast!$B:$B,MID(CELL("filename",$A$1),FIND("]",CELL("filename",$A$1))+1,255)) -> 0 | AN74: =SUMIFS(Forecast!AM:AM,Forecast!$C:$C,$A74,Forecast!$B:$B,MID(CELL("filename",$A$1),FIND("]",CELL("filename",$A$1))+1,255)) -> 0 | AO74: =SUMIFS(Forecast!AN:AN,Forecast!$C:$C,$A74,Forecast!$B:$B,MID(CELL("filename",$A$1),FIND("]",CELL("filename",$A$1))+1,255)) -> 0 | AP74: =SUMIFS(Forecast!AO:AO,Forecast!$C:$C,$A74,Forecast!$B:$B,MID(CELL("filename",$A$1),FIND("]",CELL("filename",$A$1))+1,255)) -> 0 | AQ74: =SUMIFS(Forecast!AP:AP,Forecast!$C:$C,$A74,Forecast!$B:$B,MID(CELL("filename",$A$1),FIND("]",CELL("filename",$A$1))+1,255)) -> 0 | AR74: =SUMIFS(Forecast!AQ:AQ,Forecast!$C:$C,$A74,Forecast!$B:$B,MID(CELL("filename",$A$1),FIND("]",CELL("filename",$A$1))+1,255)) -> 0 | AS74: =SUMIFS(Forecast!AR:AR,Forecast!$C:$C,$A74,Forecast!$B:$B,MID(CELL("filename",$A$1),FIND("]",CELL("filename",$A$1))+1,255)) -> 0 | AT74: =SUMIFS(Forecast!AS:AS,Forecast!$C:$C,$A74,Forecast!$B:$B,MID(CELL("filename",$A$1),FIND("]",CELL("filename",$A$1))+1,255)) -> 0 | AU74: =SUMIFS(Forecast!AT:AT,Forecast!$C:$C,$A74,Forecast!$B:$B,MID(CELL("filename",$A$1),FIND("]",CELL("filename",$A$1))+1,255)) -> 0 | AV74: =SUMIFS(Forecast!AU:AU,Forecast!$C:$C,$A74,Forecast!$B:$B,MID(CELL("filename",$A$1),FIND("]",CELL("filename",$A$1))+1,255)) -> 0 | AW74: =SUMIFS(Forecast!AV:AV,Forecast!$C:$C,$A74,Forecast!$B:$B,MID(CELL("filename",$A$1),FIND("]",CELL("filename",$A$1))+1,255)) -> 0 | AX74: =SUMIFS(Forecast!AW:AW,Forecast!$C:$C,$A74,Forecast!$B:$B,MID(CELL("filename",$A$1),FIND("]",CELL("filename",$A$1))+1,255)) -> 0 | AY74: =SUMIFS(Forecast!AX:AX,Forecast!$C:$C,$A74,Forecast!$B:$B,MID(CELL("filename",$A$1),FIND("]",CELL("filename",$A$1))+1,255)) -> 0
A75: 2005 | C75: =SUMIFS(CY_Report!$W:$W,CY_Report!$J:$J,$A75,CY_Report!$E:$E,MID(CELL("filename",$A$1),FIND("]",CELL("filename",$A$1))+1,255),CY_Report!$U:$U,"<>*d*",CY_Report!$U:$U,"<>*t*",CY_Report!$N:$N,"<>"&" 00 00") -> 0 | D75: 0 | E75: =SUMIFS(Forecast!D:D,Forecast!$C:$C,$A75,Forecast!$B:$B,MID(CELL("filename",$A$1),FIND("]",CELL("filename",$A$1))+1,255)) -> 0 | F75: =SUMIFS(Forecast!E:E,Forecast!$C:$C,$A75,Forecast!$B:$B,MID(CELL("filename",$A$1),FIND("]",CELL("filename",$A$1))+1,255)) -> 0 | G75: =SUMIFS(Forecast!F:F,Forecast!$C:$C,$A75,Forecast!$B:$B,MID(CELL("filename",$A$1),FIND("]",CELL("filename",$A$1))+1,255)) -> 0 | H75: =SUMIFS(Forecast!G:G,Forecast!$C:$C,$A75,Forecast!$B:$B,MID(CELL("filename",$A$1),FIND("]",CELL("filename",$A$1))+1,255)) -> 0 | I75: =SUMIFS(Forecast!H:H,Forecast!$C:$C,$A75,Forecast!$B:$B,MID(CELL("filename",$A$1),FIND("]",CELL("filename",$A$1))+1,255)) -> 0 | J75: =SUMIFS(Forecast!I:I,Forecast!$C:$C,$A75,Forecast!$B:$B,MID(CELL("filename",$A$1),FIND("]",CELL("filename",$A$1))+1,255)) -> 0 | K75: =SUMIFS(Forecast!J:J,Forecast!$C:$C,$A75,Forecast!$B:$B,MID(CELL("filename",$A$1),FIND("]",CELL("filename",$A$1))+1,255)) -> 0 | L75: =SUMIFS(Forecast!K:K,Forecast!$C:$C,$A75,Forecast!$B:$B,MID(CELL("filename",$A$1),FIND("]",CELL("filename",$A$1))+1,255)) -> 0 | M75: =SUMIFS(Forecast!L:L,Forecast!$C:$C,$A75,Forecast!$B:$B,MID(CELL("filename",$A$1),FIND("]",CELL("filename",$A$1))+1,255)) -> 0 | N75: =SUMIFS(Forecast!M:M,Forecast!$C:$C,$A75,Forecast!$B:$B,MID(CELL("filename",$A$1),FIND("]",CELL("filename",$A$1))+1,255)) -> 0 | O75: =SUMIFS(Forecast!N:N,Forecast!$C:$C,$A75,Forecast!$B:$B,MID(CELL("filename",$A$1),FIND("]",CELL("filename",$A$1))+1,255)) -> 0 | P75: =SUMIFS(Forecast!O:O,Forecast!$C:$C,$A75,Forecast!$B:$B,MID(CELL("filename",$A$1),FIND("]",CELL("filename",$A$1))+1,255)) -> 0 | Q75: =SUMIFS(Forecast!P:P,Forecast!$C:$C,$A75,Forecast!$B:$B,MID(CELL("filename",$A$1),FIND("]",CELL("filename",$A$1))+1,255)) -> 0 | R75: =SUMIFS(Forecast!Q:Q,Forecast!$C:$C,$A75,Forecast!$B:$B,MID(CELL("filename",$A$1),FIND("]",CELL("filename",$A$1))+1,255)) -> 0 | S75: =SUMIFS(Forecast!R:R,Forecast!$C:$C,$A75,Forecast!$B:$B,MID(CELL("filename",$A$1),FIND("]",CELL("filename",$A$1))+1,255)) -> 0 | T75: =SUMIFS(Forecast!S:S,Forecast!$C:$C,$A75,Forecast!$B:$B,MID(CELL("filename",$A$1),FIND("]",CELL("filename",$A$1))+1,255)) -> 0 | U75: =SUMIFS(Forecast!T:T,Forecast!$C:$C,$A75,Forecast!$B:$B,MID(CELL("filename",$A$1),FIND("]",CELL("filename",$A$1))+1,255)) -> 0 | V75: =SUMIFS(Forecast!U:U,Forecast!$C:$C,$A75,Forecast!$B:$B,MID(CELL("filename",$A$1),FIND("]",CELL("filename",$A$1))+1,255)) -> 0 | W75: =SUMIFS(Forecast!V:V,Forecast!$C:$C,$A75,Forecast!$B:$B,MID(CELL("filename",$A$1),FIND("]",CELL("filename",$A$1))+1,255)) -> 0 | X75: =SUMIFS(Forecast!W:W,Forecast!$C:$C,$A75,Forecast!$B:$B,MID(CELL("filename",$A$1),FIND("]",CELL("filename",$A$1))+1,255)) -> 0 | Y75: =SUMIFS(Forecast!X:X,Forecast!$C:$C,$A75,Forecast!$B:$B,MID(CELL("filename",$A$1),FIND("]",CELL("filename",$A$1))+1,255)) -> 0 | Z75: =SUMIFS(Forecast!Y:Y,Forecast!$C:$C,$A75,Forecast!$B:$B,MID(CELL("filename",$A$1),FIND("]",CELL("filename",$A$1))+1,255)) -> 0 | AA75: =SUMIFS(Forecast!Z:Z,Forecast!$C:$C,$A75,Forecast!$B:$B,MID(CELL("filename",$A$1),FIND("]",CELL("filename",$A$1))+1,255)) -> 0 | AB75: =SUMIFS(Forecast!AA:AA,Forecast!$C:$C,$A75,Forecast!$B:$B,MID(CELL("filename",$A$1),FIND("]",CELL("filename",$A$1))+1,255)) -> 0 | AC75: =SUMIFS(Forecast!AB:AB,Forecast!$C:$C,$A75,Forecast!$B:$B,MID(CELL("filename",$A$1),FIND("]",CELL("filename",$A$1))+1,255)) -> 0 | AD75: =SUMIFS(Forecast!AC:AC,Forecast!$C:$C,$A75,Forecast!$B:$B,MID(CELL("filename",$A$1),FIND("]",CELL("filename",$A$1))+1,255)) -> 0 | AE75: =SUMIFS(Forecast!AD:AD,Forecast!$C:$C,$A75,Forecast!$B:$B,MID(CELL("filename",$A$1),FIND("]",CELL("filename",$A$1))+1,255)) -> 0 | AF75: =SUMIFS(Forecast!AE:AE,Forecast!$C:$C,$A75,Forecast!$B:$B,MID(CELL("filename",$A$1),FIND("]",CELL("filename",$A$1))+1,255)) -> 0 | AG75: =SUMIFS(Forecast!AF:AF,Forecast!$C:$C,$A75,Forecast!$B:$B,MID(CELL("filename",$A$1),FIND("]",CELL("filename",$A$1))+1,255)) -> 0 | AH75: =SUMIFS(Forecast!AG:AG,Forecast!$C:$C,$A75,Forecast!$B:$B,MID(CELL("filename",$A$1),FIND("]",CELL("filename",$A$1))+1,255)) -> 0 | AI75: =SUMIFS(Forecast!AH:AH,Forecast!$C:$C,$A75,Forecast!$B:$B,MID(CELL("filename",$A$1),FIND("]",CELL("filename",$A$1))+1,255)) -> 0 | AJ75: =SUMIFS(Forecast!AI:AI,Forecast!$C:$C,$A75,Forecast!$B:$B,MID(CELL("filename",$A$1),FIND("]",CELL("filename",$A$1))+1,255)) -> 0 | AK75: =SUMIFS(Forecast!AJ:AJ,Forecast!$C:$C,$A75,Forecast!$B:$B,MID(CELL("filename",$A$1),FIND("]",CELL("filename",$A$1))+1,255)) -> 0 | AL75: =SUMIFS(Forecast!AK:AK,Forecast!$C:$C,$A75,Forecast!$B:$B,MID(CELL("filename",$A$1),FIND("]",CELL("filename",$A$1))+1,255)) -> 0 | AM75: =SUMIFS(Forecast!AL:AL,Forecast!$C:$C,$A75,Forecast!$B:$B,MID(CELL("filename",$A$1),FIND("]",CELL("filename",$A$1))+1,255)) -> 0 | AN75: =SUMIFS(Forecast!AM:AM,Forecast!$C:$C,$A75,Forecast!$B:$B,MID(CELL("filename",$A$1),FIND("]",CELL("filename",$A$1))+1,255)) -> 0 | AO75: =SUMIFS(Forecast!AN:AN,Forecast!$C:$C,$A75,Forecast!$B:$B,MID(CELL("filename",$A$1),FIND("]",CELL("filename",$A$1))+1,255)) -> 0 | AP75: =SUMIFS(Forecast!AO:AO,Forecast!$C:$C,$A75,Forecast!$B:$B,MID(CELL("filename",$A$1),FIND("]",CELL("filename",$A$1))+1,255)) -> 0 | AQ75: =SUMIFS(Forecast!AP:AP,Forecast!$C:$C,$A75,Forecast!$B:$B,MID(CELL("filename",$A$1),FIND("]",CELL("filename",$A$1))+1,255)) -> 0 | AR75: =SUMIFS(Forecast!AQ:AQ,Forecast!$C:$C,$A75,Forecast!$B:$B,MID(CELL("filename",$A$1),FIND("]",CELL("filename",$A$1))+1,255)) -> 0 | AS75: =SUMIFS(Forecast!AR:AR,Forecast!$C:$C,$A75,Forecast!$B:$B,MID(CELL("filename",$A$1),FIND("]",CELL("filename",$A$1))+1,255)) -> 0 | AT75: =SUMIFS(Forecast!AS:AS,Forecast!$C:$C,$A75,Forecast!$B:$B,MID(CELL("filename",$A$1),FIND("]",CELL("filename",$A$1))+1,255)) -> 0 | AU75: =SUMIFS(Forecast!AT:AT,Forecast!$C:$C,$A75,Forecast!$B:$B,MID(CELL("filename",$A$1),FIND("]",CELL("filename",$A$1))+1,255)) -> 0 | AV75: =SUMIFS(Forecast!AU:AU,Forecast!$C:$C,$A75,Forecast!$B:$B,MID(CELL("filename",$A$1),FIND("]",CELL("filename",$A$1))+1,255)) -> 0 | AW75: =SUMIFS(Forecast!AV:AV,Forecast!$C:$C,$A75,Forecast!$B:$B,MID(CELL("filename",$A$1),FIND("]",CELL("filename",$A$1))+1,255)) -> 0 | AX75: =SUMIFS(Forecast!AW:AW,Forecast!$C:$C,$A75,Forecast!$B:$B,MID(CELL("filename",$A$1),FIND("]",CELL("filename",$A$1))+1,255)) -> 0 | AY75: =SUMIFS(Forecast!AX:AX,Forecast!$C:$C,$A75,Forecast!$B:$B,MID(CELL("filename",$A$1),FIND("]",CELL("filename",$A$1))+1,255)) -> 0
A76: 2006 | C76: =SUMIFS(CY_Report!$W:$W,CY_Report!$J:$J,$A76,CY_Report!$E:$E,MID(CELL("filename",$A$1),FIND("]",CELL("filename",$A$1))+1,255),CY_Report!$U:$U,"<>*d*",CY_Report!$U:$U,"<>*t*",CY_Report!$N:$N,"<>"&" 00 00") -> 0 | D76: 0 | E76: =SUMIFS(Forecast!D:D,Forecast!$C:$C,$A76,Forecast!$B:$B,MID(CELL("filename",$A$1),FIND("]",CELL("filename",$A$1))+1,255)) -> 0 | F76: =SUMIFS(Forecast!E:E,Forecast!$C:$C,$A76,Forecast!$B:$B,MID(CELL("filename",$A$1),FIND("]",CELL("filename",$A$1))+1,255)) -> 0 | G76: =SUMIFS(Forecast!F:F,Forecast!$C:$C,$A76,Forecast!$B:$B,MID(CELL("filename",$A$1),FIND("]",CELL("filename",$A$1))+1,255)) -> 0 | H76: =SUMIFS(Forecast!G:G,Forecast!$C:$C,$A76,Forecast!$B:$B,MID(CELL("filename",$A$1),FIND("]",CELL("filename",$A$1))+1,255)) -> 0 | I76: =SUMIFS(Forecast!H:H,Forecast!$C:$C,$A76,Forecast!$B:$B,MID(CELL("filename",$A$1),FIND("]",CELL("filename",$A$1))+1,255)) -> 0 | J76: =SUMIFS(Forecast!I:I,Forecast!$C:$C,$A76,Forecast!$B:$B,MID(CELL("filename",$A$1),FIND("]",CELL("filename",$A$1))+1,255)) -> 0 | K76: =SUMIFS(Forecast!J:J,Forecast!$C:$C,$A76,Forecast!$B:$B,MID(CELL("filename",$A$1),FIND("]",CELL("filename",$A$1))+1,255)) -> 0 | L76: =SUMIFS(Forecast!K:K,Forecast!$C:$C,$A76,Forecast!$B:$B,MID(CELL("filename",$A$1),FIND("]",CELL("filename",$A$1))+1,255)) -> 0 | M76: =SUMIFS(Forecast!L:L,Forecast!$C:$C,$A76,Forecast!$B:$B,MID(CELL("filename",$A$1),FIND("]",CELL("filename",$A$1))+1,255)) -> 0 | N76: =SUMIFS(Forecast!M:M,Forecast!$C:$C,$A76,Forecast!$B:$B,MID(CELL("filename",$A$1),FIND("]",CELL("filename",$A$1))+1,255)) -> 0 | O76: =SUMIFS(Forecast!N:N,Forecast!$C:$C,$A76,Forecast!$B:$B,MID(CELL("filename",$A$1),FIND("]",CELL("filename",$A$1))+1,255)) -> 0 | P76: =SUMIFS(Forecast!O:O,Forecast!$C:$C,$A76,Forecast!$B:$B,MID(CELL("filename",$A$1),FIND("]",CELL("filename",$A$1))+1,255)) -> 0 | Q76: =SUMIFS(Forecast!P:P,Forecast!$C:$C,$A76,Forecast!$B:$B,MID(CELL("filename",$A$1),FIND("]",CELL("filename",$A$1))+1,255)) -> 0 | R76: =SUMIFS(Forecast!Q:Q,Forecast!$C:$C,$A76,Forecast!$B:$B,MID(CELL("filename",$A$1),FIND("]",CELL("filename",$A$1))+1,255)) -> 0 | S76: =SUMIFS(Forecast!R:R,Forecast!$C:$C,$A76,Forecast!$B:$B,MID(CELL("filename",$A$1),FIND("]",CELL("filename",$A$1))+1,255)) -> 0 | T76: =SUMIFS(Forecast!S:S,Forecast!$C:$C,$A76,Forecast!$B:$B,MID(CELL("filename",$A$1),FIND("]",CELL("filename",$A$1))+1,255)) -> 0 | U76: =SUMIFS(Forecast!T:T,Forecast!$C:$C,$A76,Forecast!$B:$B,MID(CELL("filename",$A$1),FIND("]",CELL("filename",$A$1))+1,255)) -> 0 | V76: =SUMIFS(Forecast!U:U,Forecast!$C:$C,$A76,Forecast!$B:$B,MID(CELL("filename",$A$1),FIND("]",CELL("filename",$A$1))+1,255)) -> 0 | W76: =SUMIFS(Forecast!V:V,Forecast!$C:$C,$A76,Forecast!$B:$B,MID(CELL("filename",$A$1),FIND("]",CELL("filename",$A$1))+1,255)) -> 0 | X76: =SUMIFS(Forecast!W:W,Forecast!$C:$C,$A76,Forecast!$B:$B,MID(CELL("filename",$A$1),FIND("]",CELL("filename",$A$1))+1,255)) -> 0 | Y76: =SUMIFS(Forecast!X:X,Forecast!$C:$C,$A76,Forecast!$B:$B,MID(CELL("filename",$A$1),FIND("]",CELL("filename",$A$1))+1,255)) -> 0 | Z76: =SUMIFS(Forecast!Y:Y,Forecast!$C:$C,$A76,Forecast!$B:$B,MID(CELL("filename",$A$1),FIND("]",CELL("filename",$A$1))+1,255)) -> 0 | AA76: =SUMIFS(Forecast!Z:Z,Forecast!$C:$C,$A76,Forecast!$B:$B,MID(CELL("filename",$A$1),FIND("]",CELL("filename",$A$1))+1,255)) -> 0 | AB76: =SUMIFS(Forecast!AA:AA,Forecast!$C:$C,$A76,Forecast!$B:$B,MID(CELL("filename",$A$1),FIND("]",CELL("filename",$A$1))+1,255)) -> 0 | AC76: =SUMIFS(Forecast!AB:AB,Forecast!$C:$C,$A76,Forecast!$B:$B,MID(CELL("filename",$A$1),FIND("]",CELL("filename",$A$1))+1,255)) -> 0 | AD76: =SUMIFS(Forecast!AC:AC,Forecast!$C:$C,$A76,Forecast!$B:$B,MID(CELL("filename",$A$1),FIND("]",CELL("filename",$A$1))+1,255)) -> 0 | AE76: =SUMIFS(Forecast!AD:AD,Forecast!$C:$C,$A76,Forecast!$B:$B,MID(CELL("filename",$A$1),FIND("]",CELL("filename",$A$1))+1,255)) -> 0 | AF76: =SUMIFS(Forecast!AE:AE,Forecast!$C:$C,$A76,Forecast!$B:$B,MID(CELL("filename",$A$1),FIND("]",CELL("filename",$A$1))+1,255)) -> 0 | AG76: =SUMIFS(Forecast!AF:AF,Forecast!$C:$C,$A76,Forecast!$B:$B,MID(CELL("filename",$A$1),FIND("]",CELL("filename",$A$1))+1,255)) -> 0 | AH76: =SUMIFS(Forecast!AG:AG,Forecast!$C:$C,$A76,Forecast!$B:$B,MID(CELL("filename",$A$1),FIND("]",CELL("filename",$A$1))+1,255)) -> 0 | AI76: =SUMIFS(Forecast!AH:AH,Forecast!$C:$C,$A76,Forecast!$B:$B,MID(CELL("filename",$A$1),FIND("]",CELL("filename",$A$1))+1,255)) -> 0 | AJ76: =SUMIFS(Forecast!AI:AI,Forecast!$C:$C,$A76,Forecast!$B:$B,MID(CELL("filename",$A$1),FIND("]",CELL("filename",$A$1))+1,255)) -> 0 | AK76: =SUMIFS(Forecast!AJ:AJ,Forecast!$C:$C,$A76,Forecast!$B:$B,MID(CELL("filename",$A$1),FIND("]",CELL("filename",$A$1))+1,255)) -> 0 | AL76: =SUMIFS(Forecast!AK:AK,Forecast!$C:$C,$A76,Forecast!$B:$B,MID(CELL("filename",$A$1),FIND("]",CELL("filename",$A$1))+1,255)) -> 0 | AM76: =SUMIFS(Forecast!AL:AL,Forecast!$C:$C,$A76,Forecast!$B:$B,MID(CELL("filename",$A$1),FIND("]",CELL("filename",$A$1))+1,255)) -> 0 | AN76: =SUMIFS(Forecast!AM:AM,Forecast!$C:$C,$A76,Forecast!$B:$B,MID(CELL("filename",$A$1),FIND("]",CELL("filename",$A$1))+1,255)) -> 0 | AO76: =SUMIFS(Forecast!AN:AN,Forecast!$C:$C,$A76,Forecast!$B:$B,MID(CELL("filename",$A$1),FIND("]",CELL("filename",$A$1))+1,255)) -> 0 | AP76: =SUMIFS(Forecast!AO:AO,Forecast!$C:$C,$A76,Forecast!$B:$B,MID(CELL("filename",$A$1),FIND("]",CELL("filename",$A$1))+1,255)) -> 0 | AQ76: =SUMIFS(Forecast!AP:AP,Forecast!$C:$C,$A76,Forecast!$B:$B,MID(CELL("filename",$A$1),FIND("]",CELL("filename",$A$1))+1,255)) -> 0 | AR76: =SUMIFS(Forecast!AQ:AQ,Forecast!$C:$C,$A76,Forecast!$B:$B,MID(CELL("filename",$A$1),FIND("]",CELL("filename",$A$1))+1,255)) -> 0 | AS76: =SUMIFS(Forecast!AR:AR,Forecast!$C:$C,$A76,Forecast!$B:$B,MID(CELL("filename",$A$1),FIND("]",CELL("filename",$A$1))+1,255)) -> 0 | AT76: =SUMIFS(Forecast!AS:AS,Forecast!$C:$C,$A76,Forecast!$B:$B,MID(CELL("filename",$A$1),FIND("]",CELL("filename",$A$1))+1,255)) -> 0 | AU76: =SUMIFS(Forecast!AT:AT,Forecast!$C:$C,$A76,Forecast!$B:$B,MID(CELL("filename",$A$1),FIND("]",CELL("filename",$A$1))+1,255)) -> 0 | AV76: =SUMIFS(Forecast!AU:AU,Forecast!$C:$C,$A76,Forecast!$B:$B,MID(CELL("filename",$A$1),FIND("]",CELL("filename",$A$1))+1,255)) -> 0 | AW76: =SUMIFS(Forecast!AV:AV,Forecast!$C:$C,$A76,Forecast!$B:$B,MID(CELL("filename",$A$1),FIND("]",CELL("filename",$A$1))+1,255)) -> 0 | AX76: =SUMIFS(Forecast!AW:AW,Forecast!$C:$C,$A76,Forecast!$B:$B,MID(CELL("filename",$A$1),FIND("]",CELL("filename",$A$1))+1,255)) -> 0 | AY76: =SUMIFS(Forecast!AX:AX,Forecast!$C:$C,$A76,Forecast!$B:$B,MID(CELL("filename",$A$1),FIND("]",CELL("filename",$A$1))+1,255)) -> 0
A77: 2007 | C77: =SUMIFS(CY_Report!$W:$W,CY_Report!$J:$J,$A77,CY_Report!$E:$E,MID(CELL("filename",$A$1),FIND("]",CELL("filename",$A$1))+1,255),CY_Report!$U:$U,"<>*d*",CY_Report!$U:$U,"<>*t*",CY_Report!$N:$N,"<>"&" 00 00") -> 0 | D77: 0 | E77: =SUMIFS(Forecast!D:D,Forecast!$C:$C,$A77,Forecast!$B:$B,MID(CELL("filename",$A$1),FIND("]",CELL("filename",$A$1))+1,255)) -> 0 | F77: =SUMIFS(Forecast!E:E,Forecast!$C:$C,$A77,Forecast!$B:$B,MID(CELL("filename",$A$1),FIND("]",CELL("filename",$A$1))+1,255)) -> 0 | G77: =SUMIFS(Forecast!F:F,Forecast!$C:$C,$A77,Forecast!$B:$B,MID(CELL("filename",$A$1),FIND("]",CELL("filename",$A$1))+1,255)) -> 0 | H77: =SUMIFS(Forecast!G:G,Forecast!$C:$C,$A77,Forecast!$B:$B,MID(CELL("filename",$A$1),FIND("]",CELL("filename",$A$1))+1,255)) -> 0 | I77: =SUMIFS(Forecast!H:H,Forecast!$C:$C,$A77,Forecast!$B:$B,MID(CELL("filename",$A$1),FIND("]",CELL("filename",$A$1))+1,255)) -> 0 | J77: =SUMIFS(Forecast!I:I,Forecast!$C:$C,$A77,Forecast!$B:$B,MID(CELL("filename",$A$1),FIND("]",CELL("filename",$A$1))+1,255)) -> 0 | K77: =SUMIFS(Forecast!J:J,Forecast!$C:$C,$A77,Forecast!$B:$B,MID(CELL("filename",$A$1),FIND("]",CELL("filename",$A$1))+1,255)) -> 0 | L77: =SUMIFS(Forecast!K:K,Forecast!$C:$C,$A77,Forecast!$B:$B,MID(CELL("filename",$A$1),FIND("]",CELL("filename",$A$1))+1,255)) -> 0 | M77: =SUMIFS(Forecast!L:L,Forecast!$C:$C,$A77,Forecast!$B:$B,MID(CELL("filename",$A$1),FIND("]",CELL("filename",$A$1))+1,255)) -> 0 | N77: =SUMIFS(Forecast!M:M,Forecast!$C:$C,$A77,Forecast!$B:$B,MID(CELL("filename",$A$1),FIND("]",CELL("filename",$A$1))+1,255)) -> 0 | O77: =SUMIFS(Forecast!N:N,Forecast!$C:$C,$A77,Forecast!$B:$B,MID(CELL("filename",$A$1),FIND("]",CELL("filename",$A$1))+1,255)) -> 0 | P77: =SUMIFS(Forecast!O:O,Forecast!$C:$C,$A77,Forecast!$B:$B,MID(CELL("filename",$A$1),FIND("]",CELL("filename",$A$1))+1,255)) -> 0 | Q77: =SUMIFS(Forecast!P:P,Forecast!$C:$C,$A77,Forecast!$B:$B,MID(CELL("filename",$A$1),FIND("]",CELL("filename",$A$1))+1,255)) -> 0 | R77: =SUMIFS(Forecast!Q:Q,Forecast!$C:$C,$A77,Forecast!$B:$B,MID(CELL("filename",$A$1),FIND("]",CELL("filename",$A$1))+1,255)) -> 0 | S77: =SUMIFS(Forecast!R:R,Forecast!$C:$C,$A77,Forecast!$B:$B,MID(CELL("filename",$A$1),FIND("]",CELL("filename",$A$1))+1,255)) -> 0 | T77: =SUMIFS(Forecast!S:S,Forecast!$C:$C,$A77,Forecast!$B:$B,MID(CELL("filename",$A$1),FIND("]",CELL("filename",$A$1))+1,255)) -> 0 | U77: =SUMIFS(Forecast!T:T,Forecast!$C:$C,$A77,Forecast!$B:$B,MID(CELL("filename",$A$1),FIND("]",CELL("filename",$A$1))+1,255)) -> 0 | V77: =SUMIFS(Forecast!U:U,Forecast!$C:$C,$A77,Forecast!$B:$B,MID(CELL("filename",$A$1),FIND("]",CELL("filename",$A$1))+1,255)) -> 0 | W77: =SUMIFS(Forecast!V:V,Forecast!$C:$C,$A77,Forecast!$B:$B,MID(CELL("filename",$A$1),FIND("]",CELL("filename",$A$1))+1,255)) -> 0 | X77: =SUMIFS(Forecast!W:W,Forecast!$C:$C,$A77,Forecast!$B:$B,MID(CELL("filename",$A$1),FIND("]",CELL("filename",$A$1))+1,255)) -> 0 | Y77: =SUMIFS(Forecast!X:X,Forecast!$C:$C,$A77,Forecast!$B:$B,MID(CELL("filename",$A$1),FIND("]",CELL("filename",$A$1))+1,255)) -> 0 | Z77: =SUMIFS(Forecast!Y:Y,Forecast!$C:$C,$A77,Forecast!$B:$B,MID(CELL("filename",$A$1),FIND("]",CELL("filename",$A$1))+1,255)) -> 0 | AA77: =SUMIFS(Forecast!Z:Z,Forecast!$C:$C,$A77,Forecast!$B:$B,MID(CELL("filename",$A$1),FIND("]",CELL("filename",$A$1))+1,255)) -> 0 | AB77: =SUMIFS(Forecast!AA:AA,Forecast!$C:$C,$A77,Forecast!$B:$B,MID(CELL("filename",$A$1),FIND("]",CELL("filename",$A$1))+1,255)) -> 0 | AC77: =SUMIFS(Forecast!AB:AB,Forecast!$C:$C,$A77,Forecast!$B:$B,MID(CELL("filename",$A$1),FIND("]",CELL("filename",$A$1))+1,255)) -> 0 | AD77: =SUMIFS(Forecast!AC:AC,Forecast!$C:$C,$A77,Forecast!$B:$B,MID(CELL("filename",$A$1),FIND("]",CELL("filename",$A$1))+1,255)) -> 0 | AE77: =SUMIFS(Forecast!AD:AD,Forecast!$C:$C,$A77,Forecast!$B:$B,MID(CELL("filename",$A$1),FIND("]",CELL("filename",$A$1))+1,255)) -> 0 | AF77: =SUMIFS(Forecast!AE:AE,Forecast!$C:$C,$A77,Forecast!$B:$B,MID(CELL("filename",$A$1),FIND("]",CELL("filename",$A$1))+1,255)) -> 0 | AG77: =SUMIFS(Forecast!AF:AF,Forecast!$C:$C,$A77,Forecast!$B:$B,MID(CELL("filename",$A$1),FIND("]",CELL("filename",$A$1))+1,255)) -> 0 | AH77: =SUMIFS(Forecast!AG:AG,Forecast!$C:$C,$A77,Forecast!$B:$B,MID(CELL("filename",$A$1),FIND("]",CELL("filename",$A$1))+1,255)) -> 0 | AI77: =SUMIFS(Forecast!AH:AH,Forecast!$C:$C,$A77,Forecast!$B:$B,MID(CELL("filename",$A$1),FIND("]",CELL("filename",$A$1))+1,255)) -> 0 | AJ77: =SUMIFS(Forecast!AI:AI,Forecast!$C:$C,$A77,Forecast!$B:$B,MID(CELL("filename",$A$1),FIND("]",CELL("filename",$A$1))+1,255)) -> 0 | AK77: =SUMIFS(Forecast!AJ:AJ,Forecast!$C:$C,$A77,Forecast!$B:$B,MID(CELL("filename",$A$1),FIND("]",CELL("filename",$A$1))+1,255)) -> 0 | AL77: =SUMIFS(Forecast!AK:AK,Forecast!$C:$C,$A77,Forecast!$B:$B,MID(CELL("filename",$A$1),FIND("]",CELL("filename",$A$1))+1,255)) -> 0 | AM77: =SUMIFS(Forecast!AL:AL,Forecast!$C:$C,$A77,Forecast!$B:$B,MID(CELL("filename",$A$1),FIND("]",CELL("filename",$A$1))+1,255)) -> 0 | AN77: =SUMIFS(Forecast!AM:AM,Forecast!$C:$C,$A77,Forecast!$B:$B,MID(CELL("filename",$A$1),FIND("]",CELL("filename",$A$1))+1,255)) -> 0 | AO77: =SUMIFS(Forecast!AN:AN,Forecast!$C:$C,$A77,Forecast!$B:$B,MID(CELL("filename",$A$1),FIND("]",CELL("filename",$A$1))+1,255)) -> 0 | AP77: =SUMIFS(Forecast!AO:AO,Forecast!$C:$C,$A77,Forecast!$B:$B,MID(CELL("filename",$A$1),FIND("]",CELL("filename",$A$1))+1,255)) -> 0 | AQ77: =SUMIFS(Forecast!AP:AP,Forecast!$C:$C,$A77,Forecast!$B:$B,MID(CELL("filename",$A$1),FIND("]",CELL("filename",$A$1))+1,255)) -> 0 | AR77: =SUMIFS(Forecast!AQ:AQ,Forecast!$C:$C,$A77,Forecast!$B:$B,MID(CELL("filename",$A$1),FIND("]",CELL("filename",$A$1))+1,255)) -> 0 | AS77: =SUMIFS(Forecast!AR:AR,Forecast!$C:$C,$A77,Forecast!$B:$B,MID(CELL("filename",$A$1),FIND("]",CELL("filename",$A$1))+1,255)) -> 0 | AT77: =SUMIFS(Forecast!AS:AS,Forecast!$C:$C,$A77,Forecast!$B:$B,MID(CELL("filename",$A$1),FIND("]",CELL("filename",$A$1))+1,255)) -> 0 | AU77: =SUMIFS(Forecast!AT:AT,Forecast!$C:$C,$A77,Forecast!$B:$B,MID(CELL("filename",$A$1),FIND("]",CELL("filename",$A$1))+1,255)) -> 0 | AV77: =SUMIFS(Forecast!AU:AU,Forecast!$C:$C,$A77,Forecast!$B:$B,MID(CELL("filename",$A$1),FIND("]",CELL("filename",$A$1))+1,255)) -> 0 | AW77: =SUMIFS(Forecast!AV:AV,Forecast!$C:$C,$A77,Forecast!$B:$B,MID(CELL("filename",$A$1),FIND("]",CELL("filename",$A$1))+1,255)) -> 0 | AX77: =SUMIFS(Forecast!AW:AW,Forecast!$C:$C,$A77,Forecast!$B:$B,MID(CELL("filename",$A$1),FIND("]",CELL("filename",$A$1))+1,255)) -> 0 | AY77: =SUMIFS(Forecast!AX:AX,Forecast!$C:$C,$A77,Forecast!$B:$B,MID(CELL("filename",$A$1),FIND("]",CELL("filename",$A$1))+1,255)) -> 0
A78: 2008 | C78: =SUMIFS(CY_Report!$W:$W,CY_Report!$J:$J,$A78,CY_Report!$E:$E,MID(CELL("filename",$A$1),FIND("]",CELL("filename",$A$1))+1,255),CY_Report!$U:$U,"<>*d*",CY_Report!$U:$U,"<>*t*",CY_Report!$N:$N,"<>"&" 00 00") -> 0 | D78: 0 | E78: =SUMIFS(Forecast!D:D,Forecast!$C:$C,$A78,Forecast!$B:$B,MID(CELL("filename",$A$1),FIND("]",CELL("filename",$A$1))+1,255)) -> 0 | F78: =SUMIFS(Forecast!E:E,Forecast!$C:$C,$A78,Forecast!$B:$B,MID(CELL("filename",$A$1),FIND("]",CELL("filename",$A$1))+1,255)) -> 0 | G78: =SUMIFS(Forecast!F:F,Forecast!$C:$C,$A78,Forecast!$B:$B,MID(CELL("filename",$A$1),FIND("]",CELL("filename",$A$1))+1,255)) -> 0 | H78: =SUMIFS(Forecast!G:G,Forecast!$C:$C,$A78,Forecast!$B:$B,MID(CELL("filename",$A$1),FIND("]",CELL("filename",$A$1))+1,255)) -> 0 | I78: =SUMIFS(Forecast!H:H,Forecast!$C:$C,$A78,Forecast!$B:$B,MID(CELL("filename",$A$1),FIND("]",CELL("filename",$A$1))+1,255)) -> 0 | J78: =SUMIFS(Forecast!I:I,Forecast!$C:$C,$A78,Forecast!$B:$B,MID(CELL("filename",$A$1),FIND("]",CELL("filename",$A$1))+1,255)) -> 0 | K78: =SUMIFS(Forecast!J:J,Forecast!$C:$C,$A78,Forecast!$B:$B,MID(CELL("filename",$A$1),FIND("]",CELL("filename",$A$1))+1,255)) -> 0 | L78: =SUMIFS(Forecast!K:K,Forecast!$C:$C,$A78,Forecast!$B:$B,MID(CELL("filename",$A$1),FIND("]",CELL("filename",$A$1))+1,255)) -> 0 | M78: =SUMIFS(Forecast!L:L,Forecast!$C:$C,$A78,Forecast!$B:$B,MID(CELL("filename",$A$1),FIND("]",CELL("filename",$A$1))+1,255)) -> 0 | N78: =SUMIFS(Forecast!M:M,Forecast!$C:$C,$A78,Forecast!$B:$B,MID(CELL("filename",$A$1),FIND("]",CELL("filename",$A$1))+1,255)) -> 0 | O78: =SUMIFS(Forecast!N:N,Forecast!$C:$C,$A78,Forecast!$B:$B,MID(CELL("filename",$A$1),FIND("]",CELL("filename",$A$1))+1,255)) -> 0 | P78: =SUMIFS(Forecast!O:O,Forecast!$C:$C,$A78,Forecast!$B:$B,MID(CELL("filename",$A$1),FIND("]",CELL("filename",$A$1))+1,255)) -> 0 | Q78: =SUMIFS(Forecast!P:P,Forecast!$C:$C,$A78,Forecast!$B:$B,MID(CELL("filename",$A$1),FIND("]",CELL("filename",$A$1))+1,255)) -> 0 | R78: =SUMIFS(Forecast!Q:Q,Forecast!$C:$C,$A78,Forecast!$B:$B,MID(CELL("filename",$A$1),FIND("]",CELL("filename",$A$1))+1,255)) -> 0 | S78: =SUMIFS(Forecast!R:R,Forecast!$C:$C,$A78,Forecast!$B:$B,MID(CELL("filename",$A$1),FIND("]",CELL("filename",$A$1))+1,255)) -> 0 | T78: =SUMIFS(Forecast!S:S,Forecast!$C:$C,$A78,Forecast!$B:$B,MID(CELL("filename",$A$1),FIND("]",CELL("filename",$A$1))+1,255)) -> 0 | U78: =SUMIFS(Forecast!T:T,Forecast!$C:$C,$A78,Forecast!$B:$B,MID(CELL("filename",$A$1),FIND("]",CELL("filename",$A$1))+1,255)) -> 0 | V78: =SUMIFS(Forecast!U:U,Forecast!$C:$C,$A78,Forecast!$B:$B,MID(CELL("filename",$A$1),FIND("]",CELL("filename",$A$1))+1,255)) -> 0 | W78: =SUMIFS(Forecast!V:V,Forecast!$C:$C,$A78,Forecast!$B:$B,MID(CELL("filename",$A$1),FIND("]",CELL("filename",$A$1))+1,255)) -> 0 | X78: =SUMIFS(Forecast!W:W,Forecast!$C:$C,$A78,Forecast!$B:$B,MID(CELL("filename",$A$1),FIND("]",CELL("filename",$A$1))+1,255)) -> 0 | Y78: =SUMIFS(Forecast!X:X,Forecast!$C:$C,$A78,Forecast!$B:$B,MID(CELL("filename",$A$1),FIND("]",CELL("filename",$A$1))+1,255)) -> 0 | Z78: =SUMIFS(Forecast!Y:Y,Forecast!$C:$C,$A78,Forecast!$B:$B,MID(CELL("filename",$A$1),FIND("]",CELL("filename",$A$1))+1,255)) -> 0 | AA78: =SUMIFS(Forecast!Z:Z,Forecast!$C:$C,$A78,Forecast!$B:$B,MID(CELL("filename",$A$1),FIND("]",CELL("filename",$A$1))+1,255)) -> 0 | AB78: =SUMIFS(Forecast!AA:AA,Forecast!$C:$C,$A78,Forecast!$B:$B,MID(CELL("filename",$A$1),FIND("]",CELL("filename",$A$1))+1,255)) -> 0 | AC78: =SUMIFS(Forecast!AB:AB,Forecast!$C:$C,$A78,Forecast!$B:$B,MID(CELL("filename",$A$1),FIND("]",CELL("filename",$A$1))+1,255)) -> 0 | AD78: =SUMIFS(Forecast!AC:AC,Forecast!$C:$C,$A78,Forecast!$B:$B,MID(CELL("filename",$A$1),FIND("]",CELL("filename",$A$1))+1,255)) -> 0 | AE78: =SUMIFS(Forecast!AD:AD,Forecast!$C:$C,$A78,Forecast!$B:$B,MID(CELL("filename",$A$1),FIND("]",CELL("filename",$A$1))+1,255)) -> 0 | AF78: =SUMIFS(Forecast!AE:AE,Forecast!$C:$C,$A78,Forecast!$B:$B,MID(CELL("filename",$A$1),FIND("]",CELL("filename",$A$1))+1,255)) -> 0 | AG78: =SUMIFS(Forecast!AF:AF,Forecast!$C:$C,$A78,Forecast!$B:$B,MID(CELL("filename",$A$1),FIND("]",CELL("filename",$A$1))+1,255)) -> 0 | AH78: =SUMIFS(Forecast!AG:AG,Forecast!$C:$C,$A78,Forecast!$B:$B,MID(CELL("filename",$A$1),FIND("]",CELL("filename",$A$1))+1,255)) -> 0 | AI78: =SUMIFS(Forecast!AH:AH,Forecast!$C:$C,$A78,Forecast!$B:$B,MID(CELL("filename",$A$1),FIND("]",CELL("filename",$A$1))+1,255)) -> 0 | AJ78: =SUMIFS(Forecast!AI:AI,Forecast!$C:$C,$A78,Forecast!$B:$B,MID(CELL("filename",$A$1),FIND("]",CELL("filename",$A$1))+1,255)) -> 0 | AK78: =SUMIFS(Forecast!AJ:AJ,Forecast!$C:$C,$A78,Forecast!$B:$B,MID(CELL("filename",$A$1),FIND("]",CELL("filename",$A$1))+1,255)) -> 0 | AL78: =SUMIFS(Forecast!AK:AK,Forecast!$C:$C,$A78,Forecast!$B:$B,MID(CELL("filename",$A$1),FIND("]",CELL("filename",$A$1))+1,255)) -> 0 | AM78: =SUMIFS(Forecast!AL:AL,Forecast!$C:$C,$A78,Forecast!$B:$B,MID(CELL("filename",$A$1),FIND("]",CELL("filename",$A$1))+1,255)) -> 0 | AN78: =SUMIFS(Forecast!AM:AM,Forecast!$C:$C,$A78,Forecast!$B:$B,MID(CELL("filename",$A$1),FIND("]",CELL("filename",$A$1))+1,255)) -> 0 | AO78: =SUMIFS(Forecast!AN:AN,Forecast!$C:$C,$A78,Forecast!$B:$B,MID(CELL("filename",$A$1),FIND("]",CELL("filename",$A$1))+1,255)) -> 0 | AP78: =SUMIFS(Forecast!AO:AO,Forecast!$C:$C,$A78,Forecast!$B:$B,MID(CELL("filename",$A$1),FIND("]",CELL("filename",$A$1))+1,255)) -> 0 | AQ78: =SUMIFS(Forecast!AP:AP,Forecast!$C:$C,$A78,Forecast!$B:$B,MID(CELL("filename",$A$1),FIND("]",CELL("filename",$A$1))+1,255)) -> 0 | AR78: =SUMIFS(Forecast!AQ:AQ,Forecast!$C:$C,$A78,Forecast!$B:$B,MID(CELL("filename",$A$1),FIND("]",CELL("filename",$A$1))+1,255)) -> 0 | AS78: =SUMIFS(Forecast!AR:AR,Forecast!$C:$C,$A78,Forecast!$B:$B,MID(CELL("filename",$A$1),FIND("]",CELL("filename",$A$1))+1,255)) -> 0 | AT78: =SUMIFS(Forecast!AS:AS,Forecast!$C:$C,$A78,Forecast!$B:$B,MID(CELL("filename",$A$1),FIND("]",CELL("filename",$A$1))+1,255)) -> 0 | AU78: =SUMIFS(Forecast!AT:AT,Forecast!$C:$C,$A78,Forecast!$B:$B,MID(CELL("filename",$A$1),FIND("]",CELL("filename",$A$1))+1,255)) -> 0 | AV78: =SUMIFS(Forecast!AU:AU,Forecast!$C:$C,$A78,Forecast!$B:$B,MID(CELL("filename",$A$1),FIND("]",CELL("filename",$A$1))+1,255)) -> 0 | AW78: =SUMIFS(Forecast!AV:AV,Forecast!$C:$C,$A78,Forecast!$B:$B,MID(CELL("filename",$A$1),FIND("]",CELL("filename",$A$1))+1,255)) -> 0 | AX78: =SUMIFS(Forecast!AW:AW,Forecast!$C:$C,$A78,Forecast!$B:$B,MID(CELL("filename",$A$1),FIND("]",CELL("filename",$A$1))+1,255)) -> 0 | AY78: =SUMIFS(Forecast!AX:AX,Forecast!$C:$C,$A78,Forecast!$B:$B,MID(CELL("filename",$A$1),FIND("]",CELL("filename",$A$1))+1,255)) -> 0
A79: 2009 | C79: =SUMIFS(CY_Report!$W:$W,CY_Report!$J:$J,$A79,CY_Report!$E:$E,MID(CELL("filename",$A$1),FIND("]",CELL("filename",$A$1))+1,255),CY_Report!$U:$U,"<>*d*",CY_Report!$U:$U,"<>*t*",CY_Report!$N:$N,"<>"&" 00 00") -> 0 | D79: 0 | E79: =SUMIFS(Forecast!D:D,Forecast!$C:$C,$A79,Forecast!$B:$B,MID(CELL("filename",$A$1),FIND("]",CELL("filename",$A$1))+1,255)) -> 0 | F79: =SUMIFS(Forecast!E:E,Forecast!$C:$C,$A79,Forecast!$B:$B,MID(CELL("filename",$A$1),FIND("]",CELL("filename",$A$1))+1,255)) -> 0 | G79: =SUMIFS(Forecast!F:F,Forecast!$C:$C,$A79,Forecast!$B:$B,MID(CELL("filename",$A$1),FIND("]",CELL("filename",$A$1))+1,255)) -> 0 | H79: =SUMIFS(Forecast!G:G,Forecast!$C:$C,$A79,Forecast!$B:$B,MID(CELL("filename",$A$1),FIND("]",CELL("filename",$A$1))+1,255)) -> 0 | I79: =SUMIFS(Forecast!H:H,Forecast!$C:$C,$A79,Forecast!$B:$B,MID(CELL("filename",$A$1),FIND("]",CELL("filename",$A$1))+1,255)) -> 0 | J79: =SUMIFS(Forecast!I:I,Forecast!$C:$C,$A79,Forecast!$B:$B,MID(CELL("filename",$A$1),FIND("]",CELL("filename",$A$1))+1,255)) -> 0 | K79: =SUMIFS(Forecast!J:J,Forecast!$C:$C,$A79,Forecast!$B:$B,MID(CELL("filename",$A$1),FIND("]",CELL("filename",$A$1))+1,255)) -> 0 | L79: =SUMIFS(Forecast!K:K,Forecast!$C:$C,$A79,Forecast!$B:$B,MID(CELL("filename",$A$1),FIND("]",CELL("filename",$A$1))+1,255)) -> 0 | M79: =SUMIFS(Forecast!L:L,Forecast!$C:$C,$A79,Forecast!$B:$B,MID(CELL("filename",$A$1),FIND("]",CELL("filename",$A$1))+1,255)) -> 0 | N79: =SUMIFS(Forecast!M:M,Forecast!$C:$C,$A79,Forecast!$B:$B,MID(CELL("filename",$A$1),FIND("]",CELL("filename",$A$1))+1,255)) -> 0 | O79: =SUMIFS(Forecast!N:N,Forecast!$C:$C,$A79,Forecast!$B:$B,MID(CELL("filename",$A$1),FIND("]",CELL("filename",$A$1))+1,255)) -> 0 | P79: =SUMIFS(Forecast!O:O,Forecast!$C:$C,$A79,Forecast!$B:$B,MID(CELL("filename",$A$1),FIND("]",CELL("filename",$A$1))+1,255)) -> 0 | Q79: =SUMIFS(Forecast!P:P,Forecast!$C:$C,$A79,Forecast!$B:$B,MID(CELL("filename",$A$1),FIND("]",CELL("filename",$A$1))+1,255)) -> 0 | R79: =SUMIFS(Forecast!Q:Q,Forecast!$C:$C,$A79,Forecast!$B:$B,MID(CELL("filename",$A$1),FIND("]",CELL("filename",$A$1))+1,255)) -> 0 | S79: =SUMIFS(Forecast!R:R,Forecast!$C:$C,$A79,Forecast!$B:$B,MID(CELL("filename",$A$1),FIND("]",CELL("filename",$A$1))+1,255)) -> 0 | T79: =SUMIFS(Forecast!S:S,Forecast!$C:$C,$A79,Forecast!$B:$B,MID(CELL("filename",$A$1),FIND("]",CELL("filename",$A$1))+1,255)) -> 0 | U79: =SUMIFS(Forecast!T:T,Forecast!$C:$C,$A79,Forecast!$B:$B,MID(CELL("filename",$A$1),FIND("]",CELL("filename",$A$1))+1,255)) -> 0 | V79: =SUMIFS(Forecast!U:U,Forecast!$C:$C,$A79,Forecast!$B:$B,MID(CELL("filename",$A$1),FIND("]",CELL("filename",$A$1))+1,255)) -> 0 | W79: =SUMIFS(Forecast!V:V,Forecast!$C:$C,$A79,Forecast!$B:$B,MID(CELL("filename",$A$1),FIND("]",CELL("filename",$A$1))+1,255)) -> 0 | X79: =SUMIFS(Forecast!W:W,Forecast!$C:$C,$A79,Forecast!$B:$B,MID(CELL("filename",$A$1),FIND("]",CELL("filename",$A$1))+1,255)) -> 0 | Y79: =SUMIFS(Forecast!X:X,Forecast!$C:$C,$A79,Forecast!$B:$B,MID(CELL("filename",$A$1),FIND("]",CELL("filename",$A$1))+1,255)) -> 0 | Z79: =SUMIFS(Forecast!Y:Y,Forecast!$C:$C,$A79,Forecast!$B:$B,MID(CELL("filename",$A$1),FIND("]",CELL("filename",$A$1))+1,255)) -> 0 | AA79: =SUMIFS(Forecast!Z:Z,Forecast!$C:$C,$A79,Forecast!$B:$B,MID(CELL("filename",$A$1),FIND("]",CELL("filename",$A$1))+1,255)) -> 0 | AB79: =SUMIFS(Forecast!AA:AA,Forecast!$C:$C,$A79,Forecast!$B:$B,MID(CELL("filename",$A$1),FIND("]",CELL("filename",$A$1))+1,255)) -> 0 | AC79: =SUMIFS(Forecast!AB:AB,Forecast!$C:$C,$A79,Forecast!$B:$B,MID(CELL("filename",$A$1),FIND("]",CELL("filename",$A$1))+1,255)) -> 0 | AD79: =SUMIFS(Forecast!AC:AC,Forecast!$C:$C,$A79,Forecast!$B:$B,MID(CELL("filename",$A$1),FIND("]",CELL("filename",$A$1))+1,255)) -> 0 | AE79: =SUMIFS(Forecast!AD:AD,Forecast!$C:$C,$A79,Forecast!$B:$B,MID(CELL("filename",$A$1),FIND("]",CELL("filename",$A$1))+1,255)) -> 0 | AF79: =SUMIFS(Forecast!AE:AE,Forecast!$C:$C,$A79,Forecast!$B:$B,MID(CELL("filename",$A$1),FIND("]",CELL("filename",$A$1))+1,255)) -> 0 | AG79: =SUMIFS(Forecast!AF:AF,Forecast!$C:$C,$A79,Forecast!$B:$B,MID(CELL("filename",$A$1),FIND("]",CELL("filename",$A$1))+1,255)) -> 0 | AH79: =SUMIFS(Forecast!AG:AG,Forecast!$C:$C,$A79,Forecast!$B:$B,MID(CELL("filename",$A$1),FIND("]",CELL("filename",$A$1))+1,255)) -> 0 | AI79: =SUMIFS(Forecast!AH:AH,Forecast!$C:$C,$A79,Forecast!$B:$B,MID(CELL("filename",$A$1),FIND("]",CELL("filename",$A$1))+1,255)) -> 0 | AJ79: =SUMIFS(Forecast!AI:AI,Forecast!$C:$C,$A79,Forecast!$B:$B,MID(CELL("filename",$A$1),FIND("]",CELL("filename",$A$1))+1,255)) -> 0 | AK79: =SUMIFS(Forecast!AJ:AJ,Forecast!$C:$C,$A79,Forecast!$B:$B,MID(CELL("filename",$A$1),FIND("]",CELL("filename",$A$1))+1,255)) -> 0 | AL79: =SUMIFS(Forecast!AK:AK,Forecast!$C:$C,$A79,Forecast!$B:$B,MID(CELL("filename",$A$1),FIND("]",CELL("filename",$A$1))+1,255)) -> 0 | AM79: =SUMIFS(Forecast!AL:AL,Forecast!$C:$C,$A79,Forecast!$B:$B,MID(CELL("filename",$A$1),FIND("]",CELL("filename",$A$1))+1,255)) -> 0 | AN79: =SUMIFS(Forecast!AM:AM,Forecast!$C:$C,$A79,Forecast!$B:$B,MID(CELL("filename",$A$1),FIND("]",CELL("filename",$A$1))+1,255)) -> 0 | AO79: =SUMIFS(Forecast!AN:AN,Forecast!$C:$C,$A79,Forecast!$B:$B,MID(CELL("filename",$A$1),FIND("]",CELL("filename",$A$1))+1,255)) -> 0 | AP79: =SUMIFS(Forecast!AO:AO,Forecast!$C:$C,$A79,Forecast!$B:$B,MID(CELL("filename",$A$1),FIND("]",CELL("filename",$A$1))+1,255)) -> 0 | AQ79: =SUMIFS(Forecast!AP:AP,Forecast!$C:$C,$A79,Forecast!$B:$B,MID(CELL("filename",$A$1),FIND("]",CELL("filename",$A$1))+1,255)) -> 0 | AR79: =SUMIFS(Forecast!AQ:AQ,Forecast!$C:$C,$A79,Forecast!$B:$B,MID(CELL("filename",$A$1),FIND("]",CELL("filename",$A$1))+1,255)) -> 0 | AS79: =SUMIFS(Forecast!AR:AR,Forecast!$C:$C,$A79,Forecast!$B:$B,MID(CELL("filename",$A$1),FIND("]",CELL("filename",$A$1))+1,255)) -> 0 | AT79: =SUMIFS(Forecast!AS:AS,Forecast!$C:$C,$A79,Forecast!$B:$B,MID(CELL("filename",$A$1),FIND("]",CELL("filename",$A$1))+1,255)) -> 0 | AU79: =SUMIFS(Forecast!AT:AT,Forecast!$C:$C,$A79,Forecast!$B:$B,MID(CELL("filename",$A$1),FIND("]",CELL("filename",$A$1))+1,255)) -> 0 | AV79: =SUMIFS(Forecast!AU:AU,Forecast!$C:$C,$A79,Forecast!$B:$B,MID(CELL("filename",$A$1),FIND("]",CELL("filename",$A$1))+1,255)) -> 0 | AW79: =SUMIFS(Forecast!AV:AV,Forecast!$C:$C,$A79,Forecast!$B:$B,MID(CELL("filename",$A$1),FIND("]",CELL("filename",$A$1))+1,255)) -> 0 | AX79: =SUMIFS(Forecast!AW:AW,Forecast!$C:$C,$A79,Forecast!$B:$B,MID(CELL("filename",$A$1),FIND("]",CELL("filename",$A$1))+1,255)) -> 0 | AY79: =SUMIFS(Forecast!AX:AX,Forecast!$C:$C,$A79,Forecast!$B:$B,MID(CELL("filename",$A$1),FIND("]",CELL("filename",$A$1))+1,255)) -> 0
A80: 2010 | C80: =SUMIFS(CY_Report!$W:$W,CY_Report!$J:$J,$A80,CY_Report!$E:$E,MID(CELL("filename",$A$1),FIND("]",CELL("filename",$A$1))+1,255),CY_Report!$U:$U,"<>*d*",CY_Report!$U:$U,"<>*t*",CY_Report!$N:$N,"<>"&" 00 00") -> 0 | D80: 0 | E80: =SUMIFS(Forecast!D:D,Forecast!$C:$C,$A80,Forecast!$B:$B,MID(CELL("filename",$A$1),FIND("]",CELL("filename",$A$1))+1,255)) -> 0 | F80: =SUMIFS(Forecast!E:E,Forecast!$C:$C,$A80,Forecast!$B:$B,MID(CELL("filename",$A$1),FIND("]",CELL("filename",$A$1))+1,255)) -> 0 | G80: =SUMIFS(Forecast!F:F,Forecast!$C:$C,$A80,Forecast!$B:$B,MID(CELL("filename",$A$1),FIND("]",CELL("filename",$A$1))+1,255)) -> 0 | H80: =SUMIFS(Forecast!G:G,Forecast!$C:$C,$A80,Forecast!$B:$B,MID(CELL("filename",$A$1),FIND("]",CELL("filename",$A$1))+1,255)) -> 0 | I80: =SUMIFS(Forecast!H:H,Forecast!$C:$C,$A80,Forecast!$B:$B,MID(CELL("filename",$A$1),FIND("]",CELL("filename",$A$1))+1,255)) -> 0 | J80: =SUMIFS(Forecast!I:I,Forecast!$C:$C,$A80,Forecast!$B:$B,MID(CELL("filename",$A$1),FIND("]",CELL("filename",$A$1))+1,255)) -> 0 | K80: =SUMIFS(Forecast!J:J,Forecast!$C:$C,$A80,Forecast!$B:$B,MID(CELL("filename",$A$1),FIND("]",CELL("filename",$A$1))+1,255)) -> 0 | L80: =SUMIFS(Forecast!K:K,Forecast!$C:$C,$A80,Forecast!$B:$B,MID(CELL("filename",$A$1),FIND("]",CELL("filename",$A$1))+1,255)) -> 0 | M80: =SUMIFS(Forecast!L:L,Forecast!$C:$C,$A80,Forecast!$B:$B,MID(CELL("filename",$A$1),FIND("]",CELL("filename",$A$1))+1,255)) -> 0 | N80: =SUMIFS(Forecast!M:M,Forecast!$C:$C,$A80,Forecast!$B:$B,MID(CELL("filename",$A$1),FIND("]",CELL("filename",$A$1))+1,255)) -> 0 | O80: =SUMIFS(Forecast!N:N,Forecast!$C:$C,$A80,Forecast!$B:$B,MID(CELL("filename",$A$1),FIND("]",CELL("filename",$A$1))+1,255)) -> 0 | P80: =SUMIFS(Forecast!O:O,Forecast!$C:$C,$A80,Forecast!$B:$B,MID(CELL("filename",$A$1),FIND("]",CELL("filename",$A$1))+1,255)) -> 0 | Q80: =SUMIFS(Forecast!P:P,Forecast!$C:$C,$A80,Forecast!$B:$B,MID(CELL("filename",$A$1),FIND("]",CELL("filename",$A$1))+1,255)) -> 0 | R80: =SUMIFS(Forecast!Q:Q,Forecast!$C:$C,$A80,Forecast!$B:$B,MID(CELL("filename",$A$1),FIND("]",CELL("filename",$A$1))+1,255)) -> 0 | S80: =SUMIFS(Forecast!R:R,Forecast!$C:$C,$A80,Forecast!$B:$B,MID(CELL("filename",$A$1),FIND("]",CELL("filename",$A$1))+1,255)) -> 0 | T80: =SUMIFS(Forecast!S:S,Forecast!$C:$C,$A80,Forecast!$B:$B,MID(CELL("filename",$A$1),FIND("]",CELL("filename",$A$1))+1,255)) -> 0 | U80: =SUMIFS(Forecast!T:T,Forecast!$C:$C,$A80,Forecast!$B:$B,MID(CELL("filename",$A$1),FIND("]",CELL("filename",$A$1))+1,255)) -> 0 | V80: =SUMIFS(Forecast!U:U,Forecast!$C:$C,$A80,Forecast!$B:$B,MID(CELL("filename",$A$1),FIND("]",CELL("filename",$A$1))+1,255)) -> 0 | W80: =SUMIFS(Forecast!V:V,Forecast!$C:$C,$A80,Forecast!$B:$B,MID(CELL("filename",$A$1),FIND("]",CELL("filename",$A$1))+1,255)) -> 0 | X80: =SUMIFS(Forecast!W:W,Forecast!$C:$C,$A80,Forecast!$B:$B,MID(CELL("filename",$A$1),FIND("]",CELL("filename",$A$1))+1,255)) -> 0 | Y80: =SUMIFS(Forecast!X:X,Forecast!$C:$C,$A80,Forecast!$B:$B,MID(CELL("filename",$A$1),FIND("]",CELL("filename",$A$1))+1,255)) -> 0 | Z80: =SUMIFS(Forecast!Y:Y,Forecast!$C:$C,$A80,Forecast!$B:$B,MID(CELL("filename",$A$1),FIND("]",CELL("filename",$A$1))+1,255)) -> 0 | AA80: =SUMIFS(Forecast!Z:Z,Forecast!$C:$C,$A80,Forecast!$B:$B,MID(CELL("filename",$A$1),FIND("]",CELL("filename",$A$1))+1,255)) -> 0 | AB80: =SUMIFS(Forecast!AA:AA,Forecast!$C:$C,$A80,Forecast!$B:$B,MID(CELL("filename",$A$1),FIND("]",CELL("filename",$A$1))+1,255)) -> 0 | AC80: =SUMIFS(Forecast!AB:AB,Forecast!$C:$C,$A80,Forecast!$B:$B,MID(CELL("filename",$A$1),FIND("]",CELL("filename",$A$1))+1,255)) -> 0 | AD80: =SUMIFS(Forecast!AC:AC,Forecast!$C:$C,$A80,Forecast!$B:$B,MID(CELL("filename",$A$1),FIND("]",CELL("filename",$A$1))+1,255)) -> 0 | AE80: =SUMIFS(Forecast!AD:AD,Forecast!$C:$C,$A80,Forecast!$B:$B,MID(CELL("filename",$A$1),FIND("]",CELL("filename",$A$1))+1,255)) -> 0 | AF80: =SUMIFS(Forecast!AE:AE,Forecast!$C:$C,$A80,Forecast!$B:$B,MID(CELL("filename",$A$1),FIND("]",CELL("filename",$A$1))+1,255)) -> 0 | AG80: =SUMIFS(Forecast!AF:AF,Forecast!$C:$C,$A80,Forecast!$B:$B,MID(CELL("filename",$A$1),FIND("]",CELL("filename",$A$1))+1,255)) -> 0 | AH80: =SUMIFS(Forecast!AG:AG,Forecast!$C:$C,$A80,Forecast!$B:$B,MID(CELL("filename",$A$1),FIND("]",CELL("filename",$A$1))+1,255)) -> 0 | AI80: =SUMIFS(Forecast!AH:AH,Forecast!$C:$C,$A80,Forecast!$B:$B,MID(CELL("filename",$A$1),FIND("]",CELL("filename",$A$1))+1,255)) -> 0 | AJ80: =SUMIFS(Forecast!AI:AI,Forecast!$C:$C,$A80,Forecast!$B:$B,MID(CELL("filename",$A$1),FIND("]",CELL("filename",$A$1))+1,255)) -> 0 | AK80: =SUMIFS(Forecast!AJ:AJ,Forecast!$C:$C,$A80,Forecast!$B:$B,MID(CELL("filename",$A$1),FIND("]",CELL("filename",$A$1))+1,255)) -> 0 | AL80: =SUMIFS(Forecast!AK:AK,Forecast!$C:$C,$A80,Forecast!$B:$B,MID(CELL("filename",$A$1),FIND("]",CELL("filename",$A$1))+1,255)) -> 0 | AM80: =SUMIFS(Forecast!AL:AL,Forecast!$C:$C,$A80,Forecast!$B:$B,MID(CELL("filename",$A$1),FIND("]",CELL("filename",$A$1))+1,255)) -> 0 | AN80: =SUMIFS(Forecast!AM:AM,Forecast!$C:$C,$A80,Forecast!$B:$B,MID(CELL("filename",$A$1),FIND("]",CELL("filename",$A$1))+1,255)) -> 0 | AO80: =SUMIFS(Forecast!AN:AN,Forecast!$C:$C,$A80,Forecast!$B:$B,MID(CELL("filename",$A$1),FIND("]",CELL("filename",$A$1))+1,255)) -> 0 | AP80: =SUMIFS(Forecast!AO:AO,Forecast!$C:$C,$A80,Forecast!$B:$B,MID(CELL("filename",$A$1),FIND("]",CELL("filename",$A$1))+1,255)) -> 0 | AQ80: =SUMIFS(Forecast!AP:AP,Forecast!$C:$C,$A80,Forecast!$B:$B,MID(CELL("filename",$A$1),FIND("]",CELL("filename",$A$1))+1,255)) -> 0 | AR80: =SUMIFS(Forecast!AQ:AQ,Forecast!$C:$C,$A80,Forecast!$B:$B,MID(CELL("filename",$A$1),FIND("]",CELL("filename",$A$1))+1,255)) -> 0 | AS80: =SUMIFS(Forecast!AR:AR,Forecast!$C:$C,$A80,Forecast!$B:$B,MID(CELL("filename",$A$1),FIND("]",CELL("filename",$A$1))+1,255)) -> 0 | AT80: =SUMIFS(Forecast!AS:AS,Forecast!$C:$C,$A80,Forecast!$B:$B,MID(CELL("filename",$A$1),FIND("]",CELL("filename",$A$1))+1,255)) -> 0 | AU80: =SUMIFS(Forecast!AT:AT,Forecast!$C:$C,$A80,Forecast!$B:$B,MID(CELL("filename",$A$1),FIND("]",CELL("filename",$A$1))+1,255)) -> 0 | AV80: =SUMIFS(Forecast!AU:AU,Forecast!$C:$C,$A80,Forecast!$B:$B,MID(CELL("filename",$A$1),FIND("]",CELL("filename",$A$1))+1,255)) -> 0 | AW80: =SUMIFS(Forecast!AV:AV,Forecast!$C:$C,$A80,Forecast!$B:$B,MID(CELL("filename",$A$1),FIND("]",CELL("filename",$A$1))+1,255)) -> 0 | AX80: =SUMIFS(Forecast!AW:AW,Forecast!$C:$C,$A80,Forecast!$B:$B,MID(CELL("filename",$A$1),FIND("]",CELL("filename",$A$1))+1,255)) -> 0 | AY80: =SUMIFS(Forecast!AX:AX,Forecast!$C:$C,$A80,Forecast!$B:$B,MID(CELL("filename",$A$1),FIND("]",CELL("filename",$A$1))+1,255)) -> 0
A81: =A80+1 -> 2011 | C81: =SUMIFS(CY_Report!$W:$W,CY_Report!$J:$J,$A81,CY_Report!$E:$E,MID(CELL("filename",$A$1),FIND("]",CELL("filename",$A$1))+1,255),CY_Report!$U:$U,"<>*d*",CY_Report!$U:$U,"<>*t*",CY_Report!$N:$N,"<>"&" 00 00") -> 0 | D81: 0 | E81: =SUMIFS(Forecast!D:D,Forecast!$C:$C,$A81,Forecast!$B:$B,MID(CELL("filename",$A$1),FIND("]",CELL("filename",$A$1))+1,255)) -> 0 | F81: =SUMIFS(Forecast!E:E,Forecast!$C:$C,$A81,Forecast!$B:$B,MID(CELL("filename",$A$1),FIND("]",CELL("filename",$A$1))+1,255)) -> 0 | G81: =SUMIFS(Forecast!F:F,Forecast!$C:$C,$A81,Forecast!$B:$B,MID(CELL("filename",$A$1),FIND("]",CELL("filename",$A$1))+1,255)) -> 0 | H81: =SUMIFS(Forecast!G:G,Forecast!$C:$C,$A81,Forecast!$B:$B,MID(CELL("filename",$A$1),FIND("]",CELL("filename",$A$1))+1,255)) -> 0 | I81: =SUMIFS(Forecast!H:H,Forecast!$C:$C,$A81,Forecast!$B:$B,MID(CELL("filename",$A$1),FIND("]",CELL("filename",$A$1))+1,255)) -> 0 | J81: =SUMIFS(Forecast!I:I,Forecast!$C:$C,$A81,Forecast!$B:$B,MID(CELL("filename",$A$1),FIND("]",CELL("filename",$A$1))+1,255)) -> 0 | K81: =SUMIFS(Forecast!J:J,Forecast!$C:$C,$A81,Forecast!$B:$B,MID(CELL("filename",$A$1),FIND("]",CELL("filename",$A$1))+1,255)) -> 0 | L81: =SUMIFS(Forecast!K:K,Forecast!$C:$C,$A81,Forecast!$B:$B,MID(CELL("filename",$A$1),FIND("]",CELL("filename",$A$1))+1,255)) -> 0 | M81: =SUMIFS(Forecast!L:L,Forecast!$C:$C,$A81,Forecast!$B:$B,MID(CELL("filename",$A$1),FIND("]",CELL("filename",$A$1))+1,255)) -> 0 | N81: =SUMIFS(Forecast!M:M,Forecast!$C:$C,$A81,Forecast!$B:$B,MID(CELL("filename",$A$1),FIND("]",CELL("filename",$A$1))+1,255)) -> 0 | O81: =SUMIFS(Forecast!N:N,Forecast!$C:$C,$A81,Forecast!$B:$B,MID(CELL("filename",$A$1),FIND("]",CELL("filename",$A$1))+1,255)) -> 0 | P81: =SUMIFS(Forecast!O:O,Forecast!$C:$C,$A81,Forecast!$B:$B,MID(CELL("filename",$A$1),FIND("]",CELL("filename",$A$1))+1,255)) -> 0 | Q81: =SUMIFS(Forecast!P:P,Forecast!$C:$C,$A81,Forecast!$B:$B,MID(CELL("filename",$A$1),FIND("]",CELL("filename",$A$1))+1,255)) -> 0 | R81: =SUMIFS(Forecast!Q:Q,Forecast!$C:$C,$A81,Forecast!$B:$B,MID(CELL("filename",$A$1),FIND("]",CELL("filename",$A$1))+1,255)) -> 0 | S81: =SUMIFS(Forecast!R:R,Forecast!$C:$C,$A81,Forecast!$B:$B,MID(CELL("filename",$A$1),FIND("]",CELL("filename",$A$1))+1,255)) -> 0 | T81: =SUMIFS(Forecast!S:S,Forecast!$C:$C,$A81,Forecast!$B:$B,MID(CELL("filename",$A$1),FIND("]",CELL("filename",$A$1))+1,255)) -> 0 | U81: =SUMIFS(Forecast!T:T,Forecast!$C:$C,$A81,Forecast!$B:$B,MID(CELL("filename",$A$1),FIND("]",CELL("filename",$A$1))+1,255)) -> 0 | V81: =SUMIFS(Forecast!U:U,Forecast!$C:$C,$A81,Forecast!$B:$B,MID(CELL("filename",$A$1),FIND("]",CELL("filename",$A$1))+1,255)) -> 0 | W81: =SUMIFS(Forecast!V:V,Forecast!$C:$C,$A81,Forecast!$B:$B,MID(CELL("filename",$A$1),FIND("]",CELL("filename",$A$1))+1,255)) -> 0 | X81: =SUMIFS(Forecast!W:W,Forecast!$C:$C,$A81,Forecast!$B:$B,MID(CELL("filename",$A$1),FIND("]",CELL("filename",$A$1))+1,255)) -> 0 | Y81: =SUMIFS(Forecast!X:X,Forecast!$C:$C,$A81,Forecast!$B:$B,MID(CELL("filename",$A$1),FIND("]",CELL("filename",$A$1))+1,255)) -> 0 | Z81: =SUMIFS(Forecast!Y:Y,Forecast!$C:$C,$A81,Forecast!$B:$B,MID(CELL("filename",$A$1),FIND("]",CELL("filename",$A$1))+1,255)) -> 0 | AA81: =SUMIFS(Forecast!Z:Z,Forecast!$C:$C,$A81,Forecast!$B:$B,MID(CELL("filename",$A$1),FIND("]",CELL("filename",$A$1))+1,255)) -> 0 | AB81: =SUMIFS(Forecast!AA:AA,Forecast!$C:$C,$A81,Forecast!$B:$B,MID(CELL("filename",$A$1),FIND("]",CELL("filename",$A$1))+1,255)) -> 0 | AC81: =SUMIFS(Forecast!AB:AB,Forecast!$C:$C,$A81,Forecast!$B:$B,MID(CELL("filename",$A$1),FIND("]",CELL("filename",$A$1))+1,255)) -> 0 | AD81: =SUMIFS(Forecast!AC:AC,Forecast!$C:$C,$A81,Forecast!$B:$B,MID(CELL("filename",$A$1),FIND("]",CELL("filename",$A$1))+1,255)) -> 0 | AE81: =SUMIFS(Forecast!AD:AD,Forecast!$C:$C,$A81,Forecast!$B:$B,MID(CELL("filename",$A$1),FIND("]",CELL("filename",$A$1))+1,255)) -> 0 | AF81: =SUMIFS(Forecast!AE:AE,Forecast!$C:$C,$A81,Forecast!$B:$B,MID(CELL("filename",$A$1),FIND("]",CELL("filename",$A$1))+1,255)) -> 0 | AG81: =SUMIFS(Forecast!AF:AF,Forecast!$C:$C,$A81,Forecast!$B:$B,MID(CELL("filename",$A$1),FIND("]",CELL("filename",$A$1))+1,255)) -> 0 | AH81: =SUMIFS(Forecast!AG:AG,Forecast!$C:$C,$A81,Forecast!$B:$B,MID(CELL("filename",$A$1),FIND("]",CELL("filename",$A$1))+1,255)) -> 0 | AI81: =SUMIFS(Forecast!AH:AH,Forecast!$C:$C,$A81,Forecast!$B:$B,MID(CELL("filename",$A$1),FIND("]",CELL("filename",$A$1))+1,255)) -> 0 | AJ81: =SUMIFS(Forecast!AI:AI,Forecast!$C:$C,$A81,Forecast!$B:$B,MID(CELL("filename",$A$1),FIND("]",CELL("filename",$A$1))+1,255)) -> 0 | AK81: =SUMIFS(Forecast!AJ:AJ,Forecast!$C:$C,$A81,Forecast!$B:$B,MID(CELL("filename",$A$1),FIND("]",CELL("filename",$A$1))+1,255)) -> 0 | AL81: =SUMIFS(Forecast!AK:AK,Forecast!$C:$C,$A81,Forecast!$B:$B,MID(CELL("filename",$A$1),FIND("]",CELL("filename",$A$1))+1,255)) -> 0 | AM81: =SUMIFS(Forecast!AL:AL,Forecast!$C:$C,$A81,Forecast!$B:$B,MID(CELL("filename",$A$1),FIND("]",CELL("filename",$A$1))+1,255)) -> 0 | AN81: =SUMIFS(Forecast!AM:AM,Forecast!$C:$C,$A81,Forecast!$B:$B,MID(CELL("filename",$A$1),FIND("]",CELL("filename",$A$1))+1,255)) -> 0 | AO81: =SUMIFS(Forecast!AN:AN,Forecast!$C:$C,$A81,Forecast!$B:$B,MID(CELL("filename",$A$1),FIND("]",CELL("filename",$A$1))+1,255)) -> 0 | AP81: =SUMIFS(Forecast!AO:AO,Forecast!$C:$C,$A81,Forecast!$B:$B,MID(CELL("filename",$A$1),FIND("]",CELL("filename",$A$1))+1,255)) -> 0 | AQ81: =SUMIFS(Forecast!AP:AP,Forecast!$C:$C,$A81,Forecast!$B:$B,MID(CELL("filename",$A$1),FIND("]",CELL("filename",$A$1))+1,255)) -> 0 | AR81: =SUMIFS(Forecast!AQ:AQ,Forecast!$C:$C,$A81,Forecast!$B:$B,MID(CELL("filename",$A$1),FIND("]",CELL("filename",$A$1))+1,255)) -> 0 | AS81: =SUMIFS(Forecast!AR:AR,Forecast!$C:$C,$A81,Forecast!$B:$B,MID(CELL("filename",$A$1),FIND("]",CELL("filename",$A$1))+1,255)) -> 0 | AT81: =SUMIFS(Forecast!AS:AS,Forecast!$C:$C,$A81,Forecast!$B:$B,MID(CELL("filename",$A$1),FIND("]",CELL("filename",$A$1))+1,255)) -> 0 | AU81: =SUMIFS(Forecast!AT:AT,Forecast!$C:$C,$A81,Forecast!$B:$B,MID(CELL("filename",$A$1),FIND("]",CELL("filename",$A$1))+1,255)) -> 0 | AV81: =SUMIFS(Forecast!AU:AU,Forecast!$C:$C,$A81,Forecast!$B:$B,MID(CELL("filename",$A$1),FIND("]",CELL("filename",$A$1))+1,255)) -> 0 | AW81: =SUMIFS(Forecast!AV:AV,Forecast!$C:$C,$A81,Forecast!$B:$B,MID(CELL("filename",$A$1),FIND("]",CELL("filename",$A$1))+1,255)) -> 0 | AX81: =SUMIFS(Forecast!AW:AW,Forecast!$C:$C,$A81,Forecast!$B:$B,MID(CELL("filename",$A$1),FIND("]",CELL("filename",$A$1))+1,255)) -> 0 | AY81: =SUMIFS(Forecast!AX:AX,Forecast!$C:$C,$A81,Forecast!$B:$B,MID(CELL("filename",$A$1),FIND("]",CELL("filename",$A$1))+1,255)) -> 0
A82: 2012 | C82: =SUMIFS(CY_Report!$W:$W,CY_Report!$J:$J,$A82,CY_Report!$E:$E,MID(CELL("filename",$A$1),FIND("]",CELL("filename",$A$1))+1,255),CY_Report!$U:$U,"<>*d*",CY_Report!$U:$U,"<>*t*",CY_Report!$N:$N,"<>"&" 00 00") -> 0 | D82: 0 | E82: =SUMIFS(Forecast!D:D,Forecast!$C:$C,$A82,Forecast!$B:$B,MID(CELL("filename",$A$1),FIND("]",CELL("filename",$A$1))+1,255)) -> 0 | F82: =SUMIFS(Forecast!E:E,Forecast!$C:$C,$A82,Forecast!$B:$B,MID(CELL("filename",$A$1),FIND("]",CELL("filename",$A$1))+1,255)) -> 0 | G82: =SUMIFS(Forecast!F:F,Forecast!$C:$C,$A82,Forecast!$B:$B,MID(CELL("filename",$A$1),FIND("]",CELL("filename",$A$1))+1,255)) -> 0 | H82: =SUMIFS(Forecast!G:G,Forecast!$C:$C,$A82,Forecast!$B:$B,MID(CELL("filename",$A$1),FIND("]",CELL("filename",$A$1))+1,255)) -> 0 | I82: =SUMIFS(Forecast!H:H,Forecast!$C:$C,$A82,Forecast!$B:$B,MID(CELL("filename",$A$1),FIND("]",CELL("filename",$A$1))+1,255)) -> 0 | J82: =SUMIFS(Forecast!I:I,Forecast!$C:$C,$A82,Forecast!$B:$B,MID(CELL("filename",$A$1),FIND("]",CELL("filename",$A$1))+1,255)) -> 0 | K82: =SUMIFS(Forecast!J:J,Forecast!$C:$C,$A82,Forecast!$B:$B,MID(CELL("filename",$A$1),FIND("]",CELL("filename",$A$1))+1,255)) -> 0 | L82: =SUMIFS(Forecast!K:K,Forecast!$C:$C,$A82,Forecast!$B:$B,MID(CELL("filename",$A$1),FIND("]",CELL("filename",$A$1))+1,255)) -> 0 | M82: =SUMIFS(Forecast!L:L,Forecast!$C:$C,$A82,Forecast!$B:$B,MID(CELL("filename",$A$1),FIND("]",CELL("filename",$A$1))+1,255)) -> 0 | N82: =SUMIFS(Forecast!M:M,Forecast!$C:$C,$A82,Forecast!$B:$B,MID(CELL("filename",$A$1),FIND("]",CELL("filename",$A$1))+1,255)) -> 0 | O82: =SUMIFS(Forecast!N:N,Forecast!$C:$C,$A82,Forecast!$B:$B,MID(CELL("filename",$A$1),FIND("]",CELL("filename",$A$1))+1,255)) -> 0 | P82: =SUMIFS(Forecast!O:O,Forecast!$C:$C,$A82,Forecast!$B:$B,MID(CELL("filename",$A$1),FIND("]",CELL("filename",$A$1))+1,255)) -> 0 | Q82: =SUMIFS(Forecast!P:P,Forecast!$C:$C,$A82,Forecast!$B:$B,MID(CELL("filename",$A$1),FIND("]",CELL("filename",$A$1))+1,255)) -> 0 | R82: =SUMIFS(Forecast!Q:Q,Forecast!$C:$C,$A82,Forecast!$B:$B,MID(CELL("filename",$A$1),FIND("]",CELL("filename",$A$1))+1,255)) -> 0 | S82: =SUMIFS(Forecast!R:R,Forecast!$C:$C,$A82,Forecast!$B:$B,MID(CELL("filename",$A$1),FIND("]",CELL("filename",$A$1))+1,255)) -> 0 | T82: =SUMIFS(Forecast!S:S,Forecast!$C:$C,$A82,Forecast!$B:$B,MID(CELL("filename",$A$1),FIND("]",CELL("filename",$A$1))+1,255)) -> 0 | U82: =SUMIFS(Forecast!T:T,Forecast!$C:$C,$A82,Forecast!$B:$B,MID(CELL("filename",$A$1),FIND("]",CELL("filename",$A$1))+1,255)) -> 0 | V82: =SUMIFS(Forecast!U:U,Forecast!$C:$C,$A82,Forecast!$B:$B,MID(CELL("filename",$A$1),FIND("]",CELL("filename",$A$1))+1,255)) -> 0 | W82: =SUMIFS(Forecast!V:V,Forecast!$C:$C,$A82,Forecast!$B:$B,MID(CELL("filename",$A$1),FIND("]",CELL("filename",$A$1))+1,255)) -> 0 | X82: =SUMIFS(Forecast!W:W,Forecast!$C:$C,$A82,Forecast!$B:$B,MID(CELL("filename",$A$1),FIND("]",CELL("filename",$A$1))+1,255)) -> 0 | Y82: =SUMIFS(Forecast!X:X,Forecast!$C:$C,$A82,Forecast!$B:$B,MID(CELL("filename",$A$1),FIND("]",CELL("filename",$A$1))+1,255)) -> 0 | Z82: =SUMIFS(Forecast!Y:Y,Forecast!$C:$C,$A82,Forecast!$B:$B,MID(CELL("filename",$A$1),FIND("]",CELL("filename",$A$1))+1,255)) -> 0 | AA82: =SUMIFS(Forecast!Z:Z,Forecast!$C:$C,$A82,Forecast!$B:$B,MID(CELL("filename",$A$1),FIND("]",CELL("filename",$A$1))+1,255)) -> 0 | AB82: =SUMIFS(Forecast!AA:AA,Forecast!$C:$C,$A82,Forecast!$B:$B,MID(CELL("filename",$A$1),FIND("]",CELL("filename",$A$1))+1,255)) -> 0 | AC82: =SUMIFS(Forecast!AB:AB,Forecast!$C:$C,$A82,Forecast!$B:$B,MID(CELL("filename",$A$1),FIND("]",CELL("filename",$A$1))+1,255)) -> 0 | AD82: =SUMIFS(Forecast!AC:AC,Forecast!$C:$C,$A82,Forecast!$B:$B,MID(CELL("filename",$A$1),FIND("]",CELL("filename",$A$1))+1,255)) -> 0 | AE82: =SUMIFS(Forecast!AD:AD,Forecast!$C:$C,$A82,Forecast!$B:$B,MID(CELL("filename",$A$1),FIND("]",CELL("filename",$A$1))+1,255)) -> 0 | AF82: =SUMIFS(Forecast!AE:AE,Forecast!$C:$C,$A82,Forecast!$B:$B,MID(CELL("filename",$A$1),FIND("]",CELL("filename",$A$1))+1,255)) -> 0 | AG82: =SUMIFS(Forecast!AF:AF,Forecast!$C:$C,$A82,Forecast!$B:$B,MID(CELL("filename",$A$1),FIND("]",CELL("filename",$A$1))+1,255)) -> 0 | AH82: =SUMIFS(Forecast!AG:AG,Forecast!$C:$C,$A82,Forecast!$B:$B,MID(CELL("filename",$A$1),FIND("]",CELL("filename",$A$1))+1,255)) -> 0 | AI82: =SUMIFS(Forecast!AH:AH,Forecast!$C:$C,$A82,Forecast!$B:$B,MID(CELL("filename",$A$1),FIND("]",CELL("filename",$A$1))+1,255)) -> 0 | AJ82: =SUMIFS(Forecast!AI:AI,Forecast!$C:$C,$A82,Forecast!$B:$B,MID(CELL("filename",$A$1),FIND("]",CELL("filename",$A$1))+1,255)) -> 0 | AK82: =SUMIFS(Forecast!AJ:AJ,Forecast!$C:$C,$A82,Forecast!$B:$B,MID(CELL("filename",$A$1),FIND("]",CELL("filename",$A$1))+1,255)) -> 0 | AL82: =SUMIFS(Forecast!AK:AK,Forecast!$C:$C,$A82,Forecast!$B:$B,MID(CELL("filename",$A$1),FIND("]",CELL("filename",$A$1))+1,255)) -> 0 | AM82: =SUMIFS(Forecast!AL:AL,Forecast!$C:$C,$A82,Forecast!$B:$B,MID(CELL("filename",$A$1),FIND("]",CELL("filename",$A$1))+1,255)) -> 0 | AN82: =SUMIFS(Forecast!AM:AM,Forecast!$C:$C,$A82,Forecast!$B:$B,MID(CELL("filename",$A$1),FIND("]",CELL("filename",$A$1))+1,255)) -> 0 | AO82: =SUMIFS(Forecast!AN:AN,Forecast!$C:$C,$A82,Forecast!$B:$B,MID(CELL("filename",$A$1),FIND("]",CELL("filename",$A$1))+1,255)) -> 0 | AP82: =SUMIFS(Forecast!AO:AO,Forecast!$C:$C,$A82,Forecast!$B:$B,MID(CELL("filename",$A$1),FIND("]",CELL("filename",$A$1))+1,255)) -> 0 | AQ82: =SUMIFS(Forecast!AP:AP,Forecast!$C:$C,$A82,Forecast!$B:$B,MID(CELL("filename",$A$1),FIND("]",CELL("filename",$A$1))+1,255)) -> 0 | AR82: =SUMIFS(Forecast!AQ:AQ,Forecast!$C:$C,$A82,Forecast!$B:$B,MID(CELL("filename",$A$1),FIND("]",CELL("filename",$A$1))+1,255)) -> 0 | AS82: =SUMIFS(Forecast!AR:AR,Forecast!$C:$C,$A82,Forecast!$B:$B,MID(CELL("filename",$A$1),FIND("]",CELL("filename",$A$1))+1,255)) -> 0 | AT82: =SUMIFS(Forecast!AS:AS,Forecast!$C:$C,$A82,Forecast!$B:$B,MID(CELL("filename",$A$1),FIND("]",CELL("filename",$A$1))+1,255)) -> 0 | AU82: =SUMIFS(Forecast!AT:AT,Forecast!$C:$C,$A82,Forecast!$B:$B,MID(CELL("filename",$A$1),FIND("]",CELL("filename",$A$1))+1,255)) -> 0 | AV82: =SUMIFS(Forecast!AU:AU,Forecast!$C:$C,$A82,Forecast!$B:$B,MID(CELL("filename",$A$1),FIND("]",CELL("filename",$A$1))+1,255)) -> 0 | AW82: =SUMIFS(Forecast!AV:AV,Forecast!$C:$C,$A82,Forecast!$B:$B,MID(CELL("filename",$A$1),FIND("]",CELL("filename",$A$1))+1,255)) -> 0 | AX82: =SUMIFS(Forecast!AW:AW,Forecast!$C:$C,$A82,Forecast!$B:$B,MID(CELL("filename",$A$1),FIND("]",CELL("filename",$A$1))+1,255)) -> 0 | AY82: =SUMIFS(Forecast!AX:AX,Forecast!$C:$C,$A82,Forecast!$B:$B,MID(CELL("filename",$A$1),FIND("]",CELL("filename",$A$1))+1,255)) -> 0
A83: 2013 | C83: =SUMIFS(CY_Report!$W:$W,CY_Report!$J:$J,$A83,CY_Report!$E:$E,MID(CELL("filename",$A$1),FIND("]",CELL("filename",$A$1))+1,255),CY_Report!$U:$U,"<>*d*",CY_Report!$U:$U,"<>*t*",CY_Report!$N:$N,"<>"&" 00 00") -> 0 | D83: 0 | E83: =SUMIFS(Forecast!D:D,Forecast!$C:$C,$A83,Forecast!$B:$B,MID(CELL("filename",$A$1),FIND("]",CELL("filename",$A$1))+1,255)) -> 0 | F83: =SUMIFS(Forecast!E:E,Forecast!$C:$C,$A83,Forecast!$B:$B,MID(CELL("filename",$A$1),FIND("]",CELL("filename",$A$1))+1,255)) -> 0 | G83: =SUMIFS(Forecast!F:F,Forecast!$C:$C,$A83,Forecast!$B:$B,MID(CELL("filename",$A$1),FIND("]",CELL("filename",$A$1))+1,255)) -> 0 | H83: =SUMIFS(Forecast!G:G,Forecast!$C:$C,$A83,Forecast!$B:$B,MID(CELL("filename",$A$1),FIND("]",CELL("filename",$A$1))+1,255)) -> 0 | I83: =SUMIFS(Forecast!H:H,Forecast!$C:$C,$A83,Forecast!$B:$B,MID(CELL("filename",$A$1),FIND("]",CELL("filename",$A$1))+1,255)) -> 0 | J83: =SUMIFS(Forecast!I:I,Forecast!$C:$C,$A83,Forecast!$B:$B,MID(CELL("filename",$A$1),FIND("]",CELL("filename",$A$1))+1,255)) -> 0 | K83: =SUMIFS(Forecast!J:J,Forecast!$C:$C,$A83,Forecast!$B:$B,MID(CELL("filename",$A$1),FIND("]",CELL("filename",$A$1))+1,255)) -> 0 | L83: =SUMIFS(Forecast!K:K,Forecast!$C:$C,$A83,Forecast!$B:$B,MID(CELL("filename",$A$1),FIND("]",CELL("filename",$A$1))+1,255)) -> 0 | M83: =SUMIFS(Forecast!L:L,Forecast!$C:$C,$A83,Forecast!$B:$B,MID(CELL("filename",$A$1),FIND("]",CELL("filename",$A$1))+1,255)) -> 0 | N83: =SUMIFS(Forecast!M:M,Forecast!$C:$C,$A83,Forecast!$B:$B,MID(CELL("filename",$A$1),FIND("]",CELL("filename",$A$1))+1,255)) -> 0 | O83: =SUMIFS(Forecast!N:N,Forecast!$C:$C,$A83,Forecast!$B:$B,MID(CELL("filename",$A$1),FIND("]",CELL("filename",$A$1))+1,255)) -> 0 | P83: =SUMIFS(Forecast!O:O,Forecast!$C:$C,$A83,Forecast!$B:$B,MID(CELL("filename",$A$1),FIND("]",CELL("filename",$A$1))+1,255)) -> 0 | Q83: =SUMIFS(Forecast!P:P,Forecast!$C:$C,$A83,Forecast!$B:$B,MID(CELL("filename",$A$1),FIND("]",CELL("filename",$A$1))+1,255)) -> 0 | R83: =SUMIFS(Forecast!Q:Q,Forecast!$C:$C,$A83,Forecast!$B:$B,MID(CELL("filename",$A$1),FIND("]",CELL("filename",$A$1))+1,255)) -> 0 | S83: =SUMIFS(Forecast!R:R,Forecast!$C:$C,$A83,Forecast!$B:$B,MID(CELL("filename",$A$1),FIND("]",CELL("filename",$A$1))+1,255)) -> 0 | T83: =SUMIFS(Forecast!S:S,Forecast!$C:$C,$A83,Forecast!$B:$B,MID(CELL("filename",$A$1),FIND("]",CELL("filename",$A$1))+1,255)) -> 0 | U83: =SUMIFS(Forecast!T:T,Forecast!$C:$C,$A83,Forecast!$B:$B,MID(CELL("filename",$A$1),FIND("]",CELL("filename",$A$1))+1,255)) -> 0 | V83: =SUMIFS(Forecast!U:U,Forecast!$C:$C,$A83,Forecast!$B:$B,MID(CELL("filename",$A$1),FIND("]",CELL("filename",$A$1))+1,255)) -> 0 | W83: =SUMIFS(Forecast!V:V,Forecast!$C:$C,$A83,Forecast!$B:$B,MID(CELL("filename",$A$1),FIND("]",CELL("filename",$A$1))+1,255)) -> 0 | X83: =SUMIFS(Forecast!W:W,Forecast!$C:$C,$A83,Forecast!$B:$B,MID(CELL("filename",$A$1),FIND("]",CELL("filename",$A$1))+1,255)) -> 0 | Y83: =SUMIFS(Forecast!X:X,Forecast!$C:$C,$A83,Forecast!$B:$B,MID(CELL("filename",$A$1),FIND("]",CELL("filename",$A$1))+1,255)) -> 0 | Z83: =SUMIFS(Forecast!Y:Y,Forecast!$C:$C,$A83,Forecast!$B:$B,MID(CELL("filename",$A$1),FIND("]",CELL("filename",$A$1))+1,255)) -> 0 | AA83: =SUMIFS(Forecast!Z:Z,Forecast!$C:$C,$A83,Forecast!$B:$B,MID(CELL("filename",$A$1),FIND("]",CELL("filename",$A$1))+1,255)) -> 0 | AB83: =SUMIFS(Forecast!AA:AA,Forecast!$C:$C,$A83,Forecast!$B:$B,MID(CELL("filename",$A$1),FIND("]",CELL("filename",$A$1))+1,255)) -> 0 | AC83: =SUMIFS(Forecast!AB:AB,Forecast!$C:$C,$A83,Forecast!$B:$B,MID(CELL("filename",$A$1),FIND("]",CELL("filename",$A$1))+1,255)) -> 0 | AD83: =SUMIFS(Forecast!AC:AC,Forecast!$C:$C,$A83,Forecast!$B:$B,MID(CELL("filename",$A$1),FIND("]",CELL("filename",$A$1))+1,255)) -> 0 | AE83: =SUMIFS(Forecast!AD:AD,Forecast!$C:$C,$A83,Forecast!$B:$B,MID(CELL("filename",$A$1),FIND("]",CELL("filename",$A$1))+1,255)) -> 0 | AF83: =SUMIFS(Forecast!AE:AE,Forecast!$C:$C,$A83,Forecast!$B:$B,MID(CELL("filename",$A$1),FIND("]",CELL("filename",$A$1))+1,255)) -> 0 | AG83: =SUMIFS(Forecast!AF:AF,Forecast!$C:$C,$A83,Forecast!$B:$B,MID(CELL("filename",$A$1),FIND("]",CELL("filename",$A$1))+1,255)) -> 0 | AH83: =SUMIFS(Forecast!AG:AG,Forecast!$C:$C,$A83,Forecast!$B:$B,MID(CELL("filename",$A$1),FIND("]",CELL("filename",$A$1))+1,255)) -> 0 | AI83: =SUMIFS(Forecast!AH:AH,Forecast!$C:$C,$A83,Forecast!$B:$B,MID(CELL("filename",$A$1),FIND("]",CELL("filename",$A$1))+1,255)) -> 0 | AJ83: =SUMIFS(Forecast!AI:AI,Forecast!$C:$C,$A83,Forecast!$B:$B,MID(CELL("filename",$A$1),FIND("]",CELL("filename",$A$1))+1,255)) -> 0 | AK83: =SUMIFS(Forecast!AJ:AJ,Forecast!$C:$C,$A83,Forecast!$B:$B,MID(CELL("filename",$A$1),FIND("]",CELL("filename",$A$1))+1,255)) -> 0 | AL83: =SUMIFS(Forecast!AK:AK,Forecast!$C:$C,$A83,Forecast!$B:$B,MID(CELL("filename",$A$1),FIND("]",CELL("filename",$A$1))+1,255)) -> 0 | AM83: =SUMIFS(Forecast!AL:AL,Forecast!$C:$C,$A83,Forecast!$B:$B,MID(CELL("filename",$A$1),FIND("]",CELL("filename",$A$1))+1,255)) -> 0 | AN83: =SUMIFS(Forecast!AM:AM,Forecast!$C:$C,$A83,Forecast!$B:$B,MID(CELL("filename",$A$1),FIND("]",CELL("filename",$A$1))+1,255)) -> 0 | AO83: =SUMIFS(Forecast!AN:AN,Forecast!$C:$C,$A83,Forecast!$B:$B,MID(CELL("filename",$A$1),FIND("]",CELL("filename",$A$1))+1,255)) -> 0 | AP83: =SUMIFS(Forecast!AO:AO,Forecast!$C:$C,$A83,Forecast!$B:$B,MID(CELL("filename",$A$1),FIND("]",CELL("filename",$A$1))+1,255)) -> 0 | AQ83: =SUMIFS(Forecast!AP:AP,Forecast!$C:$C,$A83,Forecast!$B:$B,MID(CELL("filename",$A$1),FIND("]",CELL("filename",$A$1))+1,255)) -> 0 | AR83: =SUMIFS(Forecast!AQ:AQ,Forecast!$C:$C,$A83,Forecast!$B:$B,MID(CELL("filename",$A$1),FIND("]",CELL("filename",$A$1))+1,255)) -> 0 | AS83: =SUMIFS(Forecast!AR:AR,Forecast!$C:$C,$A83,Forecast!$B:$B,MID(CELL("filename",$A$1),FIND("]",CELL("filename",$A$1))+1,255)) -> 0 | AT83: =SUMIFS(Forecast!AS:AS,Forecast!$C:$C,$A83,Forecast!$B:$B,MID(CELL("filename",$A$1),FIND("]",CELL("filename",$A$1))+1,255)) -> 0 | AU83: =SUMIFS(Forecast!AT:AT,Forecast!$C:$C,$A83,Forecast!$B:$B,MID(CELL("filename",$A$1),FIND("]",CELL("filename",$A$1))+1,255)) -> 0 | AV83: =SUMIFS(Forecast!AU:AU,Forecast!$C:$C,$A83,Forecast!$B:$B,MID(CELL("filename",$A$1),FIND("]",CELL("filename",$A$1))+1,255)) -> 0 | AW83: =SUMIFS(Forecast!AV:AV,Forecast!$C:$C,$A83,Forecast!$B:$B,MID(CELL("filename",$A$1),FIND("]",CELL("filename",$A$1))+1,255)) -> 0 | AX83: =SUMIFS(Forecast!AW:AW,Forecast!$C:$C,$A83,Forecast!$B:$B,MID(CELL("filename",$A$1),FIND("]",CELL("filename",$A$1))+1,255)) -> 0 | AY83: =SUMIFS(Forecast!AX:AX,Forecast!$C:$C,$A83,Forecast!$B:$B,MID(CELL("filename",$A$1),FIND("]",CELL("filename",$A$1))+1,255)) -> 0
A84: 2014 | C84: =SUMIFS(CY_Report!$W:$W,CY_Report!$J:$J,$A84,CY_Report!$E:$E,MID(CELL("filename",$A$1),FIND("]",CELL("filename",$A$1))+1,255),CY_Report!$U:$U,"<>*d*",CY_Report!$U:$U,"<>*t*",CY_Report!$N:$N,"<>"&" 00 00") -> 0 | D84: 0 | E84: =SUMIFS(Forecast!D:D,Forecast!$C:$C,$A84,Forecast!$B:$B,MID(CELL("filename",$A$1),FIND("]",CELL("filename",$A$1))+1,255)) -> 0 | F84: =SUMIFS(Forecast!E:E,Forecast!$C:$C,$A84,Forecast!$B:$B,MID(CELL("filename",$A$1),FIND("]",CELL("filename",$A$1))+1,255)) -> 0 | G84: =SUMIFS(Forecast!F:F,Forecast!$C:$C,$A84,Forecast!$B:$B,MID(CELL("filename",$A$1),FIND("]",CELL("filename",$A$1))+1,255)) -> 0 | H84: =SUMIFS(Forecast!G:G,Forecast!$C:$C,$A84,Forecast!$B:$B,MID(CELL("filename",$A$1),FIND("]",CELL("filename",$A$1))+1,255)) -> 0 | I84: =SUMIFS(Forecast!H:H,Forecast!$C:$C,$A84,Forecast!$B:$B,MID(CELL("filename",$A$1),FIND("]",CELL("filename",$A$1))+1,255)) -> 0 | J84: =SUMIFS(Forecast!I:I,Forecast!$C:$C,$A84,Forecast!$B:$B,MID(CELL("filename",$A$1),FIND("]",CELL("filename",$A$1))+1,255)) -> 0 | K84: =SUMIFS(Forecast!J:J,Forecast!$C:$C,$A84,Forecast!$B:$B,MID(CELL("filename",$A$1),FIND("]",CELL("filename",$A$1))+1,255)) -> 0 | L84: =SUMIFS(Forecast!K:K,Forecast!$C:$C,$A84,Forecast!$B:$B,MID(CELL("filename",$A$1),FIND("]",CELL("filename",$A$1))+1,255)) -> 0 | M84: =SUMIFS(Forecast!L:L,Forecast!$C:$C,$A84,Forecast!$B:$B,MID(CELL("filename",$A$1),FIND("]",CELL("filename",$A$1))+1,255)) -> 0 | N84: =SUMIFS(Forecast!M:M,Forecast!$C:$C,$A84,Forecast!$B:$B,MID(CELL("filename",$A$1),FIND("]",CELL("filename",$A$1))+1,255)) -> 0 | O84: =SUMIFS(Forecast!N:N,Forecast!$C:$C,$A84,Forecast!$B:$B,MID(CELL("filename",$A$1),FIND("]",CELL("filename",$A$1))+1,255)) -> 0 | P84: =SUMIFS(Forecast!O:O,Forecast!$C:$C,$A84,Forecast!$B:$B,MID(CELL("filename",$A$1),FIND("]",CELL("filename",$A$1))+1,255)) -> 0 | Q84: =SUMIFS(Forecast!P:P,Forecast!$C:$C,$A84,Forecast!$B:$B,MID(CELL("filename",$A$1),FIND("]",CELL("filename",$A$1))+1,255)) -> 0 | R84: =SUMIFS(Forecast!Q:Q,Forecast!$C:$C,$A84,Forecast!$B:$B,MID(CELL("filename",$A$1),FIND("]",CELL("filename",$A$1))+1,255)) -> 0 | S84: =SUMIFS(Forecast!R:R,Forecast!$C:$C,$A84,Forecast!$B:$B,MID(CELL("filename",$A$1),FIND("]",CELL("filename",$A$1))+1,255)) -> 0 | T84: =SUMIFS(Forecast!S:S,Forecast!$C:$C,$A84,Forecast!$B:$B,MID(CELL("filename",$A$1),FIND("]",CELL("filename",$A$1))+1,255)) -> 0 | U84: =SUMIFS(Forecast!T:T,Forecast!$C:$C,$A84,Forecast!$B:$B,MID(CELL("filename",$A$1),FIND("]",CELL("filename",$A$1))+1,255)) -> 0 | V84: =SUMIFS(Forecast!U:U,Forecast!$C:$C,$A84,Forecast!$B:$B,MID(CELL("filename",$A$1),FIND("]",CELL("filename",$A$1))+1,255)) -> 0 | W84: =SUMIFS(Forecast!V:V,Forecast!$C:$C,$A84,Forecast!$B:$B,MID(CELL("filename",$A$1),FIND("]",CELL("filename",$A$1))+1,255)) -> 0 | X84: =SUMIFS(Forecast!W:W,Forecast!$C:$C,$A84,Forecast!$B:$B,MID(CELL("filename",$A$1),FIND("]",CELL("filename",$A$1))+1,255)) -> 0 | Y84: =SUMIFS(Forecast!X:X,Forecast!$C:$C,$A84,Forecast!$B:$B,MID(CELL("filename",$A$1),FIND("]",CELL("filename",$A$1))+1,255)) -> 0 | Z84: =SUMIFS(Forecast!Y:Y,Forecast!$C:$C,$A84,Forecast!$B:$B,MID(CELL("filename",$A$1),FIND("]",CELL("filename",$A$1))+1,255)) -> 0 | AA84: =SUMIFS(Forecast!Z:Z,Forecast!$C:$C,$A84,Forecast!$B:$B,MID(CELL("filename",$A$1),FIND("]",CELL("filename",$A$1))+1,255)) -> 0 | AB84: =SUMIFS(Forecast!AA:AA,Forecast!$C:$C,$A84,Forecast!$B:$B,MID(CELL("filename",$A$1),FIND("]",CELL("filename",$A$1))+1,255)) -> 0 | AC84: =SUMIFS(Forecast!AB:AB,Forecast!$C:$C,$A84,Forecast!$B:$B,MID(CELL("filename",$A$1),FIND("]",CELL("filename",$A$1))+1,255)) -> 0 | AD84: =SUMIFS(Forecast!AC:AC,Forecast!$C:$C,$A84,Forecast!$B:$B,MID(CELL("filename",$A$1),FIND("]",CELL("filename",$A$1))+1,255)) -> 0 | AE84: =SUMIFS(Forecast!AD:AD,Forecast!$C:$C,$A84,Forecast!$B:$B,MID(CELL("filename",$A$1),FIND("]",CELL("filename",$A$1))+1,255)) -> 0 | AF84: =SUMIFS(Forecast!AE:AE,Forecast!$C:$C,$A84,Forecast!$B:$B,MID(CELL("filename",$A$1),FIND("]",CELL("filename",$A$1))+1,255)) -> 0 | AG84: =SUMIFS(Forecast!AF:AF,Forecast!$C:$C,$A84,Forecast!$B:$B,MID(CELL("filename",$A$1),FIND("]",CELL("filename",$A$1))+1,255)) -> 0 | AH84: =SUMIFS(Forecast!AG:AG,Forecast!$C:$C,$A84,Forecast!$B:$B,MID(CELL("filename",$A$1),FIND("]",CELL("filename",$A$1))+1,255)) -> 0 | AI84: =SUMIFS(Forecast!AH:AH,Forecast!$C:$C,$A84,Forecast!$B:$B,MID(CELL("filename",$A$1),FIND("]",CELL("filename",$A$1))+1,255)) -> 0 | AJ84: =SUMIFS(Forecast!AI:AI,Forecast!$C:$C,$A84,Forecast!$B:$B,MID(CELL("filename",$A$1),FIND("]",CELL("filename",$A$1))+1,255)) -> 0 | AK84: =SUMIFS(Forecast!AJ:AJ,Forecast!$C:$C,$A84,Forecast!$B:$B,MID(CELL("filename",$A$1),FIND("]",CELL("filename",$A$1))+1,255)) -> 0 | AL84: =SUMIFS(Forecast!AK:AK,Forecast!$C:$C,$A84,Forecast!$B:$B,MID(CELL("filename",$A$1),FIND("]",CELL("filename",$A$1))+1,255)) -> 0 | AM84: =SUMIFS(Forecast!AL:AL,Forecast!$C:$C,$A84,Forecast!$B:$B,MID(CELL("filename",$A$1),FIND("]",CELL("filename",$A$1))+1,255)) -> 0 | AN84: =SUMIFS(Forecast!AM:AM,Forecast!$C:$C,$A84,Forecast!$B:$B,MID(CELL("filename",$A$1),FIND("]",CELL("filename",$A$1))+1,255)) -> 0 | AO84: =SUMIFS(Forecast!AN:AN,Forecast!$C:$C,$A84,Forecast!$B:$B,MID(CELL("filename",$A$1),FIND("]",CELL("filename",$A$1))+1,255)) -> 0 | AP84: =SUMIFS(Forecast!AO:AO,Forecast!$C:$C,$A84,Forecast!$B:$B,MID(CELL("filename",$A$1),FIND("]",CELL("filename",$A$1))+1,255)) -> 0 | AQ84: =SUMIFS(Forecast!AP:AP,Forecast!$C:$C,$A84,Forecast!$B:$B,MID(CELL("filename",$A$1),FIND("]",CELL("filename",$A$1))+1,255)) -> 0 | AR84: =SUMIFS(Forecast!AQ:AQ,Forecast!$C:$C,$A84,Forecast!$B:$B,MID(CELL("filename",$A$1),FIND("]",CELL("filename",$A$1))+1,255)) -> 0 | AS84: =SUMIFS(Forecast!AR:AR,Forecast!$C:$C,$A84,Forecast!$B:$B,MID(CELL("filename",$A$1),FIND("]",CELL("filename",$A$1))+1,255)) -> 0 | AT84: =SUMIFS(Forecast!AS:AS,Forecast!$C:$C,$A84,Forecast!$B:$B,MID(CELL("filename",$A$1),FIND("]",CELL("filename",$A$1))+1,255)) -> 0 | AU84: =SUMIFS(Forecast!AT:AT,Forecast!$C:$C,$A84,Forecast!$B:$B,MID(CELL("filename",$A$1),FIND("]",CELL("filename",$A$1))+1,255)) -> 0 | AV84: =SUMIFS(Forecast!AU:AU,Forecast!$C:$C,$A84,Forecast!$B:$B,MID(CELL("filename",$A$1),FIND("]",CELL("filename",$A$1))+1,255)) -> 0 | AW84: =SUMIFS(Forecast!AV:AV,Forecast!$C:$C,$A84,Forecast!$B:$B,MID(CELL("filename",$A$1),FIND("]",CELL("filename",$A$1))+1,255)) -> 0 | AX84: =SUMIFS(Forecast!AW:AW,Forecast!$C:$C,$A84,Forecast!$B:$B,MID(CELL("filename",$A$1),FIND("]",CELL("filename",$A$1))+1,255)) -> 0 | AY84: =SUMIFS(Forecast!AX:AX,Forecast!$C:$C,$A84,Forecast!$B:$B,MID(CELL("filename",$A$1),FIND("]",CELL("filename",$A$1))+1,255)) -> 0
A85: 2015 | C85: =SUMIFS(CY_Report!$W:$W,CY_Report!$J:$J,$A85,CY_Report!$E:$E,MID(CELL("filename",$A$1),FIND("]",CELL("filename",$A$1))+1,255),CY_Report!$U:$U,"<>*d*",CY_Report!$U:$U,"<>*t*",CY_Report!$N:$N,"<>"&" 00 00") -> 0 | D85: 0 | E85: =SUMIFS(Forecast!D:D,Forecast!$C:$C,$A85,Forecast!$B:$B,MID(CELL("filename",$A$1),FIND("]",CELL("filename",$A$1))+1,255)) -> 0 | F85: =SUMIFS(Forecast!E:E,Forecast!$C:$C,$A85,Forecast!$B:$B,MID(CELL("filename",$A$1),FIND("]",CELL("filename",$A$1))+1,255)) -> 0 | G85: =SUMIFS(Forecast!F:F,Forecast!$C:$C,$A85,Forecast!$B:$B,MID(CELL("filename",$A$1),FIND("]",CELL("filename",$A$1))+1,255)) -> 0 | H85: =SUMIFS(Forecast!G:G,Forecast!$C:$C,$A85,Forecast!$B:$B,MID(CELL("filename",$A$1),FIND("]",CELL("filename",$A$1))+1,255)) -> 0 | I85: =SUMIFS(Forecast!H:H,Forecast!$C:$C,$A85,Forecast!$B:$B,MID(CELL("filename",$A$1),FIND("]",CELL("filename",$A$1))+1,255)) -> 0 | J85: =SUMIFS(Forecast!I:I,Forecast!$C:$C,$A85,Forecast!$B:$B,MID(CELL("filename",$A$1),FIND("]",CELL("filename",$A$1))+1,255)) -> 0 | K85: =SUMIFS(Forecast!J:J,Forecast!$C:$C,$A85,Forecast!$B:$B,MID(CELL("filename",$A$1),FIND("]",CELL("filename",$A$1))+1,255)) -> 0 | L85: =SUMIFS(Forecast!K:K,Forecast!$C:$C,$A85,Forecast!$B:$B,MID(CELL("filename",$A$1),FIND("]",CELL("filename",$A$1))+1,255)) -> 0 | M85: =SUMIFS(Forecast!L:L,Forecast!$C:$C,$A85,Forecast!$B:$B,MID(CELL("filename",$A$1),FIND("]",CELL("filename",$A$1))+1,255)) -> 0 | N85: =SUMIFS(Forecast!M:M,Forecast!$C:$C,$A85,Forecast!$B:$B,MID(CELL("filename",$A$1),FIND("]",CELL("filename",$A$1))+1,255)) -> 0 | O85: =SUMIFS(Forecast!N:N,Forecast!$C:$C,$A85,Forecast!$B:$B,MID(CELL("filename",$A$1),FIND("]",CELL("filename",$A$1))+1,255)) -> 0 | P85: =SUMIFS(Forecast!O:O,Forecast!$C:$C,$A85,Forecast!$B:$B,MID(CELL("filename",$A$1),FIND("]",CELL("filename",$A$1))+1,255)) -> 0 | Q85: =SUMIFS(Forecast!P:P,Forecast!$C:$C,$A85,Forecast!$B:$B,MID(CELL("filename",$A$1),FIND("]",CELL("filename",$A$1))+1,255)) -> 0 | R85: =SUMIFS(Forecast!Q:Q,Forecast!$C:$C,$A85,Forecast!$B:$B,MID(CELL("filename",$A$1),FIND("]",CELL("filename",$A$1))+1,255)) -> 0 | S85: =SUMIFS(Forecast!R:R,Forecast!$C:$C,$A85,Forecast!$B:$B,MID(CELL("filename",$A$1),FIND("]",CELL("filename",$A$1))+1,255)) -> 0 | T85: =SUMIFS(Forecast!S:S,Forecast!$C:$C,$A85,Forecast!$B:$B,MID(CELL("filename",$A$1),FIND("]",CELL("filename",$A$1))+1,255)) -> 0 | U85: =SUMIFS(Forecast!T:T,Forecast!$C:$C,$A85,Forecast!$B:$B,MID(CELL("filename",$A$1),FIND("]",CELL("filename",$A$1))+1,255)) -> 0 | V85: =SUMIFS(Forecast!U:U,Forecast!$C:$C,$A85,Forecast!$B:$B,MID(CELL("filename",$A$1),FIND("]",CELL("filename",$A$1))+1,255)) -> 0 | W85: =SUMIFS(Forecast!V:V,Forecast!$C:$C,$A85,Forecast!$B:$B,MID(CELL("filename",$A$1),FIND("]",CELL("filename",$A$1))+1,255)) -> 0 | X85: =SUMIFS(Forecast!W:W,Forecast!$C:$C,$A85,Forecast!$B:$B,MID(CELL("filename",$A$1),FIND("]",CELL("filename",$A$1))+1,255)) -> 0 | Y85: =SUMIFS(Forecast!X:X,Forecast!$C:$C,$A85,Forecast!$B:$B,MID(CELL("filename",$A$1),FIND("]",CELL("filename",$A$1))+1,255)) -> 0 | Z85: =SUMIFS(Forecast!Y:Y,Forecast!$C:$C,$A85,Forecast!$B:$B,MID(CELL("filename",$A$1),FIND("]",CELL("filename",$A$1))+1,255)) -> 0 | AA85: =SUMIFS(Forecast!Z:Z,Forecast!$C:$C,$A85,Forecast!$B:$B,MID(CELL("filename",$A$1),FIND("]",CELL("filename",$A$1))+1,255)) -> 0 | AB85: =SUMIFS(Forecast!AA:AA,Forecast!$C:$C,$A85,Forecast!$B:$B,MID(CELL("filename",$A$1),FIND("]",CELL("filename",$A$1))+1,255)) -> 0 | AC85: =SUMIFS(Forecast!AB:AB,Forecast!$C:$C,$A85,Forecast!$B:$B,MID(CELL("filename",$A$1),FIND("]",CELL("filename",$A$1))+1,255)) -> 0 | AD85: =SUMIFS(Forecast!AC:AC,Forecast!$C:$C,$A85,Forecast!$B:$B,MID(CELL("filename",$A$1),FIND("]",CELL("filename",$A$1))+1,255)) -> 0 | AE85: =SUMIFS(Forecast!AD:AD,Forecast!$C:$C,$A85,Forecast!$B:$B,MID(CELL("filename",$A$1),FIND("]",CELL("filename",$A$1))+1,255)) -> 0 | AF85: =SUMIFS(Forecast!AE:AE,Forecast!$C:$C,$A85,Forecast!$B:$B,MID(CELL("filename",$A$1),FIND("]",CELL("filename",$A$1))+1,255)) -> 0 | AG85: =SUMIFS(Forecast!AF:AF,Forecast!$C:$C,$A85,Forecast!$B:$B,MID(CELL("filename",$A$1),FIND("]",CELL("filename",$A$1))+1,255)) -> 0 | AH85: =SUMIFS(Forecast!AG:AG,Forecast!$C:$C,$A85,Forecast!$B:$B,MID(CELL("filename",$A$1),FIND("]",CELL("filename",$A$1))+1,255)) -> 0 | AI85: =SUMIFS(Forecast!AH:AH,Forecast!$C:$C,$A85,Forecast!$B:$B,MID(CELL("filename",$A$1),FIND("]",CELL("filename",$A$1))+1,255)) -> 0 | AJ85: =SUMIFS(Forecast!AI:AI,Forecast!$C:$C,$A85,Forecast!$B:$B,MID(CELL("filename",$A$1),FIND("]",CELL("filename",$A$1))+1,255)) -> 0 | AK85: =SUMIFS(Forecast!AJ:AJ,Forecast!$C:$C,$A85,Forecast!$B:$B,MID(CELL("filename",$A$1),FIND("]",CELL("filename",$A$1))+1,255)) -> 0 | AL85: =SUMIFS(Forecast!AK:AK,Forecast!$C:$C,$A85,Forecast!$B:$B,MID(CELL("filename",$A$1),FIND("]",CELL("filename",$A$1))+1,255)) -> 0 | AM85: =SUMIFS(Forecast!AL:AL,Forecast!$C:$C,$A85,Forecast!$B:$B,MID(CELL("filename",$A$1),FIND("]",CELL("filename",$A$1))+1,255)) -> 0 | AN85: =SUMIFS(Forecast!AM:AM,Forecast!$C:$C,$A85,Forecast!$B:$B,MID(CELL("filename",$A$1),FIND("]",CELL("filename",$A$1))+1,255)) -> 0 | AO85: =SUMIFS(Forecast!AN:AN,Forecast!$C:$C,$A85,Forecast!$B:$B,MID(CELL("filename",$A$1),FIND("]",CELL("filename",$A$1))+1,255)) -> 0 | AP85: =SUMIFS(Forecast!AO:AO,Forecast!$C:$C,$A85,Forecast!$B:$B,MID(CELL("filename",$A$1),FIND("]",CELL("filename",$A$1))+1,255)) -> 0 | AQ85: =SUMIFS(Forecast!AP:AP,Forecast!$C:$C,$A85,Forecast!$B:$B,MID(CELL("filename",$A$1),FIND("]",CELL("filename",$A$1))+1,255)) -> 0 | AR85: =SUMIFS(Forecast!AQ:AQ,Forecast!$C:$C,$A85,Forecast!$B:$B,MID(CELL("filename",$A$1),FIND("]",CELL("filename",$A$1))+1,255)) -> 0 | AS85: =SUMIFS(Forecast!AR:AR,Forecast!$C:$C,$A85,Forecast!$B:$B,MID(CELL("filename",$A$1),FIND("]",CELL("filename",$A$1))+1,255)) -> 0 | AT85: =SUMIFS(Forecast!AS:AS,Forecast!$C:$C,$A85,Forecast!$B:$B,MID(CELL("filename",$A$1),FIND("]",CELL("filename",$A$1))+1,255)) -> 0 | AU85: =SUMIFS(Forecast!AT:AT,Forecast!$C:$C,$A85,Forecast!$B:$B,MID(CELL("filename",$A$1),FIND("]",CELL("filename",$A$1))+1,255)) -> 0 | AV85: =SUMIFS(Forecast!AU:AU,Forecast!$C:$C,$A85,Forecast!$B:$B,MID(CELL("filename",$A$1),FIND("]",CELL("filename",$A$1))+1,255)) -> 0 | AW85: =SUMIFS(Forecast!AV:AV,Forecast!$C:$C,$A85,Forecast!$B:$B,MID(CELL("filename",$A$1),FIND("]",CELL("filename",$A$1))+1,255)) -> 0 | AX85: =SUMIFS(Forecast!AW:AW,Forecast!$C:$C,$A85,Forecast!$B:$B,MID(CELL("filename",$A$1),FIND("]",CELL("filename",$A$1))+1,255)) -> 0 | AY85: =SUMIFS(Forecast!AX:AX,Forecast!$C:$C,$A85,Forecast!$B:$B,MID(CELL("filename",$A$1),FIND("]",CELL("filename",$A$1))+1,255)) -> 0
A86: 2016 | C86: =SUMIFS(CY_Report!$W:$W,CY_Report!$J:$J,$A86,CY_Report!$E:$E,MID(CELL("filename",$A$1),FIND("]",CELL("filename",$A$1))+1,255),CY_Report!$U:$U,"<>*d*",CY_Report!$U:$U,"<>*t*",CY_Report!$N:$N,"<>"&" 00 00") -> 0 | D86: 0 | E86: =SUMIFS(Forecast!D:D,Forecast!$C:$C,$A86,Forecast!$B:$B,MID(CELL("filename",$A$1),FIND("]",CELL("filename",$A$1))+1,255)) -> 0 | F86: =SUMIFS(Forecast!E:E,Forecast!$C:$C,$A86,Forecast!$B:$B,MID(CELL("filename",$A$1),FIND("]",CELL("filename",$A$1))+1,255)) -> 0 | G86: =SUMIFS(Forecast!F:F,Forecast!$C:$C,$A86,Forecast!$B:$B,MID(CELL("filename",$A$1),FIND("]",CELL("filename",$A$1))+1,255)) -> 0 | H86: =SUMIFS(Forecast!G:G,Forecast!$C:$C,$A86,Forecast!$B:$B,MID(CELL("filename",$A$1),FIND("]",CELL("filename",$A$1))+1,255)) -> 0 | I86: =SUMIFS(Forecast!H:H,Forecast!$C:$C,$A86,Forecast!$B:$B,MID(CELL("filename",$A$1),FIND("]",CELL("filename",$A$1))+1,255)) -> 0 | J86: =SUMIFS(Forecast!I:I,Forecast!$C:$C,$A86,Forecast!$B:$B,MID(CELL("filename",$A$1),FIND("]",CELL("filename",$A$1))+1,255)) -> 0 | K86: =SUMIFS(Forecast!J:J,Forecast!$C:$C,$A86,Forecast!$B:$B,MID(CELL("filename",$A$1),FIND("]",CELL("filename",$A$1))+1,255)) -> 0 | L86: =SUMIFS(Forecast!K:K,Forecast!$C:$C,$A86,Forecast!$B:$B,MID(CELL("filename",$A$1),FIND("]",CELL("filename",$A$1))+1,255)) -> 0 | M86: =SUMIFS(Forecast!L:L,Forecast!$C:$C,$A86,Forecast!$B:$B,MID(CELL("filename",$A$1),FIND("]",CELL("filename",$A$1))+1,255)) -> 0 | N86: =SUMIFS(Forecast!M:M,Forecast!$C:$C,$A86,Forecast!$B:$B,MID(CELL("filename",$A$1),FIND("]",CELL("filename",$A$1))+1,255)) -> 0 | O86: =SUMIFS(Forecast!N:N,Forecast!$C:$C,$A86,Forecast!$B:$B,MID(CELL("filename",$A$1),FIND("]",CELL("filename",$A$1))+1,255)) -> 0 | P86: =SUMIFS(Forecast!O:O,Forecast!$C:$C,$A86,Forecast!$B:$B,MID(CELL("filename",$A$1),FIND("]",CELL("filename",$A$1))+1,255)) -> 0 | Q86: =SUMIFS(Forecast!P:P,Forecast!$C:$C,$A86,Forecast!$B:$B,MID(CELL("filename",$A$1),FIND("]",CELL("filename",$A$1))+1,255)) -> 0 | R86: =SUMIFS(Forecast!Q:Q,Forecast!$C:$C,$A86,Forecast!$B:$B,MID(CELL("filename",$A$1),FIND("]",CELL("filename",$A$1))+1,255)) -> 0 | S86: =SUMIFS(Forecast!R:R,Forecast!$C:$C,$A86,Forecast!$B:$B,MID(CELL("filename",$A$1),FIND("]",CELL("filename",$A$1))+1,255)) -> 0 | T86: =SUMIFS(Forecast!S:S,Forecast!$C:$C,$A86,Forecast!$B:$B,MID(CELL("filename",$A$1),FIND("]",CELL("filename",$A$1))+1,255)) -> 0 | U86: =SUMIFS(Forecast!T:T,Forecast!$C:$C,$A86,Forecast!$B:$B,MID(CELL("filename",$A$1),FIND("]",CELL("filename",$A$1))+1,255)) -> 0 | V86: =SUMIFS(Forecast!U:U,Forecast!$C:$C,$A86,Forecast!$B:$B,MID(CELL("filename",$A$1),FIND("]",CELL("filename",$A$1))+1,255)) -> 0 | W86: =SUMIFS(Forecast!V:V,Forecast!$C:$C,$A86,Forecast!$B:$B,MID(CELL("filename",$A$1),FIND("]",CELL("filename",$A$1))+1,255)) -> 0 | X86: =SUMIFS(Forecast!W:W,Forecast!$C:$C,$A86,Forecast!$B:$B,MID(CELL("filename",$A$1),FIND("]",CELL("filename",$A$1))+1,255)) -> 0 | Y86: =SUMIFS(Forecast!X:X,Forecast!$C:$C,$A86,Forecast!$B:$B,MID(CELL("filename",$A$1),FIND("]",CELL("filename",$A$1))+1,255)) -> 0 | Z86: =SUMIFS(Forecast!Y:Y,Forecast!$C:$C,$A86,Forecast!$B:$B,MID(CELL("filename",$A$1),FIND("]",CELL("filename",$A$1))+1,255)) -> 0 | AA86: =SUMIFS(Forecast!Z:Z,Forecast!$C:$C,$A86,Forecast!$B:$B,MID(CELL("filename",$A$1),FIND("]",CELL("filename",$A$1))+1,255)) -> 0 | AB86: =SUMIFS(Forecast!AA:AA,Forecast!$C:$C,$A86,Forecast!$B:$B,MID(CELL("filename",$A$1),FIND("]",CELL("filename",$A$1))+1,255)) -> 0 | AC86: =SUMIFS(Forecast!AB:AB,Forecast!$C:$C,$A86,Forecast!$B:$B,MID(CELL("filename",$A$1),FIND("]",CELL("filename",$A$1))+1,255)) -> 0 | AD86: =SUMIFS(Forecast!AC:AC,Forecast!$C:$C,$A86,Forecast!$B:$B,MID(CELL("filename",$A$1),FIND("]",CELL("filename",$A$1))+1,255)) -> 0 | AE86: =SUMIFS(Forecast!AD:AD,Forecast!$C:$C,$A86,Forecast!$B:$B,MID(CELL("filename",$A$1),FIND("]",CELL("filename",$A$1))+1,255)) -> 0 | AF86: =SUMIFS(Forecast!AE:AE,Forecast!$C:$C,$A86,Forecast!$B:$B,MID(CELL("filename",$A$1),FIND("]",CELL("filename",$A$1))+1,255)) -> 0 | AG86: =SUMIFS(Forecast!AF:AF,Forecast!$C:$C,$A86,Forecast!$B:$B,MID(CELL("filename",$A$1),FIND("]",CELL("filename",$A$1))+1,255)) -> 0 | AH86: =SUMIFS(Forecast!AG:AG,Forecast!$C:$C,$A86,Forecast!$B:$B,MID(CELL("filename",$A$1),FIND("]",CELL("filename",$A$1))+1,255)) -> 0 | AI86: =SUMIFS(Forecast!AH:AH,Forecast!$C:$C,$A86,Forecast!$B:$B,MID(CELL("filename",$A$1),FIND("]",CELL("filename",$A$1))+1,255)) -> 0 | AJ86: =SUMIFS(Forecast!AI:AI,Forecast!$C:$C,$A86,Forecast!$B:$B,MID(CELL("filename",$A$1),FIND("]",CELL("filename",$A$1))+1,255)) -> 0 | AK86: =SUMIFS(Forecast!AJ:AJ,Forecast!$C:$C,$A86,Forecast!$B:$B,MID(CELL("filename",$A$1),FIND("]",CELL("filename",$A$1))+1,255)) -> 0 | AL86: =SUMIFS(Forecast!AK:AK,Forecast!$C:$C,$A86,Forecast!$B:$B,MID(CELL("filename",$A$1),FIND("]",CELL("filename",$A$1))+1,255)) -> 0 | AM86: =SUMIFS(Forecast!AL:AL,Forecast!$C:$C,$A86,Forecast!$B:$B,MID(CELL("filename",$A$1),FIND("]",CELL("filename",$A$1))+1,255)) -> 0 | AN86: =SUMIFS(Forecast!AM:AM,Forecast!$C:$C,$A86,Forecast!$B:$B,MID(CELL("filename",$A$1),FIND("]",CELL("filename",$A$1))+1,255)) -> 0 | AO86: =SUMIFS(Forecast!AN:AN,Forecast!$C:$C,$A86,Forecast!$B:$B,MID(CELL("filename",$A$1),FIND("]",CELL("filename",$A$1))+1,255)) -> 0 | AP86: =SUMIFS(Forecast!AO:AO,Forecast!$C:$C,$A86,Forecast!$B:$B,MID(CELL("filename",$A$1),FIND("]",CELL("filename",$A$1))+1,255)) -> 0 | AQ86: =SUMIFS(Forecast!AP:AP,Forecast!$C:$C,$A86,Forecast!$B:$B,MID(CELL("filename",$A$1),FIND("]",CELL("filename",$A$1))+1,255)) -> 0 | AR86: =SUMIFS(Forecast!AQ:AQ,Forecast!$C:$C,$A86,Forecast!$B:$B,MID(CELL("filename",$A$1),FIND("]",CELL("filename",$A$1))+1,255)) -> 0 | AS86: =SUMIFS(Forecast!AR:AR,Forecast!$C:$C,$A86,Forecast!$B:$B,MID(CELL("filename",$A$1),FIND("]",CELL("filename",$A$1))+1,255)) -> 0 | AT86: =SUMIFS(Forecast!AS:AS,Forecast!$C:$C,$A86,Forecast!$B:$B,MID(CELL("filename",$A$1),FIND("]",CELL("filename",$A$1))+1,255)) -> 0 | AU86: =SUMIFS(Forecast!AT:AT,Forecast!$C:$C,$A86,Forecast!$B:$B,MID(CELL("filename",$A$1),FIND("]",CELL("filename",$A$1))+1,255)) -> 0 | AV86: =SUMIFS(Forecast!AU:AU,Forecast!$C:$C,$A86,Forecast!$B:$B,MID(CELL("filename",$A$1),FIND("]",CELL("filename",$A$1))+1,255)) -> 0 | AW86: =SUMIFS(Forecast!AV:AV,Forecast!$C:$C,$A86,Forecast!$B:$B,MID(CELL("filename",$A$1),FIND("]",CELL("filename",$A$1))+1,255)) -> 0 | AX86: =SUMIFS(Forecast!AW:AW,Forecast!$C:$C,$A86,Forecast!$B:$B,MID(CELL("filename",$A$1),FIND("]",CELL("filename",$A$1))+1,255)) -> 0 | AY86: =SUMIFS(Forecast!AX:AX,Forecast!$C:$C,$A86,Forecast!$B:$B,MID(CELL("filename",$A$1),FIND("]",CELL("filename",$A$1))+1,255)) -> 0
A87: 2017 | C87: =SUMIFS(CY_Report!$W:$W,CY_Report!$J:$J,$A87,CY_Report!$E:$E,MID(CELL("filename",$A$1),FIND("]",CELL("filename",$A$1))+1,255),CY_Report!$U:$U,"<>*d*",CY_Report!$U:$U,"<>*t*",CY_Report!$N:$N,"<>"&" 00 00") -> 0 | D87: 0 | E87: =SUMIFS(Forecast!D:D,Forecast!$C:$C,$A87,Forecast!$B:$B,MID(CELL("filename",$A$1),FIND("]",CELL("filename",$A$1))+1,255)) -> 0 | F87: =SUMIFS(Forecast!E:E,Forecast!$C:$C,$A87,Forecast!$B:$B,MID(CELL("filename",$A$1),FIND("]",CELL("filename",$A$1))+1,255)) -> 0 | G87: =SUMIFS(Forecast!F:F,Forecast!$C:$C,$A87,Forecast!$B:$B,MID(CELL("filename",$A$1),FIND("]",CELL("filename",$A$1))+1,255)) -> 0 | H87: =SUMIFS(Forecast!G:G,Forecast!$C:$C,$A87,Forecast!$B:$B,MID(CELL("filename",$A$1),FIND("]",CELL("filename",$A$1))+1,255)) -> 0 | I87: =SUMIFS(Forecast!H:H,Forecast!$C:$C,$A87,Forecast!$B:$B,MID(CELL("filename",$A$1),FIND("]",CELL("filename",$A$1))+1,255)) -> 0 | J87: =SUMIFS(Forecast!I:I,Forecast!$C:$C,$A87,Forecast!$B:$B,MID(CELL("filename",$A$1),FIND("]",CELL("filename",$A$1))+1,255)) -> 0 | K87: =SUMIFS(Forecast!J:J,Forecast!$C:$C,$A87,Forecast!$B:$B,MID(CELL("filename",$A$1),FIND("]",CELL("filename",$A$1))+1,255)) -> 0 | L87: =SUMIFS(Forecast!K:K,Forecast!$C:$C,$A87,Forecast!$B:$B,MID(CELL("filename",$A$1),FIND("]",CELL("filename",$A$1))+1,255)) -> 0 | M87: =SUMIFS(Forecast!L:L,Forecast!$C:$C,$A87,Forecast!$B:$B,MID(CELL("filename",$A$1),FIND("]",CELL("filename",$A$1))+1,255)) -> 0 | N87: =SUMIFS(Forecast!M:M,Forecast!$C:$C,$A87,Forecast!$B:$B,MID(CELL("filename",$A$1),FIND("]",CELL("filename",$A$1))+1,255)) -> 0 | O87: =SUMIFS(Forecast!N:N,Forecast!$C:$C,$A87,Forecast!$B:$B,MID(CELL("filename",$A$1),FIND("]",CELL("filename",$A$1))+1,255)) -> 0 | P87: =SUMIFS(Forecast!O:O,Forecast!$C:$C,$A87,Forecast!$B:$B,MID(CELL("filename",$A$1),FIND("]",CELL("filename",$A$1))+1,255)) -> 0 | Q87: =SUMIFS(Forecast!P:P,Forecast!$C:$C,$A87,Forecast!$B:$B,MID(CELL("filename",$A$1),FIND("]",CELL("filename",$A$1))+1,255)) -> 0 | R87: =SUMIFS(Forecast!Q:Q,Forecast!$C:$C,$A87,Forecast!$B:$B,MID(CELL("filename",$A$1),FIND("]",CELL("filename",$A$1))+1,255)) -> 0 | S87: =SUMIFS(Forecast!R:R,Forecast!$C:$C,$A87,Forecast!$B:$B,MID(CELL("filename",$A$1),FIND("]",CELL("filename",$A$1))+1,255)) -> 0 | T87: =SUMIFS(Forecast!S:S,Forecast!$C:$C,$A87,Forecast!$B:$B,MID(CELL("filename",$A$1),FIND("]",CELL("filename",$A$1))+1,255)) -> 0 | U87: =SUMIFS(Forecast!T:T,Forecast!$C:$C,$A87,Forecast!$B:$B,MID(CELL("filename",$A$1),FIND("]",CELL("filename",$A$1))+1,255)) -> 0 | V87: =SUMIFS(Forecast!U:U,Forecast!$C:$C,$A87,Forecast!$B:$B,MID(CELL("filename",$A$1),FIND("]",CELL("filename",$A$1))+1,255)) -> 0 | W87: =SUMIFS(Forecast!V:V,Forecast!$C:$C,$A87,Forecast!$B:$B,MID(CELL("filename",$A$1),FIND("]",CELL("filename",$A$1))+1,255)) -> 0 | X87: =SUMIFS(Forecast!W:W,Forecast!$C:$C,$A87,Forecast!$B:$B,MID(CELL("filename",$A$1),FIND("]",CELL("filename",$A$1))+1,255)) -> 0 | Y87: =SUMIFS(Forecast!X:X,Forecast!$C:$C,$A87,Forecast!$B:$B,MID(CELL("filename",$A$1),FIND("]",CELL("filename",$A$1))+1,255)) -> 0 | Z87: =SUMIFS(Forecast!Y:Y,Forecast!$C:$C,$A87,Forecast!$B:$B,MID(CELL("filename",$A$1),FIND("]",CELL("filename",$A$1))+1,255)) -> 0 | AA87: =SUMIFS(Forecast!Z:Z,Forecast!$C:$C,$A87,Forecast!$B:$B,MID(CELL("filename",$A$1),FIND("]",CELL("filename",$A$1))+1,255)) -> 0 | AB87: =SUMIFS(Forecast!AA:AA,Forecast!$C:$C,$A87,Forecast!$B:$B,MID(CELL("filename",$A$1),FIND("]",CELL("filename",$A$1))+1,255)) -> 0 | AC87: =SUMIFS(Forecast!AB:AB,Forecast!$C:$C,$A87,Forecast!$B:$B,MID(CELL("filename",$A$1),FIND("]",CELL("filename",$A$1))+1,255)) -> 0 | AD87: =SUMIFS(Forecast!AC:AC,Forecast!$C:$C,$A87,Forecast!$B:$B,MID(CELL("filename",$A$1),FIND("]",CELL("filename",$A$1))+1,255)) -> 0 | AE87: =SUMIFS(Forecast!AD:AD,Forecast!$C:$C,$A87,Forecast!$B:$B,MID(CELL("filename",$A$1),FIND("]",CELL("filename",$A$1))+1,255)) -> 0 | AF87: =SUMIFS(Forecast!AE:AE,Forecast!$C:$C,$A87,Forecast!$B:$B,MID(CELL("filename",$A$1),FIND("]",CELL("filename",$A$1))+1,255)) -> 0 | AG87: =SUMIFS(Forecast!AF:AF,Forecast!$C:$C,$A87,Forecast!$B:$B,MID(CELL("filename",$A$1),FIND("]",CELL("filename",$A$1))+1,255)) -> 0 | AH87: =SUMIFS(Forecast!AG:AG,Forecast!$C:$C,$A87,Forecast!$B:$B,MID(CELL("filename",$A$1),FIND("]",CELL("filename",$A$1))+1,255)) -> 0 | AI87: =SUMIFS(Forecast!AH:AH,Forecast!$C:$C,$A87,Forecast!$B:$B,MID(CELL("filename",$A$1),FIND("]",CELL("filename",$A$1))+1,255)) -> 0 | AJ87: =SUMIFS(Forecast!AI:AI,Forecast!$C:$C,$A87,Forecast!$B:$B,MID(CELL("filename",$A$1),FIND("]",CELL("filename",$A$1))+1,255)) -> 0 | AK87: =SUMIFS(Forecast!AJ:AJ,Forecast!$C:$C,$A87,Forecast!$B:$B,MID(CELL("filename",$A$1),FIND("]",CELL("filename",$A$1))+1,255)) -> 0 | AL87: =SUMIFS(Forecast!AK:AK,Forecast!$C:$C,$A87,Forecast!$B:$B,MID(CELL("filename",$A$1),FIND("]",CELL("filename",$A$1))+1,255)) -> 0 | AM87: =SUMIFS(Forecast!AL:AL,Forecast!$C:$C,$A87,Forecast!$B:$B,MID(CELL("filename",$A$1),FIND("]",CELL("filename",$A$1))+1,255)) -> 0 | AN87: =SUMIFS(Forecast!AM:AM,Forecast!$C:$C,$A87,Forecast!$B:$B,MID(CELL("filename",$A$1),FIND("]",CELL("filename",$A$1))+1,255)) -> 0 | AO87: =SUMIFS(Forecast!AN:AN,Forecast!$C:$C,$A87,Forecast!$B:$B,MID(CELL("filename",$A$1),FIND("]",CELL("filename",$A$1))+1,255)) -> 0 | AP87: =SUMIFS(Forecast!AO:AO,Forecast!$C:$C,$A87,Forecast!$B:$B,MID(CELL("filename",$A$1),FIND("]",CELL("filename",$A$1))+1,255)) -> 0 | AQ87: =SUMIFS(Forecast!AP:AP,Forecast!$C:$C,$A87,Forecast!$B:$B,MID(CELL("filename",$A$1),FIND("]",CELL("filename",$A$1))+1,255)) -> 0 | AR87: =SUMIFS(Forecast!AQ:AQ,Forecast!$C:$C,$A87,Forecast!$B:$B,MID(CELL("filename",$A$1),FIND("]",CELL("filename",$A$1))+1,255)) -> 0 | AS87: =SUMIFS(Forecast!AR:AR,Forecast!$C:$C,$A87,Forecast!$B:$B,MID(CELL("filename",$A$1),FIND("]",CELL("filename",$A$1))+1,255)) -> 0 | AT87: =SUMIFS(Forecast!AS:AS,Forecast!$C:$C,$A87,Forecast!$B:$B,MID(CELL("filename",$A$1),FIND("]",CELL("filename",$A$1))+1,255)) -> 0 | AU87: =SUMIFS(Forecast!AT:AT,Forecast!$C:$C,$A87,Forecast!$B:$B,MID(CELL("filename",$A$1),FIND("]",CELL("filename",$A$1))+1,255)) -> 0 | AV87: =SUMIFS(Forecast!AU:AU,Forecast!$C:$C,$A87,Forecast!$B:$B,MID(CELL("filename",$A$1),FIND("]",CELL("filename",$A$1))+1,255)) -> 0 | AW87: =SUMIFS(Forecast!AV:AV,Forecast!$C:$C,$A87,Forecast!$B:$B,MID(CELL("filename",$A$1),FIND("]",CELL("filename",$A$1))+1,255)) -> 0 | AX87: =SUMIFS(Forecast!AW:AW,Forecast!$C:$C,$A87,Forecast!$B:$B,MID(CELL("filename",$A$1),FIND("]",CELL("filename",$A$1))+1,255)) -> 0 | AY87: =SUMIFS(Forecast!AX:AX,Forecast!$C:$C,$A87,Forecast!$B:$B,MID(CELL("filename",$A$1),FIND("]",CELL("filename",$A$1))+1,255)) -> 0
B89: Total: | C89: =SUM(C67:C88) -> 0 | D89: Tax Depr. Expense | E89: =SUM(E67:E88) -> 0 | F89: =SUM(F67:F88) -> 0 | G89: =SUM(G67:G88) -> 0 | H89: 0 | I89: 0 | J89: 0 | K89: 0 | L89: 0 | M89: 0 | N89: 0 | O89: 0 | P89: 0 | Q89: 0 | R89: 0 | S89: 0 | T89: 0 | U89: 0 | V89: 0 | W89: 0 | X89: 0 | Y89: 0 | Z89: 0 | AA89: 0 | AB89: 0 | AC89: 0 | AD89: 0 | AE89: 0 | AF89: 0 | AG89: 0 | AH89: 0 | AI89: 0 | AJ89: 0 | AK89: 0 | AL89: 0 | AM89: 0 | AN89: 0 | AO89: 0 | AP89: 0 | AQ89: 0 | AR89: 0 | AS89: 0 | AT89: 0 | AU89: 0 | AV89: 0 | AW89: 0 | AX89: 0 | AY89: 0
B93: Ending 2017 | E93: 2018 | F93: =E93+1 -> 2019 | G93: 2020 | H93: 2021 | I93: 2022 | J93: 2023 | K93: 2024 | L93: 2025 | M93: 2026 | N93: 2027 | O93: 2028 | P93: 2029 | Q93: 2030 | R93: 2031 | S93: 2032 | T93: 2033 | U93: 2034 | V93: 2035 | W93: 2036 | X93: 2037 | Y93: 2038 | Z93: 2039 | AA93: 2040 | AB93: 2041 | AC93: 2042 | AD93: 2043 | AE93: 2044 | AF93: 2045 | AG93: 2046 | AH93: 2047 | AI93: 2048 | AJ93: 2049 | AK93: 2050 | AL93: 2051 | AM93: 2052 | AN93: 2053 | AO93: 2054 | AP93: 2055 | AQ93: 2056 | AR93: 2057 | AS93: 2058 | AT93: 2059 | AU93: 2060 | AV93: 2061 | AW93: 2062 | AX93: 2063 | AY93: 2064 | AZ93: 2065 | BA93: 2066 | BB93: 2067 | BC93: 2068 | BD93: 2069 | BE93: 2070 | BF93: 2071 | BG93: 2072 | BH93: 2073 | BI93: 2074 | BJ93: 2075 | BK93: 2076 | BL93: 2077 | BM93: 2078 | BN93: 2079 | BO93: 2080 | BP93: 2081 | BQ93: 2082 | BR93: =BQ93+1 -> 2083 | BS93: 2084 | BT93: 2085 | BU93: 2086 | BV93: 2087 | BW93: 2088 | BX93: 2089 | BY93: 2090 | BZ93: 2091 | CA93: 2092 | CB93: 2093 | CC93: 2094 | CD93: 2095 | CE93: 2096 | CF93: 2097 | CG93: 2098 | CH93: 2099 | CI93: 2100
A94: 1997 & Prior | B94: Initial Difference | C94: =IF(VLOOKUP(A94,$A$38:$C$58,3)-VLOOKUP(A94,$A$67:$C$87,3)<0,0,VLOOKUP(A94,$A$38:$C$58,3)-VLOOKUP(A94,$A$67:$C$87,3)) -> 0 | D94: Begin Cumulative Difference | E94: =+$C94 -> 0 | F94: =+E96 -> 0 | G94: =+F96 -> 0 | H94: 0 | I94: 0 | J94: 0 | K94: 0 | L94: 0 | M94: 0 | N94: 0 | O94: 0 | P94: 0 | Q94: 0 | R94: 0 | S94: 0 | T94: 0 | U94: 0 | V94: 0 | W94: 0 | X94: 0 | Y94: 0 | Z94: 0 | AA94: 0 | AB94: 0 | AC94: 0 | AD94: 0 | AE94: 0 | AF94: 0 | AG94: 0 | AH94: 0 | AI94: 0 | AJ94: 0 | AK94: 0 | AL94: 0 | AM94: 0 | AN94: 0 | AO94: 0 | AP94: 0 | AQ94: 0 | AR94: 0 | AS94: 0 | AT94: 0 | AU94: 0 | AV94: 0 | AW94: 0 | AX94: 0 | AY94: 0 | AZ94: 0 | BA94: 0 | BB94: 0 | BC94: 0 | BD94: 0 | BE94: 0 | BF94: 0 | BG94: 0 | BH94: 0 | BI94: 0 | BJ94: 0 | BK94: 0 | BL94: 0 | BM94: 0 | BN94: 0 | BO94: 0 | BP94: 0 | BQ94: 0 | BR94: 0 | BS94: =+BR96 -> 0 | BT94: 0 | BU94: 0 | BV94: 0 | BW94: 0 | BX94: 0 | BY94: 0 | BZ94: 0 | CA94: 0 | CB94: 0 | CC94: 0 | CD94: 0 | CE94: 0 | CF94: 0 | CG94: 0 | CH94: 0 | CI94: 0
D95: Current Diff (Tax - Book) | E95: =IF(E94<=0, 0,VLOOKUP($A94,$A$67:$CI$87,E93-2013)-VLOOKUP($A94,$A$38:$CI$58,E93-2013)) -> 0 | F95: =IF(F94<=0, 0,VLOOKUP($A94,$A$67:$CI$87,F93-2013)-VLOOKUP($A94,$A$38:$CI$58,F93-2013)) -> 0 | G95: =IF(G94<=0, 0,VLOOKUP($A94,$A$67:$CI$87,G93-2013)-VLOOKUP($A94,$A$38:$CI$58,G93-2013)) -> 0 | H95: 0 | I95: 0 | J95: 0 | K95: 0 | L95: 0 | M95: 0 | N95: 0 | O95: 0 | P95: 0 | Q95: 0 | R95: 0 | S95: 0 | T95: 0 | U95: 0 | V95: 0 | W95: 0 | X95: 0 | Y95: 0 | Z95: 0 | AA95: 0 | AB95: 0 | AC95: 0 | AD95: 0 | AE95: 0 | AF95: 0 | AG95: 0 | AH95: 0 | AI95: 0 | AJ95: 0 | AK95: 0 | AL95: 0 | AM95: 0 | AN95: 0 | AO95: 0 | AP95: 0 | AQ95: 0 | AR95: 0 | AS95: 0 | AT95: 0 | AU95: 0 | AV95: 0 | AW95: 0 | AX95: 0 | AY95: 0 | AZ95: 0 | BA95: 0 | BB95: 0 | BC95: 0 | BD95: 0 | BE95: 0 | BF95: 0 | BG95: 0 | BH95: 0 | BI95: 0 | BJ95: 0 | BK95: 0 | BL95: 0 | BM95: 0 | BN95: 0 | BO95: 0 | BP95: 0 | BQ95: 0 | BR95: 0 | BS95: =IF(BS94<=0, 0,VLOOKUP($A94,$A$67:$CI$87,BS93-2013)-VLOOKUP($A94,$A$38:$CI$58,BS93-2013)) -> 0 | BT95: 0 | BU95: 0 | BV95: 0 | BW95: 0 | BX95: 0 | BY95: 0 | BZ95: 0 | CA95: 0 | CB95: 0 | CC95: 0 | CD95: 0 | CE95: 0 | CF95: 0 | CG95: 0 | CH95: 0 | CI95: 0
D96: End Cumulative Difference | E96: =IF(E94+E95<0, 0, E94+E95) -> 0 | F96: =IF(F94+F95<0, 0, F94+F95) -> 0 | G96: 0 | H96: 0 | I96: 0 | J96: 0 | K96: 0 | L96: 0 | M96: 0 | N96: 0 | O96: 0 | P96: 0 | Q96: 0 | R96: 0 | S96: 0 | T96: 0 | U96: 0 | V96: 0 | W96: 0 | X96: 0 | Y96: 0 | Z96: 0 | AA96: 0 | AB96: 0 | AC96: 0 | AD96: 0 | AE96: 0 | AF96: 0 | AG96: 0 | AH96: 0 | AI96: 0 | AJ96: 0 | AK96: 0 | AL96: 0 | AM96: 0 | AN96: 0 | AO96: 0 | AP96: 0 | AQ96: 0 | AR96: 0 | AS96: 0 | AT96: 0 | AU96: 0 | AV96: 0 | AW96: 0 | AX96: 0 | AY96: 0 | AZ96: 0 | BA96: 0 | BB96: 0 | BC96: 0 | BD96: 0 | BE96: 0 | BF96: 0 | BG96: 0 | BH96: 0 | BI96: 0 | BJ96: 0 | BK96: 0 | BL96: 0 | BM96: 0 | BN96: 0 | BO96: 0 | BP96: 0 | BQ96: 0 | BR96: =IF(BR94+BR95<0, 0, BR94+BR95) -> 0 | BS96: 0 | BT96: 0 | BU96: 0 | BV96: 0 | BW96: 0 | BX96: 0 | BY96: 0 | BZ96: 0 | CA96: 0 | CB96: 0 | CC96: 0 | CD96: 0 | CE96: 0 | CF96: 0 | CG96: 0 | CH96: 0 | CI96: 0
D97: Current Diff (Tax - Book) Utilized | E97: =IF(E94+E95>0, E95, IF(E94+E95<0,-E94,E94+E95)) -> 0 | F97: =IF(F94+F95>0, F95, IF(F94+F95<0,-F94,F94+F95)) -> 0 | G97: 0 | H97: 0 | I97: 0 | J97: 0 | K97: 0 | L97: 0 | M97: 0 | N97: 0 | O97: 0 | P97: 0 | Q97: 0 | R97: 0 | S97: 0 | T97: 0 | U97: 0 | V97: 0 | W97: 0 | X97: 0 | Y97: 0 | Z97: 0 | AA97: 0 | AB97: 0 | AC97: 0 | AD97: 0 | AE97: 0 | AF97: 0 | AG97: 0 | AH97: 0 | AI97: 0 | AJ97: 0 | AK97: 0 | AL97: 0 | AM97: 0 | AN97: 0 | AO97: 0 | AP97: 0 | AQ97: 0 | AR97: 0 | AS97: 0 | AT97: 0 | AU97: 0 | AV97: 0 | AW97: 0 | AX97: 0 | AY97: 0 | AZ97: 0 | BA97: 0 | BB97: 0 | BC97: 0 | BD97: 0 | BE97: 0 | BF97: 0 | BG97: 0 | BH97: 0 | BI97: 0 | BJ97: 0 | BK97: 0 | BL97: 0 | BM97: 0 | BN97: 0 | BO97: 0 | BP97: 0 | BQ97: 0 | BR97: =IF(BR94+BR95>0, BR95, IF(BR94+BR95<0,-BR94,BR94+BR95)) -> 0 | BS97: 0 | BT97: 0 | BU97: 0 | BV97: 0 | BW97: 0 | BX97: 0 | BY97: 0 | BZ97: 0 | CA97: 0 | CB97: 0 | CC97: 0 | CD97: 0 | CE97: 0 | CF97: 0 | CG97: 0 | CH97: 0 | CI97: 0
B98: Historical Tax rate | C98: =+$E$2 -> 0.38575 | D98: Tax rate (or ARAM rate) | E98: =IF(E94=0,0,IF(E95>0,$C99,C103)) -> 0 | F98: =IF(F94=0,0,IF(F95>0,$C99,E104)) -> 0 | G98: =IF(G94=0,0,IF(G95>0,$C99,F104)) -> 0 | H98: 0 | I98: 0 | J98: 0 | K98: 0 | L98: 0 | M98: 0 | N98: 0 | O98: 0 | P98: 0 | Q98: 0 | R98: 0 | S98: 0 | T98: 0 | U98: 0 | V98: 0 | W98: 0 | X98: 0 | Y98: 0 | Z98: 0 | AA98: 0 | AB98: 0 | AC98: 0 | AD98: 0 | AE98: 0 | AF98: 0 | AG98: 0 | AH98: 0 | AI98: 0 | AJ98: 0 | AK98: 0 | AL98: 0 | AM98: 0 | AN98: 0 | AO98: 0 | AP98: 0 | AQ98: 0 | AR98: 0 | AS98: 0 | AT98: 0 | AU98: 0 | AV98: 0 | AW98: 0 | AX98: 0 | AY98: 0 | AZ98: 0 | BA98: 0 | BB98: 0 | BC98: 0 | BD98: 0 | BE98: 0 | BF98: 0 | BG98: 0 | BH98: 0 | BI98: 0 | BJ98: 0 | BK98: 0 | BL98: 0 | BM98: 0 | BN98: 0 | BO98: 0 | BP98: 0 | BQ98: 0 | BR98: 0 | BS98: =IF(BS94=0,0,IF(BS95>0,$C99,BR104)) -> 0 | BT98: 0 | BU98: 0 | BV98: 0 | BW98: 0 | BX98: 0 | BY98: 0 | BZ98: 0 | CA98: 0 | CB98: 0 | CC98: 0 | CD98: 0 | CE98: 0 | CF98: 0 | CG98: 0 | CH98: 0 | CI98: 0
B99: Current Statutory Rate | C99: =+$E$3 -> 0.25345 | D99: Begin Current DFIT @ Current Statutory | E99: =IF(E94=0,0,E97*$C99) -> 0 | F99: =IF(F94=0,0,F97*$C99) -> 0 | G99: =IF(G94=0,0,G97*$C99) -> 0 | H99: 0 | I99: 0 | J99: 0 | K99: 0 | L99: 0 | M99: 0 | N99: 0 | O99: 0 | P99: 0 | Q99: 0 | R99: 0 | S99: 0 | T99: 0 | U99: 0 | V99: 0 | W99: 0 | X99: 0 | Y99: 0 | Z99: 0 | AA99: 0 | AB99: 0 | AC99: 0 | AD99: 0 | AE99: 0 | AF99: 0 | AG99: 0 | AH99: 0 | AI99: 0 | AJ99: 0 | AK99: 0 | AL99: 0 | AM99: 0 | AN99: 0 | AO99: 0 | AP99: 0 | AQ99: 0 | AR99: 0 | AS99: 0 | AT99: 0 | AU99: 0 | AV99: 0 | AW99: 0 | AX99: 0 | AY99: 0 | AZ99: 0 | BA99: 0 | BB99: 0 | BC99: 0 | BD99: 0 | BE99: 0 | BF99: 0 | BG99: 0 | BH99: 0 | BI99: 0 | BJ99: 0 | BK99: 0 | BL99: 0 | BM99: 0 | BN99: 0 | BO99: 0 | BP99: 0 | BQ99: 0 | BR99: 0 | BS99: =IF(BS94=0,0,BS97*$C99) -> 0 | BT99: 0 | BU99: 0 | BV99: 0 | BW99: 0 | BX99: 0 | BY99: 0 | BZ99: 0 | CA99: 0 | CB99: 0 | CC99: 0 | CD99: 0 | CE99: 0 | CF99: 0 | CG99: 0 | CH99: 0 | CI99: 0
D100: Begin Current DFIT at Statutory or ARAM Rate | E100: =+E97*E98 -> 0 | F100: =+F97*F98 -> 0 | G100: =+G97*G98 -> 0 | H100: 0 | I100: 0 | J100: 0 | K100: 0 | L100: 0 | M100: 0 | N100: 0 | O100: 0 | P100: 0 | Q100: 0 | R100: 0 | S100: 0 | T100: 0 | U100: 0 | V100: 0 | W100: 0 | X100: 0 | Y100: 0 | Z100: 0 | AA100: 0 | AB100: 0 | AC100: 0 | AD100: 0 | AE100: 0 | AF100: 0 | AG100: 0 | AH100: 0 | AI100: 0 | AJ100: 0 | AK100: 0 | AL100: 0 | AM100: 0 | AN100: 0 | AO100: 0 | AP100: 0 | AQ100: 0 | AR100: 0 | AS100: 0 | AT100: 0 | AU100: 0 | AV100: 0 | AW100: 0 | AX100: 0 | AY100: 0 | AZ100: 0 | BA100: 0 | BB100: 0 | BC100: 0 | BD100: 0 | BE100: 0 | BF100: 0 | BG100: 0 | BH100: 0 | BI100: 0 | BJ100: 0 | BK100: 0 | BL100: 0 | BM100: 0 | BN100: 0 | BO100: 0 | BP100: 0 | BQ100: 0 | BR100: 0 | BS100: =+BS97*BS98 -> 0 | BT100: 0 | BU100: 0 | BV100: 0 | BW100: 0 | BX100: 0 | BY100: 0 | BZ100: 0 | CA100: 0 | CB100: 0 | CC100: 0 | CD100: 0 | CE100: 0 | CF100: 0 | CG100: 0 | CH100: 0 | CI100: 0
B101: Initial Cumulative DFIT | C101: =+C94*C98 -> 0 | D101: Begin Cumulative DFIT | E101: =+C101 -> 0 | F101: =+E102 -> 0 | G101: =+F102 -> 0 | H101: 0 | I101: 0 | J101: 0 | K101: 0 | L101: 0 | M101: 0 | N101: 0 | O101: 0 | P101: 0 | Q101: 0 | R101: 0 | S101: 0 | T101: 0 | U101: 0 | V101: 0 | W101: 0 | X101: 0 | Y101: 0 | Z101: 0 | AA101: 0 | AB101: 0 | AC101: 0 | AD101: 0 | AE101: 0 | AF101: 0 | AG101: 0 | AH101: 0 | AI101: 0 | AJ101: 0 | AK101: 0 | AL101: 0 | AM101: 0 | AN101: 0 | AO101: 0 | AP101: 0 | AQ101: 0 | AR101: 0 | AS101: 0 | AT101: 0 | AU101: 0 | AV101: 0 | AW101: 0 | AX101: 0 | AY101: 0 | AZ101: 0 | BA101: 0 | BB101: 0 | BC101: 0 | BD101: 0 | BE101: 0 | BF101: 0 | BG101: 0 | BH101: 0 | BI101: 0 | BJ101: 0 | BK101: 0 | BL101: 0 | BM101: 0 | BN101: 0 | BO101: 0 | BP101: 0 | BQ101: 0 | BR101: 0 | BS101: =+BR102 -> 0 | BT101: 0 | BU101: 0 | BV101: 0 | BW101: 0 | BX101: 0 | BY101: 0 | BZ101: 0 | CA101: 0 | CB101: 0 | CC101: 0 | CD101: 0 | CE101: 0 | CF101: 0 | CG101: 0 | CH101: 0 | CI101: 0
D102: End Cumulative DFIT | E102: =+E101+E100 -> 0 | F102: =IF(F101+F100<=0,0, F101+F100) -> 0 | G102: =IF(G101+G100<=0,0, G101+G100) -> 0 | H102: 0 | I102: 0 | J102: 0 | K102: 0 | L102: 0 | M102: 0 | N102: 0 | O102: 0 | P102: 0 | Q102: 0 | R102: 0 | S102: 0 | T102: 0 | U102: 0 | V102: 0 | W102: 0 | X102: 0 | Y102: 0 | Z102: 0 | AA102: 0 | AB102: 0 | AC102: 0 | AD102: 0 | AE102: 0 | AF102: 0 | AG102: 0 | AH102: 0 | AI102: 0 | AJ102: 0 | AK102: 0 | AL102: 0 | AM102: 0 | AN102: 0 | AO102: 0 | AP102: 0 | AQ102: 0 | AR102: 0 | AS102: 0 | AT102: 0 | AU102: 0 | AV102: 0 | AW102: 0 | AX102: 0 | AY102: 0 | AZ102: 0 | BA102: 0 | BB102: 0 | BC102: 0 | BD102: 0 | BE102: 0 | BF102: 0 | BG102: 0 | BH102: 0 | BI102: 0 | BJ102: 0 | BK102: 0 | BL102: 0 | BM102: 0 | BN102: 0 | BO102: 0 | BP102: 0 | BQ102: 0 | BR102: 0 | BS102: =IF(BS101+BS100<=0,0, BS101+BS100) -> 0 | BT102: 0 | BU102: 0 | BV102: 0 | BW102: 0 | BX102: 0 | BY102: 0 | BZ102: 0 | CA102: 0 | CB102: 0 | CC102: 0 | CD102: 0 | CE102: 0 | CF102: 0 | CG102: 0 | CH102: 0 | CI102: 0
B103: Initial ARAM Rate (cum dfit/cum diff) | C103: =IF(C94=0,0,C101/C94) -> 0 | D103: Begin ARAM Rate (cum dfit/cum diff) | E103: =IF(E94=0,0,+E101/E94) -> 0 | F103: =IF(F94=0,0,+F101/F94) -> 0 | G103: =IF(G94=0,0,+G101/G94) -> 0 | H103: 0 | I103: 0 | J103: 0 | K103: 0 | L103: 0 | M103: 0 | N103: 0 | O103: 0 | P103: 0 | Q103: 0 | R103: 0 | S103: 0 | T103: 0 | U103: 0 | V103: 0 | W103: 0 | X103: 0 | Y103: 0 | Z103: 0 | AA103: 0 | AB103: 0 | AC103: 0 | AD103: 0 | AE103: 0 | AF103: 0 | AG103: 0 | AH103: 0 | AI103: 0 | AJ103: 0 | AK103: 0 | AL103: 0 | AM103: 0 | AN103: 0 | AO103: 0 | AP103: 0 | AQ103: 0 | AR103: 0 | AS103: 0 | AT103: 0 | AU103: 0 | AV103: 0 | AW103: 0 | AX103: 0 | AY103: 0 | AZ103: 0 | BA103: 0 | BB103: 0 | BC103: 0 | BD103: 0 | BE103: 0 | BF103: 0 | BG103: 0 | BH103: 0 | BI103: 0 | BJ103: 0 | BK103: 0 | BL103: 0 | BM103: 0 | BN103: 0 | BO103: 0 | BP103: 0 | BQ103: 0 | BR103: 0 | BS103: =IF(BS94=0,0,+BS101/BS94) -> 0 | BT103: 0 | BU103: 0 | BV103: 0 | BW103: 0 | BX103: 0 | BY103: 0 | BZ103: 0 | CA103: 0 | CB103: 0 | CC103: 0 | CD103: 0 | CE103: 0 | CF103: 0 | CG103: 0 | CH103: 0 | CI103: 0
D104: End ARAM Rate (cum dfit/cum diff) | E104: =IF(E96=0,0,+E102/E96) -> 0 | F104: =IF(F96=0,0,+F102/F96) -> 0 | G104: =IF(G96=0,0,+G102/G96) -> 0 | H104: 0 | I104: 0 | J104: 0 | K104: 0 | L104: 0 | M104: 0 | N104: 0 | O104: 0 | P104: 0 | Q104: 0 | R104: 0 | S104: 0 | T104: 0 | U104: 0 | V104: 0 | W104: 0 | X104: 0 | Y104: 0 | Z104: 0 | AA104: 0 | AB104: 0 | AC104: 0 | AD104: 0 | AE104: 0 | AF104: 0 | AG104: 0 | AH104: 0 | AI104: 0 | AJ104: 0 | AK104: 0 | AL104: 0 | AM104: 0 | AN104: 0 | AO104: 0 | AP104: 0 | AQ104: 0 | AR104: 0 | AS104: 0 | AT104: 0 | AU104: 0 | AV104: 0 | AW104: 0 | AX104: 0 | AY104: 0 | AZ104: 0 | BA104: 0 | BB104: 0 | BC104: 0 | BD104: 0 | BE104: 0 | BF104: 0 | BG104: 0 | BH104: 0 | BI104: 0 | BJ104: 0 | BK104: 0 | BL104: 0 | BM104: 0 | BN104: 0 | BO104: 0 | BP104: 0 | BQ104: 0 | BR104: 0 | BS104: =IF(BS96=0,0,+BS102/BS96) -> 0 | BT104: 0 | BU104: 0 | BV104: 0 | BW104: 0 | BX104: 0 | BY104: 0 | BZ104: 0 | CA104: 0 | CB104: 0 | CC104: 0 | CD104: 0 | CE104: 0 | CF104: 0 | CG104: 0 | CH104: 0 | CI104: 0
B105: Initial Cumulative DFIT at Historic Rate | C105: =+C94*C103 -> 0 | D105: Cumulative DFIT at Historic Rate | E105: =+C105+E100 -> 0 | F105: =+E105+F100 -> 0 | G105: =+F105+G100 -> 0 | H105: 0 | I105: 0 | J105: 0 | K105: 0 | L105: 0 | M105: 0 | N105: 0 | O105: 0 | P105: 0 | Q105: 0 | R105: 0 | S105: 0 | T105: 0 | U105: 0 | V105: 0 | W105: 0 | X105: 0 | Y105: 0 | Z105: 0 | AA105: 0 | AB105: 0 | AC105: 0 | AD105: 0 | AE105: 0 | AF105: 0 | AG105: 0 | AH105: 0 | AI105: 0 | AJ105: 0 | AK105: 0 | AL105: 0 | AM105: 0 | AN105: 0 | AO105: 0 | AP105: 0 | AQ105: 0 | AR105: 0 | AS105: 0 | AT105: 0 | AU105: 0 | AV105: 0 | AW105: 0 | AX105: 0 | AY105: 0 | AZ105: 0 | BA105: 0 | BB105: 0 | BC105: 0 | BD105: 0 | BE105: 0 | BF105: 0 | BG105: 0 | BH105: 0 | BI105: 0 | BJ105: 0 | BK105: 0 | BL105: 0 | BM105: 0 | BN105: 0 | BO105: 0 | BP105: 0 | BQ105: 0 | BR105: 0 | BS105: =+BR105+BS100 -> 0 | BT105: 0 | BU105: 0 | BV105: 0 | BW105: 0 | BX105: 0 | BY105: 0 | BZ105: 0 | CA105: 0 | CB105: 0 | CC105: 0 | CD105: 0 | CE105: 0 | CF105: 0 | CG105: 0 | CH105: 0 | CI105: 0
B106: Initial Cumulative DFIT at Statutory Rate | C106: =+C94*C99 -> 0 | D106: Cumulative DFIT at Statutory Rate | E106: =IF(E99<>0,+C106+E99,0) -> 0 | F106: =IF(F99<>0,+E106+F99,0) -> 0 | G106: =IF(G99<>0,+F106+G99,0) -> 0 | H106: 0 | I106: 0 | J106: 0 | K106: 0 | L106: 0 | M106: 0 | N106: 0 | O106: 0 | P106: 0 | Q106: 0 | R106: 0 | S106: 0 | T106: 0 | U106: 0 | V106: 0 | W106: 0 | X106: 0 | Y106: 0 | Z106: 0 | AA106: 0 | AB106: 0 | AC106: 0 | AD106: 0 | AE106: 0 | AF106: 0 | AG106: 0 | AH106: 0 | AI106: 0 | AJ106: 0 | AK106: 0 | AL106: 0 | AM106: 0 | AN106: 0 | AO106: 0 | AP106: 0 | AQ106: 0 | AR106: 0 | AS106: 0 | AT106: 0 | AU106: 0 | AV106: 0 | AW106: 0 | AX106: 0 | AY106: 0 | AZ106: 0 | BA106: 0 | BB106: 0 | BC106: 0 | BD106: 0 | BE106: 0 | BF106: 0 | BG106: 0 | BH106: 0 | BI106: 0 | BJ106: 0 | BK106: 0 | BL106: 0 | BM106: 0 | BN106: 0 | BO106: 0 | BP106: 0 | BQ106: 0 | BR106: 0 | BS106: =IF(BS99<>0,+BR106+BS99,0) -> 0 | BT106: 0 | BU106: 0 | BV106: 0 | BW106: 0 | BX106: 0 | BY106: 0 | BZ106: 0 | CA106: 0 | CB106: 0 | CC106: 0 | CD106: 0 | CE106: 0 | CF106: 0 | CG106: 0 | CH106: 0 | CI106: 0
D107: Begin Excess Deferred | E107: =+C109 -> 0 | F107: =+E109 -> 0 | G107: =+F109 -> 0 | H107: 0 | I107: 0 | J107: 0 | K107: 0 | L107: 0 | M107: 0 | N107: 0 | O107: 0 | P107: 0 | Q107: 0 | R107: 0 | S107: 0 | T107: 0 | U107: 0 | V107: 0 | W107: 0 | X107: 0 | Y107: 0 | Z107: 0 | AA107: 0 | AB107: 0 | AC107: 0 | AD107: 0 | AE107: 0 | AF107: 0 | AG107: 0 | AH107: 0 | AI107: 0 | AJ107: 0 | AK107: 0 | AL107: 0 | AM107: 0 | AN107: 0 | AO107: 0 | AP107: 0 | AQ107: 0 | AR107: 0 | AS107: 0 | AT107: 0 | AU107: 0 | AV107: 0 | AW107: 0 | AX107: 0 | AY107: 0 | AZ107: 0 | BA107: 0 | BB107: 0 | BC107: 0 | BD107: 0 | BE107: 0 | BF107: 0 | BG107: 0 | BH107: 0 | BI107: 0 | BJ107: 0 | BK107: 0 | BL107: 0 | BM107: 0 | BN107: 0 | BO107: 0 | BP107: 0 | BQ107: 0 | BR107: 0 | BS107: =+BR109 -> 0 | BT107: 0 | BU107: 0 | BV107: 0 | BW107: 0 | BX107: 0 | BY107: 0 | BZ107: 0 | CA107: 0 | CB107: 0 | CC107: 0 | CD107: 0 | CE107: 0 | CF107: 0 | CG107: 0 | CH107: 0 | CI107: 0
D108: Amortization of Excess Deferred | E108: =+E99-E100 -> 0 | F108: =+F99-F100 -> 0 | G108: 0 | H108: 0 | I108: 0 | J108: 0 | K108: 0 | L108: 0 | M108: 0 | N108: 0 | O108: 0 | P108: 0 | Q108: 0 | R108: 0 | S108: 0 | T108: 0 | U108: 0 | V108: 0 | W108: 0 | X108: 0 | Y108: 0 | Z108: 0 | AA108: 0 | AB108: 0 | AC108: 0 | AD108: 0 | AE108: 0 | AF108: 0 | AG108: 0 | AH108: 0 | AI108: 0 | AJ108: 0 | AK108: 0 | AL108: 0 | AM108: 0 | AN108: 0 | AO108: 0 | AP108: 0 | AQ108: 0 | AR108: 0 | AS108: 0 | AT108: 0 | AU108: 0 | AV108: 0 | AW108: 0 | AX108: 0 | AY108: 0 | AZ108: 0 | BA108: 0 | BB108: 0 | BC108: 0 | BD108: 0 | BE108: 0 | BF108: 0 | BG108: 0 | BH108: 0 | BI108: 0 | BJ108: 0 | BK108: 0 | BL108: 0 | BM108: 0 | BN108: 0 | BO108: 0 | BP108: 0 | BQ108: 0 | BR108: =+BR99-BR100 -> 0 | BS108: 0 | BT108: 0 | BU108: 0 | BV108: 0 | BW108: 0 | BX108: 0 | BY108: 0 | BZ108: 0 | CA108: 0 | CB108: 0 | CC108: 0 | CD108: 0 | CE108: 0 | CF108: 0 | CG108: 0 | CH108: 0 | CI108: 0
B109: Initial Excess Deferred | C109: =+C105-C106 -> 0 | D109: End Excess Deferred | E109: =+E107-E108 -> 0 | F109: =+F107-F108 -> 0 | G109: 0 | H109: 0 | I109: 0 | J109: 0 | K109: 0 | L109: 0 | M109: 0 | N109: 0 | O109: 0 | P109: 0 | Q109: 0 | R109: 0 | S109: 0 | T109: 0 | U109: 0 | V109: 0 | W109: 0 | X109: 0 | Y109: 0 | Z109: 0 | AA109: 0 | AB109: 0 | AC109: 0 | AD109: 0 | AE109: 0 | AF109: 0 | AG109: 0 | AH109: 0 | AI109: 0 | AJ109: 0 | AK109: 0 | AL109: 0 | AM109: 0 | AN109: 0 | AO109: 0 | AP109: 0 | AQ109: 0 | AR109: 0 | AS109: 0 | AT109: 0 | AU109: 0 | AV109: 0 | AW109: 0 | AX109: 0 | AY109: 0 | AZ109: 0 | BA109: 0 | BB109: 0 | BC109: 0 | BD109: 0 | BE109: 0 | BF109: 0 | BG109: 0 | BH109: 0 | BI109: 0 | BJ109: 0 | BK109: 0 | BL109: 0 | BM109: 0 | BN109: 0 | BO109: 0 | BP109: 0 | BQ109: 0 | BR109: =+BR107-BR108 -> 0 | BS109: 0 | BT109: 0 | BU109: 0 | BV109: 0 | BW109: 0 | BX109: 0 | BY109: 0 | BZ109: 0 | CA109: 0 | CB109: 0 | CC109: 0 | CD109: 0 | CE109: 0 | CF109: 0 | CG109: 0 | CH109: 0 | CI109: 0
B110: Amortization/Reduction to Tax | C110: Reversal Check | D110: =SUM(E110:CI110) -> 0 | E110: =+E99-E100 -> 0 | F110: =+F99-F100 -> 0 | G110: =+G99-G100 -> 0 | H110: 0 | I110: 0 | J110: 0 | K110: 0 | L110: 0 | M110: 0 | N110: 0 | O110: 0 | P110: 0 | Q110: 0 | R110: 0 | S110: 0 | T110: 0 | U110: 0 | V110: 0 | W110: 0 | X110: 0 | Y110: 0 | Z110: 0 | AA110: 0 | AB110: 0 | AC110: 0 | AD110: 0 | AE110: 0 | AF110: 0 | AG110: 0 | AH110: 0 | AI110: 0 | AJ110: 0 | AK110: 0 | AL110: 0 | AM110: 0 | AN110: 0 | AO110: 0 | AP110: 0 | AQ110: 0 | AR110: 0 | AS110: 0 | AT110: 0 | AU110: 0 | AV110: 0 | AW110: 0 | AX110: 0 | AY110: 0 | AZ110: 0 | BA110: 0 | BB110: 0 | BC110: 0 | BD110: 0 | BE110: 0 | BF110: 0 | BG110: 0 | BH110: 0 | BI110: 0 | BJ110: 0 | BK110: 0 | BL110: 0 | BM110: 0 | BN110: 0 | BO110: 0 | BP110: 0 | BQ110: 0 | BR110: 0 | BS110: =+BS99-BS100 -> 0 | BT110: 0 | BU110: 0 | BV110: 0 | BW110: 0 | BX110: 0 | BY110: 0 | BZ110: 0 | CA110: 0 | CB110: 0 | CC110: 0 | CD110: 0 | CE110: 0 | CF110: 0 | CG110: 0 | CH110: 0 | CI110: 0
B112: Ending 2017 | E112: 2018 | F112: =E112+1 -> 2019 | G112: 2020 | H112: 2021 | I112: 2022 | J112: 2023 | K112: 2024 | L112: 2025 | M112: 2026 | N112: 2027 | O112: 2028 | P112: 2029 | Q112: 2030 | R112: 2031 | S112: 2032 | T112: 2033 | U112: 2034 | V112: 2035 | W112: 2036 | X112: 2037 | Y112: 2038 | Z112: 2039 | AA112: 2040 | AB112: 2041 | AC112: 2042 | AD112: 2043 | AE112: 2044 | AF112: 2045 | AG112: 2046 | AH112: 2047 | AI112: 2048 | AJ112: 2049 | AK112: 2050 | AL112: 2051 | AM112: 2052 | AN112: 2053 | AO112: 2054 | AP112: 2055 | AQ112: 2056 | AR112: 2057 | AS112: 2058 | AT112: 2059 | AU112: 2060 | AV112: 2061 | AW112: 2062 | AX112: 2063 | AY112: 2064 | AZ112: 2065 | BA112: 2066 | BB112: 2067 | BC112: 2068 | BD112: 2069 | BE112: 2070 | BF112: 2071 | BG112: 2072 | BH112: 2073 | BI112: 2074 | BJ112: 2075 | BK112: 2076 | BL112: 2077 | BM112: 2078 | BN112: 2079 | BO112: 2080 | BP112: 2081 | BQ112: 2082 | BR112: =BQ112+1 -> 2083 | BS112: 2084 | BT112: 2085 | BU112: 2086 | BV112: 2087 | BW112: 2088 | BX112: 2089 | BY112: 2090 | BZ112: 2091 | CA112: 2092 | CB112: 2093 | CC112: 2094 | CD112: 2095 | CE112: 2096 | CF112: 2097 | CG112: 2098 | CH112: 2099 | CI112: 2100
A113: 1998 | B113: Initial Difference | C113: =IF(VLOOKUP(A113,$A$38:$C$58,3)-VLOOKUP(A113,$A$67:$C$87,3)<0,0,VLOOKUP(A113,$A$38:$C$58,3)-VLOOKUP(A113,$A$67:$C$87,3)) -> 0 | D113: Begin Cumulative Difference | E113: =+$C113 -> 0 | F113: =+E115 -> 0 | G113: =+F115 -> 0 | H113: 0 | I113: 0 | J113: 0 | K113: 0 | L113: 0 | M113: 0 | N113: 0 | O113: 0 | P113: 0 | Q113: 0 | R113: 0 | S113: 0 | T113: 0 | U113: 0 | V113: 0 | W113: 0 | X113: 0 | Y113: 0 | Z113: 0 | AA113: 0 | AB113: 0 | AC113: 0 | AD113: 0 | AE113: 0 | AF113: 0 | AG113: 0 | AH113: 0 | AI113: 0 | AJ113: 0 | AK113: 0 | AL113: 0 | AM113: 0 | AN113: 0 | AO113: 0 | AP113: 0 | AQ113: 0 | AR113: 0 | AS113: 0 | AT113: 0 | AU113: 0 | AV113: 0 | AW113: 0 | AX113: 0 | AY113: 0 | AZ113: 0 | BA113: 0 | BB113: 0 | BC113: 0 | BD113: 0 | BE113: 0 | BF113: 0 | BG113: 0 | BH113: 0 | BI113: 0 | BJ113: 0 | BK113: 0 | BL113: 0 | BM113: 0 | BN113: 0 | BO113: 0 | BP113: 0 | BQ113: 0 | BR113: 0 | BS113: =+BR115 -> 0 | BT113: 0 | BU113: 0 | BV113: 0 | BW113: 0 | BX113: 0 | BY113: 0 | BZ113: 0 | CA113: 0 | CB113: 0 | CC113: 0 | CD113: 0 | CE113: 0 | CF113: 0 | CG113: 0 | CH113: 0 | CI113: 0
D114: Current Diff (Tax - Book) | E114: =IF(E113<=0, 0,VLOOKUP($A113,$A$67:$CI$87,E112-2013)-VLOOKUP($A113,$A$38:$CI$58,E112-2013)) -> 0 | F114: =IF(F113<=0, 0,VLOOKUP($A113,$A$67:$CI$87,F112-2013)-VLOOKUP($A113,$A$38:$CI$58,F112-2013)) -> 0 | G114: 0 | H114: 0 | I114: 0 | J114: 0 | K114: 0 | L114: 0 | M114: 0 | N114: 0 | O114: 0 | P114: 0 | Q114: 0 | R114: 0 | S114: 0 | T114: 0 | U114: 0 | V114: 0 | W114: 0 | X114: 0 | Y114: 0 | Z114: 0 | AA114: 0 | AB114: 0 | AC114: 0 | AD114: 0 | AE114: 0 | AF114: 0 | AG114: 0 | AH114: 0 | AI114: 0 | AJ114: 0 | AK114: 0 | AL114: 0 | AM114: 0 | AN114: 0 | AO114: 0 | AP114: 0 | AQ114: 0 | AR114: 0 | AS114: 0 | AT114: 0 | AU114: 0 | AV114: 0 | AW114: 0 | AX114: 0 | AY114: 0 | AZ114: 0 | BA114: 0 | BB114: 0 | BC114: 0 | BD114: 0 | BE114: 0 | BF114: 0 | BG114: 0 | BH114: 0 | BI114: 0 | BJ114: 0 | BK114: 0 | BL114: 0 | BM114: 0 | BN114: 0 | BO114: 0 | BP114: 0 | BQ114: 0 | BR114: =IF(BR113<=0, 0,VLOOKUP($A113,$A$67:$CI$87,BR112-2013)-VLOOKUP($A113,$A$38:$CI$58,BR112-2013)) -> 0 | BS114: 0 | BT114: 0 | BU114: 0 | BV114: 0 | BW114: 0 | BX114: 0 | BY114: 0 | BZ114: 0 | CA114: 0 | CB114: 0 | CC114: 0 | CD114: 0 | CE114: 0 | CF114: 0 | CG114: 0 | CH114: 0 | CI114: 0
D115: End Cumulative Difference | E115: =IF(E113+E114<0, 0, E113+E114) -> 0 | F115: =IF(F113+F114<0, 0, F113+F114) -> 0 | G115: 0 | H115: 0 | I115: 0 | J115: 0 | K115: 0 | L115: 0 | M115: 0 | N115: 0 | O115: 0 | P115: 0 | Q115: 0 | R115: 0 | S115: 0 | T115: 0 | U115: 0 | V115: 0 | W115: 0 | X115: 0 | Y115: 0 | Z115: 0 | AA115: 0 | AB115: 0 | AC115: 0 | AD115: 0 | AE115: 0 | AF115: 0 | AG115: 0 | AH115: 0 | AI115: 0 | AJ115: 0 | AK115: 0 | AL115: 0 | AM115: 0 | AN115: 0 | AO115: 0 | AP115: 0 | AQ115: 0 | AR115: 0 | AS115: 0 | AT115: 0 | AU115: 0 | AV115: 0 | AW115: 0 | AX115: 0 | AY115: 0 | AZ115: 0 | BA115: 0 | BB115: 0 | BC115: 0 | BD115: 0 | BE115: 0 | BF115: 0 | BG115: 0 | BH115: 0 | BI115: 0 | BJ115: 0 | BK115: 0 | BL115: 0 | BM115: 0 | BN115: 0 | BO115: 0 | BP115: 0 | BQ115: 0 | BR115: =IF(BR113+BR114<0, 0, BR113+BR114) -> 0 | BS115: 0 | BT115: 0 | BU115: 0 | BV115: 0 | BW115: 0 | BX115: 0 | BY115: 0 | BZ115: 0 | CA115: 0 | CB115: 0 | CC115: 0 | CD115: 0 | CE115: 0 | CF115: 0 | CG115: 0 | CH115: 0 | CI115: 0
D116: Current Diff (Tax - Book) Utilized | E116: =IF(E113+E114>0, E114, IF(E113+E114<0,-E113,E113+E114)) -> 0 | F116: =IF(F113+F114>0, F114, IF(F113+F114<0,-F113,F113+F114)) -> 0 | G116: 0 | H116: 0 | I116: 0 | J116: 0 | K116: 0 | L116: 0 | M116: 0 | N116: 0 | O116: 0 | P116: 0 | Q116: 0 | R116: 0 | S116: 0 | T116: 0 | U116: 0 | V116: 0 | W116: 0 | X116: 0 | Y116: 0 | Z116: 0 | AA116: 0 | AB116: 0 | AC116: 0 | AD116: 0 | AE116: 0 | AF116: 0 | AG116: 0 | AH116: 0 | AI116: 0 | AJ116: 0 | AK116: 0 | AL116: 0 | AM116: 0 | AN116: 0 | AO116: 0 | AP116: 0 | AQ116: 0 | AR116: 0 | AS116: 0 | AT116: 0 | AU116: 0 | AV116: 0 | AW116: 0 | AX116: 0 | AY116: 0 | AZ116: 0 | BA116: 0 | BB116: 0 | BC116: 0 | BD116: 0 | BE116: 0 | BF116: 0 | BG116: 0 | BH116: 0 | BI116: 0 | BJ116: 0 | BK116: 0 | BL116: 0 | BM116: 0 | BN116: 0 | BO116: 0 | BP116: 0 | BQ116: 0 | BR116: =IF(BR113+BR114>0, BR114, IF(BR113+BR114<0,-BR113,BR113+BR114)) -> 0 | BS116: 0 | BT116: 0 | BU116: 0 | BV116: 0 | BW116: 0 | BX116: 0 | BY116: 0 | BZ116: 0 | CA116: 0 | CB116: 0 | CC116: 0 | CD116: 0 | CE116: 0 | CF116: 0 | CG116: 0 | CH116: 0 | CI116: 0
B117: Historical Tax rate | C117: =+$E$2 -> 0.38575 | D117: Tax rate (or ARAM rate) | E117: =IF(E113=0,0,IF(E114>0,$C118,C122)) -> 0 | F117: =IF(F113=0,0,IF(F114>0,$C118,E123)) -> 0 | G117: =IF(G113=0,0,IF(G114>0,$C118,F123)) -> 0 | H117: 0 | I117: 0 | J117: 0 | K117: 0 | L117: 0 | M117: 0 | N117: 0 | O117: 0 | P117: 0 | Q117: 0 | R117: 0 | S117: 0 | T117: 0 | U117: 0 | V117: 0 | W117: 0 | X117: 0 | Y117: 0 | Z117: 0 | AA117: 0 | AB117: 0 | AC117: 0 | AD117: 0 | AE117: 0 | AF117: 0 | AG117: 0 | AH117: 0 | AI117: 0 | AJ117: 0 | AK117: 0 | AL117: 0 | AM117: 0 | AN117: 0 | AO117: 0 | AP117: 0 | AQ117: 0 | AR117: 0 | AS117: 0 | AT117: 0 | AU117: 0 | AV117: 0 | AW117: 0 | AX117: 0 | AY117: 0 | AZ117: 0 | BA117: 0 | BB117: 0 | BC117: 0 | BD117: 0 | BE117: 0 | BF117: 0 | BG117: 0 | BH117: 0 | BI117: 0 | BJ117: 0 | BK117: 0 | BL117: 0 | BM117: 0 | BN117: 0 | BO117: 0 | BP117: 0 | BQ117: 0 | BR117: 0 | BS117: =IF(BS113=0,0,IF(BS114>0,$C118,BR123)) -> 0 | BT117: 0 | BU117: 0 | BV117: 0 | BW117: 0 | BX117: 0 | BY117: 0 | BZ117: 0 | CA117: 0 | CB117: 0 | CC117: 0 | CD117: 0 | CE117: 0 | CF117: 0 | CG117: 0 | CH117: 0 | CI117: 0
B118: Current Statutory Rate | C118: =+$E$3 -> 0.25345 | D118: Begin Current DFIT @ Current Statutory | E118: =IF(E113=0,0,E116*$C118) -> 0 | F118: =IF(F113=0,0,F116*$C118) -> 0 | G118: =IF(G113=0,0,G116*$C118) -> 0 | H118: 0 | I118: 0 | J118: 0 | K118: 0 | L118: 0 | M118: 0 | N118: 0 | O118: 0 | P118: 0 | Q118: 0 | R118: 0 | S118: 0 | T118: 0 | U118: 0 | V118: 0 | W118: 0 | X118: 0 | Y118: 0 | Z118: 0 | AA118: 0 | AB118: 0 | AC118: 0 | AD118: 0 | AE118: 0 | AF118: 0 | AG118: 0 | AH118: 0 | AI118: 0 | AJ118: 0 | AK118: 0 | AL118: 0 | AM118: 0 | AN118: 0 | AO118: 0 | AP118: 0 | AQ118: 0 | AR118: 0 | AS118: 0 | AT118: 0 | AU118: 0 | AV118: 0 | AW118: 0 | AX118: 0 | AY118: 0 | AZ118: 0 | BA118: 0 | BB118: 0 | BC118: 0 | BD118: 0 | BE118: 0 | BF118: 0 | BG118: 0 | BH118: 0 | BI118: 0 | BJ118: 0 | BK118: 0 | BL118: 0 | BM118: 0 | BN118: 0 | BO118: 0 | BP118: 0 | BQ118: 0 | BR118: 0 | BS118: =IF(BS113=0,0,BS116*$C118) -> 0 | BT118: 0 | BU118: 0 | BV118: 0 | BW118: 0 | BX118: 0 | BY118: 0 | BZ118: 0 | CA118: 0 | CB118: 0 | CC118: 0 | CD118: 0 | CE118: 0 | CF118: 0 | CG118: 0 | CH118: 0 | CI118: 0
D119: Begin Current DFIT at Statutory or ARAM Rate | E119: =+E116*E117 -> 0 | F119: =+F116*F117 -> 0 | G119: =+G116*G117 -> 0 | H119: 0 | I119: 0 | J119: 0 | K119: 0 | L119: 0 | M119: 0 | N119: 0 | O119: 0 | P119: 0 | Q119: 0 | R119: 0 | S119: 0 | T119: 0 | U119: 0 | V119: 0 | W119: 0 | X119: 0 | Y119: 0 | Z119: 0 | AA119: 0 | AB119: 0 | AC119: 0 | AD119: 0 | AE119: 0 | AF119: 0 | AG119: 0 | AH119: 0 | AI119: 0 | AJ119: 0 | AK119: 0 | AL119: 0 | AM119: 0 | AN119: 0 | AO119: 0 | AP119: 0 | AQ119: 0 | AR119: 0 | AS119: 0 | AT119: 0 | AU119: 0 | AV119: 0 | AW119: 0 | AX119: 0 | AY119: 0 | AZ119: 0 | BA119: 0 | BB119: 0 | BC119: 0 | BD119: 0 | BE119: 0 | BF119: 0 | BG119: 0 | BH119: 0 | BI119: 0 | BJ119: 0 | BK119: 0 | BL119: 0 | BM119: 0 | BN119: 0 | BO119: 0 | BP119: 0 | BQ119: 0 | BR119: 0 | BS119: =+BS116*BS117 -> 0 | BT119: 0 | BU119: 0 | BV119: 0 | BW119: 0 | BX119: 0 | BY119: 0 | BZ119: 0 | CA119: 0 | CB119: 0 | CC119: 0 | CD119: 0 | CE119: 0 | CF119: 0 | CG119: 0 | CH119: 0 | CI119: 0
B120: Initial Cumulative DFIT | C120: =+C113*C117 -> 0 | D120: Begin Cumulative DFIT | E120: =+C120 -> 0 | F120: =+E121 -> 0 | G120: =+F121 -> 0 | H120: 0 | I120: 0 | J120: 0 | K120: 0 | L120: 0 | M120: 0 | N120: 0 | O120: 0 | P120: 0 | Q120: 0 | R120: 0 | S120: 0 | T120: 0 | U120: 0 | V120: 0 | W120: 0 | X120: 0 | Y120: 0 | Z120: 0 | AA120: 0 | AB120: 0 | AC120: 0 | AD120: 0 | AE120: 0 | AF120: 0 | AG120: 0 | AH120: 0 | AI120: 0 | AJ120: 0 | AK120: 0 | AL120: 0 | AM120: 0 | AN120: 0 | AO120: 0 | AP120: 0 | AQ120: 0 | AR120: 0 | AS120: 0 | AT120: 0 | AU120: 0 | AV120: 0 | AW120: 0 | AX120: 0 | AY120: 0 | AZ120: 0 | BA120: 0 | BB120: 0 | BC120: 0 | BD120: 0 | BE120: 0 | BF120: 0 | BG120: 0 | BH120: 0 | BI120: 0 | BJ120: 0 | BK120: 0 | BL120: 0 | BM120: 0 | BN120: 0 | BO120: 0 | BP120: 0 | BQ120: 0 | BR120: 0 | BS120: =+BR121 -> 0 | BT120: 0 | BU120: 0 | BV120: 0 | BW120: 0 | BX120: 0 | BY120: 0 | BZ120: 0 | CA120: 0 | CB120: 0 | CC120: 0 | CD120: 0 | CE120: 0 | CF120: 0 | CG120: 0 | CH120: 0 | CI120: 0
D121: End Cumulative DFIT | E121: =+E120+E119 -> 0 | F121: =IF(F120+F119<=0,0, F120+F119) -> 0 | G121: =IF(G120+G119<=0,0, G120+G119) -> 0 | H121: 0 | I121: 0 | J121: 0 | K121: 0 | L121: 0 | M121: 0 | N121: 0 | O121: 0 | P121: 0 | Q121: 0 | R121: 0 | S121: 0 | T121: 0 | U121: 0 | V121: 0 | W121: 0 | X121: 0 | Y121: 0 | Z121: 0 | AA121: 0 | AB121: 0 | AC121: 0 | AD121: 0 | AE121: 0 | AF121: 0 | AG121: 0 | AH121: 0 | AI121: 0 | AJ121: 0 | AK121: 0 | AL121: 0 | AM121: 0 | AN121: 0 | AO121: 0 | AP121: 0 | AQ121: 0 | AR121: 0 | AS121: 0 | AT121: 0 | AU121: 0 | AV121: 0 | AW121: 0 | AX121: 0 | AY121: 0 | AZ121: 0 | BA121: 0 | BB121: 0 | BC121: 0 | BD121: 0 | BE121: 0 | BF121: 0 | BG121: 0 | BH121: 0 | BI121: 0 | BJ121: 0 | BK121: 0 | BL121: 0 | BM121: 0 | BN121: 0 | BO121: 0 | BP121: 0 | BQ121: 0 | BR121: 0 | BS121: =IF(BS120+BS119<=0,0, BS120+BS119) -> 0 | BT121: 0 | BU121: 0 | BV121: 0 | BW121: 0 | BX121: 0 | BY121: 0 | BZ121: 0 | CA121: 0 | CB121: 0 | CC121: 0 | CD121: 0 | CE121: 0 | CF121: 0 | CG121: 0 | CH121: 0 | CI121: 0
B122: Initial ARAM Rate (cum dfit/cum diff) | C122: =IF(C113=0,0,C120/C113) -> 0 | D122: Begin ARAM Rate (cum dfit/cum diff) | E122: =IF(E113=0,0,+E120/E113) -> 0 | F122: =IF(F113=0,0,+F120/F113) -> 0 | G122: =IF(G113=0,0,+G120/G113) -> 0 | H122: 0 | I122: 0 | J122: 0 | K122: 0 | L122: 0 | M122: 0 | N122: 0 | O122: 0 | P122: 0 | Q122: 0 | R122: 0 | S122: 0 | T122: 0 | U122: 0 | V122: 0 | W122: 0 | X122: 0 | Y122: 0 | Z122: 0 | AA122: 0 | AB122: 0 | AC122: 0 | AD122: 0 | AE122: 0 | AF122: 0 | AG122: 0 | AH122: 0 | AI122: 0 | AJ122: 0 | AK122: 0 | AL122: 0 | AM122: 0 | AN122: 0 | AO122: 0 | AP122: 0 | AQ122: 0 | AR122: 0 | AS122: 0 | AT122: 0 | AU122: 0 | AV122: 0 | AW122: 0 | AX122: 0 | AY122: 0 | AZ122: 0 | BA122: 0 | BB122: 0 | BC122: 0 | BD122: 0 | BE122: 0 | BF122: 0 | BG122: 0 | BH122: 0 | BI122: 0 | BJ122: 0 | BK122: 0 | BL122: 0 | BM122: 0 | BN122: 0 | BO122: 0 | BP122: 0 | BQ122: 0 | BR122: 0 | BS122: =IF(BS113=0,0,+BS120/BS113) -> 0 | BT122: 0 | BU122: 0 | BV122: 0 | BW122: 0 | BX122: 0 | BY122: 0 | BZ122: 0 | CA122: 0 | CB122: 0 | CC122: 0 | CD122: 0 | CE122: 0 | CF122: 0 | CG122: 0 | CH122: 0 | CI122: 0
D123: End ARAM Rate (cum dfit/cum diff) | E123: =IF(E115=0,0,+E121/E115) -> 0 | F123: =IF(F115=0,0,+F121/F115) -> 0 | G123: =IF(G115=0,0,+G121/G115) -> 0 | H123: 0 | I123: 0 | J123: 0 | K123: 0 | L123: 0 | M123: 0 | N123: 0 | O123: 0 | P123: 0 | Q123: 0 | R123: 0 | S123: 0 | T123: 0 | U123: 0 | V123: 0 | W123: 0 | X123: 0 | Y123: 0 | Z123: 0 | AA123: 0 | AB123: 0 | AC123: 0 | AD123: 0 | AE123: 0 | AF123: 0 | AG123: 0 | AH123: 0 | AI123: 0 | AJ123: 0 | AK123: 0 | AL123: 0 | AM123: 0 | AN123: 0 | AO123: 0 | AP123: 0 | AQ123: 0 | AR123: 0 | AS123: 0 | AT123: 0 | AU123: 0 | AV123: 0 | AW123: 0 | AX123: 0 | AY123: 0 | AZ123: 0 | BA123: 0 | BB123: 0 | BC123: 0 | BD123: 0 | BE123: 0 | BF123: 0 | BG123: 0 | BH123: 0 | BI123: 0 | BJ123: 0 | BK123: 0 | BL123: 0 | BM123: 0 | BN123: 0 | BO123: 0 | BP123: 0 | BQ123: 0 | BR123: 0 | BS123: =IF(BS115=0,0,+BS121/BS115) -> 0 | BT123: 0 | BU123: 0 | BV123: 0 | BW123: 0 | BX123: 0 | BY123: 0 | BZ123: 0 | CA123: 0 | CB123: 0 | CC123: 0 | CD123: 0 | CE123: 0 | CF123: 0 | CG123: 0 | CH123: 0 | CI123: 0
B124: Initial Cumulative DFIT at Historic Rate | C124: =+C113*C122 -> 0 | D124: Cumulative DFIT at Historic Rate | E124: =+C124+E119 -> 0 | F124: =+E124+F119 -> 0 | G124: =+F124+G119 -> 0 | H124: 0 | I124: 0 | J124: 0 | K124: 0 | L124: 0 | M124: 0 | N124: 0 | O124: 0 | P124: 0 | Q124: 0 | R124: 0 | S124: 0 | T124: 0 | U124: 0 | V124: 0 | W124: 0 | X124: 0 | Y124: 0 | Z124: 0 | AA124: 0 | AB124: 0 | AC124: 0 | AD124: 0 | AE124: 0 | AF124: 0 | AG124: 0 | AH124: 0 | AI124: 0 | AJ124: 0 | AK124: 0 | AL124: 0 | AM124: 0 | AN124: 0 | AO124: 0 | AP124: 0 | AQ124: 0 | AR124: 0 | AS124: 0 | AT124: 0 | AU124: 0 | AV124: 0 | AW124: 0 | AX124: 0 | AY124: 0 | AZ124: 0 | BA124: 0 | BB124: 0 | BC124: 0 | BD124: 0 | BE124: 0 | BF124: 0 | BG124: 0 | BH124: 0 | BI124: 0 | BJ124: 0 | BK124: 0 | BL124: 0 | BM124: 0 | BN124: 0 | BO124: 0 | BP124: 0 | BQ124: 0 | BR124: 0 | BS124: =+BR124+BS119 -> 0 | BT124: 0 | BU124: 0 | BV124: 0 | BW124: 0 | BX124: 0 | BY124: 0 | BZ124: 0 | CA124: 0 | CB124: 0 | CC124: 0 | CD124: 0 | CE124: 0 | CF124: 0 | CG124: 0 | CH124: 0 | CI124: 0
B125: Initial Cumulative DFIT at Statutory Rate | C125: =+C113*C118 -> 0 | D125: Cumulative DFIT at Statutory Rate | E125: =IF(E118<>0,+C125+E118,0) -> 0 | F125: =IF(F118<>0,+E125+F118,0) -> 0 | G125: =IF(G118<>0,+F125+G118,0) -> 0 | H125: 0 | I125: 0 | J125: 0 | K125: 0 | L125: 0 | M125: 0 | N125: 0 | O125: 0 | P125: 0 | Q125: 0 | R125: 0 | S125: 0 | T125: 0 | U125: 0 | V125: 0 | W125: 0 | X125: 0 | Y125: 0 | Z125: 0 | AA125: 0 | AB125: 0 | AC125: 0 | AD125: 0 | AE125: 0 | AF125: 0 | AG125: 0 | AH125: 0 | AI125: 0 | AJ125: 0 | AK125: 0 | AL125: 0 | AM125: 0 | AN125: 0 | AO125: 0 | AP125: 0 | AQ125: 0 | AR125: 0 | AS125: 0 | AT125: 0 | AU125: 0 | AV125: 0 | AW125: 0 | AX125: 0 | AY125: 0 | AZ125: 0 | BA125: 0 | BB125: 0 | BC125: 0 | BD125: 0 | BE125: 0 | BF125: 0 | BG125: 0 | BH125: 0 | BI125: 0 | BJ125: 0 | BK125: 0 | BL125: 0 | BM125: 0 | BN125: 0 | BO125: 0 | BP125: 0 | BQ125: 0 | BR125: 0 | BS125: =IF(BS118<>0,+BR125+BS118,0) -> 0 | BT125: 0 | BU125: 0 | BV125: 0 | BW125: 0 | BX125: 0 | BY125: 0 | BZ125: 0 | CA125: 0 | CB125: 0 | CC125: 0 | CD125: 0 | CE125: 0 | CF125: 0 | CG125: 0 | CH125: 0 | CI125: 0
D126: Begin Excess Deferred | E126: =+C128 -> 0 | F126: =+E128 -> 0 | G126: =+F128 -> 0 | H126: 0 | I126: 0 | J126: 0 | K126: 0 | L126: 0 | M126: 0 | N126: 0 | O126: 0 | P126: 0 | Q126: 0 | R126: 0 | S126: 0 | T126: 0 | U126: 0 | V126: 0 | W126: 0 | X126: 0 | Y126: 0 | Z126: 0 | AA126: 0 | AB126: 0 | AC126: 0 | AD126: 0 | AE126: 0 | AF126: 0 | AG126: 0 | AH126: 0 | AI126: 0 | AJ126: 0 | AK126: 0 | AL126: 0 | AM126: 0 | AN126: 0 | AO126: 0 | AP126: 0 | AQ126: 0 | AR126: 0 | AS126: 0 | AT126: 0 | AU126: 0 | AV126: 0 | AW126: 0 | AX126: 0 | AY126: 0 | AZ126: 0 | BA126: 0 | BB126: 0 | BC126: 0 | BD126: 0 | BE126: 0 | BF126: 0 | BG126: 0 | BH126: 0 | BI126: 0 | BJ126: 0 | BK126: 0 | BL126: 0 | BM126: 0 | BN126: 0 | BO126: 0 | BP126: 0 | BQ126: 0 | BR126: 0 | BS126: =+BR128 -> 0 | BT126: 0 | BU126: 0 | BV126: 0 | BW126: 0 | BX126: 0 | BY126: 0 | BZ126: 0 | CA126: 0 | CB126: 0 | CC126: 0 | CD126: 0 | CE126: 0 | CF126: 0 | CG126: 0 | CH126: 0 | CI126: 0
D127: Amortization of Excess Deferred | E127: =+E118-E119 -> 0 | F127: =+F118-F119 -> 0 | G127: 0 | H127: 0 | I127: 0 | J127: 0 | K127: 0 | L127: 0 | M127: 0 | N127: 0 | O127: 0 | P127: 0 | Q127: 0 | R127: 0 | S127: 0 | T127: 0 | U127: 0 | V127: 0 | W127: 0 | X127: 0 | Y127: 0 | Z127: 0 | AA127: 0 | AB127: 0 | AC127: 0 | AD127: 0 | AE127: 0 | AF127: 0 | AG127: 0 | AH127: 0 | AI127: 0 | AJ127: 0 | AK127: 0 | AL127: 0 | AM127: 0 | AN127: 0 | AO127: 0 | AP127: 0 | AQ127: 0 | AR127: 0 | AS127: 0 | AT127: 0 | AU127: 0 | AV127: 0 | AW127: 0 | AX127: 0 | AY127: 0 | AZ127: 0 | BA127: 0 | BB127: 0 | BC127: 0 | BD127: 0 | BE127: 0 | BF127: 0 | BG127: 0 | BH127: 0 | BI127: 0 | BJ127: 0 | BK127: 0 | BL127: 0 | BM127: 0 | BN127: 0 | BO127: 0 | BP127: 0 | BQ127: 0 | BR127: =+BR118-BR119 -> 0 | BS127: 0 | BT127: 0 | BU127: 0 | BV127: 0 | BW127: 0 | BX127: 0 | BY127: 0 | BZ127: 0 | CA127: 0 | CB127: 0 | CC127: 0 | CD127: 0 | CE127: 0 | CF127: 0 | CG127: 0 | CH127: 0 | CI127: 0
B128: Initial Excess Deferred | C128: =+C124-C125 -> 0 | D128: End Excess Deferred | E128: =+E126-E127 -> 0 | F128: =+F126-F127 -> 0 | G128: 0 | H128: 0 | I128: 0 | J128: 0 | K128: 0 | L128: 0 | M128: 0 | N128: 0 | O128: 0 | P128: 0 | Q128: 0 | R128: 0 | S128: 0 | T128: 0 | U128: 0 | V128: 0 | W128: 0 | X128: 0 | Y128: 0 | Z128: 0 | AA128: 0 | AB128: 0 | AC128: 0 | AD128: 0 | AE128: 0 | AF128: 0 | AG128: 0 | AH128: 0 | AI128: 0 | AJ128: 0 | AK128: 0 | AL128: 0 | AM128: 0 | AN128: 0 | AO128: 0 | AP128: 0 | AQ128: 0 | AR128: 0 | AS128: 0 | AT128: 0 | AU128: 0 | AV128: 0 | AW128: 0 | AX128: 0 | AY128: 0 | AZ128: 0 | BA128: 0 | BB128: 0 | BC128: 0 | BD128: 0 | BE128: 0 | BF128: 0 | BG128: 0 | BH128: 0 | BI128: 0 | BJ128: 0 | BK128: 0 | BL128: 0 | BM128: 0 | BN128: 0 | BO128: 0 | BP128: 0 | BQ128: 0 | BR128: =+BR126-BR127 -> 0 | BS128: 0 | BT128: 0 | BU128: 0 | BV128: 0 | BW128: 0 | BX128: 0 | BY128: 0 | BZ128: 0 | CA128: 0 | CB128: 0 | CC128: 0 | CD128: 0 | CE128: 0 | CF128: 0 | CG128: 0 | CH128: 0 | CI128: 0
B129: Amortization/Reduction to Tax | C129: Reversal Check | D129: =SUM(E129:CI129) -> 0 | E129: =+E118-E119 -> 0 | F129: =+F118-F119 -> 0 | G129: =+G118-G119 -> 0 | H129: 0 | I129: 0 | J129: 0 | K129: 0 | L129: 0 | M129: 0 | N129: 0 | O129: 0 | P129: 0 | Q129: 0 | R129: 0 | S129: 0 | T129: 0 | U129: 0 | V129: 0 | W129: 0 | X129: 0 | Y129: 0 | Z129: 0 | AA129: 0 | AB129: 0 | AC129: 0 | AD129: 0 | AE129: 0 | AF129: 0 | AG129: 0 | AH129: 0 | AI129: 0 | AJ129: 0 | AK129: 0 | AL129: 0 | AM129: 0 | AN129: 0 | AO129: 0 | AP129: 0 | AQ129: 0 | AR129: 0 | AS129: 0 | AT129: 0 | AU129: 0 | AV129: 0 | AW129: 0 | AX129: 0 | AY129: 0 | AZ129: 0 | BA129: 0 | BB129: 0 | BC129: 0 | BD129: 0 | BE129: 0 | BF129: 0 | BG129: 0 | BH129: 0 | BI129: 0 | BJ129: 0 | BK129: 0 | BL129: 0 | BM129: 0 | BN129: 0 | BO129: 0 | BP129: 0 | BQ129: 0 | BR129: 0 | BS129: =+BS118-BS119 -> 0 | BT129: 0 | BU129: 0 | BV129: 0 | BW129: 0 | BX129: 0 | BY129: 0 | BZ129: 0 | CA129: 0 | CB129: 0 | CC129: 0 | CD129: 0 | CE129: 0 | CF129: 0 | CG129: 0 | CH129: 0 | CI129: 0
B131: Ending 2017 | E131: 2018 | F131: =E131+1 -> 2019 | G131: 2020 | H131: 2021 | I131: 2022 | J131: 2023 | K131: 2024 | L131: 2025 | M131: 2026 | N131: 2027 | O131: 2028 | P131: 2029 | Q131: 2030 | R131: 2031 | S131: 2032 | T131: 2033 | U131: 2034 | V131: 2035 | W131: 2036 | X131: 2037 | Y131: 2038 | Z131: 2039 | AA131: 2040 | AB131: 2041 | AC131: 2042 | AD131: 2043 | AE131: 2044 | AF131: 2045 | AG131: 2046 | AH131: 2047 | AI131: 2048 | AJ131: 2049 | AK131: 2050 | AL131: 2051 | AM131: 2052 | AN131: 2053 | AO131: 2054 | AP131: 2055 | AQ131: 2056 | AR131: 2057 | AS131: 2058 | AT131: 2059 | AU131: 2060 | AV131: 2061 | AW131: 2062 | AX131: 2063 | AY131: 2064 | AZ131: 2065 | BA131: 2066 | BB131: 2067 | BC131: 2068 | BD131: 2069 | BE131: 2070 | BF131: 2071 | BG131: 2072 | BH131: 2073 | BI131: 2074 | BJ131: 2075 | BK131: 2076 | BL131: 2077 | BM131: 2078 | BN131: 2079 | BO131: 2080 | BP131: 2081 | BQ131: 2082 | BR131: =BQ131+1 -> 2083 | BS131: 2084 | BT131: 2085 | BU131: 2086 | BV131: 2087 | BW131: 2088 | BX131: 2089 | BY131: 2090 | BZ131: 2091 | CA131: 2092 | CB131: 2093 | CC131: 2094 | CD131: 2095 | CE131: 2096 | CF131: 2097 | CG131: 2098 | CH131: 2099 | CI131: 2100
A132: 1999 | B132: Initial Difference | C132: =IF(VLOOKUP(A132,$A$38:$C$58,3)-VLOOKUP(A132,$A$67:$C$87,3)<0,0,VLOOKUP(A132,$A$38:$C$58,3)-VLOOKUP(A132,$A$67:$C$87,3)) -> 0 | D132: Begin Cumulative Difference | E132: =+$C132 -> 0 | F132: =+E134 -> 0 | G132: =+F134 -> 0 | H132: 0 | I132: 0 | J132: 0 | K132: 0 | L132: 0 | M132: 0 | N132: 0 | O132: 0 | P132: 0 | Q132: 0 | R132: 0 | S132: 0 | T132: 0 | U132: 0 | V132: 0 | W132: 0 | X132: 0 | Y132: 0 | Z132: 0 | AA132: 0 | AB132: 0 | AC132: 0 | AD132: 0 | AE132: 0 | AF132: 0 | AG132: 0 | AH132: 0 | AI132: 0 | AJ132: 0 | AK132: 0 | AL132: 0 | AM132: 0 | AN132: 0 | AO132: 0 | AP132: 0 | AQ132: 0 | AR132: 0 | AS132: 0 | AT132: 0 | AU132: 0 | AV132: 0 | AW132: 0 | AX132: 0 | AY132: 0 | AZ132: 0 | BA132: 0 | BB132: 0 | BC132: 0 | BD132: 0 | BE132: 0 | BF132: 0 | BG132: 0 | BH132: 0 | BI132: 0 | BJ132: 0 | BK132: 0 | BL132: 0 | BM132: 0 | BN132: 0 | BO132: 0 | BP132: 0 | BQ132: 0 | BR132: 0 | BS132: =+BR134 -> 0 | BT132: 0 | BU132: 0 | BV132: 0 | BW132: 0 | BX132: 0 | BY132: 0 | BZ132: 0 | CA132: 0 | CB132: 0 | CC132: 0 | CD132: 0 | CE132: 0 | CF132: 0 | CG132: 0 | CH132: 0 | CI132: 0
D133: Current Diff (Tax - Book) | E133: =IF(E132<=0, 0,VLOOKUP($A132,$A$67:$CI$87,E131-2013)-VLOOKUP($A132,$A$38:$CI$58,E131-2013)) -> 0 | F133: =IF(F132<=0, 0,VLOOKUP($A132,$A$67:$CI$87,F131-2013)-VLOOKUP($A132,$A$38:$CI$58,F131-2013)) -> 0 | G133: =IF(G132<=0, 0,VLOOKUP($A132,$A$67:$CI$87,G131-2013)-VLOOKUP($A132,$A$38:$CI$58,G131-2013)) -> 0 | H133: 0 | I133: 0 | J133: 0 | K133: 0 | L133: 0 | M133: 0 | N133: 0 | O133: 0 | P133: 0 | Q133: 0 | R133: 0 | S133: 0 | T133: 0 | U133: 0 | V133: 0 | W133: 0 | X133: 0 | Y133: 0 | Z133: 0 | AA133: 0 | AB133: 0 | AC133: 0 | AD133: 0 | AE133: 0 | AF133: 0 | AG133: 0 | AH133: 0 | AI133: 0 | AJ133: 0 | AK133: 0 | AL133: 0 | AM133: 0 | AN133: 0 | AO133: 0 | AP133: 0 | AQ133: 0 | AR133: 0 | AS133: 0 | AT133: 0 | AU133: 0 | AV133: 0 | AW133: 0 | AX133: 0 | AY133: 0 | AZ133: 0 | BA133: 0 | BB133: 0 | BC133: 0 | BD133: 0 | BE133: 0 | BF133: 0 | BG133: 0 | BH133: 0 | BI133: 0 | BJ133: 0 | BK133: 0 | BL133: 0 | BM133: 0 | BN133: 0 | BO133: 0 | BP133: 0 | BQ133: 0 | BR133: 0 | BS133: =IF(BS132<=0, 0,VLOOKUP($A132,$A$67:$CI$87,BS131-2013)-VLOOKUP($A132,$A$38:$CI$58,BS131-2013)) -> 0 | BT133: 0 | BU133: 0 | BV133: 0 | BW133: 0 | BX133: 0 | BY133: 0 | BZ133: 0 | CA133: 0 | CB133: 0 | CC133: 0 | CD133: 0 | CE133: 0 | CF133: 0 | CG133: 0 | CH133: 0 | CI133: 0
D134: End Cumulative Difference | E134: =IF(E132+E133<0, 0, E132+E133) -> 0 | F134: =IF(F132+F133<0, 0, F132+F133) -> 0 | G134: 0 | H134: 0 | I134: 0 | J134: 0 | K134: 0 | L134: 0 | M134: 0 | N134: 0 | O134: 0 | P134: 0 | Q134: 0 | R134: 0 | S134: 0 | T134: 0 | U134: 0 | V134: 0 | W134: 0 | X134: 0 | Y134: 0 | Z134: 0 | AA134: 0 | AB134: 0 | AC134: 0 | AD134: 0 | AE134: 0 | AF134: 0 | AG134: 0 | AH134: 0 | AI134: 0 | AJ134: 0 | AK134: 0 | AL134: 0 | AM134: 0 | AN134: 0 | AO134: 0 | AP134: 0 | AQ134: 0 | AR134: 0 | AS134: 0 | AT134: 0 | AU134: 0 | AV134: 0 | AW134: 0 | AX134: 0 | AY134: 0 | AZ134: 0 | BA134: 0 | BB134: 0 | BC134: 0 | BD134: 0 | BE134: 0 | BF134: 0 | BG134: 0 | BH134: 0 | BI134: 0 | BJ134: 0 | BK134: 0 | BL134: 0 | BM134: 0 | BN134: 0 | BO134: 0 | BP134: 0 | BQ134: 0 | BR134: =IF(BR132+BR133<0, 0, BR132+BR133) -> 0 | BS134: 0 | BT134: 0 | BU134: 0 | BV134: 0 | BW134: 0 | BX134: 0 | BY134: 0 | BZ134: 0 | CA134: 0 | CB134: 0 | CC134: 0 | CD134: 0 | CE134: 0 | CF134: 0 | CG134: 0 | CH134: 0 | CI134: 0
D135: Current Diff (Tax - Book) Utilized | E135: =IF(E132+E133>0, E133, IF(E132+E133<0,-E132,E132+E133)) -> 0 | F135: =IF(F132+F133>0, F133, IF(F132+F133<0,-F132,F132+F133)) -> 0 | G135: 0 | H135: 0 | I135: 0 | J135: 0 | K135: 0 | L135: 0 | M135: 0 | N135: 0 | O135: 0 | P135: 0 | Q135: 0 | R135: 0 | S135: 0 | T135: 0 | U135: 0 | V135: 0 | W135: 0 | X135: 0 | Y135: 0 | Z135: 0 | AA135: 0 | AB135: 0 | AC135: 0 | AD135: 0 | AE135: 0 | AF135: 0 | AG135: 0 | AH135: 0 | AI135: 0 | AJ135: 0 | AK135: 0 | AL135: 0 | AM135: 0 | AN135: 0 | AO135: 0 | AP135: 0 | AQ135: 0 | AR135: 0 | AS135: 0 | AT135: 0 | AU135: 0 | AV135: 0 | AW135: 0 | AX135: 0 | AY135: 0 | AZ135: 0 | BA135: 0 | BB135: 0 | BC135: 0 | BD135: 0 | BE135: 0 | BF135: 0 | BG135: 0 | BH135: 0 | BI135: 0 | BJ135: 0 | BK135: 0 | BL135: 0 | BM135: 0 | BN135: 0 | BO135: 0 | BP135: 0 | BQ135: 0 | BR135: =IF(BR132+BR133>0, BR133, IF(BR132+BR133<0,-BR132,BR132+BR133)) -> 0 | BS135: 0 | BT135: 0 | BU135: 0 | BV135: 0 | BW135: 0 | BX135: 0 | BY135: 0 | BZ135: 0 | CA135: 0 | CB135: 0 | CC135: 0 | CD135: 0 | CE135: 0 | CF135: 0 | CG135: 0 | CH135: 0 | CI135: 0
B136: Historical Tax rate | C136: =+$E$2 -> 0.38575 | D136: Tax rate (or ARAM rate) | E136: =IF(E132=0,0,IF(E133>0,$C137,C141)) -> 0 | F136: =IF(F132=0,0,IF(F133>0,$C137,E142)) -> 0 | G136: =IF(G132=0,0,IF(G133>0,$C137,F142)) -> 0 | H136: 0 | I136: 0 | J136: 0 | K136: 0 | L136: 0 | M136: 0 | N136: 0 | O136: 0 | P136: 0 | Q136: 0 | R136: 0 | S136: 0 | T136: 0 | U136: 0 | V136: 0 | W136: 0 | X136: 0 | Y136: 0 | Z136: 0 | AA136: 0 | AB136: 0 | AC136: 0 | AD136: 0 | AE136: 0 | AF136: 0 | AG136: 0 | AH136: 0 | AI136: 0 | AJ136: 0 | AK136: 0 | AL136: 0 | AM136: 0 | AN136: 0 | AO136: 0 | AP136: 0 | AQ136: 0 | AR136: 0 | AS136: 0 | AT136: 0 | AU136: 0 | AV136: 0 | AW136: 0 | AX136: 0 | AY136: 0 | AZ136: 0 | BA136: 0 | BB136: 0 | BC136: 0 | BD136: 0 | BE136: 0 | BF136: 0 | BG136: 0 | BH136: 0 | BI136: 0 | BJ136: 0 | BK136: 0 | BL136: 0 | BM136: 0 | BN136: 0 | BO136: 0 | BP136: 0 | BQ136: 0 | BR136: 0 | BS136: =IF(BS132=0,0,IF(BS133>0,$C137,BR142)) -> 0 | BT136: 0 | BU136: 0 | BV136: 0 | BW136: 0 | BX136: 0 | BY136: 0 | BZ136: 0 | CA136: 0 | CB136: 0 | CC136: 0 | CD136: 0 | CE136: 0 | CF136: 0 | CG136: 0 | CH136: 0 | CI136: 0
B137: Current Statutory Rate | C137: =+$E$3 -> 0.25345 | D137: Begin Current DFIT @ Current Statutory | E137: =IF(E132=0,0,E135*$C137) -> 0 | F137: =IF(F132=0,0,F135*$C137) -> 0 | G137: =IF(G132=0,0,G135*$C137) -> 0 | H137: 0 | I137: 0 | J137: 0 | K137: 0 | L137: 0 | M137: 0 | N137: 0 | O137: 0 | P137: 0 | Q137: 0 | R137: 0 | S137: 0 | T137: 0 | U137: 0 | V137: 0 | W137: 0 | X137: 0 | Y137: 0 | Z137: 0 | AA137: 0 | AB137: 0 | AC137: 0 | AD137: 0 | AE137: 0 | AF137: 0 | AG137: 0 | AH137: 0 | AI137: 0 | AJ137: 0 | AK137: 0 | AL137: 0 | AM137: 0 | AN137: 0 | AO137: 0 | AP137: 0 | AQ137: 0 | AR137: 0 | AS137: 0 | AT137: 0 | AU137: 0 | AV137: 0 | AW137: 0 | AX137: 0 | AY137: 0 | AZ137: 0 | BA137: 0 | BB137: 0 | BC137: 0 | BD137: 0 | BE137: 0 | BF137: 0 | BG137: 0 | BH137: 0 | BI137: 0 | BJ137: 0 | BK137: 0 | BL137: 0 | BM137: 0 | BN137: 0 | BO137: 0 | BP137: 0 | BQ137: 0 | BR137: 0 | BS137: =IF(BS132=0,0,BS135*$C137) -> 0 | BT137: 0 | BU137: 0 | BV137: 0 | BW137: 0 | BX137: 0 | BY137: 0 | BZ137: 0 | CA137: 0 | CB137: 0 | CC137: 0 | CD137: 0 | CE137: 0 | CF137: 0 | CG137: 0 | CH137: 0 | CI137: 0
D138: Begin Current DFIT at Statutory or ARAM Rate | E138: =+E135*E136 -> 0 | F138: =+F135*F136 -> 0 | G138: =+G135*G136 -> 0 | H138: 0 | I138: 0 | J138: 0 | K138: 0 | L138: 0 | M138: 0 | N138: 0 | O138: 0 | P138: 0 | Q138: 0 | R138: 0 | S138: 0 | T138: 0 | U138: 0 | V138: 0 | W138: 0 | X138: 0 | Y138: 0 | Z138: 0 | AA138: 0 | AB138: 0 | AC138: 0 | AD138: 0 | AE138: 0 | AF138: 0 | AG138: 0 | AH138: 0 | AI138: 0 | AJ138: 0 | AK138: 0 | AL138: 0 | AM138: 0 | AN138: 0 | AO138: 0 | AP138: 0 | AQ138: 0 | AR138: 0 | AS138: 0 | AT138: 0 | AU138: 0 | AV138: 0 | AW138: 0 | AX138: 0 | AY138: 0 | AZ138: 0 | BA138: 0 | BB138: 0 | BC138: 0 | BD138: 0 | BE138: 0 | BF138: 0 | BG138: 0 | BH138: 0 | BI138: 0 | BJ138: 0 | BK138: 0 | BL138: 0 | BM138: 0 | BN138: 0 | BO138: 0 | BP138: 0 | BQ138: 0 | BR138: 0 | BS138: =+BS135*BS136 -> 0 | BT138: 0 | BU138: 0 | BV138: 0 | BW138: 0 | BX138: 0 | BY138: 0 | BZ138: 0 | CA138: 0 | CB138: 0 | CC138: 0 | CD138: 0 | CE138: 0 | CF138: 0 | CG138: 0 | CH138: 0 | CI138: 0
B139: Initial Cumulative DFIT | C139: =+C132*C136 -> 0 | D139: Begin Cumulative DFIT | E139: =+C139 -> 0 | F139: =+E140 -> 0 | G139: =+F140 -> 0 | H139: 0 | I139: 0 | J139: 0 | K139: 0 | L139: 0 | M139: 0 | N139: 0 | O139: 0 | P139: 0 | Q139: 0 | R139: 0 | S139: 0 | T139: 0 | U139: 0 | V139: 0 | W139: 0 | X139: 0 | Y139: 0 | Z139: 0 | AA139: 0 | AB139: 0 | AC139: 0 | AD139: 0 | AE139: 0 | AF139: 0 | AG139: 0 | AH139: 0 | AI139: 0 | AJ139: 0 | AK139: 0 | AL139: 0 | AM139: 0 | AN139: 0 | AO139: 0 | AP139: 0 | AQ139: 0 | AR139: 0 | AS139: 0 | AT139: 0 | AU139: 0 | AV139: 0 | AW139: 0 | AX139: 0 | AY139: 0 | AZ139: 0 | BA139: 0 | BB139: 0 | BC139: 0 | BD139: 0 | BE139: 0 | BF139: 0 | BG139: 0 | BH139: 0 | BI139: 0 | BJ139: 0 | BK139: 0 | BL139: 0 | BM139: 0 | BN139: 0 | BO139: 0 | BP139: 0 | BQ139: 0 | BR139: 0 | BS139: =+BR140 -> 0 | BT139: 0 | BU139: 0 | BV139: 0 | BW139: 0 | BX139: 0 | BY139: 0 | BZ139: 0 | CA139: 0 | CB139: 0 | CC139: 0 | CD139: 0 | CE139: 0 | CF139: 0 | CG139: 0 | CH139: 0 | CI139: 0
D140: End Cumulative DFIT | E140: =+E139+E138 -> 0 | F140: =IF(F139+F138<=0,0, F139+F138) -> 0 | G140: =IF(G139+G138<=0,0, G139+G138) -> 0 | H140: 0 | I140: 0 | J140: 0 | K140: 0 | L140: 0 | M140: 0 | N140: 0 | O140: 0 | P140: 0 | Q140: 0 | R140: 0 | S140: 0 | T140: 0 | U140: 0 | V140: 0 | W140: 0 | X140: 0 | Y140: 0 | Z140: 0 | AA140: 0 | AB140: 0 | AC140: 0 | AD140: 0 | AE140: 0 | AF140: 0 | AG140: 0 | AH140: 0 | AI140: 0 | AJ140: 0 | AK140: 0 | AL140: 0 | AM140: 0 | AN140: 0 | AO140: 0 | AP140: 0 | AQ140: 0 | AR140: 0 | AS140: 0 | AT140: 0 | AU140: 0 | AV140: 0 | AW140: 0 | AX140: 0 | AY140: 0 | AZ140: 0 | BA140: 0 | BB140: 0 | BC140: 0 | BD140: 0 | BE140: 0 | BF140: 0 | BG140: 0 | BH140: 0 | BI140: 0 | BJ140: 0 | BK140: 0 | BL140: 0 | BM140: 0 | BN140: 0 | BO140: 0 | BP140: 0 | BQ140: 0 | BR140: 0 | BS140: =IF(BS139+BS138<=0,0, BS139+BS138) -> 0 | BT140: 0 | BU140: 0 | BV140: 0 | BW140: 0 | BX140: 0 | BY140: 0 | BZ140: 0 | CA140: 0 | CB140: 0 | CC140: 0 | CD140: 0 | CE140: 0 | CF140: 0 | CG140: 0 | CH140: 0 | CI140: 0
B141: Initial ARAM Rate (cum dfit/cum diff) | C141: =IF(C132=0,0,C139/C132) -> 0 | D141: Begin ARAM Rate (cum dfit/cum diff) | E141: =IF(E132=0,0,+E139/E132) -> 0 | F141: =IF(F132=0,0,+F139/F132) -> 0 | G141: =IF(G132=0,0,+G139/G132) -> 0 | H141: 0 | I141: 0 | J141: 0 | K141: 0 | L141: 0 | M141: 0 | N141: 0 | O141: 0 | P141: 0 | Q141: 0 | R141: 0 | S141: 0 | T141: 0 | U141: 0 | V141: 0 | W141: 0 | X141: 0 | Y141: 0 | Z141: 0 | AA141: 0 | AB141: 0 | AC141: 0 | AD141: 0 | AE141: 0 | AF141: 0 | AG141: 0 | AH141: 0 | AI141: 0 | AJ141: 0 | AK141: 0 | AL141: 0 | AM141: 0 | AN141: 0 | AO141: 0 | AP141: 0 | AQ141: 0 | AR141: 0 | AS141: 0 | AT141: 0 | AU141: 0 | AV141: 0 | AW141: 0 | AX141: 0 | AY141: 0 | AZ141: 0 | BA141: 0 | BB141: 0 | BC141: 0 | BD141: 0 | BE141: 0 | BF141: 0 | BG141: 0 | BH141: 0 | BI141: 0 | BJ141: 0 | BK141: 0 | BL141: 0 | BM141: 0 | BN141: 0 | BO141: 0 | BP141: 0 | BQ141: 0 | BR141: 0 | BS141: =IF(BS132=0,0,+BS139/BS132) -> 0 | BT141: 0 | BU141: 0 | BV141: 0 | BW141: 0 | BX141: 0 | BY141: 0 | BZ141: 0 | CA141: 0 | CB141: 0 | CC141: 0 | CD141: 0 | CE141: 0 | CF141: 0 | CG141: 0 | CH141: 0 | CI141: 0
D142: End ARAM Rate (cum dfit/cum diff) | E142: =IF(E134=0,0,+E140/E134) -> 0 | F142: =IF(F134=0,0,+F140/F134) -> 0 | G142: =IF(G134=0,0,+G140/G134) -> 0 | H142: 0 | I142: 0 | J142: 0 | K142: 0 | L142: 0 | M142: 0 | N142: 0 | O142: 0 | P142: 0 | Q142: 0 | R142: 0 | S142: 0 | T142: 0 | U142: 0 | V142: 0 | W142: 0 | X142: 0 | Y142: 0 | Z142: 0 | AA142: 0 | AB142: 0 | AC142: 0 | AD142: 0 | AE142: 0 | AF142: 0 | AG142: 0 | AH142: 0 | AI142: 0 | AJ142: 0 | AK142: 0 | AL142: 0 | AM142: 0 | AN142: 0 | AO142: 0 | AP142: 0 | AQ142: 0 | AR142: 0 | AS142: 0 | AT142: 0 | AU142: 0 | AV142: 0 | AW142: 0 | AX142: 0 | AY142: 0 | AZ142: 0 | BA142: 0 | BB142: 0 | BC142: 0 | BD142: 0 | BE142: 0 | BF142: 0 | BG142: 0 | BH142: 0 | BI142: 0 | BJ142: 0 | BK142: 0 | BL142: 0 | BM142: 0 | BN142: 0 | BO142: 0 | BP142: 0 | BQ142: 0 | BR142: 0 | BS142: =IF(BS134=0,0,+BS140/BS134) -> 0 | BT142: 0 | BU142: 0 | BV142: 0 | BW142: 0 | BX142: 0 | BY142: 0 | BZ142: 0 | CA142: 0 | CB142: 0 | CC142: 0 | CD142: 0 | CE142: 0 | CF142: 0 | CG142: 0 | CH142: 0 | CI142: 0
B143: Initial Cumulative DFIT at Historic Rate | C143: =+C132*C141 -> 0 | D143: Cumulative DFIT at Historic Rate | E143: =+C143+E138 -> 0 | F143: =+E143+F138 -> 0 | G143: =+F143+G138 -> 0 | H143: 0 | I143: 0 | J143: 0 | K143: 0 | L143: 0 | M143: 0 | N143: 0 | O143: 0 | P143: 0 | Q143: 0 | R143: 0 | S143: 0 | T143: 0 | U143: 0 | V143: 0 | W143: 0 | X143: 0 | Y143: 0 | Z143: 0 | AA143: 0 | AB143: 0 | AC143: 0 | AD143: 0 | AE143: 0 | AF143: 0 | AG143: 0 | AH143: 0 | AI143: 0 | AJ143: 0 | AK143: 0 | AL143: 0 | AM143: 0 | AN143: 0 | AO143: 0 | AP143: 0 | AQ143: 0 | AR143: 0 | AS143: 0 | AT143: 0 | AU143: 0 | AV143: 0 | AW143: 0 | AX143: 0 | AY143: 0 | AZ143: 0 | BA143: 0 | BB143: 0 | BC143: 0 | BD143: 0 | BE143: 0 | BF143: 0 | BG143: 0 | BH143: 0 | BI143: 0 | BJ143: 0 | BK143: 0 | BL143: 0 | BM143: 0 | BN143: 0 | BO143: 0 | BP143: 0 | BQ143: 0 | BR143: 0 | BS143: =+BR143+BS138 -> 0 | BT143: 0 | BU143: 0 | BV143: 0 | BW143: 0 | BX143: 0 | BY143: 0 | BZ143: 0 | CA143: 0 | CB143: 0 | CC143: 0 | CD143: 0 | CE143: 0 | CF143: 0 | CG143: 0 | CH143: 0 | CI143: 0
B144: Initial Cumulative DFIT at Statutory Rate | C144: =+C132*C137 -> 0 | D144: Cumulative DFIT at Statutory Rate | E144: =IF(E137<>0,+C144+E137,0) -> 0 | F144: =IF(F137<>0,+E144+F137,0) -> 0 | G144: =IF(G137<>0,+F144+G137,0) -> 0 | H144: 0 | I144: 0 | J144: 0 | K144: 0 | L144: 0 | M144: 0 | N144: 0 | O144: 0 | P144: 0 | Q144: 0 | R144: 0 | S144: 0 | T144: 0 | U144: 0 | V144: 0 | W144: 0 | X144: 0 | Y144: 0 | Z144: 0 | AA144: 0 | AB144: 0 | AC144: 0 | AD144: 0 | AE144: 0 | AF144: 0 | AG144: 0 | AH144: 0 | AI144: 0 | AJ144: 0 | AK144: 0 | AL144: 0 | AM144: 0 | AN144: 0 | AO144: 0 | AP144: 0 | AQ144: 0 | AR144: 0 | AS144: 0 | AT144: 0 | AU144: 0 | AV144: 0 | AW144: 0 | AX144: 0 | AY144: 0 | AZ144: 0 | BA144: 0 | BB144: 0 | BC144: 0 | BD144: 0 | BE144: 0 | BF144: 0 | BG144: 0 | BH144: 0 | BI144: 0 | BJ144: 0 | BK144: 0 | BL144: 0 | BM144: 0 | BN144: 0 | BO144: 0 | BP144: 0 | BQ144: 0 | BR144: 0 | BS144: =IF(BS137<>0,+BR144+BS137,0) -> 0 | BT144: 0 | BU144: 0 | BV144: 0 | BW144: 0 | BX144: 0 | BY144: 0 | BZ144: 0 | CA144: 0 | CB144: 0 | CC144: 0 | CD144: 0 | CE144: 0 | CF144: 0 | CG144: 0 | CH144: 0 | CI144: 0
D145: Begin Excess Deferred | E145: =+C147 -> 0 | F145: =+E147 -> 0 | G145: =+F147 -> 0 | H145: 0 | I145: 0 | J145: 0 | K145: 0 | L145: 0 | M145: 0 | N145: 0 | O145: 0 | P145: 0 | Q145: 0 | R145: 0 | S145: 0 | T145: 0 | U145: 0 | V145: 0 | W145: 0 | X145: 0 | Y145: 0 | Z145: 0 | AA145: 0 | AB145: 0 | AC145: 0 | AD145: 0 | AE145: 0 | AF145: 0 | AG145: 0 | AH145: 0 | AI145: 0 | AJ145: 0 | AK145: 0 | AL145: 0 | AM145: 0 | AN145: 0 | AO145: 0 | AP145: 0 | AQ145: 0 | AR145: 0 | AS145: 0 | AT145: 0 | AU145: 0 | AV145: 0 | AW145: 0 | AX145: 0 | AY145: 0 | AZ145: 0 | BA145: 0 | BB145: 0 | BC145: 0 | BD145: 0 | BE145: 0 | BF145: 0 | BG145: 0 | BH145: 0 | BI145: 0 | BJ145: 0 | BK145: 0 | BL145: 0 | BM145: 0 | BN145: 0 | BO145: 0 | BP145: 0 | BQ145: 0 | BR145: 0 | BS145: =+BR147 -> 0 | BT145: 0 | BU145: 0 | BV145: 0 | BW145: 0 | BX145: 0 | BY145: 0 | BZ145: 0 | CA145: 0 | CB145: 0 | CC145: 0 | CD145: 0 | CE145: 0 | CF145: 0 | CG145: 0 | CH145: 0 | CI145: 0
D146: Amortization of Excess Deferred | E146: =+E137-E138 -> 0 | F146: =+F137-F138 -> 0 | G146: 0 | H146: 0 | I146: 0 | J146: 0 | K146: 0 | L146: 0 | M146: 0 | N146: 0 | O146: 0 | P146: 0 | Q146: 0 | R146: 0 | S146: 0 | T146: 0 | U146: 0 | V146: 0 | W146: 0 | X146: 0 | Y146: 0 | Z146: 0 | AA146: 0 | AB146: 0 | AC146: 0 | AD146: 0 | AE146: 0 | AF146: 0 | AG146: 0 | AH146: 0 | AI146: 0 | AJ146: 0 | AK146: 0 | AL146: 0 | AM146: 0 | AN146: 0 | AO146: 0 | AP146: 0 | AQ146: 0 | AR146: 0 | AS146: 0 | AT146: 0 | AU146: 0 | AV146: 0 | AW146: 0 | AX146: 0 | AY146: 0 | AZ146: 0 | BA146: 0 | BB146: 0 | BC146: 0 | BD146: 0 | BE146: 0 | BF146: 0 | BG146: 0 | BH146: 0 | BI146: 0 | BJ146: 0 | BK146: 0 | BL146: 0 | BM146: 0 | BN146: 0 | BO146: 0 | BP146: 0 | BQ146: 0 | BR146: =+BR137-BR138 -> 0 | BS146: 0 | BT146: 0 | BU146: 0 | BV146: 0 | BW146: 0 | BX146: 0 | BY146: 0 | BZ146: 0 | CA146: 0 | CB146: 0 | CC146: 0 | CD146: 0 | CE146: 0 | CF146: 0 | CG146: 0 | CH146: 0 | CI146: 0
B147: Initial Excess Deferred | C147: =+C143-C144 -> 0 | D147: End Excess Deferred | E147: =+E145-E146 -> 0 | F147: =+F145-F146 -> 0 | G147: 0 | H147: 0 | I147: 0 | J147: 0 | K147: 0 | L147: 0 | M147: 0 | N147: 0 | O147: 0 | P147: 0 | Q147: 0 | R147: 0 | S147: 0 | T147: 0 | U147: 0 | V147: 0 | W147: 0 | X147: 0 | Y147: 0 | Z147: 0 | AA147: 0 | AB147: 0 | AC147: 0 | AD147: 0 | AE147: 0 | AF147: 0 | AG147: 0 | AH147: 0 | AI147: 0 | AJ147: 0 | AK147: 0 | AL147: 0 | AM147: 0 | AN147: 0 | AO147: 0 | AP147: 0 | AQ147: 0 | AR147: 0 | AS147: 0 | AT147: 0 | AU147: 0 | AV147: 0 | AW147: 0 | AX147: 0 | AY147: 0 | AZ147: 0 | BA147: 0 | BB147: 0 | BC147: 0 | BD147: 0 | BE147: 0 | BF147: 0 | BG147: 0 | BH147: 0 | BI147: 0 | BJ147: 0 | BK147: 0 | BL147: 0 | BM147: 0 | BN147: 0 | BO147: 0 | BP147: 0 | BQ147: 0 | BR147: =+BR145-BR146 -> 0 | BS147: 0 | BT147: 0 | BU147: 0 | BV147: 0 | BW147: 0 | BX147: 0 | BY147: 0 | BZ147: 0 | CA147: 0 | CB147: 0 | CC147: 0 | CD147: 0 | CE147: 0 | CF147: 0 | CG147: 0 | CH147: 0 | CI147: 0
B148: Amortization/Reduction to Tax | C148: Reversal Check | D148: =SUM(E148:CI148) -> 0 | E148: =+E137-E138 -> 0 | F148: =+F137-F138 -> 0 | G148: =+G137-G138 -> 0 | H148: 0 | I148: 0 | J148: 0 | K148: 0 | L148: 0 | M148: 0 | N148: 0 | O148: 0 | P148: 0 | Q148: 0 | R148: 0 | S148: 0 | T148: 0 | U148: 0 | V148: 0 | W148: 0 | X148: 0 | Y148: 0 | Z148: 0 | AA148: 0 | AB148: 0 | AC148: 0 | AD148: 0 | AE148: 0 | AF148: 0 | AG148: 0 | AH148: 0 | AI148: 0 | AJ148: 0 | AK148: 0 | AL148: 0 | AM148: 0 | AN148: 0 | AO148: 0 | AP148: 0 | AQ148: 0 | AR148: 0 | AS148: 0 | AT148: 0 | AU148: 0 | AV148: 0 | AW148: 0 | AX148: 0 | AY148: 0 | AZ148: 0 | BA148: 0 | BB148: 0 | BC148: 0 | BD148: 0 | BE148: 0 | BF148: 0 | BG148: 0 | BH148: 0 | BI148: 0 | BJ148: 0 | BK148: 0 | BL148: 0 | BM148: 0 | BN148: 0 | BO148: 0 | BP148: 0 | BQ148: 0 | BR148: 0 | BS148: =+BS137-BS138 -> 0 | BT148: 0 | BU148: 0 | BV148: 0 | BW148: 0 | BX148: 0 | BY148: 0 | BZ148: 0 | CA148: 0 | CB148: 0 | CC148: 0 | CD148: 0 | CE148: 0 | CF148: 0 | CG148: 0 | CH148: 0 | CI148: 0
B150: Ending 2017 | E150: 2018 | F150: =E150+1 -> 2019 | G150: 2020 | H150: 2021 | I150: 2022 | J150: 2023 | K150: 2024 | L150: 2025 | M150: 2026 | N150: 2027 | O150: 2028 | P150: 2029 | Q150: 2030 | R150: 2031 | S150: 2032 | T150: 2033 | U150: 2034 | V150: 2035 | W150: 2036 | X150: 2037 | Y150: 2038 | Z150: 2039 | AA150: 2040 | AB150: 2041 | AC150: 2042 | AD150: 2043 | AE150: 2044 | AF150: 2045 | AG150: 2046 | AH150: 2047 | AI150: 2048 | AJ150: 2049 | AK150: 2050 | AL150: 2051 | AM150: 2052 | AN150: 2053 | AO150: 2054 | AP150: 2055 | AQ150: 2056 | AR150: 2057 | AS150: 2058 | AT150: 2059 | AU150: 2060 | AV150: 2061 | AW150: 2062 | AX150: 2063 | AY150: 2064 | AZ150: 2065 | BA150: 2066 | BB150: 2067 | BC150: 2068 | BD150: 2069 | BE150: 2070 | BF150: 2071 | BG150: 2072 | BH150: 2073 | BI150: 2074 | BJ150: 2075 | BK150: 2076 | BL150: 2077 | BM150: 2078 | BN150: 2079 | BO150: 2080 | BP150: 2081 | BQ150: 2082 | BR150: =BQ150+1 -> 2083 | BS150: 2084 | BT150: 2085 | BU150: 2086 | BV150: 2087 | BW150: 2088 | BX150: 2089 | BY150: 2090 | BZ150: 2091 | CA150: 2092 | CB150: 2093 | CC150: 2094 | CD150: 2095 | CE150: 2096 | CF150: 2097 | CG150: 2098 | CH150: 2099 | CI150: 2100
A151: 2000 | B151: Initial Difference | C151: =IF(VLOOKUP(A151,$A$38:$C$58,3)-VLOOKUP(A151,$A$67:$C$87,3)<0,0,VLOOKUP(A151,$A$38:$C$58,3)-VLOOKUP(A151,$A$67:$C$87,3)) -> 0 | D151: Begin Cumulative Difference | E151: =+$C151 -> 0 | F151: =+E153 -> 0 | G151: =+F153 -> 0 | H151: 0 | I151: 0 | J151: 0 | K151: 0 | L151: 0 | M151: 0 | N151: 0 | O151: 0 | P151: 0 | Q151: 0 | R151: 0 | S151: 0 | T151: 0 | U151: 0 | V151: 0 | W151: 0 | X151: 0 | Y151: 0 | Z151: 0 | AA151: 0 | AB151: 0 | AC151: 0 | AD151: 0 | AE151: 0 | AF151: 0 | AG151: 0 | AH151: 0 | AI151: 0 | AJ151: 0 | AK151: 0 | AL151: 0 | AM151: 0 | AN151: 0 | AO151: 0 | AP151: 0 | AQ151: 0 | AR151: 0 | AS151: 0 | AT151: 0 | AU151: 0 | AV151: 0 | AW151: 0 | AX151: 0 | AY151: 0 | AZ151: 0 | BA151: 0 | BB151: 0 | BC151: 0 | BD151: 0 | BE151: 0 | BF151: 0 | BG151: 0 | BH151: 0 | BI151: 0 | BJ151: 0 | BK151: 0 | BL151: 0 | BM151: 0 | BN151: 0 | BO151: 0 | BP151: 0 | BQ151: 0 | BR151: 0 | BS151: =+BR153 -> 0 | BT151: 0 | BU151: 0 | BV151: 0 | BW151: 0 | BX151: 0 | BY151: 0 | BZ151: 0 | CA151: 0 | CB151: 0 | CC151: 0 | CD151: 0 | CE151: 0 | CF151: 0 | CG151: 0 | CH151: 0 | CI151: 0
D152: Current Diff (Tax - Book) | E152: =IF(E151<=0, 0,VLOOKUP($A151,$A$67:$CI$87,E150-2013)-VLOOKUP($A151,$A$38:$CI$58,E150-2013)) -> 0 | F152: =IF(F151<=0, 0,VLOOKUP($A151,$A$67:$CI$87,F150-2013)-VLOOKUP($A151,$A$38:$CI$58,F150-2013)) -> 0 | G152: 0 | H152: 0 | I152: 0 | J152: 0 | K152: 0 | L152: 0 | M152: 0 | N152: 0 | O152: 0 | P152: 0 | Q152: 0 | R152: 0 | S152: 0 | T152: 0 | U152: 0 | V152: 0 | W152: 0 | X152: 0 | Y152: 0 | Z152: 0 | AA152: 0 | AB152: 0 | AC152: 0 | AD152: 0 | AE152: 0 | AF152: 0 | AG152: 0 | AH152: 0 | AI152: 0 | AJ152: 0 | AK152: 0 | AL152: 0 | AM152: 0 | AN152: 0 | AO152: 0 | AP152: 0 | AQ152: 0 | AR152: 0 | AS152: 0 | AT152: 0 | AU152: 0 | AV152: 0 | AW152: 0 | AX152: 0 | AY152: 0 | AZ152: 0 | BA152: 0 | BB152: 0 | BC152: 0 | BD152: 0 | BE152: 0 | BF152: 0 | BG152: 0 | BH152: 0 | BI152: 0 | BJ152: 0 | BK152: 0 | BL152: 0 | BM152: 0 | BN152: 0 | BO152: 0 | BP152: 0 | BQ152: 0 | BR152: =IF(BR151<=0, 0,VLOOKUP($A151,$A$67:$CI$87,BR150-2013)-VLOOKUP($A151,$A$38:$CI$58,BR150-2013)) -> 0 | BS152: 0 | BT152: 0 | BU152: 0 | BV152: 0 | BW152: 0 | BX152: 0 | BY152: 0 | BZ152: 0 | CA152: 0 | CB152: 0 | CC152: 0 | CD152: 0 | CE152: 0 | CF152: 0 | CG152: 0 | CH152: 0 | CI152: 0
D153: End Cumulative Difference | E153: =IF(E151+E152<0, 0, E151+E152) -> 0 | F153: =IF(F151+F152<0, 0, F151+F152) -> 0 | G153: 0 | H153: 0 | I153: 0 | J153: 0 | K153: 0 | L153: 0 | M153: 0 | N153: 0 | O153: 0 | P153: 0 | Q153: 0 | R153: 0 | S153: 0 | T153: 0 | U153: 0 | V153: 0 | W153: 0 | X153: 0 | Y153: 0 | Z153: 0 | AA153: 0 | AB153: 0 | AC153: 0 | AD153: 0 | AE153: 0 | AF153: 0 | AG153: 0 | AH153: 0 | AI153: 0 | AJ153: 0 | AK153: 0 | AL153: 0 | AM153: 0 | AN153: 0 | AO153: 0 | AP153: 0 | AQ153: 0 | AR153: 0 | AS153: 0 | AT153: 0 | AU153: 0 | AV153: 0 | AW153: 0 | AX153: 0 | AY153: 0 | AZ153: 0 | BA153: 0 | BB153: 0 | BC153: 0 | BD153: 0 | BE153: 0 | BF153: 0 | BG153: 0 | BH153: 0 | BI153: 0 | BJ153: 0 | BK153: 0 | BL153: 0 | BM153: 0 | BN153: 0 | BO153: 0 | BP153: 0 | BQ153: 0 | BR153: =IF(BR151+BR152<0, 0, BR151+BR152) -> 0 | BS153: 0 | BT153: 0 | BU153: 0 | BV153: 0 | BW153: 0 | BX153: 0 | BY153: 0 | BZ153: 0 | CA153: 0 | CB153: 0 | CC153: 0 | CD153: 0 | CE153: 0 | CF153: 0 | CG153: 0 | CH153: 0 | CI153: 0
D154: Current Diff (Tax - Book) Utilized | E154: =IF(E151+E152>0, E152, IF(E151+E152<0,-E151,E151+E152)) -> 0 | F154: =IF(F151+F152>0, F152, IF(F151+F152<0,-F151,F151+F152)) -> 0 | G154: 0 | H154: 0 | I154: 0 | J154: 0 | K154: 0 | L154: 0 | M154: 0 | N154: 0 | O154: 0 | P154: 0 | Q154: 0 | R154: 0 | S154: 0 | T154: 0 | U154: 0 | V154: 0 | W154: 0 | X154: 0 | Y154: 0 | Z154: 0 | AA154: 0 | AB154: 0 | AC154: 0 | AD154: 0 | AE154: 0 | AF154: 0 | AG154: 0 | AH154: 0 | AI154: 0 | AJ154: 0 | AK154: 0 | AL154: 0 | AM154: 0 | AN154: 0 | AO154: 0 | AP154: 0 | AQ154: 0 | AR154: 0 | AS154: 0 | AT154: 0 | AU154: 0 | AV154: 0 | AW154: 0 | AX154: 0 | AY154: 0 | AZ154: 0 | BA154: 0 | BB154: 0 | BC154: 0 | BD154: 0 | BE154: 0 | BF154: 0 | BG154: 0 | BH154: 0 | BI154: 0 | BJ154: 0 | BK154: 0 | BL154: 0 | BM154: 0 | BN154: 0 | BO154: 0 | BP154: 0 | BQ154: 0 | BR154: =IF(BR151+BR152>0, BR152, IF(BR151+BR152<0,-BR151,BR151+BR152)) -> 0 | BS154: 0 | BT154: 0 | BU154: 0 | BV154: 0 | BW154: 0 | BX154: 0 | BY154: 0 | BZ154: 0 | CA154: 0 | CB154: 0 | CC154: 0 | CD154: 0 | CE154: 0 | CF154: 0 | CG154: 0 | CH154: 0 | CI154: 0
B155: Historical Tax rate | C155: =+$E$2 -> 0.38575 | D155: Tax rate (or ARAM rate) | E155: =IF(E151=0,0,IF(E152>0,$C156,C160)) -> 0 | F155: =IF(F151=0,0,IF(F152>0,$C156,E161)) -> 0 | G155: =IF(G151=0,0,IF(G152>0,$C156,F161)) -> 0 | H155: 0 | I155: 0 | J155: 0 | K155: 0 | L155: 0 | M155: 0 | N155: 0 | O155: 0 | P155: 0 | Q155: 0 | R155: 0 | S155: 0 | T155: 0 | U155: 0 | V155: 0 | W155: 0 | X155: 0 | Y155: 0 | Z155: 0 | AA155: 0 | AB155: 0 | AC155: 0 | AD155: 0 | AE155: 0 | AF155: 0 | AG155: 0 | AH155: 0 | AI155: 0 | AJ155: 0 | AK155: 0 | AL155: 0 | AM155: 0 | AN155: 0 | AO155: 0 | AP155: 0 | AQ155: 0 | AR155: 0 | AS155: 0 | AT155: 0 | AU155: 0 | AV155: 0 | AW155: 0 | AX155: 0 | AY155: 0 | AZ155: 0 | BA155: 0 | BB155: 0 | BC155: 0 | BD155: 0 | BE155: 0 | BF155: 0 | BG155: 0 | BH155: 0 | BI155: 0 | BJ155: 0 | BK155: 0 | BL155: 0 | BM155: 0 | BN155: 0 | BO155: 0 | BP155: 0 | BQ155: 0 | BR155: 0 | BS155: =IF(BS151=0,0,IF(BS152>0,$C156,BR161)) -> 0 | BT155: 0 | BU155: 0 | BV155: 0 | BW155: 0 | BX155: 0 | BY155: 0 | BZ155: 0 | CA155: 0 | CB155: 0 | CC155: 0 | CD155: 0 | CE155: 0 | CF155: 0 | CG155: 0 | CH155: 0 | CI155: 0
B156: Current Statutory Rate | C156: =+$E$3 -> 0.25345 | D156: Begin Current DFIT @ Current Statutory | E156: =IF(E151=0,0,E154*$C156) -> 0 | F156: =IF(F151=0,0,F154*$C156) -> 0 | G156: =IF(G151=0,0,G154*$C156) -> 0 | H156: 0 | I156: 0 | J156: 0 | K156: 0 | L156: 0 | M156: 0 | N156: 0 | O156: 0 | P156: 0 | Q156: 0 | R156: 0 | S156: 0 | T156: 0 | U156: 0 | V156: 0 | W156: 0 | X156: 0 | Y156: 0 | Z156: 0 | AA156: 0 | AB156: 0 | AC156: 0 | AD156: 0 | AE156: 0 | AF156: 0 | AG156: 0 | AH156: 0 | AI156: 0 | AJ156: 0 | AK156: 0 | AL156: 0 | AM156: 0 | AN156: 0 | AO156: 0 | AP156: 0 | AQ156: 0 | AR156: 0 | AS156: 0 | AT156: 0 | AU156: 0 | AV156: 0 | AW156: 0 | AX156: 0 | AY156: 0 | AZ156: 0 | BA156: 0 | BB156: 0 | BC156: 0 | BD156: 0 | BE156: 0 | BF156: 0 | BG156: 0 | BH156: 0 | BI156: 0 | BJ156: 0 | BK156: 0 | BL156: 0 | BM156: 0 | BN156: 0 | BO156: 0 | BP156: 0 | BQ156: 0 | BR156: 0 | BS156: =IF(BS151=0,0,BS154*$C156) -> 0 | BT156: 0 | BU156: 0 | BV156: 0 | BW156: 0 | BX156: 0 | BY156: 0 | BZ156: 0 | CA156: 0 | CB156: 0 | CC156: 0 | CD156: 0 | CE156: 0 | CF156: 0 | CG156: 0 | CH156: 0 | CI156: 0
D157: Begin Current DFIT at Statutory or ARAM Rate | E157: =+E154*E155 -> 0 | F157: =+F154*F155 -> 0 | G157: =+G154*G155 -> 0 | H157: 0 | I157: 0 | J157: 0 | K157: 0 | L157: 0 | M157: 0 | N157: 0 | O157: 0 | P157: 0 | Q157: 0 | R157: 0 | S157: 0 | T157: 0 | U157: 0 | V157: 0 | W157: 0 | X157: 0 | Y157: 0 | Z157: 0 | AA157: 0 | AB157: 0 | AC157: 0 | AD157: 0 | AE157: 0 | AF157: 0 | AG157: 0 | AH157: 0 | AI157: 0 | AJ157: 0 | AK157: 0 | AL157: 0 | AM157: 0 | AN157: 0 | AO157: 0 | AP157: 0 | AQ157: 0 | AR157: 0 | AS157: 0 | AT157: 0 | AU157: 0 | AV157: 0 | AW157: 0 | AX157: 0 | AY157: 0 | AZ157: 0 | BA157: 0 | BB157: 0 | BC157: 0 | BD157: 0 | BE157: 0 | BF157: 0 | BG157: 0 | BH157: 0 | BI157: 0 | BJ157: 0 | BK157: 0 | BL157: 0 | BM157: 0 | BN157: 0 | BO157: 0 | BP157: 0 | BQ157: 0 | BR157: 0 | BS157: =+BS154*BS155 -> 0 | BT157: 0 | BU157: 0 | BV157: 0 | BW157: 0 | BX157: 0 | BY157: 0 | BZ157: 0 | CA157: 0 | CB157: 0 | CC157: 0 | CD157: 0 | CE157: 0 | CF157: 0 | CG157: 0 | CH157: 0 | CI157: 0
B158: Initial Cumulative DFIT | C158: =+C151*C155 -> 0 | D158: Begin Cumulative DFIT | E158: =+C158 -> 0 | F158: =+E159 -> 0 | G158: =+F159 -> 0 | H158: 0 | I158: 0 | J158: 0 | K158: 0 | L158: 0 | M158: 0 | N158: 0 | O158: 0 | P158: 0 | Q158: 0 | R158: 0 | S158: 0 | T158: 0 | U158: 0 | V158: 0 | W158: 0 | X158: 0 | Y158: 0 | Z158: 0 | AA158: 0 | AB158: 0 | AC158: 0 | AD158: 0 | AE158: 0 | AF158: 0 | AG158: 0 | AH158: 0 | AI158: 0 | AJ158: 0 | AK158: 0 | AL158: 0 | AM158: 0 | AN158: 0 | AO158: 0 | AP158: 0 | AQ158: 0 | AR158: 0 | AS158: 0 | AT158: 0 | AU158: 0 | AV158: 0 | AW158: 0 | AX158: 0 | AY158: 0 | AZ158: 0 | BA158: 0 | BB158: 0 | BC158: 0 | BD158: 0 | BE158: 0 | BF158: 0 | BG158: 0 | BH158: 0 | BI158: 0 | BJ158: 0 | BK158: 0 | BL158: 0 | BM158: 0 | BN158: 0 | BO158: 0 | BP158: 0 | BQ158: 0 | BR158: 0 | BS158: =+BR159 -> 0 | BT158: 0 | BU158: 0 | BV158: 0 | BW158: 0 | BX158: 0 | BY158: 0 | BZ158: 0 | CA158: 0 | CB158: 0 | CC158: 0 | CD158: 0 | CE158: 0 | CF158: 0 | CG158: 0 | CH158: 0 | CI158: 0
D159: End Cumulative DFIT | E159: =+E158+E157 -> 0 | F159: =IF(F158+F157<=0,0, F158+F157) -> 0 | G159: =IF(G158+G157<=0,0, G158+G157) -> 0 | H159: 0 | I159: 0 | J159: 0 | K159: 0 | L159: 0 | M159: 0 | N159: 0 | O159: 0 | P159: 0 | Q159: 0 | R159: 0 | S159: 0 | T159: 0 | U159: 0 | V159: 0 | W159: 0 | X159: 0 | Y159: 0 | Z159: 0 | AA159: 0 | AB159: 0 | AC159: 0 | AD159: 0 | AE159: 0 | AF159: 0 | AG159: 0 | AH159: 0 | AI159: 0 | AJ159: 0 | AK159: 0 | AL159: 0 | AM159: 0 | AN159: 0 | AO159: 0 | AP159: 0 | AQ159: 0 | AR159: 0 | AS159: 0 | AT159: 0 | AU159: 0 | AV159: 0 | AW159: 0 | AX159: 0 | AY159: 0 | AZ159: 0 | BA159: 0 | BB159: 0 | BC159: 0 | BD159: 0 | BE159: 0 | BF159: 0 | BG159: 0 | BH159: 0 | BI159: 0 | BJ159: 0 | BK159: 0 | BL159: 0 | BM159: 0 | BN159: 0 | BO159: 0 | BP159: 0 | BQ159: 0 | BR159: 0 | BS159: =IF(BS158+BS157<=0,0, BS158+BS157) -> 0 | BT159: 0 | BU159: 0 | BV159: 0 | BW159: 0 | BX159: 0 | BY159: 0 | BZ159: 0 | CA159: 0 | CB159: 0 | CC159: 0 | CD159: 0 | CE159: 0 | CF159: 0 | CG159: 0 | CH159: 0 | CI159: 0
B160: Initial ARAM Rate (cum dfit/cum diff) | C160: =IF(C151=0,0,C158/C151) -> 0 | D160: Begin ARAM Rate (cum dfit/cum diff) | E160: =IF(E151=0,0,+E158/E151) -> 0 | F160: =IF(F151=0,0,+F158/F151) -> 0 | G160: =IF(G151=0,0,+G158/G151) -> 0 | H160: 0 | I160: 0 | J160: 0 | K160: 0 | L160: 0 | M160: 0 | N160: 0 | O160: 0 | P160: 0 | Q160: 0 | R160: 0 | S160: 0 | T160: 0 | U160: 0 | V160: 0 | W160: 0 | X160: 0 | Y160: 0 | Z160: 0 | AA160: 0 | AB160: 0 | AC160: 0 | AD160: 0 | AE160: 0 | AF160: 0 | AG160: 0 | AH160: 0 | AI160: 0 | AJ160: 0 | AK160: 0 | AL160: 0 | AM160: 0 | AN160: 0 | AO160: 0 | AP160: 0 | AQ160: 0 | AR160: 0 | AS160: 0 | AT160: 0 | AU160: 0 | AV160: 0 | AW160: 0 | AX160: 0 | AY160: 0 | AZ160: 0 | BA160: 0 | BB160: 0 | BC160: 0 | BD160: 0 | BE160: 0 | BF160: 0 | BG160: 0 | BH160: 0 | BI160: 0 | BJ160: 0 | BK160: 0 | BL160: 0 | BM160: 0 | BN160: 0 | BO160: 0 | BP160: 0 | BQ160: 0 | BR160: 0 | BS160: =IF(BS151=0,0,+BS158/BS151) -> 0 | BT160: 0 | BU160: 0 | BV160: 0 | BW160: 0 | BX160: 0 | BY160: 0 | BZ160: 0 | CA160: 0 | CB160: 0 | CC160: 0 | CD160: 0 | CE160: 0 | CF160: 0 | CG160: 0 | CH160: 0 | CI160: 0
D161: End ARAM Rate (cum dfit/cum diff) | E161: =IF(E153=0,0,+E159/E153) -> 0 | F161: =IF(F153=0,0,+F159/F153) -> 0 | G161: =IF(G153=0,0,+G159/G153) -> 0 | H161: 0 | I161: 0 | J161: 0 | K161: 0 | L161: 0 | M161: 0 | N161: 0 | O161: 0 | P161: 0 | Q161: 0 | R161: 0 | S161: 0 | T161: 0 | U161: 0 | V161: 0 | W161: 0 | X161: 0 | Y161: 0 | Z161: 0 | AA161: 0 | AB161: 0 | AC161: 0 | AD161: 0 | AE161: 0 | AF161: 0 | AG161: 0 | AH161: 0 | AI161: 0 | AJ161: 0 | AK161: 0 | AL161: 0 | AM161: 0 | AN161: 0 | AO161: 0 | AP161: 0 | AQ161: 0 | AR161: 0 | AS161: 0 | AT161: 0 | AU161: 0 | AV161: 0 | AW161: 0 | AX161: 0 | AY161: 0 | AZ161: 0 | BA161: 0 | BB161: 0 | BC161: 0 | BD161: 0 | BE161: 0 | BF161: 0 | BG161: 0 | BH161: 0 | BI161: 0 | BJ161: 0 | BK161: 0 | BL161: 0 | BM161: 0 | BN161: 0 | BO161: 0 | BP161: 0 | BQ161: 0 | BR161: 0 | BS161: =IF(BS153=0,0,+BS159/BS153) -> 0 | BT161: 0 | BU161: 0 | BV161: 0 | BW161: 0 | BX161: 0 | BY161: 0 | BZ161: 0 | CA161: 0 | CB161: 0 | CC161: 0 | CD161: 0 | CE161: 0 | CF161: 0 | CG161: 0 | CH161: 0 | CI161: 0
B162: Initial Cumulative DFIT at Historic Rate | C162: =+C151*C160 -> 0 | D162: Cumulative DFIT at Historic Rate | E162: =+C162+E157 -> 0 | F162: =+E162+F157 -> 0 | G162: =+F162+G157 -> 0 | H162: 0 | I162: 0 | J162: 0 | K162: 0 | L162: 0 | M162: 0 | N162: 0 | O162: 0 | P162: 0 | Q162: 0 | R162: 0 | S162: 0 | T162: 0 | U162: 0 | V162: 0 | W162: 0 | X162: 0 | Y162: 0 | Z162: 0 | AA162: 0 | AB162: 0 | AC162: 0 | AD162: 0 | AE162: 0 | AF162: 0 | AG162: 0 | AH162: 0 | AI162: 0 | AJ162: 0 | AK162: 0 | AL162: 0 | AM162: 0 | AN162: 0 | AO162: 0 | AP162: 0 | AQ162: 0 | AR162: 0 | AS162: 0 | AT162: 0 | AU162: 0 | AV162: 0 | AW162: 0 | AX162: 0 | AY162: 0 | AZ162: 0 | BA162: 0 | BB162: 0 | BC162: 0 | BD162: 0 | BE162: 0 | BF162: 0 | BG162: 0 | BH162: 0 | BI162: 0 | BJ162: 0 | BK162: 0 | BL162: 0 | BM162: 0 | BN162: 0 | BO162: 0 | BP162: 0 | BQ162: 0 | BR162: 0 | BS162: =+BR162+BS157 -> 0 | BT162: 0 | BU162: 0 | BV162: 0 | BW162: 0 | BX162: 0 | BY162: 0 | BZ162: 0 | CA162: 0 | CB162: 0 | CC162: 0 | CD162: 0 | CE162: 0 | CF162: 0 | CG162: 0 | CH162: 0 | CI162: 0
B163: Initial Cumulative DFIT at Statutory Rate | C163: =+C151*C156 -> 0 | D163: Cumulative DFIT at Statutory Rate | E163: =IF(E156<>0,+C163+E156,0) -> 0 | F163: =IF(F156<>0,+E163+F156,0) -> 0 | G163: =IF(G156<>0,+F163+G156,0) -> 0 | H163: 0 | I163: 0 | J163: 0 | K163: 0 | L163: 0 | M163: 0 | N163: 0 | O163: 0 | P163: 0 | Q163: 0 | R163: 0 | S163: 0 | T163: 0 | U163: 0 | V163: 0 | W163: 0 | X163: 0 | Y163: 0 | Z163: 0 | AA163: 0 | AB163: 0 | AC163: 0 | AD163: 0 | AE163: 0 | AF163: 0 | AG163: 0 | AH163: 0 | AI163: 0 | AJ163: 0 | AK163: 0 | AL163: 0 | AM163: 0 | AN163: 0 | AO163: 0 | AP163: 0 | AQ163: 0 | AR163: 0 | AS163: 0 | AT163: 0 | AU163: 0 | AV163: 0 | AW163: 0 | AX163: 0 | AY163: 0 | AZ163: 0 | BA163: 0 | BB163: 0 | BC163: 0 | BD163: 0 | BE163: 0 | BF163: 0 | BG163: 0 | BH163: 0 | BI163: 0 | BJ163: 0 | BK163: 0 | BL163: 0 | BM163: 0 | BN163: 0 | BO163: 0 | BP163: 0 | BQ163: 0 | BR163: 0 | BS163: =IF(BS156<>0,+BR163+BS156,0) -> 0 | BT163: 0 | BU163: 0 | BV163: 0 | BW163: 0 | BX163: 0 | BY163: 0 | BZ163: 0 | CA163: 0 | CB163: 0 | CC163: 0 | CD163: 0 | CE163: 0 | CF163: 0 | CG163: 0 | CH163: 0 | CI163: 0
D164: Begin Excess Deferred | E164: =+C166 -> 0 | F164: =+E166 -> 0 | G164: =+F166 -> 0 | H164: 0 | I164: 0 | J164: 0 | K164: 0 | L164: 0 | M164: 0 | N164: 0 | O164: 0 | P164: 0 | Q164: 0 | R164: 0 | S164: 0 | T164: 0 | U164: 0 | V164: 0 | W164: 0 | X164: 0 | Y164: 0 | Z164: 0 | AA164: 0 | AB164: 0 | AC164: 0 | AD164: 0 | AE164: 0 | AF164: 0 | AG164: 0 | AH164: 0 | AI164: 0 | AJ164: 0 | AK164: 0 | AL164: 0 | AM164: 0 | AN164: 0 | AO164: 0 | AP164: 0 | AQ164: 0 | AR164: 0 | AS164: 0 | AT164: 0 | AU164: 0 | AV164: 0 | AW164: 0 | AX164: 0 | AY164: 0 | AZ164: 0 | BA164: 0 | BB164: 0 | BC164: 0 | BD164: 0 | BE164: 0 | BF164: 0 | BG164: 0 | BH164: 0 | BI164: 0 | BJ164: 0 | BK164: 0 | BL164: 0 | BM164: 0 | BN164: 0 | BO164: 0 | BP164: 0 | BQ164: 0 | BR164: 0 | BS164: =+BR166 -> 0 | BT164: 0 | BU164: 0 | BV164: 0 | BW164: 0 | BX164: 0 | BY164: 0 | BZ164: 0 | CA164: 0 | CB164: 0 | CC164: 0 | CD164: 0 | CE164: 0 | CF164: 0 | CG164: 0 | CH164: 0 | CI164: 0
D165: Amortization of Excess Deferred | E165: =+E156-E157 -> 0 | F165: =+F156-F157 -> 0 | G165: 0 | H165: 0 | I165: 0 | J165: 0 | K165: 0 | L165: 0 | M165: 0 | N165: 0 | O165: 0 | P165: 0 | Q165: 0 | R165: 0 | S165: 0 | T165: 0 | U165: 0 | V165: 0 | W165: 0 | X165: 0 | Y165: 0 | Z165: 0 | AA165: 0 | AB165: 0 | AC165: 0 | AD165: 0 | AE165: 0 | AF165: 0 | AG165: 0 | AH165: 0 | AI165: 0 | AJ165: 0 | AK165: 0 | AL165: 0 | AM165: 0 | AN165: 0 | AO165: 0 | AP165: 0 | AQ165: 0 | AR165: 0 | AS165: 0 | AT165: 0 | AU165: 0 | AV165: 0 | AW165: 0 | AX165: 0 | AY165: 0 | AZ165: 0 | BA165: 0 | BB165: 0 | BC165: 0 | BD165: 0 | BE165: 0 | BF165: 0 | BG165: 0 | BH165: 0 | BI165: 0 | BJ165: 0 | BK165: 0 | BL165: 0 | BM165: 0 | BN165: 0 | BO165: 0 | BP165: 0 | BQ165: 0 | BR165: =+BR156-BR157 -> 0 | BS165: 0 | BT165: 0 | BU165: 0 | BV165: 0 | BW165: 0 | BX165: 0 | BY165: 0 | BZ165: 0 | CA165: 0 | CB165: 0 | CC165: 0 | CD165: 0 | CE165: 0 | CF165: 0 | CG165: 0 | CH165: 0 | CI165: 0
B166: Initial Excess Deferred | C166: =+C162-C163 -> 0 | D166: End Excess Deferred | E166: =+E164-E165 -> 0 | F166: =+F164-F165 -> 0 | G166: 0 | H166: 0 | I166: 0 | J166: 0 | K166: 0 | L166: 0 | M166: 0 | N166: 0 | O166: 0 | P166: 0 | Q166: 0 | R166: 0 | S166: 0 | T166: 0 | U166: 0 | V166: 0 | W166: 0 | X166: 0 | Y166: 0 | Z166: 0 | AA166: 0 | AB166: 0 | AC166: 0 | AD166: 0 | AE166: 0 | AF166: 0 | AG166: 0 | AH166: 0 | AI166: 0 | AJ166: 0 | AK166: 0 | AL166: 0 | AM166: 0 | AN166: 0 | AO166: 0 | AP166: 0 | AQ166: 0 | AR166: 0 | AS166: 0 | AT166: 0 | AU166: 0 | AV166: 0 | AW166: 0 | AX166: 0 | AY166: 0 | AZ166: 0 | BA166: 0 | BB166: 0 | BC166: 0 | BD166: 0 | BE166: 0 | BF166: 0 | BG166: 0 | BH166: 0 | BI166: 0 | BJ166: 0 | BK166: 0 | BL166: 0 | BM166: 0 | BN166: 0 | BO166: 0 | BP166: 0 | BQ166: 0 | BR166: =+BR164-BR165 -> 0 | BS166: 0 | BT166: 0 | BU166: 0 | BV166: 0 | BW166: 0 | BX166: 0 | BY166: 0 | BZ166: 0 | CA166: 0 | CB166: 0 | CC166: 0 | CD166: 0 | CE166: 0 | CF166: 0 | CG166: 0 | CH166: 0 | CI166: 0
B167: Amortization/Reduction to Tax | C167: Reversal Check | D167: =SUM(E167:CI167) -> 0 | E167: =+E156-E157 -> 0 | F167: =+F156-F157 -> 0 | G167: =+G156-G157 -> 0 | H167: 0 | I167: 0 | J167: 0 | K167: 0 | L167: 0 | M167: 0 | N167: 0 | O167: 0 | P167: 0 | Q167: 0 | R167: 0 | S167: 0 | T167: 0 | U167: 0 | V167: 0 | W167: 0 | X167: 0 | Y167: 0 | Z167: 0 | AA167: 0 | AB167: 0 | AC167: 0 | AD167: 0 | AE167: 0 | AF167: 0 | AG167: 0 | AH167: 0 | AI167: 0 | AJ167: 0 | AK167: 0 | AL167: 0 | AM167: 0 | AN167: 0 | AO167: 0 | AP167: 0 | AQ167: 0 | AR167: 0 | AS167: 0 | AT167: 0 | AU167: 0 | AV167: 0 | AW167: 0 | AX167: 0 | AY167: 0 | AZ167: 0 | BA167: 0 | BB167: 0 | BC167: 0 | BD167: 0 | BE167: 0 | BF167: 0 | BG167: 0 | BH167: 0 | BI167: 0 | BJ167: 0 | BK167: 0 | BL167: 0 | BM167: 0 | BN167: 0 | BO167: 0 | BP167: 0 | BQ167: 0 | BR167: 0 | BS167: =+BS156-BS157 -> 0 | BT167: 0 | BU167: 0 | BV167: 0 | BW167: 0 | BX167: 0 | BY167: 0 | BZ167: 0 | CA167: 0 | CB167: 0 | CC167: 0 | CD167: 0 | CE167: 0 | CF167: 0 | CG167: 0 | CH167: 0 | CI167: 0
